Workbook

Sheet CV Rotina <2A - procedência
E1: AO NASCER | I1: MENOR DE 1 ANO | U1: 1 ANO | AB1: MENOR DE 1 ANO
A2: Regional | B2: Município | C2: ¹População < 1 ano e 1 ano anual | D2: ²População < 1 ano e 1 ano proporcional | E2: Doses Aplicadas HB < 30 dias | F2: Cobertura Vacinal HB até 30 dias | G2: Doses Aplicadas BCG | H2: Cobertura Vacinal BCG | I2: Doses Aplicadas Pentavalente | J2: Cobertura Vacinal Pentavalente | K2: Doses Aplicadas Poliomielite | L2: Cobertura Vacinal Poliomielite | M2: Doses Aplicadas Pneumo 10 | N2: Cobertura Vacinal Pneumo 10 | O2: Doses Aplicadas Rotavírus | P2: Cobertura Vacinal Rotavírus | Q2: Doses Aplicadas Meningo C | R2: Cobertura Vacinal Meningo C | S2: Doses Aplicadas Febre Amarela | T2: Cobertura Vacinal Febre Amarela | U2: Doses Aplicadas Hepatite A | V2: Cobertura Vacinal Hepatite A | W2: Doses Aplicadas de Tríplice Viral | X2: Cobertura Vacinal Tríplice Viral | Y2: Doses Aplicadas Varicela | Z2: Cobertura Varicela | AB2: Doses Aplicadas COVID-19 | AC2: Cobertura Vacinal COVID-19 | AE2: VACINAS QUE ATINGIRAM A META DE CV | AF2: HOMOGENEIDADE ENTRE AS 10 VACINAS | AG2: VACINAS DO PQA-VS QUE ATINGIRAM A META DE CV | AH2: HOMOGENEIDADE ENTRE AS VACINAS DO PQA-VS
A3: Metropolitana | B3: Afonso Cláudio | C3: 369 | D3: 253 | E3: 223 | F3: =E3/D3 -> 0.8814229249 | G3: 217 | H3: =G3/D3 -> 0.8577075099 | I3: 212 | J3: =I3/D3 -> 0.837944664 | K3: 209 | L3: =K3/D3 -> 0.8260869565 | M3: 217 | N3: =M3/D3 -> 0.8577075099 | O3: 224 | P3: =O3/D3 -> 0.8853754941 | Q3: 210 | R3: =Q3/D3 -> 0.8300395257 | S3: 197 | T3: =S3/D3 -> 0.7786561265 | U3: 227 | V3: =U3/D3 -> 0.8972332016 | W3: 227 | X3: =W3/D3 -> 0.8972332016 | Y3: 262 | Z3: =Y3/D3 -> 1.035573123 | AB3: 1 | AC3: =AB3/D3 -> 0.00395256917 | AE3: =cálculos1!O3 -> 1 | AF3: =AE3*0.1 -> 0.1 | AG3: =cálculos1!P3 -> 0 | AH3: =AG3*0.25 -> 0 | AJ3: LEGENDA / HOMOGENEIDADE PQA-VS
A4: Norte | B4: Água Doce do Norte | C4: 144 | D4: 103 | E4: 22 | F4: =E4/D4 -> 0.213592233 | G4: 23 | H4: 0.2233009709 | I4: 84 | J4: 0.8155339806 | K4: 80 | L4: 0.7766990291 | M4: 68 | N4: 0.6601941748 | O4: 67 | P4: 0.6504854369 | Q4: 87 | R4: 0.8446601942 | S4: 88 | T4: 0.854368932 | U4: 81 | V4: 0.786407767 | W4: 99 | X4: 0.9611650485 | Y4: 43 | Z4: 0.4174757282 | AB4: 1 | AC4: =AB4/D4 -> 0.009708737864 | AE4: =cálculos1!O4 -> 1 | AF4: =AE4*0.1 -> 0.1 | AG4: =cálculos1!P4 -> 1 | AH4: =AG4*0.25 -> 0.25 | AJ4: PERCENTUAL | AK4: Nº DE MUNICÍPIOS
A5: Central | B5: Águia Branca | C5: 155 | D5: 119 | E5: 46 | F5: 0.3865546218 | G5: 53 | H5: 0.4453781513 | I5: 82 | J5: 0.6890756303 | K5: 83 | L5: 0.6974789916 | M5: 85 | N5: 0.7142857143 | O5: 88 | P5: 0.7394957983 | Q5: 84 | R5: 0.7058823529 | S5: 83 | T5: 0.6974789916 | U5: 99 | V5: 0.8319327731 | W5: 108 | X5: 0.9075630252 | Y5: 112 | Z5: 0.9411764706 | AB5: 0 | AC5: 0 | AE5: =cálculos1!O5 -> 0 | AF5: 0 | AG5: =cálculos1!P5 -> 0 | AH5: 0 | AJ5: 0 | AK5: =COUNTIF($AH$3:$AH$80,"=0") -> 28
A6: Sul | B6: Alegre | C6: 316 | D6: 218 | E6: 93 | F6: 0.4266055046 | G6: 96 | H6: 0.4403669725 | I6: 196 | J6: 0.8990825688 | K6: 187 | L6: 0.8577981651 | M6: 179 | N6: 0.8211009174 | O6: 189 | P6: 0.8669724771 | Q6: 202 | R6: 0.9266055046 | S6: 177 | T6: 0.8119266055 | U6: 224 | V6: 1.027522936 | W6: 224 | X6: 1.027522936 | Y6: 233 | Z6: 1.068807339 | AB6: 5 | AC6: 0.02293577982 | AE6: =cálculos1!O6 -> 3 | AF6: 0.3 | AG6: =cálculos1!P6 -> 1 | AH6: 0.25 | AJ6: 0.25 | AK6: =COUNTIF($AH$3:$AH$80,"=0,25") -> 32
A7: Sul | B7: Alfredo Chaves | C7: 123 | D7: 87 | E7: 9 | F7: 0.1034482759 | G7: 32 | H7: 0.367816092 | I7: 68 | J7: 0.7816091954 | K7: 65 | L7: 0.7471264368 | M7: 48 | N7: 0.5517241379 | O7: 66 | P7: 0.7586206897 | Q7: 64 | R7: 0.7356321839 | S7: 64 | T7: 0.7356321839 | U7: 86 | V7: 0.9885057471 | W7: 81 | X7: 0.9310344828 | Y7: 89 | Z7: 1.022988506 | AB7: 0 | AC7: 0 | AE7: =cálculos1!O7 -> 2 | AF7: 0.2 | AG7: =cálculos1!P7 -> 0 | AH7: 0 | AJ7: 0.5 | AK7: =COUNTIF($AH$3:$AH$80,"=0,5") -> 3
A8: Central | B8: Alto Rio Novo | C8: 104 | D8: 73 | E8: 23 | F8: 0.3150684932 | G8: 25 | H8: 0.3424657534 | I8: 60 | J8: 0.8219178082 | K8: 60 | L8: 0.8219178082 | M8: 60 | N8: 0.8219178082 | O8: 64 | P8: 0.8767123288 | Q8: 58 | R8: 0.7945205479 | S8: 59 | T8: 0.8082191781 | U8: 64 | V8: 0.8767123288 | W8: 63 | X8: 0.8630136986 | Y8: 70 | Z8: 0.9589041096 | AB8: 0 | AC8: 0 | AE8: =cálculos1!O8 -> 1 | AF8: 0.1 | AG8: =cálculos1!P8 -> 0 | AH8: 0 | AJ8: 0.75 | AK8: =COUNTIF($AH$3:$AH$80,"=0,75") -> 8
A9: Sul | B9: Anchieta | C9: 349 | D9: 234 | E9: 22 | F9: 0.09401709402 | G9: 94 | H9: 0.4017094017 | I9: 234 | J9: 1 | K9: 234 | L9: 1 | M9: 222 | N9: 0.9487179487 | O9: 242 | P9: 1.034188034 | Q9: 222 | R9: 0.9487179487 | S9: 196 | T9: 0.8376068376 | U9: 239 | V9: 1.021367521 | W9: 249 | X9: 1.064102564 | Y9: 250 | Z9: 1.068376068 | AB9: 17 | AC9: 0.07264957265 | AE9: =cálculos1!O9 -> 6 | AF9: 0.6 | AG9: =cálculos1!P9 -> 3 | AH9: 0.75 | AJ9: 1 | AK9: =COUNTIF($AH$3:$AH$80,"=1,0") -> 7
A10: Sul | B10: Apiacá | C10: 65 | D10: 38 | E10: 5 | F10: 0.1315789474 | G10: 40 | H10: 1.052631579 | I10: 47 | J10: 1.236842105 | K10: 44 | L10: 1.157894737 | M10: 53 | N10: 1.394736842 | O10: 51 | P10: 1.342105263 | Q10: 51 | R10: 1.342105263 | S10: 34 | T10: 0.8947368421 | U10: 45 | V10: 1.184210526 | W10: 43 | X10: 1.131578947 | Y10: 49 | Z10: 1.289473684 | AB10: 0 | AC10: 0 | AE10: =cálculos1!O10 -> 9 | AF10: 0.9 | AG10: =cálculos1!P10 -> 4 | AH10: 1
A11: Metropolitana | B11: Aracruz | C11: 1395 | D11: 985 | E11: 836 | F11: 0.8487309645 | G11: 856 | H11: 0.869035533 | I11: 795 | J11: 0.807106599 | K11: 786 | L11: 0.7979695431 | M11: 772 | N11: 0.7837563452 | O11: 860 | P11: 0.8730964467 | Q11: 795 | R11: 0.807106599 | S11: 704 | T11: 0.7147208122 | U11: 934 | V11: 0.9482233503 | W11: 976 | X11: 0.9908629442 | Y11: 950 | Z11: 0.9644670051 | AB11: 47 | AC11: 0.04771573604 | AE11: =cálculos1!O11 -> 2 | AF11: 0.2 | AG11: =cálculos1!P11 -> 1 | AH11: 0.25
A12: Sul | B12: Atilio Vivacqua | C12: 160 | D12: 103 | E12: 5 | F12: 0.04854368932 | G12: 11 | H12: 0.1067961165 | I12: 104 | J12: 1.009708738 | K12: 100 | L12: 0.9708737864 | M12: 101 | N12: 0.9805825243 | O12: 104 | P12: 1.009708738 | Q12: 108 | R12: 1.048543689 | S12: 94 | T12: 0.9126213592 | U12: 89 | V12: 0.8640776699 | W12: 97 | X12: 0.9417475728 | Y12: 82 | Z12: 0.7961165049 | AB12: 3 | AC12: 0.02912621359 | AE12: =cálculos1!O12 -> 5 | AF12: 0.5 | AG12: =cálculos1!P12 -> 3 | AH12: 0.75 | AJ12: LEGENDA / HOMOGENEIDADE 10 VACINAS
A13: Central | B13: Baixo Guandu | C13: 370 | D13: 280 | E13: 66 | F13: 0.2357142857 | G13: 123 | H13: 0.4392857143 | I13: 193 | J13: 0.6892857143 | K13: 191 | L13: 0.6821428571 | M13: 210 | N13: 0.75 | O13: 211 | P13: 0.7535714286 | Q13: 193 | R13: 0.6892857143 | S13: 188 | T13: 0.6714285714 | U13: 250 | V13: 0.8928571429 | W13: 249 | X13: 0.8892857143 | Y13: 240 | Z13: 0.8571428571 | AB13: 0 | AC13: 0 | AE13: =cálculos1!O13 -> 0 | AF13: 0 | AG13: =cálculos1!P13 -> 0 | AH13: 0 | AJ13: PERCENTUAL | AK13: Nº DE MUNICÍPIOS
A14: Norte | B14: Barra de São Francisco | C14: 641 | D14: 450 | E14: 283 | F14: 0.6288888889 | G14: 307 | H14: 0.6822222222 | I14: 348 | J14: 0.7733333333 | K14: 346 | L14: 0.7688888889 | M14: 352 | N14: 0.7822222222 | O14: 363 | P14: 0.8066666667 | Q14: 318 | R14: 0.7066666667 | S14: 305 | T14: 0.6777777778 | U14: 317 | V14: 0.7044444444 | W14: 376 | X14: 0.8355555556 | Y14: 358 | Z14: 0.7955555556 | AB14: 0 | AC14: 0 | AE14: =cálculos1!O14 -> 0 | AF14: 0 | AG14: =cálculos1!P14 -> 0 | AH14: 0 | AJ14: 0 | AK14: =COUNTIF($AF$3:$AF$80,"=0") -> 14
A15: Norte | B15: Boa Esperança | C15: 211 | D15: 145 | E15: 12 | F15: 0.08275862069 | G15: 62 | H15: 0.4275862069 | I15: 131 | J15: 0.9034482759 | K15: 130 | L15: 0.8965517241 | M15: 141 | N15: 0.9724137931 | O15: 140 | P15: 0.9655172414 | Q15: 132 | R15: 0.9103448276 | S15: 115 | T15: 0.7931034483 | U15: 134 | V15: 0.924137931 | W15: 138 | X15: 0.9517241379 | Y15: 126 | Z15: 0.8689655172 | AB15: 2 | AC15: 0.01379310345 | AE15: =cálculos1!O15 -> 3 | AF15: 0.3 | AG15: =cálculos1!P15 -> 2 | AH15: 0.5 | AJ15: 0.1 | AK15: =COUNTIFS($AF$3:$AF$80,">=0,10",$AF$3:$AF$80,"<0,20") -> 18
A16: Sul | B16: Bom Jesus do Norte | C16: 75 | D16: 56 | E16: 30 | F16: 0.5357142857 | G16: 67 | H16: 1.196428571 | I16: 72 | J16: 1.285714286 | K16: 71 | L16: 1.267857143 | M16: 65 | N16: 1.160714286 | O16: 67 | P16: 1.196428571 | Q16: 57 | R16: 1.017857143 | S16: 62 | T16: 1.107142857 | U16: 67 | V16: 1.196428571 | W16: 75 | X16: 1.339285714 | Y16: 61 | Z16: 1.089285714 | AB16: 4 | AC16: 0.07142857143 | AE16: =cálculos1!O16 -> 10 | AF16: 1 | AG16: =cálculos1!P16 -> 4 | AH16: 1 | AJ16: 0.2 | AK16: =COUNTIFS($AF$3:$AF$80,">=0,20",$AF$3:$AF$80,"<0,30") -> 6
A17: Metropolitana | B17: Brejetuba | C17: 220 | D17: 146 | E17: 13 | F17: 0.08904109589 | G17: 91 | H17: 0.6232876712 | I17: 121 | J17: 0.8287671233 | K17: 130 | L17: 0.8904109589 | M17: 132 | N17: 0.904109589 | O17: 146 | P17: 1 | Q17: 140 | R17: 0.9589041096 | S17: 118 | T17: 0.8082191781 | U17: 139 | V17: 0.9520547945 | W17: 136 | X17: 0.9315068493 | Y17: 166 | Z17: 1.136986301 | AB17: 2 | AC17: 0.01369863014 | AE17: =cálculos1!O17 -> 4 | AF17: 0.4 | AG17: =cálculos1!P17 -> 0 | AH17: 0 | AJ17: 0.3 | AK17: =COUNTIFS($AF$3:$AF$80,">=0,30",$AF$3:$AF$80,"<0,40") -> 14
A18: Sul | B18: Cachoeiro de Itapemirim | C18: 2343 | D18: 1624 | E18: 3582 | F18: 2.205665025 | G18: 3581 | H18: 2.205049261 | I18: 1418 | J18: 0.8731527094 | K18: 1412 | L18: 0.8694581281 | M18: 1442 | N18: 0.8879310345 | O18: 1512 | P18: 0.9310344828 | Q18: 1475 | R18: 0.9082512315 | S18: 1097 | T18: 0.6754926108 | U18: 1438 | V18: 0.8854679803 | W18: 1624 | X18: 1 | Y18: 1438 | Z18: 0.8854679803 | AB18: 37 | AC18: 0.02278325123 | AE18: =cálculos1!O18 -> 3 | AF18: 0.3 | AG18: =cálculos1!P18 -> 1 | AH18: 0.25 | AJ18: 0.4 | AK18: =COUNTIFS($AF$3:$AF$80,">=0,40",$AF$3:$AF$80,"<0,50") -> 8
A19: Metropolitana | B19: Cariacica | C19: 4772 | D19: 3335 | E19: 1776 | F19: 0.5325337331 | G19: 1729 | H19: 0.5184407796 | I19: 2625 | J19: 0.7871064468 | K19: 2600 | L19: 0.7796101949 | M19: 2377 | N19: 0.7127436282 | O19: 2791 | P19: 0.8368815592 | Q19: 2672 | R19: 0.8011994003 | S19: 2133 | T19: 0.6395802099 | U19: 2909 | V19: 0.8722638681 | W19: 3133 | X19: 0.9394302849 | Y19: 2522 | Z19: 0.7562218891 | AB19: 105 | AC19: 0.03148425787 | AE19: =cálculos1!O19 -> 0 | AF19: 0 | AG19: =cálculos1!P19 -> 0 | AH19: 0 | AJ19: 0.5 | AK19: =COUNTIFS($AF$3:$AF$80,">=0,50",$AF$3:$AF$80,"<0,60") -> 5
A20: Sul | B20: Castelo | C20: 417 | D20: 291 | E20: 160 | F20: 0.5498281787 | G20: 172 | H20: 0.5910652921 | I20: 269 | J20: 0.9243986254 | K20: 258 | L20: 0.8865979381 | M20: 248 | N20: 0.852233677 | O20: 277 | P20: 0.9518900344 | Q20: 274 | R20: 0.941580756 | S20: 229 | T20: 0.7869415808 | U20: 308 | V20: 1.058419244 | W20: 303 | X20: 1.041237113 | Y20: 260 | Z20: 0.8934707904 | AB20: 3 | AC20: 0.01030927835 | AE20: =cálculos1!O20 -> 3 | AF20: 0.3 | AG20: =cálculos1!P20 -> 1 | AH20: 0.25 | AJ20: 0.6 | AK20: =COUNTIFS($AF$3:$AF$80,">=0,60",$AF$3:$AF$80,"<0,70") -> 3
A21: Central | B21: Colatina | C21: 1490 | D21: 1029 | E21: 2358 | F21: 2.29154519 | G21: 2312 | H21: 2.246841594 | I21: 901 | J21: 0.8756073858 | K21: 902 | L21: 0.8765792031 | M21: 855 | N21: 0.8309037901 | O21: 914 | P21: 0.8882410107 | Q21: 930 | R21: 0.9037900875 | S21: 717 | T21: 0.6967930029 | U21: 882 | V21: 0.8571428571 | W21: 968 | X21: 0.9407191448 | Y21: 817 | Z21: 0.7939747328 | AB21: 18 | AC21: 0.01749271137 | AE21: =cálculos1!O21 -> 1 | AF21: 0.1 | AG21: =cálculos1!P21 -> 0 | AH21: 0 | AJ21: 0.7 | AK21: =COUNTIFS($AF$3:$AF$80,">=0,70",$AF$3:$AF$80,"<0,80") -> 3
A22: Norte | B22: Conceição da Barra | C22: 380 | D22: 282 | E22: 11 | F22: 0.0390070922 | G22: 19 | H22: 0.06737588652 | I22: 220 | J22: 0.780141844 | K22: 221 | L22: 0.7836879433 | M22: 212 | N22: 0.7517730496 | O22: 225 | P22: 0.7978723404 | Q22: 213 | R22: 0.7553191489 | S22: 225 | T22: 0.7978723404 | U22: 278 | V22: 0.9858156028 | W22: 289 | X22: 1.024822695 | Y22: 270 | Z22: 0.9574468085 | AB22: 5 | AC22: 0.01773049645 | AE22: =cálculos1!O22 -> 3 | AF22: 0.3 | AG22: =cálculos1!P22 -> 1 | AH22: 0.25 | AJ22: 0.8 | AK22: =COUNTIFS($AF$3:$AF$80,">=0,80",$AF$3:$AF$80,"<0,90") -> 1
A23: Metropolitana | B23: Conceição do Castelo | C23: 179 | D23: 118 | E23: 2 | F23: 0.01694915254 | G23: 4 | H23: 0.03389830508 | I23: 103 | J23: 0.8728813559 | K23: 96 | L23: 0.813559322 | M23: 66 | N23: 0.5593220339 | O23: 111 | P23: 0.9406779661 | Q23: 97 | R23: 0.8220338983 | S23: 88 | T23: 0.7457627119 | U23: 77 | V23: 0.6525423729 | W23: 95 | X23: 0.8050847458 | Y23: 93 | Z23: 0.7881355932 | AB23: 3 | AC23: 0.02542372881 | AE23: =cálculos1!O23 -> 1 | AF23: 0.1 | AG23: =cálculos1!P23 -> 0 | AH23: 0 | AJ23: 0.9 | AK23: =COUNTIFS($AF$3:$AF$80,">=0,90",$AF$3:$AF$80,"<1,0") -> 4
A24: Sul | B24: Divino de São Lourenço | C24: 52 | D24: 36 | E24: 28 | F24: 0.7777777778 | G24: 31 | H24: 0.8611111111 | I24: 26 | J24: 0.7222222222 | K24: 26 | L24: 0.7222222222 | M24: 30 | N24: 0.8333333333 | O24: 31 | P24: 0.8611111111 | Q24: 29 | R24: 0.8055555556 | S24: 39 | T24: 1.083333333 | U24: 47 | V24: 1.305555556 | W24: 56 | X24: 1.555555556 | Y24: 55 | Z24: 1.527777778 | AB24: 1 | AC24: 0.02777777778 | AE24: =cálculos1!O24 -> 4 | AF24: 0.4 | AG24: =cálculos1!P24 -> 1 | AH24: 0.25 | AJ24: 1 | AK24: =COUNTIF($AF$3:$AF$80,">=1,0") -> 2
A25: Metropolitana | B25: Domingos Martins | C25: 424 | D25: 282 | E25: 17 | F25: 0.06028368794 | G25: 41 | H25: 0.1453900709 | I25: 272 | J25: 0.9645390071 | K25: 268 | L25: 0.9503546099 | M25: 255 | N25: 0.9042553191 | O25: 289 | P25: 1.024822695 | Q25: 270 | R25: 0.9574468085 | S25: 243 | T25: 0.8617021277 | U25: 286 | V25: 1.014184397 | W25: 283 | X25: 1.003546099 | Y25: 300 | Z25: 1.063829787 | AB25: 22 | AC25: 0.0780141844 | AE25: =cálculos1!O25 -> 7 | AF25: 0.7 | AG25: =cálculos1!P25 -> 3 | AH25: 0.75
A26: Sul | B26: Dores do Rio Preto | C26: 102 | D26: 71 | E26: 31 | F26: 0.4366197183 | G26: 46 | H26: 0.6478873239 | I26: 76 | J26: 1.070422535 | K26: 75 | L26: 1.056338028 | M26: 42 | N26: 0.5915492958 | O26: 81 | P26: 1.14084507 | Q26: 67 | R26: 0.9436619718 | S26: 67 | T26: 0.9436619718 | U26: 66 | V26: 0.9295774648 | W26: 78 | X26: 1.098591549 | Y26: 57 | Z26: 0.8028169014 | AB26: 0 | AC26: 0 | AE26: =cálculos1!O26 -> 4 | AF26: 0.4 | AG26: =cálculos1!P26 -> 3 | AH26: 0.75
A27: Norte | B27: Ecoporanga | C27: 246 | D27: 161 | E27: 58 | F27: 0.3602484472 | G27: 58 | H27: 0.3602484472 | I27: 152 | J27: 0.9440993789 | K27: 151 | L27: 0.9378881988 | M27: 160 | N27: 0.9937888199 | O27: 170 | P27: 1.055900621 | Q27: 157 | R27: 0.9751552795 | S27: 135 | T27: 0.8385093168 | U27: 159 | V27: 0.9875776398 | W27: 172 | X27: 1.068322981 | Y27: 145 | Z27: 0.900621118 | AB27: 1 | AC27: 0.006211180124 | AE27: =cálculos1!O27 -> 5 | AF27: 0.5 | AG27: =cálculos1!P27 -> 2 | AH27: 0.5
A28: Metropolitana | B28: Fundão | C28: 222 | D28: 149 | E28: 20 | F28: 0.1342281879 | G28: 24 | H28: 0.1610738255 | I28: 161 | J28: 1.080536913 | K28: 160 | L28: 1.073825503 | M28: 138 | N28: 0.9261744966 | O28: 163 | P28: 1.093959732 | Q28: 155 | R28: 1.040268456 | S28: 95 | T28: 0.6375838926 | U28: 145 | V28: 0.9731543624 | W28: 156 | X28: 1.046979866 | Y28: 143 | Z28: 0.9597315436 | AB28: 2 | AC28: 0.01342281879 | AE28: =cálculos1!O28 -> 7 | AF28: 0.7 | AG28: =cálculos1!P28 -> 3 | AH28: 0.75
A29: Central | B29: Governador Lindenberg | C29: 131 | D29: 92 | E29: 39 | F29: 0.4239130435 | G29: 29 | H29: 0.3152173913 | I29: 62 | J29: 0.6739130435 | K29: 62 | L29: 0.6739130435 | M29: 54 | N29: 0.5869565217 | O29: 62 | P29: 0.6739130435 | Q29: 64 | R29: 0.6956521739 | S29: 56 | T29: 0.6086956522 | U29: 87 | V29: 0.9456521739 | W29: 90 | X29: 0.9782608696 | Y29: 72 | Z29: 0.7826086957 | AB29: 0 | AC29: 0 | AE29: =cálculos1!O29 -> 1 | AF29: 0.1 | AG29: =cálculos1!P29 -> 1 | AH29: 0.25
A30: Sul | B30: Guaçuí | C30: 382 | D30: 243 | E30: 183 | F30: 0.7530864198 | G30: 194 | H30: 0.7983539095 | I30: 202 | J30: 0.8312757202 | K30: 199 | L30: 0.8189300412 | M30: 205 | N30: 0.8436213992 | O30: 212 | P30: 0.8724279835 | Q30: 207 | R30: 0.8518518519 | S30: 176 | T30: 0.7242798354 | U30: 210 | V30: 0.8641975309 | W30: 228 | X30: 0.9382716049 | Y30: 220 | Z30: 0.9053497942 | AB30: 11 | AC30: 0.04526748971 | AE30: =cálculos1!O30 -> 0 | AF30: 0 | AG30: =cálculos1!P30 -> 0 | AH30: 0
A31: Metropolitana | B31: Guarapari | C31: 1689 | D31: 1155 | E31: 948 | F31: 0.8207792208 | G31: 994 | H31: 0.8606060606 | I31: 881 | J31: 0.7627705628 | K31: 870 | L31: 0.7532467532 | M31: 934 | N31: 0.8086580087 | O31: 976 | P31: 0.845021645 | Q31: 915 | R31: 0.7922077922 | S31: 668 | T31: 0.5783549784 | U31: 921 | V31: 0.7974025974 | W31: 1001 | X31: 0.8666666667 | Y31: 816 | Z31: 0.7064935065 | AB31: 32 | AC31: 0.02770562771 | AE31: =cálculos1!O31 -> 0 | AF31: 0 | AG31: =cálculos1!P31 -> 0 | AH31: 0
A32: Metropolitana | B32: Ibatiba | C32: 403 | D32: 277 | E32: 186 | F32: 0.6714801444 | G32: 225 | H32: 0.8122743682 | I32: 249 | J32: 0.8989169675 | K32: 245 | L32: 0.8844765343 | M32: 232 | N32: 0.8375451264 | O32: 260 | P32: 0.9386281588 | Q32: 254 | R32: 0.916967509 | S32: 222 | T32: 0.8014440433 | U32: 262 | V32: 0.9458483755 | W32: 264 | X32: 0.9530685921 | Y32: 282 | Z32: 1.018050542 | AB32: 13 | AC32: 0.04693140794 | AE32: =cálculos1!O32 -> 3 | AF32: 0.3 | AG32: =cálculos1!P32 -> 1 | AH32: 0.25
A33: Metropolitana | B33: Ibiraçu | C33: 132 | D33: 86 | E33: 17 | F33: 0.1976744186 | G33: 18 | H33: 0.2093023256 | I33: 79 | J33: 0.9186046512 | K33: 77 | L33: 0.8953488372 | M33: 79 | N33: 0.9186046512 | O33: 74 | P33: 0.8604651163 | Q33: 85 | R33: 0.988372093 | S33: 81 | T33: 0.9418604651 | U33: 88 | V33: 1.023255814 | W33: 103 | X33: 1.197674419 | Y33: 93 | Z33: 1.081395349 | AB33: 0 | AC33: 0 | AE33: =cálculos1!O33 -> 4 | AF33: 0.4 | AG33: =cálculos1!P33 -> 1 | AH33: 0.25
A34: Sul | B34: Ibitirama | C34: 148 | D34: 102 | E34: 57 | F34: 0.5588235294 | G34: 69 | H34: 0.6764705882 | I34: 94 | J34: 0.9215686275 | K34: 91 | L34: 0.8921568627 | M34: 103 | N34: 1.009803922 | O34: 108 | P34: 1.058823529 | Q34: 101 | R34: 0.9901960784 | S34: 84 | T34: 0.8235294118 | U34: 86 | V34: 0.8431372549 | W34: 91 | X34: 0.8921568627 | Y34: 90 | Z34: 0.8823529412 | AB34: 9 | AC34: 0.08823529412 | AE34: =cálculos1!O34 -> 3 | AF34: 0.3 | AG34: =cálculos1!P34 -> 1 | AH34: 0.25
A35: Sul | B35: Iconha | C35: 127 | D35: 81 | E35: 12 | F35: 0.1481481481 | G35: 38 | H35: =G35/D35 -> 0.4691358025 | I35: 70 | J35: =I35/D35 -> 0.8641975309 | K35: 70 | L35: =K35/D35 -> 0.8641975309 | M35: 64 | N35: =M35/D35 -> 0.7901234568 | O35: 75 | P35: =O35/D35 -> 0.9259259259 | Q35: 72 | R35: =Q35/D35 -> 0.8888888889 | S35: 67 | T35: =S35/D35 -> 0.8271604938 | U35: 76 | V35: =U35/D35 -> 0.9382716049 | W35: 68 | X35: =W35/D35 -> 0.8395061728 | Y35: 86 | Z35: =Y35/D35 -> 1.061728395 | AB35: 0 | AC35: 0 | AE35: =cálculos1!O35 -> 2 | AF35: 0.2 | AG35: =cálculos1!P35 -> 0 | AH35: 0
A36: Sul | B36: Irupi | C36: 174 | D36: 127 | E36: 62 | F36: 0.4881889764 | G36: 90 | H36: 0.7086614173 | I36: 109 | J36: 0.8582677165 | K36: 107 | L36: 0.842519685 | M36: 102 | N36: 0.8031496063 | O36: 110 | P36: 0.8661417323 | Q36: 108 | R36: 0.8503937008 | S36: 123 | T36: 0.968503937 | U36: 144 | V36: 1.133858268 | W36: 134 | X36: 1.05511811 | Y36: 123 | Z36: 0.968503937 | AB36: 13 | AC36: 0.1023622047 | AE36: =cálculos1!O36 -> 4 | AF36: 0.4 | AG36: =cálculos1!P36 -> 1 | AH36: 0.25
A37: Metropolitana | B37: Itaguaçu | C37: 129 | D37: 96 | E37: 13 | F37: 0.1354166667 | G37: 17 | H37: 0.1770833333 | I37: 78 | J37: 0.8125 | K37: 78 | L37: 0.8125 | M37: 72 | N37: 0.75 | O37: 84 | P37: 0.875 | Q37: 69 | R37: 0.71875 | S37: 100 | T37: 1.041666667 | U37: 94 | V37: 0.9791666667 | W37: 108 | X37: 1.125 | Y37: 98 | Z37: 1.020833333 | AB37: 10 | AC37: 0.1041666667 | AE37: =cálculos1!O37 -> 4 | AF37: 0.4 | AG37: =cálculos1!P37 -> 1 | AH37: 0.25
A38: Sul | B38: Itapemirim | C38: 537 | D38: 356 | E38: 551 | F38: 1.547752809 | G38: 158 | H38: 0.4438202247 | I38: 266 | J38: 0.7471910112 | K38: 251 | L38: 0.7050561798 | M38: 298 | N38: 0.8370786517 | O38: 288 | P38: 0.808988764 | Q38: 293 | R38: 0.8230337079 | S38: 193 | T38: 0.5421348315 | U38: 270 | V38: 0.7584269663 | W38: 285 | X38: 0.8005617978 | Y38: 242 | Z38: 0.6797752809 | AB38: 2 | AC38: 0.005617977528 | AE38: =cálculos1!O38 -> 0 | AF38: 0 | AG38: =cálculos1!P38 -> 0 | AH38: 0
A39: Metropolitana | B39: Itarana | C39: 128 | D39: 95 | E39: 10 | F39: 0.1052631579 | G39: 17 | H39: 0.1789473684 | I39: 61 | J39: 0.6421052632 | K39: 61 | L39: 0.6421052632 | M39: 63 | N39: 0.6631578947 | O39: 69 | P39: 0.7263157895 | Q39: 64 | R39: 0.6736842105 | S39: 75 | T39: 0.7894736842 | U39: 93 | V39: 0.9789473684 | W39: 99 | X39: 1.042105263 | Y39: 92 | Z39: 0.9684210526 | AB39: 1 | AC39: 0.01052631579 | AE39: =cálculos1!O39 -> 3 | AF39: 0.3 | AG39: =cálculos1!P39 -> 1 | AH39: 0.25
A40: Sul | B40: Iúna | C40: 391 | D40: 271 | E40: 182 | F40: 0.6715867159 | G40: 198 | H40: 0.7306273063 | I40: 237 | J40: 0.8745387454 | K40: 230 | L40: 0.8487084871 | M40: 217 | N40: 0.8007380074 | O40: 237 | P40: 0.8745387454 | Q40: 238 | R40: 0.8782287823 | S40: 235 | T40: 0.8671586716 | U40: 301 | V40: 1.110701107 | W40: 278 | X40: 1.025830258 | Y40: 292 | Z40: 1.077490775 | AB40: 1 | AC40: 0.0036900369 | AE40: =cálculos1!O40 -> 3 | AF40: 0.3 | AG40: =cálculos1!P40 -> 1 | AH40: 0.25
A41: Norte | B41: Jaguaré | C41: 451 | D41: 329 | E41: 237 | F41: 0.7203647416 | G41: 217 | H41: 0.6595744681 | I41: 266 | J41: 0.8085106383 | K41: 262 | L41: 0.7963525836 | M41: 255 | N41: 0.7750759878 | O41: 274 | P41: 0.8328267477 | Q41: 279 | R41: 0.8480243161 | S41: 237 | T41: 0.7203647416 | U41: 302 | V41: 0.9179331307 | W41: 321 | X41: 0.9756838906 | Y41: 245 | Z41: 0.7446808511 | AB41: 1 | AC41: 0.003039513678 | AE41: =cálculos1!O41 -> 1 | AF41: 0.1 | AG41: =cálculos1!P41 -> 1 | AH41: 0.25
A42: Sul | B42: Jerônimo Monteiro | C42: 116 | D42: 75 | E42: 3 | F42: 0.04 | G42: 5 | H42: 0.06666666667 | I42: 79 | J42: 1.053333333 | K42: 80 | L42: 1.066666667 | M42: 70 | N42: 0.9333333333 | O42: 77 | P42: 1.026666667 | Q42: 73 | R42: 0.9733333333 | S42: 65 | T42: 0.8666666667 | U42: 97 | V42: 1.293333333 | W42: 97 | X42: 1.293333333 | Y42: 88 | Z42: 1.173333333 | AB42: 5 | AC42: 0.06666666667 | AE42: =cálculos1!O42 -> 7 | AF42: 0.7 | AG42: =cálculos1!P42 -> 3 | AH42: 0.75
A43: Metropolitana | B43: João Neiva | C43: 153 | D43: 103 | E43: 29 | F43: 0.2815533981 | G43: 20 | H43: 0.1941747573 | I43: 95 | J43: 0.9223300971 | K43: 90 | L43: 0.8737864078 | M43: 85 | N43: 0.8252427184 | O43: 88 | P43: 0.854368932 | Q43: 92 | R43: 0.8932038835 | S43: 93 | T43: 0.9029126214 | U43: 90 | V43: 0.8737864078 | W43: 99 | X43: 0.9611650485 | Y43: 93 | Z43: 0.9029126214 | AB43: 2 | AC43: 0.01941747573 | AE43: =cálculos1!O43 -> 1 | AF43: 0.1 | AG43: =cálculos1!P43 -> 1 | AH43: 0.25
A44: Metropolitana | B44: Laranja da Terra | C44: 128 | D44: 96 | E44: 3 | F44: 0.03125 | G44: 12 | H44: 0.125 | I44: 77 | J44: 0.8020833333 | K44: 78 | L44: 0.8125 | M44: 87 | N44: 0.90625 | O44: 91 | P44: 0.9479166667 | Q44: 78 | R44: 0.8125 | S44: 70 | T44: 0.7291666667 | U44: 71 | V44: 0.7395833333 | W44: 74 | X44: 0.7708333333 | Y44: 81 | Z44: 0.84375 | AB44: 4 | AC44: 0.04166666667 | AE44: =cálculos1!O44 -> 1 | AF44: 0.1 | AG44: =cálculos1!P44 -> 0 | AH44: 0
A45: Central | B45: Linhares | C45: 2601 | D45: 1762 | E45: 2279 | F45: 1.293416572 | G45: 2301 | H45: 1.305902384 | I45: 1488 | J45: 0.8444948922 | K45: 1451 | L45: 0.8234960272 | M45: 1481 | N45: 0.8405221339 | O45: 1574 | P45: 0.8933030647 | Q45: 1549 | R45: 0.8791146425 | S45: 1206 | T45: 0.6844494892 | U45: 1410 | V45: 0.8002270148 | W45: 1574 | X45: 0.8933030647 | Y45: 1313 | Z45: 0.7451759364 | AB45: 9 | AC45: 0.005107832009 | AE45: =cálculos1!O45 -> 1 | AF45: 0.1 | AG45: =cálculos1!P45 -> 0 | AH45: 0
A46: Central | B46: Mantenópolis | C46: 128 | D46: 99 | E46: 16 | F46: 0.1616161616 | G46: 20 | H46: 0.202020202 | I46: 83 | J46: 0.8383838384 | K46: 79 | L46: 0.797979798 | M46: 77 | N46: 0.7777777778 | O46: 79 | P46: 0.797979798 | Q46: 87 | R46: 0.8787878788 | S46: 95 | T46: 0.9595959596 | U46: 84 | V46: 0.8484848485 | W46: 110 | X46: 1.111111111 | Y46: 104 | Z46: 1.050505051 | AB46: 1 | AC46: 0.0101010101 | AE46: =cálculos1!O46 -> 3 | AF46: 0.3 | AG46: =cálculos1!P46 -> 1 | AH46: 0.25
A47: Sul | B47: Marataízes | C47: 550 | D47: 366 | E47: 22 | F47: 0.06010928962 | G47: 161 | H47: 0.4398907104 | I47: 357 | J47: 0.9754098361 | K47: 303 | L47: 0.8278688525 | M47: 366 | N47: 1 | O47: 379 | P47: 1.035519126 | Q47: 358 | R47: 0.9781420765 | S47: 241 | T47: 0.6584699454 | U47: 365 | V47: 0.9972677596 | W47: 379 | X47: 1.035519126 | Y47: 299 | Z47: 0.8169398907 | AB47: 2 | AC47: 0.005464480874 | AE47: =cálculos1!O47 -> 6 | AF47: 0.6 | AG47: =cálculos1!P47 -> 3 | AH47: 0.75
A48: Metropolitana | B48: Marechal Floriano | C48: 201 | D48: 144 | E48: 26 | F48: 0.1805555556 | G48: 22 | H48: 0.1527777778 | I48: 124 | J48: 0.8611111111 | K48: 124 | L48: 0.8611111111 | M48: 115 | N48: 0.7986111111 | O48: 129 | P48: 0.8958333333 | Q48: 122 | R48: 0.8472222222 | S48: 111 | T48: 0.7708333333 | U48: 149 | V48: 1.034722222 | W48: 137 | X48: 0.9513888889 | Y48: 151 | Z48: 1.048611111 | AB48: 10 | AC48: 0.06944444444 | AE48: =cálculos1!O48 -> 3 | AF48: 0.3 | AG48: =cálculos1!P48 -> 1 | AH48: 0.25
A49: Central | B49: Marilândia | C49: 164 | D49: 115 | E49: 28 | F49: 0.2434782609 | G49: 37 | H49: 0.3217391304 | I49: 80 | J49: 0.6956521739 | K49: 80 | L49: 0.6956521739 | M49: 85 | N49: 0.7391304348 | O49: 98 | P49: 0.852173913 | Q49: 77 | R49: 0.6695652174 | S49: 97 | T49: 0.8434782609 | U49: 97 | V49: 0.8434782609 | W49: 105 | X49: 0.9130434783 | Y49: 101 | Z49: 0.8782608696 | AB49: 5 | AC49: 0.04347826087 | AE49: =cálculos1!O49 -> 0 | AF49: 0 | AG49: =cálculos1!P49 -> 0 | AH49: 0
A50: Sul | B50: Mimoso do Sul | C50: 296 | D50: 210 | E50: 22 | F50: 0.1047619048 | G50: 28 | H50: 0.1333333333 | I50: 150 | J50: 0.7142857143 | K50: 139 | L50: 0.6619047619 | M50: 160 | N50: 0.7619047619 | O50: 174 | P50: 0.8285714286 | Q50: 144 | R50: 0.6857142857 | S50: 139 | T50: 0.6619047619 | U50: 123 | V50: 0.5857142857 | W50: 136 | X50: 0.6476190476 | Y50: 138 | Z50: 0.6571428571 | AB50: 4 | AC50: 0.01904761905 | AE50: =cálculos1!O50 -> 0 | AF50: 0 | AG50: =cálculos1!P50 -> 0 | AH50: 0
A51: Norte | B51: Montanha | C51: 237 | D51: 169 | E51: 51 | F51: 0.3017751479 | G51: 63 | H51: 0.3727810651 | I51: 153 | J51: 0.9053254438 | K51: 155 | L51: 0.9171597633 | M51: 170 | N51: 1.00591716 | O51: 168 | P51: 0.9940828402 | Q51: 150 | R51: 0.8875739645 | S51: 144 | T51: 0.8520710059 | U51: 159 | V51: 0.9408284024 | W51: 174 | X51: 1.029585799 | Y51: 174 | Z51: 1.029585799 | AB51: 5 | AC51: 0.02958579882 | AE51: =cálculos1!O51 -> 4 | AF51: 0.4 | AG51: =cálculos1!P51 -> 2 | AH51: 0.5
A52: Norte | B52: Mucurici | C52: 62 | D52: 41 | E52: 7 | F52: 0.1707317073 | G52: 5 | H52: 0.1219512195 | I52: 42 | J52: 1.024390244 | K52: 43 | L52: 1.048780488 | M52: 44 | N52: 1.073170732 | O52: 43 | P52: 1.048780488 | Q52: 36 | R52: 0.8780487805 | S52: 44 | T52: 1.073170732 | U52: 49 | V52: 1.195121951 | W52: 43 | X52: 1.048780488 | Y52: 48 | Z52: 1.170731707 | AB52: 1 | AC52: 0.0243902439 | AE52: =cálculos1!O52 -> 8 | AF52: 0.8 | AG52: =cálculos1!P52 -> 4 | AH52: 1
A53: Sul | B53: Muniz Freire | C53: 230 | D53: 160 | E53: 80 | F53: 0.5 | G53: 99 | H53: 0.61875 | I53: 140 | J53: 0.875 | K53: 141 | L53: 0.88125 | M53: 151 | N53: 0.94375 | O53: 156 | P53: 0.975 | Q53: 141 | R53: 0.88125 | S53: 152 | T53: 0.95 | U53: 166 | V53: 1.0375 | W53: 162 | X53: 1.0125 | Y53: 194 | Z53: 1.2125 | AB53: 3 | AC53: 0.01875 | AE53: =cálculos1!O53 -> 5 | AF53: 0.5 | AG53: =cálculos1!P53 -> 1 | AH53: 0.25
A54: Sul | B54: Muqui | C54: 158 | D54: 106 | E54: 13 | F54: 0.1226415094 | G54: 14 | H54: 0.1320754717 | I54: 92 | J54: 0.8679245283 | K54: 92 | L54: 0.8679245283 | M54: 92 | N54: 0.8679245283 | O54: 99 | P54: 0.9339622642 | Q54: 84 | R54: 0.7924528302 | S54: 103 | T54: 0.9716981132 | U54: 103 | V54: 0.9716981132 | W54: 105 | X54: 0.9905660377 | Y54: 111 | Z54: 1.047169811 | AB54: 6 | AC54: 0.05660377358 | AE54: =cálculos1!O54 -> 5 | AF54: 0.5 | AG54: =cálculos1!P54 -> 1 | AH54: 0.25
A55: Norte | B55: Nova Venécia | C55: 669 | D55: 453 | E55: 381 | F55: 0.8410596026 | G55: 309 | H55: 0.6821192053 | I55: 407 | J55: 0.8984547461 | K55: 401 | L55: 0.885209713 | M55: 321 | N55: 0.7086092715 | O55: 424 | P55: 0.93598234 | Q55: 396 | R55: 0.8741721854 | S55: 359 | T55: 0.7924944812 | U55: 411 | V55: 0.9072847682 | W55: 465 | X55: 1.026490066 | Y55: 406 | Z55: 0.8962472406 | AB55: 10 | AC55: 0.02207505519 | AE55: =cálculos1!O55 -> 2 | AF55: 0.2 | AG55: =cálculos1!P55 -> 1 | AH55: 0.25
A56: Central | B56: Pancas | C56: 217 | D56: 147 | E56: 60 | F56: 0.4081632653 | G56: 74 | H56: 0.5034013605 | I56: 137 | J56: 0.9319727891 | K56: 139 | L56: 0.9455782313 | M56: 138 | N56: 0.9387755102 | O56: 141 | P56: 0.9591836735 | Q56: 146 | R56: 0.9931972789 | S56: 122 | T56: 0.8299319728 | U56: 146 | V56: 0.9931972789 | W56: 142 | X56: 0.9659863946 | Y56: 158 | Z56: 1.074829932 | AB56: 3 | AC56: 0.02040816327 | AE56: =cálculos1!O56 -> 5 | AF56: 0.5 | AG56: =cálculos1!P56 -> 1 | AH56: 0.25
A57: Norte | B57: Pedro Canário | C57: 343 | D57: 235 | E57: 14 | F57: 0.05957446809 | G57: 26 | H57: 0.1106382979 | I57: 202 | J57: 0.8595744681 | K57: 188 | L57: 0.8 | M57: 186 | N57: 0.7914893617 | O57: 199 | P57: 0.8468085106 | Q57: 198 | R57: 0.8425531915 | S57: 154 | T57: 0.6553191489 | U57: 242 | V57: 1.029787234 | W57: 261 | X57: 1.110638298 | Y57: 217 | Z57: 0.9234042553 | AB57: 6 | AC57: 0.02553191489 | AE57: =cálculos1!O57 -> 2 | AF57: 0.2 | AG57: =cálculos1!P57 -> 1 | AH57: 0.25
A58: Norte | B58: Pinheiros | C58: 334 | D58: 247 | E58: 4 | F58: 0.01619433198 | G58: 11 | H58: 0.04453441296 | I58: 170 | J58: 0.6882591093 | K58: 168 | L58: 0.6801619433 | M58: 166 | N58: 0.6720647773 | O58: 184 | P58: 0.7449392713 | Q58: 168 | R58: 0.6801619433 | S58: 175 | T58: 0.7085020243 | U58: 172 | V58: 0.6963562753 | W58: 186 | X58: 0.7530364372 | Y58: 177 | Z58: 0.7165991903 | AB58: 1 | AC58: 0.004048582996 | AE58: =cálculos1!O58 -> 0 | AF58: 0 | AG58: =cálculos1!P58 -> 0 | AH58: 0
A59: Sul | B59: Piúma | C59: 315 | D59: 210 | E59: 10 | F59: 0.04761904762 | G59: 77 | H59: 0.3666666667 | I59: 186 | J59: 0.8857142857 | K59: 174 | L59: 0.8285714286 | M59: 188 | N59: 0.8952380952 | O59: 202 | P59: 0.9619047619 | Q59: 193 | R59: 0.919047619 | S59: 141 | T59: 0.6714285714 | U59: 193 | V59: 0.919047619 | W59: 211 | X59: 1.004761905 | Y59: 167 | Z59: 0.7952380952 | AB59: 9 | AC59: 0.04285714286 | AE59: =cálculos1!O59 -> 2 | AF59: 0.2 | AG59: =cálculos1!P59 -> 1 | AH59: 0.25
A60: Norte | B60: Ponto Belo | C60: 74 | D60: 49 | E60: 8 | F60: 0.1632653061 | G60: 9 | H60: 0.1836734694 | I60: 55 | J60: 1.12244898 | K60: 55 | L60: 1.12244898 | M60: 52 | N60: 1.06122449 | O60: 54 | P60: 1.102040816 | Q60: 55 | R60: 1.12244898 | S60: 66 | T60: 1.346938776 | U60: 57 | V60: 1.163265306 | W60: 55 | X60: 1.12244898 | Y60: 53 | Z60: 1.081632653 | AB60: 3 | AC60: 0.0612244898 | AE60: =cálculos1!O60 -> 9 | AF60: 0.9 | AG60: =cálculos1!P60 -> 4 | AH60: 1
A61: Sul | B61: Presidente Kennedy | C61: 213 | D61: 152 | E61: 9 | F61: 0.05921052632 | G61: 14 | H61: 0.09210526316 | I61: 129 | J61: 0.8486842105 | K61: 127 | L61: 0.8355263158 | M61: 124 | N61: 0.8157894737 | O61: 129 | P61: 0.8486842105 | Q61: 131 | R61: 0.8618421053 | S61: 129 | T61: 0.8486842105 | U61: 129 | V61: 0.8486842105 | W61: 154 | X61: 1.013157895 | Y61: 124 | Z61: 0.8157894737 | AB61: 5 | AC61: 0.03289473684 | AE61: =cálculos1!O61 -> 1 | AF61: 0.1 | AG61: =cálculos1!P61 -> 1 | AH61: 0.25
A62: Central | B62: Rio Bananal | C62: 298 | D62: 198 | E62: 34 | F62: 0.1717171717 | G62: 31 | H62: 0.1565656566 | I62: 172 | J62: 0.8686868687 | K62: 170 | L62: 0.8585858586 | M62: 167 | N62: 0.8434343434 | O62: 179 | P62: 0.904040404 | Q62: 175 | R62: 0.8838383838 | S62: 175 | T62: 0.8838383838 | U62: 200 | V62: 1.01010101 | W62: 203 | X62: 1.025252525 | Y62: 172 | Z62: 0.8686868687 | AB62: 6 | AC62: 0.0303030303 | AE62: =cálculos1!O62 -> 3 | AF62: 0.3 | AG62: =cálculos1!P62 -> 1 | AH62: 0.25
A63: Sul | B63: Rio Novo do Sul | C63: 112 | D63: 84 | E63: 1 | F63: 0.0119047619 | G63: 20 | H63: 0.2380952381 | I63: 72 | J63: 0.8571428571 | K63: 73 | L63: 0.869047619 | M63: 70 | N63: 0.8333333333 | O63: 73 | P63: 0.869047619 | Q63: 72 | R63: 0.8571428571 | S63: 58 | T63: 0.6904761905 | U63: 60 | V63: 0.7142857143 | W63: 70 | X63: 0.8333333333 | Y63: 65 | Z63: 0.7738095238 | AB63: 1 | AC63: 0.0119047619 | AE63: =cálculos1!O63 -> 0 | AF63: 0 | AG63: =cálculos1!P63 -> 0 | AH63: 0
A64: Metropolitana | B64: Santa Leopoldina | C64: 88 | D64: 66 | E64: 8 | F64: 0.1212121212 | G64: 12 | H64: 0.1818181818 | I64: 46 | J64: 0.696969697 | K64: 45 | L64: 0.6818181818 | M64: 50 | N64: 0.7575757576 | O64: 53 | P64: 0.803030303 | Q64: 53 | R64: 0.803030303 | S64: 47 | T64: 0.7121212121 | U64: 61 | V64: 0.9242424242 | W64: 53 | X64: 0.803030303 | Y64: 58 | Z64: 0.8787878788 | AB64: 0 | AC64: 0 | AE64: =cálculos1!O64 -> 0 | AF64: 0 | AG64: =cálculos1!P64 -> 0 | AH64: 0
A65: Metropolitana | B65: Santa Maria de Jetibá | C65: 710 | D65: 467 | E65: 336 | F65: 0.7194860814 | G65: 317 | H65: 0.6788008565 | I65: 396 | J65: 0.8479657388 | K65: 400 | L65: 0.8565310493 | M65: 415 | N65: 0.8886509636 | O65: 434 | P65: 0.9293361884 | Q65: 431 | R65: 0.9229122056 | S65: 331 | T65: 0.7087794433 | U65: 391 | V65: 0.8372591006 | W65: 418 | X65: 0.8950749465 | Y65: 383 | Z65: 0.8201284797 | AB65: 0 | AC65: 0 | AE65: =cálculos1!O65 -> 1 | AF65: 0.1 | AG65: =cálculos1!P65 -> 0 | AH65: 0
A66: Metropolitana | B66: Santa Teresa | C66: 286 | D66: 197 | E66: 517 | F66: 2.624365482 | G66: 517 | H66: 2.624365482 | I66: 162 | J66: 0.8223350254 | K66: 163 | L66: 0.8274111675 | M66: 165 | N66: 0.8375634518 | O66: 164 | P66: 0.8324873096 | Q66: 172 | R66: 0.8730964467 | S66: 145 | T66: 0.7360406091 | U66: 166 | V66: 0.8426395939 | W66: 176 | X66: 0.8934010152 | Y66: 177 | Z66: 0.8984771574 | AB66: 4 | AC66: 0.02030456853 | AE66: =cálculos1!O66 -> 1 | AF66: 0.1 | AG66: =cálculos1!P66 -> 0 | AH66: 0
A67: Central | B67: São Domingos do Norte | C67: 105 | D67: 68 | E67: 33 | F67: 0.4852941176 | G67: 36 | H67: =G67/D67 -> 0.5294117647 | I67: 54 | J67: =I67/D67 -> 0.7941176471 | K67: 55 | L67: =K67/D67 -> 0.8088235294 | M67: 56 | N67: =M67/D67 -> 0.8235294118 | O67: 61 | P67: =O67/D67 -> 0.8970588235 | Q67: 57 | R67: =Q67/D67 -> 0.8382352941 | S67: 58 | T67: =S67/D67 -> 0.8529411765 | U67: 81 | V67: =U67/D67 -> 1.191176471 | W67: 77 | X67: =W67/D67 -> 1.132352941 | Y67: 76 | Z67: =Y67/D67 -> 1.117647059 | AB67: 0 | AC67: 0 | AE67: =cálculos1!O67 -> 3 | AF67: 0.3 | AG67: =cálculos1!P67 -> 1 | AH67: 0.25
A68: Central | B68: São Gabriel da Palha | C68: 400 | D68: 287 | E68: 99 | F68: =E68/D68 -> 0.3449477352 | G68: 120 | H68: 0.4181184669 | I68: 252 | J68: 0.8780487805 | K68: 252 | L68: 0.8780487805 | M68: 245 | N68: 0.8536585366 | O68: 255 | P68: 0.8885017422 | Q68: 253 | R68: 0.881533101 | S68: 248 | T68: 0.8641114983 | U68: 248 | V68: 0.8641114983 | W68: 286 | X68: 0.9965156794 | Y68: 245 | Z68: 0.8536585366 | AB68: 5 | AC68: =AB68/D68 -> 0.01742160279 | AE68: =cálculos1!O68 -> 1 | AF68: =AE68*0.1 -> 0.1 | AG68: =cálculos1!P68 -> 1 | AH68: =AG68*0.25 -> 0.25
A69: Sul | B69: São José do Calçado | C69: 95 | D69: 63 | E69: 49 | F69: 0.7777777778 | G69: 57 | H69: 0.9047619048 | I69: 63 | J69: 1 | K69: 63 | L69: 1 | M69: 62 | N69: 0.9841269841 | O69: 63 | P69: 1 | Q69: 64 | R69: 1.015873016 | S69: 41 | T69: 0.6507936508 | U69: 66 | V69: 1.047619048 | W69: 65 | X69: 1.031746032 | Y69: 66 | Z69: 1.047619048 | AB69: 3 | AC69: 0.04761904762 | AE69: =cálculos1!O69 -> 9 | AF69: 0.9 | AG69: =cálculos1!P69 -> 4 | AH69: 1
A70: Norte | B70: São Mateus | C70: 1798 | D70: 1272 | E70: 1865 | F70: 1.466194969 | G70: 1845 | H70: 1.450471698 | I70: 1000 | J70: 0.786163522 | K70: 984 | L70: 0.7735849057 | M70: 1096 | N70: 0.8616352201 | O70: 1096 | P70: 0.8616352201 | Q70: 1047 | R70: 0.8231132075 | S70: 816 | T70: 0.641509434 | U70: 1038 | V70: 0.8160377358 | W70: 1144 | X70: 0.8993710692 | Y70: 922 | Z70: 0.7248427673 | AB70: 46 | AC70: 0.03616352201 | AE70: =cálculos1!O70 -> 1 | AF70: 0.1 | AG70: =cálculos1!P70 -> 0 | AH70: 0
A71: Central | B71: São Roque do Canaã | C71: 130 | D71: 95 | E71: 38 | F71: 0.4 | G71: 37 | H71: 0.3894736842 | I71: 71 | J71: 0.7473684211 | K71: 68 | L71: 0.7157894737 | M71: 71 | N71: 0.7473684211 | O71: 83 | P71: 0.8736842105 | Q71: 66 | R71: 0.6947368421 | S71: 72 | T71: 0.7578947368 | U71: 77 | V71: 0.8105263158 | W71: 87 | X71: 0.9157894737 | Y71: 82 | Z71: 0.8631578947 | AB71: 4 | AC71: 0.04210526316 | AE71: =cálculos1!O71 -> 0 | AF71: 0 | AG71: =cálculos1!P71 -> 0 | AH71: 0
A72: Metropolitana | B72: Serra | C72: 7354 | D72: 5063 | E72: 6023 | F72: 1.189610903 | G72: 5792 | H72: 1.143985779 | I72: 3921 | J72: 0.7744420304 | K72: 3828 | L72: 0.7560734742 | M72: 3982 | N72: 0.7864902232 | O72: 4266 | P72: 0.8425834485 | Q72: 3981 | R72: 0.7862927118 | S72: 3234 | T72: 0.6387517282 | U72: 4278 | V72: 0.8449535848 | W72: 4479 | X72: 0.8846533676 | Y72: 3574 | Z72: 0.7059055896 | AB72: 97 | AC72: 0.01915860162 | AE72: =cálculos1!O72 -> 1 | AF72: 0.1 | AG72: =cálculos1!P72 -> 0 | AH72: 0
A73: Central | B73: Sooretama | C73: 429 | D73: 287 | E73: 19 | F73: 0.06620209059 | G73: 28 | H73: 0.09756097561 | I73: 243 | J73: 0.8466898955 | K73: 238 | L73: 0.8292682927 | M73: 219 | N73: 0.7630662021 | O73: 254 | P73: 0.8850174216 | Q73: 255 | R73: 0.8885017422 | S73: 225 | T73: 0.7839721254 | U73: 266 | V73: 0.9268292683 | W73: 291 | X73: 1.013937282 | Y73: 249 | Z73: 0.8675958188 | AB73: 1 | AC73: 0.003484320557 | AE73: =cálculos1!O73 -> 1 | AF73: 0.1 | AG73: =cálculos1!P73 -> 1 | AH73: 0.25
A74: Sul | B74: Vargem Alta | C74: 277 | D74: 196 | E74: 15 | F74: 0.07653061224 | G74: 25 | H74: 0.1275510204 | I74: 153 | J74: 0.7806122449 | K74: 148 | L74: 0.7551020408 | M74: 175 | N74: 0.8928571429 | O74: 180 | P74: 0.9183673469 | Q74: 161 | R74: 0.8214285714 | S74: 139 | T74: 0.7091836735 | U74: 163 | V74: 0.8316326531 | W74: 169 | X74: 0.862244898 | Y74: 177 | Z74: 0.9030612245 | AB74: 5 | AC74: 0.02551020408 | AE74: =cálculos1!O74 -> 1 | AF74: 0.1 | AG74: =cálculos1!P74 -> 0 | AH74: 0
A75: Metropolitana | B75: Venda Nova do Imigrante | C75: 335 | D75: 216 | E75: 438 | F75: 2.027777778 | G75: 303 | H75: 1.402777778 | I75: 234 | J75: 1.083333333 | K75: 233 | L75: 1.078703704 | M75: 229 | N75: 1.060185185 | O75: 238 | P75: 1.101851852 | Q75: 230 | R75: 1.064814815 | S75: 216 | T75: 1 | U75: 248 | V75: 1.148148148 | W75: 243 | X75: 1.125 | Y75: 257 | Z75: 1.189814815 | AB75: 9 | AC75: 0.04166666667 | AE75: =cálculos1!O75 -> 10 | AF75: 1 | AG75: =cálculos1!P75 -> 4 | AH75: 1
A76: Metropolitana | B76: Viana | C76: 886 | D76: 595 | E76: 139 | F76: 0.2336134454 | G76: 118 | H76: 0.1983193277 | I76: 560 | J76: 0.9411764706 | K76: 517 | L76: 0.868907563 | M76: 561 | N76: 0.9428571429 | O76: 594 | P76: 0.9983193277 | Q76: 566 | R76: 0.9512605042 | S76: 394 | T76: 0.6621848739 | U76: 568 | V76: 0.9546218487 | W76: 684 | X76: 1.149579832 | Y76: 452 | Z76: 0.7596638655 | AB76: 14 | AC76: 0.02352941176 | AE76: =cálculos1!O76 -> 4 | AF76: 0.4 | AG76: =cálculos1!P76 -> 1 | AH76: 0.25
A77: Norte | B77: Vila Pavão | C77: 110 | D77: 83 | E77: 19 | F77: 0.2289156627 | G77: 35 | H77: 0.421686747 | I77: 84 | J77: 1.012048193 | K77: 84 | L77: 1.012048193 | M77: 77 | N77: 0.9277108434 | O77: 76 | P77: 0.9156626506 | Q77: 84 | R77: 1.012048193 | S77: 83 | T77: 1 | U77: 68 | V77: 0.8192771084 | W77: 82 | X77: 0.9879518072 | Y77: 65 | Z77: 0.7831325301 | AB77: 4 | AC77: 0.04819277108 | AE77: =cálculos1!O77 -> 6 | AF77: 0.6 | AG77: =cálculos1!P77 -> 3 | AH77: 0.75
A78: Central | B78: Vila Valério | C78: 242 | D78: 174 | E78: 28 | F78: 0.1609195402 | G78: 38 | H78: 0.2183908046 | I78: 126 | J78: 0.724137931 | K78: 130 | L78: 0.7471264368 | M78: 118 | N78: 0.6781609195 | O78: 120 | P78: 0.6896551724 | Q78: 127 | R78: 0.7298850575 | S78: 142 | T78: 0.816091954 | U78: 175 | V78: 1.005747126 | W78: 172 | X78: 0.9885057471 | Y78: 173 | Z78: 0.9942528736 | AB78: 0 | AC78: 0 | AE78: =cálculos1!O78 -> 3 | AF78: 0.3 | AG78: =cálculos1!P78 -> 1 | AH78: 0.25
A79: Metropolitana | B79: Vila Velha | C79: 5488 | D79: 3818 | E79: 2888 | F79: 0.7564169722 | G79: 2826 | H79: 0.7401781037 | I79: 2772 | J79: 0.7260345731 | K79: 2775 | L79: 0.7268203248 | M79: 2854 | N79: 0.7475117863 | O79: 3039 | P79: 0.7959664746 | Q79: 2909 | R79: 0.7619172342 | S79: 2184 | T79: 0.5720272394 | U79: 3018 | V79: 0.7904662127 | W79: 3084 | X79: 0.8077527501 | Y79: 2756 | Z79: 0.7218438973 | AB79: 105 | AC79: 0.02750130959 | AE79: =cálculos1!O79 -> 0 | AF79: 0 | AG79: =cálculos1!P79 -> 0 | AH79: 0
A80: Metropolitana | B80: Vitória | C80: 3522 | D80: 2417 | E80: 4525 | F80: 1.872155565 | G80: 5131 | H80: 2.122879603 | I80: 2649 | J80: 1.09598676 | K80: 2641 | L80: 1.092676872 | M80: 2751 | N80: 1.138187836 | O80: 2667 | P80: 1.103434009 | Q80: 2753 | R80: 1.139015308 | S80: 1643 | T80: 0.6797683078 | U80: 2518 | V80: 1.04178734 | W80: 2828 | X80: 1.170045511 | Y80: 2425 | Z80: 1.003309888 | AB80: 117 | AC80: 0.04840711626 | AE80: =cálculos1!O80 -> 9 | AF80: 0.9 | AG80: =cálculos1!P80 -> 4 | AH80: 1
B82: Total Norte | C82: =SUMIF($A$3:$A$80,"Norte",C$3:C$80) -> 5700 | D82: =SUMIF($A$3:$A$80,"Norte",D$3:D$80) -> 4019 | E82: =SUMIF($A$3:$A$80,"Norte",E$3:E$80) -> 2972 | F82: =E82/D82 -> 0.7394874347 | G82: =SUMIF($A$3:$A$80,"Norte",G$3:G$80) -> 2989 | H82: =G82/D82 -> 0.7437173426 | I82: =SUMIF($A$3:$A$80,"Norte",I$3:I$80) -> 3314 | J82: =I82/D82 -> 0.8245832297 | K82: =SUMIF($A$3:$A$80,"Norte",K$3:K$80) -> 3268 | L82: =K82/D82 -> 0.8131375964 | M82: =SUMIF($A$3:$A$80,"Norte",M$3:M$80) -> 3300 | N82: =M82/D82 -> 0.8210997761 | O82: =SUMIF($A$3:$A$80,"Norte",O$3:O$80) -> 3483 | P82: =O82/D82 -> 0.8666334909 | Q82: =SUMIF($A$3:$A$80,"Norte",Q$3:Q$80) -> 3320 | R82: =Q82/D82 -> 0.8260761383 | S82: =SUMIF($A$3:$A$80,"Norte",S$3:S$80) -> 2946 | T82: =S82/D82 -> 0.7330181637 | U82: =SUMIF($A$3:$A$80,"Norte",U$3:U$80) -> 3467 | V82: =U82/D82 -> 0.8626524011 | W82: =SUMIF($A$3:$A$80,"Norte",W$3:W$80) -> 3805 | X82: =W82/D82 -> 0.9467529236 | Y82: =SUMIF($A$3:$A$80,"Norte",Y$3:Y$80) -> 3249 | Z82: =Y82/D82 -> 0.8084100523 | AB82: =SUMIF($A$3:$A$80,"Norte",AB$3:AB$80) -> 86 | AC82: =AB82/D82 -> 0.0213983578 | AE82: =cálculos1!O82 -> 0 | AF82: =AE82*0.1 -> 0 | AG82: =cálculos1!P82 -> 0 | AH82: 0
B83: Total Central | C83: =SUMIF($A$3:$A$80,"Central",C$3:C$80) -> 6964 | D83: =SUMIF($A$3:$A$80,"Central",D$3:D$80) -> 4825 | E83: =SUMIF($A$3:$A$80,"Central",E$3:E$80) -> 5166 | F83: =E83/D83 -> 1.070673575 | G83: =SUMIF($A$3:$A$80,"Central",G$3:G$80) -> 5264 | H83: =G83/D83 -> 1.090984456 | I83: =SUMIF($A$3:$A$80,"Central",I$3:I$80) -> 4004 | J83: =I83/D83 -> 0.8298445596 | K83: =SUMIF($A$3:$A$80,"Central",K$3:K$80) -> 3960 | L83: =K83/D83 -> 0.8207253886 | M83: =SUMIF($A$3:$A$80,"Central",M$3:M$80) -> 3921 | N83: =M83/D83 -> 0.812642487 | O83: =SUMIF($A$3:$A$80,"Central",O$3:O$80) -> 4183 | P83: =O83/D83 -> 0.8669430052 | Q83: =SUMIF($A$3:$A$80,"Central",Q$3:Q$80) -> 4121 | R83: =Q83/D83 -> 0.8540932642 | S83: =SUMIF($A$3:$A$80,"Central",S$3:S$80) -> 3543 | T83: =S83/D83 -> 0.7343005181 | U83: =SUMIF($A$3:$A$80,"Central",U$3:U$80) -> 4166 | V83: =U83/D83 -> 0.8634196891 | W83: =SUMIF($A$3:$A$80,"Central",W$3:W$80) -> 4525 | X83: =W83/D83 -> 0.9378238342 | Y83: =SUMIF($A$3:$A$80,"Central",Y$3:Y$80) -> 3984 | Z83: =Y83/D83 -> 0.8256994819 | AB83: =SUMIF($A$3:$A$80,"Central",AB$3:AB$80) -> 52 | AC83: =AB83/D83 -> 0.01077720207 | AE83: =cálculos1!O83 -> 1 | AF83: =AE83*0.1 -> 0.1 | AG83: =cálculos1!P83 -> 0 | AH83: 0
B84: Total Metropolitana | C84: =SUMIF($A$3:$A$80,"Metropolitana",C$3:C$80) -> 29213 | D84: =SUMIF($A$3:$A$80,"Metropolitana",D$3:D$80) -> 20159 | E84: =SUMIF($A$3:$A$80,"Metropolitana",E$3:E$80) -> 18993 | F84: =E84/D84 -> 0.9421598294 | G84: =SUMIF($A$3:$A$80,"Metropolitana",G$3:G$80) -> 19303 | H84: =G84/D84 -> 0.9575375763 | I84: =SUMIF($A$3:$A$80,"Metropolitana",I$3:I$80) -> 16673 | J84: =I84/D84 -> 0.8270747557 | K84: =SUMIF($A$3:$A$80,"Metropolitana",K$3:K$80) -> 16474 | L84: =K84/D84 -> 0.8172032343 | M84: =SUMIF($A$3:$A$80,"Metropolitana",M$3:M$80) -> 16631 | N84: =M84/D84 -> 0.824991319 | O84: =SUMIF($A$3:$A$80,"Metropolitana",O$3:O$80) -> 17810 | P84: =O84/D84 -> 0.8834763629 | Q84: =SUMIF($A$3:$A$80,"Metropolitana",Q$3:Q$80) -> 17113 | R84: =Q84/D84 -> 0.8489012352 | S84: =SUMIF($A$3:$A$80,"Metropolitana",S$3:S$80) -> 13192 | T84: =S84/D84 -> 0.6543975396 | U84: =SUMIF($A$3:$A$80,"Metropolitana",U$3:U$80) -> 17733 | V84: =U84/D84 -> 0.879656729 | W84: =SUMIF($A$3:$A$80,"Metropolitana",W$3:W$80) -> 18856 | X84: =W84/D84 -> 0.9353638573 | Y84: =SUMIF($A$3:$A$80,"Metropolitana",Y$3:Y$80) -> 16224 | Z84: =Y84/D84 -> 0.8048018255 | AB84: =SUMIF($A$3:$A$80,"Metropolitana",AB$3:AB$80) -> 600 | AC84: 0.02976338112 | AE84: =cálculos1!O84 -> 1 | AF84: 0.1 | AG84: =cálculos1!P84 -> 0 | AH84: 0
B85: Total Sul | C85: =SUMIF($A$3:$A$80,"sul",C$3:C$80) -> 8123 | D85: =SUMIF($A$3:$A$80,"sul",D$3:D$80) -> 5560 | E85: =SUMIF($A$3:$A$80,"Sul",E$3:E$80) -> 5236 | F85: =E85/D85 -> 0.9417266187 | G85: =SUMIF($A$3:$A$80,"Sul",G$3:G$80) -> 5417 | H85: =G85/D85 -> 0.9742805755 | I85: =SUMIF($A$3:$A$80,"Sul",I$3:I$80) -> 4909 | J85: =I85/D85 -> 0.8829136691 | K85: =SUMIF($A$3:$A$80,"Sul",K$3:K$80) -> 4760 | L85: =K85/D85 -> 0.8561151079 | M85: =SUMIF($A$3:$A$80,"Sul",M$3:M$80) -> 4877 | N85: =M85/D85 -> 0.8771582734 | O85: =SUMIF($A$3:$A$80,"Sul",O$3:O$80) -> 5182 | P85: =O85/D85 -> 0.9320143885 | Q85: =SUMIF($A$3:$A$80,"Sul",Q$3:Q$80) -> 4989 | R85: =Q85/D85 -> 0.8973021583 | S85: =SUMIF($A$3:$A$80,"Sul",S$3:S$80) -> 4145 | T85: =S85/D85 -> 0.7455035971 | U85: =SUMIF($A$3:$A$80,"Sul",U$3:U$80) -> 5161 | V85: =U85/D85 -> 0.9282374101 | W85: =SUMIF($A$3:$A$80,"Sul",W$3:W$80) -> 5462 | X85: =W85/D85 -> 0.9823741007 | Y85: =SUMIF($A$3:$A$80,"Sul",Y$3:Y$80) -> 5056 | Z85: =Y85/D85 -> 0.909352518 | AB85: =SUMIF($A$3:$A$80,"Sul",AB$3:AB$80) -> 149 | AC85: 0.02679856115 | AE85: =cálculos1!O85 -> 3 | AF85: 0.3 | AG85: =cálculos1!P85 -> 1 | AH85: 0.25
B86: Total Espírito Santo | C86: =SUM(C3:C80) -> 50000 | D86: =SUM(D3:D80) -> 34563 | E86: =SUM(E82:E85) -> 32367 | F86: =E86/D86 -> 0.9364638486 | G86: =SUM(G82:G85) -> 32973 | H86: =G86/D86 -> 0.9539970489 | I86: =SUM(I82:I85) -> 28900 | J86: =I86/D86 -> 0.836154269 | K86: =SUM(K82:K85) -> 28462 | L86: =K86/D86 -> 0.8234817579 | M86: =SUM(M82:M85) -> 28729 | N86: =M86/D86 -> 0.8312067818 | O86: =SUM(O82:O85) -> 30658 | P86: =O86/D86 -> 0.8870179093 | Q86: =SUM(Q82:Q85) -> 29543 | R86: =Q86/D86 -> 0.8547579782 | S86: =SUM(S82:S85) -> 23826 | T86: =S86/D86 -> 0.6893498828 | U86: =SUM(U82:U85) -> 30527 | V86: =U86/D86 -> 0.8832277291 | W86: =SUM(W82:W85) -> 32648 | X86: =W86/D86 -> 0.9445939299 | Y86: =SUM(Y82:Y85) -> 28513 | Z86: =Y86/D86 -> 0.8249573243 | AB86: =SUM(AB82:AB85) -> 887 | AC86: 0.02566328154 | AE86: =cálculos1!O86 -> 1 | AF86: 0.1 | AG86: =cálculos1!P86 -> 0 | AH86: 0
E87: =COUNTIF(F3:F80,">=0,95") -> 9 | G87: =COUNTIF(H3:H80,">=0,9") -> 11 | I87: =COUNTIF(J3:J80,">=0,95") -> 15 | K87: =COUNTIF(L3:L80,">=0,95") -> 14 | M87: =COUNTIF(N3:N80,">=0,95") -> 13 | O87: =COUNTIF(P3:P80,">=0,9") -> 35 | Q87: =COUNTIF(R3:R80,">=0,95") -> 18 | S87: =COUNTIF(T3:T80,">=0,95") -> 11 | U87: =COUNTIF(V3:V80,">=0,95") -> 33 | W87: =COUNTIF(X3:X80,">=0,95") -> 48 | Y87: =COUNTIF(Z3:Z80,">=0,95") -> 34 | AB87: =COUNTIF(AC3:AC80,">=0,9") -> 0
B88: HOMOGENEIDADE ENTRE MUNICÍPIOS | E88: =E87/78 -> 0.1153846154 | G88: =G87/78 -> 0.141025641 | I88: =I87/78 -> 0.1923076923 | K88: =K87/78 -> 0.1794871795 | M88: =M87/78 -> 0.1666666667 | O88: =O87/78 -> 0.4487179487 | Q88: =Q87/78 -> 0.2307692308 | S88: =S87/78 -> 0.141025641 | U88: =U87/78 -> 0.4230769231 | W88: =W87/78 -> 0.6153846154 | Y88: =Y87/78 -> 0.4358974359 | AB88: =AB87/78 -> 0
A90: Fonte: Vacina e Confia, em 19 de Setembro de 2025.**<https://vacinaeconfia.saude.es.gov.br/>
A91: **Dados referente às doses aplicadas no período de Janeiro a Julho 2025
A92: Cobertura Calculada por município de procedência/ocorrência da vacinação
A93: 1 População anual extraída do MS/SVS/DASIS - SINASC/DASIS/SVS/MS 2024 (hoje preliminares) referente ao período de Julho a Dezembro de 2024 e SINASC/DASIS/SVS/MS referente ao período de Janeiro e Junho de 2025.
A94: ² População proporcional extraída do MS/SVS/DASIS - SINASC/DASIS/SVS/MS 2024 (hoje preliminares) referente ao período de Julho e Agosto 2024 e Janeiro a Junho/ 2025.
A95: Sinasc, atualizado em 09/09/25.
A96: Método de Cálculo Simples
A97: Homogeineidade: O cálculo da Homogeineidade entre vacinas é feito de acordo com a pactuação estabelecida no Plano Plurianual (PPA) vigente no período 2024-2027.
A99: Observações:
A100: 1. Imunobiológicos que foram recebidos parcialmente pelo estado no mês de Agosto/2025, sendo distribuídos em quantidades reduzidas às regionais e municípios:
A101: SORO ANTIRRÁBICO HUMANO, IMUNOGLOBULINA ANTIRRÁBICA HUMANA, VACINA PNEUMO 13,VACINA PNEUMO 23.
A102: 2. Imunobiológicos indisponíveis no mês de Julho/2025, não sendo possível a distribuição às regionais e municípios:
A103: VACINA TRÍPLICE ACELULAR (DTPa) - CRIE e IMUNOGLOBULINA HUMANA ANTI-HEPATITE B - 100 UI

Sheet CV Rotina <2A - residência
E1: AO NASCER | I1: MENOR DE 1 ANO | U1: 1 ANO | AB1: MENOR DE 1 ANO
A2: Regional | B2: Município | C2: ¹População < 1 ano e 1 ano anual | D2: ²População < 1 ano e 1 ano proporcional | E2: Doses Aplicadas HB < 30 dias | F2: Cobertura Vacinal HB até 30 dias | G2: Doses Aplicadas BCG | H2: Cobertura Vacinal BCG | I2: Doses Aplicadas Pentavalente | J2: Cobertura Vacinal Pentavalente | K2: Doses Aplicadas Poliomielite | L2: Cobertura Vacinal Poliomielite | M2: Doses Aplicadas Pneumo 10 | N2: Cobertura Vacinal Pneumo 10 | O2: Doses Aplicadas Rotavírus | P2: Cobertura Vacinal Rotavírus | Q2: Doses Aplicadas Meningo C | R2: Cobertura Vacinal Meningo C | S2: Doses Aplicadas Febre Amarela | T2: Cobertura Vacinal Febre Amarela | U2: Doses Aplicadas Hepatite A | V2: Cobertura Vacinal Hepatite A | W2: Doses Aplicadas de Tríplice Viral | X2: Cobertura Vacinal Tríplice Viral | Y2: Doses Aplicadas Varicela | Z2: Cobertura Varicela | AB2: Doses Aplicadas COVID-19 | AC2: Cobertura Vacinal COVID-19 D1 | AE2: VACINAS QUE ATINGIRAM A META DE CV | AF2: HOMOGENEIDADE ENTRE AS 10 VACINAS | AG2: VACINAS DO PQA-VS QUE ATINGIRAM A META DE CV | AH2: HOMOGENEIDADE ENTRE AS VACINAS DO PQA-VS
A3: Metropolitana | B3: Afonso Cláudio | C3: 369 | D3: 253 | E3: 239 | F3: =E3/D3 -> 0.9446640316 | G3: 237 | H3: =G3/D3 -> 0.9367588933 | I3: 214 | J3: =I3/D3 -> 0.8458498024 | K3: 211 | L3: =K3/D3 -> 0.8339920949 | M3: 221 | N3: =M3/D3 -> 0.8735177866 | O3: 231 | P3: =O3/D3 -> 0.9130434783 | Q3: 216 | R3: =Q3/D3 -> 0.8537549407 | S3: 207 | T3: =S3/D3 -> 0.8181818182 | U3: 252 | V3: =U3/D3 -> 0.9960474308 | W3: 243 | X3: =W3/D3 -> 0.9604743083 | Y3: 283 | Z3: =Y3/D3 -> 1.118577075 | AB3: 1 | AC3: =AB3/D3 -> 0.00395256917 | AE3: =cálculos2!O3 -> 5 | AF3: =AE3*0.1 -> 0.5 | AG3: =cálculos2!P3 -> 1 | AH3: =AG3*0.25 -> 0.25 | AJ3: LEGENDA / HOMOGENEIDADE PQA-VS
A4: Norte | B4: Água Doce do Norte | C4: 144 | D4: 103 | E4: 78 | F4: =E4/D4 -> 0.7572815534 | G4: 80 | H4: =G4/D4 -> 0.7766990291 | I4: 88 | J4: 0.854368932 | K4: 86 | L4: 0.8349514563 | M4: 72 | N4: 0.6990291262 | O4: 72 | P4: 0.6990291262 | Q4: 88 | R4: 0.854368932 | S4: 94 | T4: 0.9126213592 | U4: 90 | V4: 0.8737864078 | W4: 107 | X4: 1.038834951 | Y4: 57 | Z4: 0.5533980583 | AB4: 1 | AC4: =AB4/D4 -> 0.009708737864 | AE4: =cálculos2!O4 -> 1 | AF4: =AE4*0.1 -> 0.1 | AG4: =cálculos2!P4 -> 1 | AH4: =AG4*0.25 -> 0.25 | AJ4: PERCENTUAL | AK4: Nº DE MUNICÍPIOS
A5: Central | B5: Águia Branca | C5: 155 | D5: 119 | E5: 120 | F5: 1.008403361 | G5: 121 | H5: 1.016806723 | I5: 87 | J5: 0.731092437 | K5: 88 | L5: 0.7394957983 | M5: 92 | N5: 0.7731092437 | O5: 93 | P5: 0.781512605 | Q5: 87 | R5: 0.731092437 | S5: 84 | T5: 0.7058823529 | U5: 98 | V5: 0.8235294118 | W5: 107 | X5: 0.8991596639 | Y5: 107 | Z5: 0.8991596639 | AB5: 0 | AC5: 0 | AE5: =cálculos2!O5 -> 1 | AF5: 0.1 | AG5: =cálculos2!P5 -> 0 | AH5: 0 | AJ5: 0 | AK5: =COUNTIF($AH$3:$AH$80,"=0") -> 30
A6: Sul | B6: Alegre | C6: 316 | D6: 218 | E6: 196 | F6: 0.8990825688 | G6: 195 | H6: 0.8944954128 | I6: 187 | J6: 0.8577981651 | K6: 178 | L6: 0.8165137615 | M6: 160 | N6: 0.7339449541 | O6: 176 | P6: 0.8073394495 | Q6: 185 | R6: 0.8486238532 | S6: 172 | T6: 0.7889908257 | U6: 219 | V6: 1.004587156 | W6: 225 | X6: 1.032110092 | Y6: 231 | Z6: 1.059633028 | AB6: 5 | AC6: 0.02293577982 | AE6: =cálculos2!O6 -> 3 | AF6: 0.3 | AG6: =cálculos2!P6 -> 1 | AH6: 0.25 | AJ6: 0.25 | AK6: =COUNTIF($AH$3:$AH$80,"=0,25") -> 28
A7: Sul | B7: Alfredo Chaves | C7: 123 | D7: 87 | E7: 74 | F7: 0.8505747126 | G7: 76 | H7: 0.8735632184 | I7: 72 | J7: 0.8275862069 | K7: 71 | L7: 0.816091954 | M7: 57 | N7: 0.6551724138 | O7: 68 | P7: 0.7816091954 | Q7: 74 | R7: 0.8505747126 | S7: 59 | T7: 0.6781609195 | U7: 77 | V7: 0.8850574713 | W7: 79 | X7: 0.908045977 | Y7: 85 | Z7: 0.9770114943 | AB7: 0 | AC7: 0 | AE7: =cálculos2!O7 -> 1 | AF7: 0.1 | AG7: =cálculos2!P7 -> 0 | AH7: 0 | AJ7: 0.5 | AK7: =COUNTIF($AH$3:$AH$80,"=0,5") -> 4
A8: Central | B8: Alto Rio Novo | C8: 104 | D8: 73 | E8: 65 | F8: 0.8904109589 | G8: 73 | H8: 1 | I8: 59 | J8: 0.8082191781 | K8: 59 | L8: 0.8082191781 | M8: 61 | N8: 0.8356164384 | O8: 62 | P8: 0.8493150685 | Q8: 58 | R8: 0.7945205479 | S8: 59 | T8: 0.8082191781 | U8: 64 | V8: 0.8767123288 | W8: 62 | X8: 0.8493150685 | Y8: 68 | Z8: 0.9315068493 | AB8: 0 | AC8: 0 | AE8: =cálculos2!O8 -> 1 | AF8: 0.1 | AG8: =cálculos2!P8 -> 0 | AH8: 0 | AJ8: 0.75 | AK8: =COUNTIF($AH$3:$AH$80,"=0,75") -> 2
A9: Sul | B9: Anchieta | C9: 349 | D9: 234 | E9: 226 | F9: 0.9658119658 | G9: 237 | H9: 1.012820513 | I9: 254 | J9: 1.085470085 | K9: 252 | L9: 1.076923077 | M9: 256 | N9: 1.094017094 | O9: 262 | P9: 1.11965812 | Q9: 251 | R9: 1.072649573 | S9: 207 | T9: 0.8846153846 | U9: 258 | V9: 1.102564103 | W9: 275 | X9: 1.175213675 | Y9: 272 | Z9: 1.162393162 | AB9: 16 | AC9: 0.06837606838 | AE9: =cálculos2!O9 -> 9 | AF9: 0.9 | AG9: =cálculos2!P9 -> 4 | AH9: 1 | AJ9: 1 | AK9: =COUNTIF($AH$3:$AH$80,"=1,0") -> 14
A10: Sul | B10: Apiacá | C10: 65 | D10: 38 | E10: 12 | F10: 0.3157894737 | G10: 44 | H10: 1.157894737 | I10: 45 | J10: 1.184210526 | K10: 42 | L10: 1.105263158 | M10: 45 | N10: 1.184210526 | O10: 44 | P10: 1.157894737 | Q10: 44 | R10: 1.157894737 | S10: 34 | T10: 0.8947368421 | U10: 36 | V10: 0.9473684211 | W10: 41 | X10: 1.078947368 | Y10: 42 | Z10: 1.105263158 | AB10: 0 | AC10: 0 | AE10: =cálculos2!O10 -> 8 | AF10: 0.8 | AG10: =cálculos2!P10 -> 4 | AH10: 1
A11: Metropolitana | B11: Aracruz | C11: 1395 | D11: 985 | E11: 958 | F11: 0.9725888325 | G11: 975 | H11: 0.9898477157 | I11: 790 | J11: 0.8020304569 | K11: 785 | L11: 0.7969543147 | M11: 784 | N11: 0.7959390863 | O11: 872 | P11: 0.8852791878 | Q11: 809 | R11: 0.821319797 | S11: 706 | T11: 0.716751269 | U11: 919 | V11: 0.9329949239 | W11: 977 | X11: 0.9918781726 | Y11: 935 | Z11: 0.9492385787 | AB11: 46 | AC11: 0.04670050761 | AE11: =cálculos2!O11 -> 2 | AF11: 0.2 | AG11: =cálculos2!P11 -> 1 | AH11: 0.25
A12: Sul | B12: Atilio Vivacqua | C12: 160 | D12: 103 | E12: 103 | F12: 1 | G12: 103 | H12: 1 | I12: 122 | J12: 1.184466019 | K12: 118 | L12: 1.145631068 | M12: 118 | N12: 1.145631068 | O12: 122 | P12: 1.184466019 | Q12: 120 | R12: 1.165048544 | S12: 108 | T12: 1.048543689 | U12: 97 | V12: 0.9417475728 | W12: 109 | X12: 1.058252427 | Y12: 94 | Z12: 0.9126213592 | AB12: 3 | AC12: 0.02912621359 | AE12: =cálculos2!O12 -> 8 | AF12: 0.8 | AG12: =cálculos2!P12 -> 4 | AH12: 1 | AJ12: LEGENDA / HOMOGENEIDADE 10 VACINAS
A13: Central | B13: Baixo Guandu | C13: 370 | D13: 280 | E13: 209 | F13: 0.7464285714 | G13: 257 | H13: 0.9178571429 | I13: 187 | J13: 0.6678571429 | K13: 185 | L13: 0.6607142857 | M13: 190 | N13: 0.6785714286 | O13: 201 | P13: 0.7178571429 | Q13: 184 | R13: 0.6571428571 | S13: 183 | T13: 0.6535714286 | U13: 240 | V13: 0.8571428571 | W13: 240 | X13: 0.8571428571 | Y13: 226 | Z13: 0.8071428571 | AB13: 0 | AC13: 0 | AE13: =cálculos2!O13 -> 1 | AF13: 0.1 | AG13: =cálculos2!P13 -> 0 | AH13: 0 | AJ13: PERCENTUAL | AK13: Nº DE MUNICÍPIOS
A14: Norte | B14: Barra de São Francisco | C14: 641 | D14: 450 | E14: 346 | F14: 0.7688888889 | G14: 364 | H14: 0.8088888889 | I14: 341 | J14: 0.7577777778 | K14: 338 | L14: 0.7511111111 | M14: 339 | N14: 0.7533333333 | O14: 348 | P14: 0.7733333333 | Q14: 310 | R14: 0.6888888889 | S14: 297 | T14: 0.66 | U14: 313 | V14: 0.6955555556 | W14: 366 | X14: 0.8133333333 | Y14: 347 | Z14: 0.7711111111 | AB14: 0 | AC14: 0 | AE14: =cálculos2!O14 -> 0 | AF14: 0 | AG14: =cálculos2!P14 -> 0 | AH14: 0 | AJ14: 0 | AK14: =COUNTIF($AF$3:$AF$80,"=0") -> 5
A15: Norte | B15: Boa Esperança | C15: 211 | D15: 145 | E15: 130 | F15: 0.8965517241 | G15: 134 | H15: 0.924137931 | I15: 123 | J15: 0.8482758621 | K15: 125 | L15: 0.8620689655 | M15: 128 | N15: 0.8827586207 | O15: 129 | P15: 0.8896551724 | Q15: 127 | R15: 0.875862069 | S15: 109 | T15: 0.7517241379 | U15: 128 | V15: 0.8827586207 | W15: 134 | X15: 0.924137931 | Y15: 120 | Z15: 0.8275862069 | AB15: 2 | AC15: 0.01379310345 | AE15: =cálculos2!O15 -> 1 | AF15: 0.1 | AG15: =cálculos2!P15 -> 0 | AH15: 0 | AJ15: 0.1 | AK15: =COUNTIFS($AF$3:$AF$80,">=0,10",$AF$3:$AF$80,"<0,20") -> 19
A16: Sul | B16: Bom Jesus do Norte | C16: 75 | D16: 56 | E16: 31 | F16: 0.5535714286 | G16: 69 | H16: 1.232142857 | I16: 66 | J16: 1.178571429 | K16: 66 | L16: 1.178571429 | M16: 67 | N16: 1.196428571 | O16: 68 | P16: 1.214285714 | Q16: 58 | R16: 1.035714286 | S16: 52 | T16: 0.9285714286 | U16: 68 | V16: 1.214285714 | W16: 70 | X16: 1.25 | Y16: 61 | Z16: 1.089285714 | AB16: 4 | AC16: 0.07142857143 | AE16: =cálculos2!O16 -> 9 | AF16: 0.9 | AG16: =cálculos2!P16 -> 4 | AH16: 1 | AJ16: 0.2 | AK16: =COUNTIFS($AF$3:$AF$80,">=0,20",$AF$3:$AF$80,"<0,30") -> 15
A17: Metropolitana | B17: Brejetuba | C17: 220 | D17: 146 | E17: 114 | F17: 0.7808219178 | G17: 120 | H17: 0.8219178082 | I17: 126 | J17: 0.8630136986 | K17: 133 | L17: 0.9109589041 | M17: 136 | N17: 0.9315068493 | O17: 150 | P17: 1.02739726 | Q17: 142 | R17: 0.9726027397 | S17: 115 | T17: 0.7876712329 | U17: 135 | V17: 0.9246575342 | W17: 137 | X17: 0.9383561644 | Y17: 159 | Z17: 1.089041096 | AB17: 2 | AC17: 0.01369863014 | AE17: =cálculos2!O17 -> 3 | AF17: 0.3 | AG17: =cálculos2!P17 -> 0 | AH17: 0 | AJ17: 0.3 | AK17: =COUNTIFS($AF$3:$AF$80,">=0,30",$AF$3:$AF$80,"<0,40") -> 12
A18: Sul | B18: Cachoeiro de Itapemirim | C18: 2343 | D18: 1624 | E18: 1648 | F18: 1.014778325 | G18: 1646 | H18: 1.013546798 | I18: 1339 | J18: 0.8245073892 | K18: 1328 | L18: 0.8177339901 | M18: 1348 | N18: 0.8300492611 | O18: 1452 | P18: 0.89408867 | Q18: 1386 | R18: 0.8534482759 | S18: 1087 | T18: 0.6693349754 | U18: 1432 | V18: 0.881773399 | W18: 1615 | X18: 0.9944581281 | Y18: 1414 | Z18: 0.8706896552 | AB18: 37 | AC18: 0.02278325123 | AE18: =cálculos2!O18 -> 2 | AF18: 0.2 | AG18: =cálculos2!P18 -> 1 | AH18: 0.25 | AJ18: 0.4 | AK18: =COUNTIFS($AF$3:$AF$80,">=0,40",$AF$3:$AF$80,"<0,50") -> 5
A19: Metropolitana | B19: Cariacica | C19: 4772 | D19: 3335 | E19: 3056 | F19: 0.9163418291 | G19: 3083 | H19: 0.9244377811 | I19: 2595 | J19: 0.7781109445 | K19: 2569 | L19: 0.7703148426 | M19: 2416 | N19: 0.7244377811 | O19: 2745 | P19: 0.8230884558 | Q19: 2669 | R19: 0.8002998501 | S19: 2064 | T19: 0.6188905547 | U19: 2857 | V19: 0.8566716642 | W19: 3069 | X19: 0.9202398801 | Y19: 2483 | Z19: 0.7445277361 | AB19: 105 | AC19: 0.03148425787 | AE19: =cálculos2!O19 -> 1 | AF19: 0.1 | AG19: =cálculos2!P19 -> 0 | AH19: 0 | AJ19: 0.5 | AK19: =COUNTIFS($AF$3:$AF$80,">=0,50",$AF$3:$AF$80,"<0,60") -> 5
A20: Sul | B20: Castelo | C20: 417 | D20: 291 | E20: 286 | F20: 0.9828178694 | G20: 290 | H20: 0.9965635739 | I20: 258 | J20: 0.8865979381 | K20: 247 | L20: 0.8487972509 | M20: 241 | N20: 0.8281786942 | O20: 270 | P20: 0.9278350515 | Q20: 264 | R20: 0.9072164948 | S20: 229 | T20: 0.7869415808 | U20: 304 | V20: 1.04467354 | W20: 300 | X20: 1.030927835 | Y20: 260 | Z20: 0.8934707904 | AB20: 4 | AC20: 0.01374570447 | AE20: =cálculos2!O20 -> 4 | AF20: 0.4 | AG20: =cálculos2!P20 -> 1 | AH20: 0.25 | AJ20: 0.6 | AK20: =COUNTIFS($AF$3:$AF$80,">=0,60",$AF$3:$AF$80,"<0,70") -> 0
A21: Central | B21: Colatina | C21: 1490 | D21: 1029 | E21: 984 | F21: 0.9562682216 | G21: 994 | H21: 0.9659863946 | I21: 839 | J21: 0.8153547133 | K21: 839 | L21: 0.8153547133 | M21: 766 | N21: 0.7444120505 | O21: 861 | P21: 0.8367346939 | Q21: 856 | R21: 0.8318756074 | S21: 716 | T21: 0.6958211856 | U21: 862 | V21: 0.8377065112 | W21: 954 | X21: 0.9271137026 | Y21: 807 | Z21: 0.7842565598 | AB21: 19 | AC21: 0.01846452867 | AE21: =cálculos2!O21 -> 1 | AF21: 0.1 | AG21: =cálculos2!P21 -> 0 | AH21: 0 | AJ21: 0.7 | AK21: =COUNTIFS($AF$3:$AF$80,">=0,70",$AF$3:$AF$80,"<0,80") -> 1
A22: Norte | B22: Conceição da Barra | C22: 380 | D22: 282 | E22: 221 | F22: 0.7836879433 | G22: 221 | H22: 0.7836879433 | I22: 242 | J22: 0.8581560284 | K22: 242 | L22: 0.8581560284 | M22: 237 | N22: 0.8404255319 | O22: 240 | P22: 0.8510638298 | Q22: 234 | R22: 0.829787234 | S22: 234 | T22: 0.829787234 | U22: 276 | V22: 0.9787234043 | W22: 298 | X22: 1.056737589 | Y22: 266 | Z22: 0.9432624113 | AB22: 5 | AC22: 0.01773049645 | AE22: =cálculos2!O22 -> 2 | AF22: 0.2 | AG22: =cálculos2!P22 -> 1 | AH22: 0.25 | AJ22: 0.8 | AK22: =COUNTIFS($AF$3:$AF$80,">=0,80",$AF$3:$AF$80,"<0,90") -> 8
A23: Metropolitana | B23: Conceição do Castelo | C23: 179 | D23: 118 | E23: 104 | F23: 0.8813559322 | G23: 108 | H23: 0.9152542373 | I23: 99 | J23: 0.8389830508 | K23: 93 | L23: 0.7881355932 | M23: 68 | N23: 0.5762711864 | O23: 104 | P23: 0.8813559322 | Q23: 95 | R23: 0.8050847458 | S23: 84 | T23: 0.7118644068 | U23: 64 | V23: 0.5423728814 | W23: 85 | X23: 0.7203389831 | Y23: 79 | Z23: 0.6694915254 | AB23: 2 | AC23: 0.01694915254 | AE23: =cálculos2!O23 -> 1 | AF23: 0.1 | AG23: =cálculos2!P23 -> 0 | AH23: 0 | AJ23: 0.9 | AK23: =COUNTIFS($AF$3:$AF$80,">=0,90",$AF$3:$AF$80,"<1,0") -> 6
A24: Sul | B24: Divino de São Lourenço | C24: 52 | D24: 36 | E24: 41 | F24: 1.138888889 | G24: 41 | H24: 1.138888889 | I24: 26 | J24: 0.7222222222 | K24: 26 | L24: 0.7222222222 | M24: 30 | N24: 0.8333333333 | O24: 31 | P24: 0.8611111111 | Q24: 29 | R24: 0.8055555556 | S24: 38 | T24: 1.055555556 | U24: 47 | V24: 1.305555556 | W24: 53 | X24: 1.472222222 | Y24: 55 | Z24: 1.527777778 | AB24: 0 | AC24: 0 | AE24: =cálculos2!O24 -> 5 | AF24: 0.5 | AG24: =cálculos2!P24 -> 1 | AH24: 0.25 | AJ24: 1 | AK24: =COUNTIF($AF$3:$AF$80,">=1,0") -> 2
A25: Metropolitana | B25: Domingos Martins | C25: 424 | D25: 282 | E25: 250 | F25: 0.8865248227 | G25: 268 | H25: 0.9503546099 | I25: 271 | J25: 0.9609929078 | K25: 267 | L25: 0.9468085106 | M25: 262 | N25: 0.9290780142 | O25: 284 | P25: 1.007092199 | Q25: 289 | R25: 1.024822695 | S25: 238 | T25: 0.8439716312 | U25: 285 | V25: 1.010638298 | W25: 284 | X25: 1.007092199 | Y25: 291 | Z25: 1.031914894 | AB25: 22 | AC25: 0.0780141844 | AE25: =cálculos2!O25 -> 7 | AF25: 0.7 | AG25: =cálculos2!P25 -> 2 | AH25: 0.5
A26: Sul | B26: Dores do Rio Preto | C26: 102 | D26: 71 | E26: 45 | F26: 0.6338028169 | G26: 46 | H26: 0.6478873239 | I26: 69 | J26: 0.9718309859 | K26: 67 | L26: 0.9436619718 | M26: 37 | N26: 0.5211267606 | O26: 71 | P26: 1 | Q26: 60 | R26: 0.8450704225 | S26: 64 | T26: 0.9014084507 | U26: 56 | V26: 0.7887323944 | W26: 70 | X26: 0.985915493 | Y26: 47 | Z26: 0.661971831 | AB26: 0 | AC26: 0 | AE26: =cálculos2!O26 -> 3 | AF26: 0.3 | AG26: =cálculos2!P26 -> 2 | AH26: 0.5
A27: Norte | B27: Ecoporanga | C27: 246 | D27: 161 | E27: 175 | F27: 1.086956522 | G27: 174 | H27: 1.080745342 | I27: 160 | J27: 0.9937888199 | K27: 158 | L27: 0.9813664596 | M27: 166 | N27: 1.031055901 | O27: 177 | P27: 1.099378882 | Q27: 166 | R27: 1.031055901 | S27: 137 | T27: 0.850931677 | U27: 164 | V27: 1.01863354 | W27: 185 | X27: 1.149068323 | Y27: 149 | Z27: 0.9254658385 | AB27: 1 | AC27: 0.006211180124 | AE27: =cálculos2!O27 -> 8 | AF27: 0.8 | AG27: =cálculos2!P27 -> 4 | AH27: 1
A28: Metropolitana | B28: Fundão | C28: 222 | D28: 149 | E28: 144 | F28: 0.966442953 | G28: 156 | H28: 1.046979866 | I28: 146 | J28: 0.9798657718 | K28: 145 | L28: 0.9731543624 | M28: 135 | N28: 0.9060402685 | O28: 154 | P28: 1.033557047 | Q28: 141 | R28: 0.9463087248 | S28: 106 | T28: 0.711409396 | U28: 128 | V28: 0.8590604027 | W28: 154 | X28: 1.033557047 | Y28: 128 | Z28: 0.8590604027 | AB28: 2 | AC28: 0.01342281879 | AE28: =cálculos2!O28 -> 5 | AF28: 0.5 | AG28: =cálculos2!P28 -> 3 | AH28: 0.75
A29: Central | B29: Governador Lindenberg | C29: 131 | D29: 92 | E29: 89 | F29: 0.9673913043 | G29: 94 | H29: 1.02173913 | I29: 70 | J29: 0.7608695652 | K29: 70 | L29: 0.7608695652 | M29: 65 | N29: 0.7065217391 | O29: 69 | P29: 0.75 | Q29: 69 | R29: 0.75 | S29: 56 | T29: 0.6086956522 | U29: 86 | V29: 0.9347826087 | W29: 85 | X29: 0.9239130435 | Y29: 72 | Z29: 0.7826086957 | AB29: 0 | AC29: 0 | AE29: =cálculos2!O29 -> 1 | AF29: 0.1 | AG29: =cálculos2!P29 -> 0 | AH29: 0
A30: Sul | B30: Guaçuí | C30: 382 | D30: 243 | E30: 223 | F30: 0.9176954733 | G30: 234 | H30: 0.962962963 | I30: 216 | J30: 0.8888888889 | K30: 213 | L30: 0.8765432099 | M30: 213 | N30: 0.8765432099 | O30: 217 | P30: 0.8930041152 | Q30: 221 | R30: 0.9094650206 | S30: 186 | T30: 0.7654320988 | U30: 222 | V30: 0.9135802469 | W30: 239 | X30: 0.9835390947 | Y30: 227 | Z30: 0.9341563786 | AB30: 12 | AC30: 0.04938271605 | AE30: =cálculos2!O30 -> 2 | AF30: 0.2 | AG30: =cálculos2!P30 -> 1 | AH30: 0.25
A31: Metropolitana | B31: Guarapari | C31: 1689 | D31: 1155 | E31: 1013 | F31: 0.8770562771 | G31: 1083 | H31: 0.9376623377 | I31: 891 | J31: 0.7714285714 | K31: 883 | L31: 0.7645021645 | M31: 927 | N31: 0.8025974026 | O31: 979 | P31: 0.8476190476 | Q31: 932 | R31: 0.8069264069 | S31: 684 | T31: 0.5922077922 | U31: 961 | V31: 0.832034632 | W31: 1038 | X31: 0.8987012987 | Y31: 855 | Z31: 0.7402597403 | AB31: 33 | AC31: 0.02857142857 | AE31: =cálculos2!O31 -> 1 | AF31: 0.1 | AG31: =cálculos2!P31 -> 0 | AH31: 0
A32: Metropolitana | B32: Ibatiba | C32: 403 | D32: 277 | E32: 239 | F32: 0.8628158845 | G32: 265 | H32: 0.9566787004 | I32: 233 | J32: 0.8411552347 | K32: 230 | L32: 0.8303249097 | M32: 224 | N32: 0.8086642599 | O32: 245 | P32: 0.8844765343 | Q32: 232 | R32: 0.8375451264 | S32: 206 | T32: 0.7436823105 | U32: 248 | V32: 0.8953068592 | W32: 254 | X32: 0.916967509 | Y32: 264 | Z32: 0.9530685921 | AB32: 14 | AC32: 0.05054151625 | AE32: =cálculos2!O32 -> 2 | AF32: 0.2 | AG32: =cálculos2!P32 -> 0 | AH32: 0
A33: Metropolitana | B33: Ibiraçu | C33: 132 | D33: 86 | E33: 78 | F33: 0.9069767442 | G33: 79 | H33: 0.9186046512 | I33: 81 | J33: 0.9418604651 | K33: 78 | L33: 0.9069767442 | M33: 88 | N33: 1.023255814 | O33: 81 | P33: 0.9418604651 | Q33: 86 | R33: 1 | S33: 82 | T33: 0.9534883721 | U33: 90 | V33: 1.046511628 | W33: 91 | X33: 1.058139535 | Y33: 96 | Z33: 1.11627907 | AB33: 0 | AC33: 0 | AE33: =cálculos2!O33 -> 8 | AF33: 0.8 | AG33: =cálculos2!P33 -> 2 | AH33: 0.5
A34: Sul | B34: Ibitirama | C34: 148 | D34: 102 | E34: 92 | F34: 0.9019607843 | G34: 100 | H34: 0.9803921569 | I34: 106 | J34: 1.039215686 | K34: 102 | L34: 1 | M34: 114 | N34: 1.117647059 | O34: 120 | P34: 1.176470588 | Q34: 110 | R34: 1.078431373 | S34: 92 | T34: 0.9019607843 | U34: 96 | V34: 0.9411764706 | W34: 100 | X34: 0.9803921569 | Y34: 100 | Z34: 0.9803921569 | AB34: 10 | AC34: 0.09803921569 | AE34: =cálculos2!O34 -> 8 | AF34: 0.8 | AG34: =cálculos2!P34 -> 4 | AH34: 1
A35: Sul | B35: Iconha | C35: 127 | D35: 81 | E35: 78 | F35: 0.962962963 | G35: 85 | H35: 1.049382716 | I35: 78 | J35: =I35/D35 -> 0.962962963 | K35: 78 | L35: =K35/D35 -> 0.962962963 | M35: 77 | N35: =M35/D35 -> 0.950617284 | O35: 84 | P35: =O35/D35 -> 1.037037037 | Q35: 81 | R35: =Q35/D35 -> 1 | S35: 66 | T35: =S35/D35 -> 0.8148148148 | U35: 79 | V35: =U35/D35 -> 0.975308642 | W35: 70 | X35: =W35/D35 -> 0.8641975309 | Y35: 85 | Z35: =Y35/D35 -> 1.049382716 | AB35: 0 | AC35: 0 | AE35: =cálculos2!O35 -> 8 | AF35: 0.8 | AG35: =cálculos2!P35 -> 3 | AH35: 0.75
A36: Sul | B36: Irupi | C36: 174 | D36: 127 | E36: 99 | F36: 0.7795275591 | G36: 123 | H36: 0.968503937 | I36: 99 | J36: 0.7795275591 | K36: 97 | L36: 0.7637795276 | M36: 93 | N36: 0.7322834646 | O36: 102 | P36: 0.8031496063 | Q36: 103 | R36: 0.811023622 | S36: 112 | T36: 0.8818897638 | U36: 137 | V36: 1.078740157 | W36: 133 | X36: 1.047244094 | Y36: 118 | Z36: 0.9291338583 | AB36: 10 | AC36: 0.07874015748 | AE36: =cálculos2!O36 -> 3 | AF36: 0.3 | AG36: =cálculos2!P36 -> 1 | AH36: 0.25
A37: Metropolitana | B37: Itaguaçu | C37: 129 | D37: 96 | E37: 80 | F37: 0.8333333333 | G37: 82 | H37: 0.8541666667 | I37: 78 | J37: 0.8125 | K37: 78 | L37: 0.8125 | M37: 81 | N37: 0.84375 | O37: 81 | P37: 0.84375 | Q37: 74 | R37: 0.7708333333 | S37: 91 | T37: 0.9479166667 | U37: 93 | V37: 0.96875 | W37: 108 | X37: 1.125 | Y37: 92 | Z37: 0.9583333333 | AB37: 9 | AC37: 0.09375 | AE37: =cálculos2!O37 -> 3 | AF37: 0.3 | AG37: =cálculos2!P37 -> 1 | AH37: 0.25
A38: Sul | B38: Itapemirim | C38: 537 | D38: 356 | E38: 332 | F38: 0.9325842697 | G38: 320 | H38: 0.8988764045 | I38: 286 | J38: 0.8033707865 | K38: 267 | L38: 0.75 | M38: 314 | N38: 0.8820224719 | O38: 313 | P38: 0.8792134831 | Q38: 325 | R38: 0.9129213483 | S38: 203 | T38: 0.5702247191 | U38: 279 | V38: 0.7837078652 | W38: 297 | X38: 0.8342696629 | Y38: 250 | Z38: 0.702247191 | AB38: 2 | AC38: 0.005617977528 | AE38: =cálculos2!O38 -> 0 | AF38: 0 | AG38: =cálculos2!P38 -> 0 | AH38: 0
A39: Metropolitana | B39: Itarana | C39: 128 | D39: 95 | E39: 91 | F39: 0.9578947368 | G39: 97 | H39: 1.021052632 | I39: 81 | J39: 0.8526315789 | K39: 82 | L39: 0.8631578947 | M39: 83 | N39: 0.8736842105 | O39: 84 | P39: 0.8842105263 | Q39: 82 | R39: 0.8631578947 | S39: 85 | T39: 0.8947368421 | U39: 96 | V39: 1.010526316 | W39: 111 | X39: 1.168421053 | Y39: 96 | Z39: 1.010526316 | AB39: 1 | AC39: 0.01052631579 | AE39: =cálculos2!O39 -> 4 | AF39: 0.4 | AG39: =cálculos2!P39 -> 1 | AH39: 0.25
A40: Sul | B40: Iúna | C40: 391 | D40: 271 | E40: 214 | F40: 0.7896678967 | G40: 227 | H40: 0.8376383764 | I40: 241 | J40: 0.889298893 | K40: 233 | L40: 0.8597785978 | M40: 223 | N40: 0.8228782288 | O40: 240 | P40: 0.8856088561 | Q40: 245 | R40: 0.9040590406 | S40: 239 | T40: 0.8819188192 | U40: 291 | V40: 1.073800738 | W40: 272 | X40: 1.003690037 | Y40: 287 | Z40: 1.05904059 | AB40: 3 | AC40: 0.0110701107 | AE40: =cálculos2!O40 -> 3 | AF40: 0.3 | AG40: =cálculos2!P40 -> 1 | AH40: 0.25
A41: Norte | B41: Jaguaré | C41: 451 | D41: 329 | E41: 328 | F41: 0.9969604863 | G41: 307 | H41: 0.9331306991 | I41: 277 | J41: 0.8419452888 | K41: 272 | L41: 0.8267477204 | M41: 278 | N41: 0.8449848024 | O41: 278 | P41: 0.8449848024 | Q41: 300 | R41: 0.9118541033 | S41: 232 | T41: 0.7051671733 | U41: 301 | V41: 0.914893617 | W41: 317 | X41: 0.9635258359 | Y41: 253 | Z41: 0.7689969605 | AB41: 1 | AC41: 0.003039513678 | AE41: =cálculos2!O41 -> 2 | AF41: 0.2 | AG41: =cálculos2!P41 -> 1 | AH41: 0.25
A42: Sul | B42: Jerônimo Monteiro | C42: 116 | D42: 75 | E42: 70 | F42: 0.9333333333 | G42: 68 | H42: 0.9066666667 | I42: 84 | J42: 1.12 | K42: 85 | L42: 1.133333333 | M42: 77 | N42: 1.026666667 | O42: 80 | P42: 1.066666667 | Q42: 77 | R42: 1.026666667 | S42: 69 | T42: 0.92 | U42: 102 | V42: 1.36 | W42: 97 | X42: 1.293333333 | Y42: 94 | Z42: 1.253333333 | AB42: 5 | AC42: 0.06666666667 | AE42: =cálculos2!O42 -> 9 | AF42: 0.9 | AG42: =cálculos2!P42 -> 4 | AH42: 1
A43: Metropolitana | B43: João Neiva | C43: 153 | D43: 103 | E43: 81 | F43: 0.786407767 | G43: 88 | H43: 0.854368932 | I43: 93 | J43: 0.9029126214 | K43: 89 | L43: 0.8640776699 | M43: 84 | N43: 0.8155339806 | O43: 85 | P43: 0.8252427184 | Q43: 88 | R43: 0.854368932 | S43: 87 | T43: 0.8446601942 | U43: 93 | V43: 0.9029126214 | W43: 98 | X43: 0.9514563107 | Y43: 97 | Z43: 0.9417475728 | AB43: 2 | AC43: 0.01941747573 | AE43: =cálculos2!O43 -> 1 | AF43: 0.1 | AG43: =cálculos2!P43 -> 1 | AH43: 0.25
A44: Metropolitana | B44: Laranja da Terra | C44: 128 | D44: 96 | E44: 84 | F44: 0.875 | G44: 90 | H44: 0.9375 | I44: 79 | J44: 0.8229166667 | K44: 80 | L44: 0.8333333333 | M44: 89 | N44: 0.9270833333 | O44: 89 | P44: 0.9270833333 | Q44: 82 | R44: 0.8541666667 | S44: 72 | T44: 0.75 | U44: 61 | V44: 0.6354166667 | W44: 67 | X44: 0.6979166667 | Y44: 69 | Z44: 0.71875 | AB44: 4 | AC44: 0.04166666667 | AE44: =cálculos2!O44 -> 2 | AF44: 0.2 | AG44: =cálculos2!P44 -> 0 | AH44: 0
A45: Central | B45: Linhares | C45: 2601 | D45: 1762 | E45: 1816 | F45: 1.030646992 | G45: 1822 | H45: 1.034052213 | I45: 1491 | J45: 0.8461975028 | K45: 1458 | L45: 0.8274687855 | M45: 1459 | N45: 0.8280363224 | O45: 1566 | P45: 0.8887627696 | Q45: 1528 | R45: 0.8671963678 | S45: 1206 | T45: 0.6844494892 | U45: 1419 | V45: 0.8053348468 | W45: 1575 | X45: 0.8938706016 | Y45: 1340 | Z45: 0.7604994325 | AB45: 9 | AC45: 0.005107832009 | AE45: =cálculos2!O45 -> 1 | AF45: 0.1 | AG45: =cálculos2!P45 -> 0 | AH45: 0
A46: Central | B46: Mantenópolis | C46: 128 | D46: 99 | E46: 89 | F46: 0.898989899 | G46: 88 | H46: 0.8888888889 | I46: 78 | J46: 0.7878787879 | K46: 76 | L46: 0.7676767677 | M46: 79 | N46: 0.797979798 | O46: 81 | P46: 0.8181818182 | Q46: 85 | R46: 0.8585858586 | S46: 94 | T46: 0.9494949495 | U46: 80 | V46: 0.8080808081 | W46: 105 | X46: 1.060606061 | Y46: 98 | Z46: 0.9898989899 | AB46: 1 | AC46: 0.0101010101 | AE46: =cálculos2!O46 -> 2 | AF46: 0.2 | AG46: =cálculos2!P46 -> 1 | AH46: 0.25
A47: Sul | B47: Marataízes | C47: 550 | D47: 366 | E47: 372 | F47: 1.016393443 | G47: 373 | H47: 1.019125683 | I47: 339 | J47: 0.9262295082 | K47: 292 | L47: 0.7978142077 | M47: 349 | N47: 0.9535519126 | O47: 361 | P47: 0.9863387978 | Q47: 342 | R47: 0.9344262295 | S47: 243 | T47: 0.6639344262 | U47: 348 | V47: 0.9508196721 | W47: 364 | X47: 0.9945355191 | Y47: 294 | Z47: 0.8032786885 | AB47: 2 | AC47: 0.005464480874 | AE47: =cálculos2!O47 -> 5 | AF47: 0.5 | AG47: =cálculos2!P47 -> 2 | AH47: 0.5
A48: Metropolitana | B48: Marechal Floriano | C48: 201 | D48: 144 | E48: 136 | F48: 0.9444444444 | G48: 131 | H48: 0.9097222222 | I48: 124 | J48: 0.8611111111 | K48: 125 | L48: 0.8680555556 | M48: 118 | N48: 0.8194444444 | O48: 128 | P48: 0.8888888889 | Q48: 127 | R48: 0.8819444444 | S48: 107 | T48: 0.7430555556 | U48: 148 | V48: 1.027777778 | W48: 130 | X48: 0.9027777778 | Y48: 150 | Z48: 1.041666667 | AB48: 10 | AC48: 0.06944444444 | AE48: =cálculos2!O48 -> 3 | AF48: 0.3 | AG48: =cálculos2!P48 -> 0 | AH48: 0
A49: Central | B49: Marilândia | C49: 164 | D49: 115 | E49: 96 | F49: 0.8347826087 | G49: 98 | H49: 0.852173913 | I49: 89 | J49: 0.7739130435 | K49: 89 | L49: 0.7739130435 | M49: 104 | N49: 0.9043478261 | O49: 107 | P49: 0.9304347826 | Q49: 100 | R49: 0.8695652174 | S49: 89 | T49: 0.7739130435 | U49: 91 | V49: 0.7913043478 | W49: 107 | X49: 0.9304347826 | Y49: 92 | Z49: 0.8 | AB49: 4 | AC49: 0.0347826087 | AE49: =cálculos2!O49 -> 1 | AF49: 0.1 | AG49: =cálculos2!P49 -> 0 | AH49: 0
A50: Sul | B50: Mimoso do Sul | C50: 296 | D50: 210 | E50: 192 | F50: 0.9142857143 | G50: 198 | H50: 0.9428571429 | I50: 161 | J50: 0.7666666667 | K50: 150 | L50: 0.7142857143 | M50: 176 | N50: 0.8380952381 | O50: 184 | P50: 0.8761904762 | Q50: 158 | R50: 0.7523809524 | S50: 143 | T50: 0.680952381 | U50: 138 | V50: 0.6571428571 | W50: 142 | X50: 0.6761904762 | Y50: 152 | Z50: 0.7238095238 | AB50: 5 | AC50: 0.02380952381 | AE50: =cálculos2!O50 -> 1 | AF50: 0.1 | AG50: =cálculos2!P50 -> 0 | AH50: 0
A51: Norte | B51: Montanha | C51: 237 | D51: 169 | E51: 149 | F51: 0.8816568047 | G51: 146 | H51: 0.8639053254 | I51: 146 | J51: 0.8639053254 | K51: 147 | L51: 0.8698224852 | M51: 153 | N51: 0.9053254438 | O51: 161 | P51: 0.9526627219 | Q51: 140 | R51: 0.8284023669 | S51: 141 | T51: 0.8343195266 | U51: 159 | V51: 0.9408284024 | W51: 180 | X51: 1.065088757 | Y51: 179 | Z51: 1.059171598 | AB51: 5 | AC51: 0.02958579882 | AE51: =cálculos2!O51 -> 3 | AF51: 0.3 | AG51: =cálculos2!P51 -> 1 | AH51: 0.25
A52: Norte | B52: Mucurici | C52: 62 | D52: 41 | E52: 31 | F52: 0.756097561 | G52: 30 | H52: 0.7317073171 | I52: 45 | J52: 1.097560976 | K52: 46 | L52: 1.12195122 | M52: 46 | N52: 1.12195122 | O52: 45 | P52: 1.097560976 | Q52: 37 | R52: 0.9024390244 | S52: 43 | T52: 1.048780488 | U52: 55 | V52: 1.341463415 | W52: 46 | X52: 1.12195122 | Y52: 53 | Z52: 1.292682927 | AB52: 2 | AC52: 0.0487804878 | AE52: =cálculos2!O52 -> 8 | AF52: 0.8 | AG52: =cálculos2!P52 -> 4 | AH52: 1
A53: Sul | B53: Muniz Freire | C53: 230 | D53: 160 | E53: 170 | F53: 1.0625 | G53: 177 | H53: 1.10625 | I53: 143 | J53: 0.89375 | K53: 144 | L53: 0.9 | M53: 151 | N53: 0.94375 | O53: 156 | P53: 0.975 | Q53: 147 | R53: 0.91875 | S53: 141 | T53: 0.88125 | U53: 157 | V53: 0.98125 | W53: 150 | X53: 0.9375 | Y53: 185 | Z53: 1.15625 | AB53: 3 | AC53: 0.01875 | AE53: =cálculos2!O53 -> 4 | AF53: 0.4 | AG53: =cálculos2!P53 -> 0 | AH53: 0
A54: Sul | B54: Muqui | C54: 158 | D54: 106 | E54: 111 | F54: 1.047169811 | G54: 111 | H54: 1.047169811 | I54: 90 | J54: 0.8490566038 | K54: 90 | L54: 0.8490566038 | M54: 100 | N54: 0.9433962264 | O54: 100 | P54: 0.9433962264 | Q54: 91 | R54: 0.858490566 | S54: 93 | T54: 0.8773584906 | U54: 92 | V54: 0.8679245283 | W54: 98 | X54: 0.9245283019 | Y54: 98 | Z54: 0.9245283019 | AB54: 6 | AC54: 0.05660377358 | AE54: =cálculos2!O54 -> 2 | AF54: 0.2 | AG54: =cálculos2!P54 -> 0 | AH54: 0
A55: Norte | B55: Nova Venécia | C55: 669 | D55: 453 | E55: 455 | F55: 1.004415011 | G55: 449 | H55: 0.9911699779 | I55: 427 | J55: 0.9426048565 | K55: 428 | L55: 0.944812362 | M55: 383 | N55: 0.8454746137 | O55: 463 | P55: 1.022075055 | Q55: 426 | R55: 0.940397351 | S55: 361 | T55: 0.7969094923 | U55: 421 | V55: 0.9293598234 | W55: 459 | X55: 1.013245033 | Y55: 408 | Z55: 0.9006622517 | AB55: 10 | AC55: 0.02207505519 | AE55: =cálculos2!O55 -> 3 | AF55: 0.3 | AG55: =cálculos2!P55 -> 1 | AH55: 0.25
A56: Central | B56: Pancas | C56: 217 | D56: 147 | E56: 148 | F56: 1.006802721 | G56: 151 | H56: 1.027210884 | I56: 136 | J56: 0.925170068 | K56: 138 | L56: 0.9387755102 | M56: 137 | N56: 0.9319727891 | O56: 136 | P56: 0.925170068 | Q56: 137 | R56: 0.9319727891 | S56: 120 | T56: 0.8163265306 | U56: 144 | V56: 0.9795918367 | W56: 137 | X56: 0.9319727891 | Y56: 158 | Z56: 1.074829932 | AB56: 3 | AC56: 0.02040816327 | AE56: =cálculos2!O56 -> 4 | AF56: 0.4 | AG56: =cálculos2!P56 -> 0 | AH56: 0
A57: Norte | B57: Pedro Canário | C57: 343 | D57: 235 | E57: 196 | F57: 0.8340425532 | G57: 210 | H57: 0.8936170213 | I57: 195 | J57: 0.829787234 | K57: 182 | L57: 0.7744680851 | M57: 181 | N57: 0.770212766 | O57: 194 | P57: 0.8255319149 | Q57: 190 | R57: 0.8085106383 | S57: 135 | T57: 0.5744680851 | U57: 226 | V57: 0.9617021277 | W57: 235 | X57: 1 | Y57: 207 | Z57: 0.8808510638 | AB57: 3 | AC57: 0.01276595745 | AE57: =cálculos2!O57 -> 2 | AF57: 0.2 | AG57: =cálculos2!P57 -> 1 | AH57: 0.25
A58: Norte | B58: Pinheiros | C58: 334 | D58: 247 | E58: 206 | F58: 0.8340080972 | G58: 208 | H58: 0.8421052632 | I58: 210 | J58: 0.8502024291 | K58: 207 | L58: 0.8380566802 | M58: 216 | N58: 0.8744939271 | O58: 230 | P58: 0.9311740891 | Q58: 213 | R58: 0.8623481781 | S58: 209 | T58: 0.8461538462 | U58: 212 | V58: 0.8582995951 | W58: 224 | X58: 0.9068825911 | Y58: 211 | Z58: 0.8542510121 | AB58: 3 | AC58: 0.01214574899 | AE58: =cálculos2!O58 -> 1 | AF58: 0.1 | AG58: =cálculos2!P58 -> 0 | AH58: 0
A59: Sul | B59: Piúma | C59: 315 | D59: 210 | E59: 201 | F59: 0.9571428571 | G59: 174 | H59: 0.8285714286 | I59: 182 | J59: 0.8666666667 | K59: 171 | L59: 0.8142857143 | M59: 189 | N59: 0.9 | O59: 198 | P59: 0.9428571429 | Q59: 193 | R59: 0.919047619 | S59: 135 | T59: 0.6428571429 | U59: 192 | V59: 0.9142857143 | W59: 199 | X59: 0.9476190476 | Y59: 165 | Z59: 0.7857142857 | AB59: 10 | AC59: 0.04761904762 | AE59: =cálculos2!O59 -> 1 | AF59: 0.1 | AG59: =cálculos2!P59 -> 0 | AH59: 0
A60: Norte | B60: Ponto Belo | C60: 74 | D60: 49 | E60: 39 | F60: 0.7959183673 | G60: 39 | H60: 0.7959183673 | I60: 54 | J60: 1.102040816 | K60: 54 | L60: 1.102040816 | M60: 50 | N60: 1.020408163 | O60: 49 | P60: 1 | Q60: 53 | R60: 1.081632653 | S60: 61 | T60: 1.244897959 | U60: 55 | V60: 1.12244898 | W60: 52 | X60: 1.06122449 | Y60: 51 | Z60: 1.040816327 | AB60: 2 | AC60: 0.04081632653 | AE60: =cálculos2!O60 -> 9 | AF60: 0.9 | AG60: =cálculos2!P60 -> 4 | AH60: 1
A61: Sul | B61: Presidente Kennedy | C61: 213 | D61: 152 | E61: 140 | F61: 0.9210526316 | G61: 142 | H61: 0.9342105263 | I61: 140 | J61: 0.9210526316 | K61: 138 | L61: 0.9078947368 | M61: 133 | N61: 0.875 | O61: 136 | P61: 0.8947368421 | Q61: 138 | R61: 0.9078947368 | S61: 126 | T61: 0.8289473684 | U61: 128 | V61: 0.8421052632 | W61: 151 | X61: 0.9934210526 | Y61: 120 | Z61: 0.7894736842 | AB61: 5 | AC61: 0.03289473684 | AE61: =cálculos2!O61 -> 2 | AF61: 0.2 | AG61: =cálculos2!P61 -> 1 | AH61: 0.25
A62: Central | B62: Rio Bananal | C62: 298 | D62: 198 | E62: 184 | F62: 0.9292929293 | G62: 186 | H62: 0.9393939394 | I62: 183 | J62: 0.9242424242 | K62: 182 | L62: 0.9191919192 | M62: 180 | N62: 0.9090909091 | O62: 190 | P62: 0.9595959596 | Q62: 190 | R62: 0.9595959596 | S62: 179 | T62: 0.904040404 | U62: 191 | V62: 0.9646464646 | W62: 206 | X62: 1.04040404 | Y62: 171 | Z62: 0.8636363636 | AB62: 6 | AC62: 0.0303030303 | AE62: =cálculos2!O62 -> 5 | AF62: 0.5 | AG62: =cálculos2!P62 -> 1 | AH62: 0.25
A63: Sul | B63: Rio Novo do Sul | C63: 112 | D63: 84 | E63: 60 | F63: 0.7142857143 | G63: 65 | H63: 0.7738095238 | I63: 79 | J63: 0.9404761905 | K63: 79 | L63: 0.9404761905 | M63: 71 | N63: 0.8452380952 | O63: 71 | P63: 0.8452380952 | Q63: 77 | R63: 0.9166666667 | S63: 53 | T63: 0.630952381 | U63: 57 | V63: 0.6785714286 | W63: 67 | X63: 0.7976190476 | Y63: 62 | Z63: 0.7380952381 | AB63: 0 | AC63: 0 | AE63: =cálculos2!O63 -> 0 | AF63: 0 | AG63: =cálculos2!P63 -> 0 | AH63: 0
A64: Metropolitana | B64: Santa Leopoldina | C64: 88 | D64: 66 | E64: 66 | F64: 1 | G64: 68 | H64: 1.03030303 | I64: 65 | J64: 0.9848484848 | K64: 64 | L64: 0.9696969697 | M64: 74 | N64: 1.121212121 | O64: 76 | P64: 1.151515152 | Q64: 69 | R64: 1.045454545 | S64: 60 | T64: 0.9090909091 | U64: 71 | V64: 1.075757576 | W64: 65 | X64: 0.9848484848 | Y64: 74 | Z64: 1.121212121 | AB64: 0 | AC64: 0 | AE64: =cálculos2!O64 -> 9 | AF64: 0.9 | AG64: =cálculos2!P64 -> 4 | AH64: 1
A65: Metropolitana | B65: Santa Maria de Jetibá | C65: 710 | D65: 467 | E65: 469 | F65: 1.004282655 | G65: 452 | H65: 0.9678800857 | I65: 392 | J65: 0.8394004283 | K65: 397 | L65: 0.8501070664 | M65: 406 | N65: 0.869379015 | O65: 421 | P65: 0.9014989293 | Q65: 421 | R65: 0.9014989293 | S65: 318 | T65: 0.6809421842 | U65: 371 | V65: 0.7944325482 | W65: 395 | X65: 0.8458244111 | Y65: 364 | Z65: 0.7794432548 | AB65: 0 | AC65: 0 | AE65: =cálculos2!O65 -> 2 | AF65: 0.2 | AG65: =cálculos2!P65 -> 0 | AH65: 0
A66: Metropolitana | B66: Santa Teresa | C66: 286 | D66: 197 | E66: 191 | F66: 0.9695431472 | G66: 197 | H66: 1 | I66: 164 | J66: 0.8324873096 | K66: 163 | L66: 0.8274111675 | M66: 159 | N66: 0.807106599 | O66: 167 | P66: 0.847715736 | Q66: 169 | R66: 0.8578680203 | S66: 155 | T66: 0.7868020305 | U66: 186 | V66: 0.9441624365 | W66: 195 | X66: 0.9898477157 | Y66: 193 | Z66: 0.9796954315 | AB66: 5 | AC66: 0.02538071066 | AE66: =cálculos2!O66 -> 3 | AF66: 0.3 | AG66: =cálculos2!P66 -> 1 | AH66: 0.25
A67: Central | B67: São Domingos do Norte | C67: 105 | D67: 68 | E67: 72 | F67: 1.058823529 | G67: 71 | H67: 1.044117647 | I67: 72 | J67: =I67/D67 -> 1.058823529 | K67: 73 | L67: =K67/D67 -> 1.073529412 | M67: 71 | N67: =M67/D67 -> 1.044117647 | O67: 73 | P67: =O67/D67 -> 1.073529412 | Q67: 77 | R67: =Q67/D67 -> 1.132352941 | S67: 66 | T67: =S67/D67 -> 0.9705882353 | U67: 90 | V67: =U67/D67 -> 1.323529412 | W67: 89 | X67: =W67/D67 -> 1.308823529 | Y67: 86 | Z67: =Y67/D67 -> 1.264705882 | AB67: 0 | AC67: 0 | AE67: =cálculos2!O67 -> 10 | AF67: 1 | AG67: =cálculos2!P67 -> 4 | AH67: 1
A68: Central | B68: São Gabriel da Palha | C68: 400 | D68: 287 | E68: 237 | F68: =E68/D68 -> 0.8257839721 | G68: 242 | H68: =G68/D68 -> 0.8432055749 | I68: 232 | J68: 0.8083623693 | K68: 232 | L68: 0.8083623693 | M68: 220 | N68: 0.7665505226 | O68: 235 | P68: 0.818815331 | Q68: 235 | R68: 0.818815331 | S68: 240 | T68: 0.8362369338 | U68: 244 | V68: 0.850174216 | W68: 280 | X68: 0.9756097561 | Y68: 237 | Z68: 0.8257839721 | AB68: 3 | AC68: =AB68/D68 -> 0.01045296167 | AE68: =cálculos2!O68 -> 1 | AF68: =AE68*0.1 -> 0.1 | AG68: =cálculos2!P68 -> 1 | AH68: =AG68*0.25 -> 0.25
A69: Sul | B69: São José do Calçado | C69: 95 | D69: 63 | E69: 66 | F69: 1.047619048 | G69: 70 | H69: 1.111111111 | I69: 62 | J69: 0.9841269841 | K69: 62 | L69: 0.9841269841 | M69: 62 | N69: 0.9841269841 | O69: 63 | P69: 1 | Q69: 62 | R69: 0.9841269841 | S69: 37 | T69: 0.5873015873 | U69: 60 | V69: 0.9523809524 | W69: 63 | X69: 1 | Y69: 62 | Z69: 0.9841269841 | AB69: 2 | AC69: 0.03174603175 | AE69: =cálculos2!O69 -> 9 | AF69: 0.9 | AG69: =cálculos2!P69 -> 4 | AH69: 1
A70: Norte | B70: São Mateus | C70: 1798 | D70: 1272 | E70: 1029 | F70: 0.8089622642 | G70: 1037 | H70: 0.8152515723 | I70: 950 | J70: 0.7468553459 | K70: 926 | L70: 0.7279874214 | M70: 985 | N70: 0.7743710692 | O70: 1029 | P70: 0.8089622642 | Q70: 982 | R70: 0.7720125786 | S70: 826 | T70: 0.6493710692 | U70: 1048 | V70: 0.8238993711 | W70: 1158 | X70: 0.9103773585 | Y70: 931 | Z70: 0.731918239 | AB70: 51 | AC70: 0.04009433962 | AE70: =cálculos2!O70 -> 0 | AF70: 0 | AG70: =cálculos2!P70 -> 0 | AH70: 0
A71: Central | B71: São Roque do Canaã | C71: 130 | D71: 95 | E71: 102 | F71: 1.073684211 | G71: 104 | H71: 1.094736842 | I71: 74 | J71: 0.7789473684 | K71: 72 | L71: 0.7578947368 | M71: 81 | N71: 0.8526315789 | O71: 84 | P71: 0.8842105263 | Q71: 77 | R71: 0.8105263158 | S71: 78 | T71: 0.8210526316 | U71: 83 | V71: 0.8736842105 | W71: 92 | X71: 0.9684210526 | Y71: 90 | Z71: 0.9473684211 | AB71: 5 | AC71: 0.05263157895 | AE71: =cálculos2!O71 -> 2 | AF71: 0.2 | AG71: =cálculos2!P71 -> 1 | AH71: 0.25
A72: Metropolitana | B72: Serra | C72: 7354 | D72: 5063 | E72: 4753 | F72: 0.9387714794 | G72: 4755 | H72: 0.9391665021 | I72: 3990 | J72: 0.788070314 | K72: 3897 | L72: 0.7697017579 | M72: 4081 | N72: 0.8060438475 | O72: 4292 | P72: 0.8477187438 | Q72: 4085 | R72: 0.8068338929 | S72: 3255 | T72: 0.6428994667 | U72: 4340 | V72: 0.857199289 | W72: 4505 | X72: 0.8897886628 | Y72: 3623 | Z72: 0.7155836461 | AB72: 98 | AC72: 0.01935611298 | AE72: =cálculos2!O72 -> 1 | AF72: 0.1 | AG72: =cálculos2!P72 -> 0 | AH72: 0
A73: Central | B73: Sooretama | C73: 429 | D73: 287 | E73: 277 | F73: 0.9651567944 | G73: 288 | H73: 1.003484321 | I73: 250 | J73: 0.8710801394 | K73: 245 | L73: 0.8536585366 | M73: 232 | N73: 0.8083623693 | O73: 254 | P73: 0.8850174216 | Q73: 254 | R73: 0.8850174216 | S73: 222 | T73: 0.7735191638 | U73: 254 | V73: 0.8850174216 | W73: 279 | X73: 0.9721254355 | Y73: 237 | Z73: 0.8257839721 | AB73: 1 | AC73: 0.003484320557 | AE73: =cálculos2!O73 -> 2 | AF73: 0.2 | AG73: =cálculos2!P73 -> 1 | AH73: 0.25
A74: Sul | B74: Vargem Alta | C74: 277 | D74: 196 | E74: 197 | F74: 1.005102041 | G74: 195 | H74: 0.9948979592 | I74: 150 | J74: 0.7653061224 | K74: 146 | L74: 0.7448979592 | M74: 179 | N74: 0.9132653061 | O74: 180 | P74: 0.9183673469 | Q74: 160 | R74: 0.8163265306 | S74: 136 | T74: 0.693877551 | U74: 172 | V74: 0.8775510204 | W74: 177 | X74: 0.9030612245 | Y74: 183 | Z74: 0.9336734694 | AB74: 4 | AC74: 0.02040816327 | AE74: =cálculos2!O74 -> 2 | AF74: 0.2 | AG74: =cálculos2!P74 -> 0 | AH74: 0
A75: Metropolitana | B75: Venda Nova do Imigrante | C75: 335 | D75: 216 | E75: 220 | F75: 1.018518519 | G75: 229 | H75: 1.060185185 | I75: 236 | J75: 1.092592593 | K75: 236 | L75: 1.092592593 | M75: 228 | N75: 1.055555556 | O75: 238 | P75: 1.101851852 | Q75: 222 | R75: 1.027777778 | S75: 217 | T75: 1.00462963 | U75: 248 | V75: 1.148148148 | W75: 239 | X75: 1.106481481 | Y75: 274 | Z75: 1.268518519 | AB75: 10 | AC75: 0.0462962963 | AE75: =cálculos2!O75 -> 10 | AF75: 1 | AG75: =cálculos2!P75 -> 4 | AH75: 1
A76: Metropolitana | B76: Viana | C76: 886 | D76: 595 | E76: 572 | F76: 0.9613445378 | G76: 578 | H76: 0.9714285714 | I76: 552 | J76: 0.9277310924 | K76: 515 | L76: 0.8655462185 | M76: 564 | N76: 0.9478991597 | O76: 584 | P76: 0.981512605 | Q76: 550 | R76: 0.9243697479 | S76: 400 | T76: 0.6722689076 | U76: 566 | V76: 0.9512605042 | W76: 673 | X76: 1.131092437 | Y76: 466 | Z76: 0.7831932773 | AB76: 15 | AC76: 0.02521008403 | AE76: =cálculos2!O76 -> 4 | AF76: 0.4 | AG76: =cálculos2!P76 -> 1 | AH76: 0.25
A77: Norte | B77: Vila Pavão | C77: 110 | D77: 83 | E77: 75 | F77: 0.9036144578 | G77: 75 | H77: 0.9036144578 | I77: 77 | J77: 0.9277108434 | K77: 76 | L77: 0.9156626506 | M77: 76 | N77: 0.9156626506 | O77: 69 | P77: 0.8313253012 | Q77: 79 | R77: 0.9518072289 | S77: 74 | T77: 0.8915662651 | U77: 65 | V77: 0.7831325301 | W77: 80 | X77: 0.9638554217 | Y77: 68 | Z77: 0.8192771084 | AB77: 3 | AC77: 0.03614457831 | AE77: =cálculos2!O77 -> 3 | AF77: 0.3 | AG77: =cálculos2!P77 -> 1 | AH77: 0.25
A78: Central | B78: Vila Valério | C78: 242 | D78: 174 | E78: 153 | F78: 0.8793103448 | G78: 154 | H78: 0.8850574713 | I78: 131 | J78: 0.7528735632 | K78: 135 | L78: 0.775862069 | M78: 137 | N78: 0.7873563218 | O78: 132 | P78: 0.7586206897 | Q78: 135 | R78: 0.775862069 | S78: 143 | T78: 0.8218390805 | U78: 179 | V78: 1.028735632 | W78: 177 | X78: 1.017241379 | Y78: 181 | Z78: 1.040229885 | AB78: 1 | AC78: 0.005747126437 | AE78: =cálculos2!O78 -> 3 | AF78: 0.3 | AG78: =cálculos2!P78 -> 1 | AH78: 0.25
A79: Metropolitana | B79: Vila Velha | C79: 5488 | D79: 3818 | E79: 3360 | F79: 0.8800419068 | G79: 3395 | H79: 0.88920901 | I79: 2774 | J79: 0.7265584075 | K79: 2767 | L79: 0.7247249869 | M79: 2762 | N79: 0.7234154007 | O79: 2973 | P79: 0.7786799371 | Q79: 2858 | R79: 0.7485594552 | S79: 2156 | T79: 0.5646935568 | U79: 2973 | V79: 0.7786799371 | W79: 3063 | X79: 0.8022524882 | Y79: 2710 | Z79: 0.7097957046 | AB79: 97 | AC79: 0.02540597171 | AE79: =cálculos2!O79 -> 0 | AF79: 0 | AG79: =cálculos2!P79 -> 0 | AH79: 0
A80: Metropolitana | B80: Vitória | C80: 3522 | D80: 2417 | E80: 2575 | F80: 1.065370294 | G80: 2673 | H80: 1.105916425 | I80: 2470 | J80: 1.02192801 | K80: 2459 | L80: 1.017376914 | M80: 2530 | N80: 1.046752172 | O80: 2655 | P80: 1.098469177 | Q80: 2553 | R80: 1.056268101 | S80: 1835 | T80: 0.7592056268 | U80: 2436 | V80: 1.007860985 | W80: 2730 | X80: 1.129499379 | Y80: 2281 | Z80: 0.943731899 | AB80: 119 | AC80: 0.04923458833 | AE80: =cálculos2!O80 -> 8 | AF80: 0.8 | AG80: =cálculos2!P80 -> 4 | AH80: 1
B82: Total Norte | C82: =SUMIF($A$3:$A$80,"Norte",C$3:C$80) -> 5700 | D82: =SUMIF($A$3:$A$80,"Norte",D$3:D$80) -> 4019 | E82: =SUMIF($A$3:$A$80,"Norte",E$3:E$80) -> 3458 | F82: =E82/D82 -> 0.8604130381 | G82: =SUMIF($A$3:$A$80,"Norte",G$3:G$80) -> 3474 | H82: =G82/D82 -> 0.8643941279 | I82: =SUMIF($A$3:$A$80,"Norte",I$3:I$80) -> 3335 | J82: =I82/D82 -> 0.8298084101 | K82: =SUMIF($A$3:$A$80,"Norte",K$3:K$80) -> 3287 | L82: =K82/D82 -> 0.8178651406 | M82: =SUMIF($A$3:$A$80,"Norte",M$3:M$80) -> 3310 | N82: =M82/D82 -> 0.8235879572 | O82: =SUMIF($A$3:$A$80,"Norte",O$3:O$80) -> 3484 | P82: =O82/D82 -> 0.866882309 | Q82: =SUMIF($A$3:$A$80,"Norte",Q$3:Q$80) -> 3345 | R82: =Q82/D82 -> 0.8322965912 | S82: =SUMIF($A$3:$A$80,"Norte",S$3:S$80) -> 2953 | T82: =S82/D82 -> 0.7347598905 | U82: =SUMIF($A$3:$A$80,"Norte",U$3:U$80) -> 3513 | V82: =U82/D82 -> 0.8740980343 | W82: =SUMIF($A$3:$A$80,"Norte",W$3:W$80) -> 3841 | X82: =W82/D82 -> 0.9557103757 | Y82: =SUMIF($A$3:$A$80,"Norte",Y$3:Y$80) -> 3300 | Z82: =Y82/D82 -> 0.8210997761 | AB82: =SUMIF($A$3:$A$80,"Norte",AB$3:AB$80) -> 89 | AC82: =AB82/D82 -> 0.02214481214 | AE82: =cálculos2!O82 -> 1 | AF82: =AE82*0.1 -> 0.1 | AG82: =cálculos2!P82 -> 1 | AH82: 0.25
B83: Total Central | C83: =SUMIF($A$3:$A$80,"Central",C$3:C$80) -> 6964 | D83: =SUMIF($A$3:$A$80,"Central",D$3:D$80) -> 4825 | E83: =SUMIF($A$3:$A$80,"Central",E$3:E$80) -> 4641 | F83: =E83/D83 -> 0.961865285 | G83: =SUMIF($A$3:$A$80,"Central",G$3:G$80) -> 4743 | H83: =G83/D83 -> 0.9830051813 | I83: =SUMIF($A$3:$A$80,"Central",I$3:I$80) -> 3978 | J83: =I83/D83 -> 0.8244559585 | K83: =SUMIF($A$3:$A$80,"Central",K$3:K$80) -> 3941 | L83: =K83/D83 -> 0.8167875648 | M83: =SUMIF($A$3:$A$80,"Central",M$3:M$80) -> 3874 | N83: =M83/D83 -> 0.8029015544 | O83: =SUMIF($A$3:$A$80,"Central",O$3:O$80) -> 4144 | P83: =O83/D83 -> 0.8588601036 | Q83: =SUMIF($A$3:$A$80,"Central",Q$3:Q$80) -> 4072 | R83: =Q83/D83 -> 0.8439378238 | S83: =SUMIF($A$3:$A$80,"Central",S$3:S$80) -> 3535 | T83: =S83/D83 -> 0.732642487 | U83: =SUMIF($A$3:$A$80,"Central",U$3:U$80) -> 4125 | V83: =U83/D83 -> 0.8549222798 | W83: =SUMIF($A$3:$A$80,"Central",W$3:W$80) -> 4495 | X83: =W83/D83 -> 0.9316062176 | Y83: =SUMIF($A$3:$A$80,"Central",Y$3:Y$80) -> 3970 | Z83: =Y83/D83 -> 0.8227979275 | AB83: =SUMIF($A$3:$A$80,"Central",AB$3:AB$80) -> 52 | AC83: =AB83/D83 -> 0.01077720207 | AE83: =cálculos2!O83 -> 1 | AF83: =AE83*0.1 -> 0.1 | AG83: =cálculos2!P83 -> 0 | AH83: 0
B84: Total Metropolitana | C84: =SUMIF($A$3:$A$80,"Metropolitana",C$3:C$80) -> 29213 | D84: =SUMIF($A$3:$A$80,"Metropolitana",D$3:D$80) -> 20159 | E84: =SUMIF($A$3:$A$80,"Metropolitana",E$3:E$80) -> 18873 | F84: =E84/D84 -> 0.9362071531 | G84: =SUMIF($A$3:$A$80,"Metropolitana",G$3:G$80) -> 19209 | H84: =G84/D84 -> 0.9528746466 | I84: =SUMIF($A$3:$A$80,"Metropolitana",I$3:I$80) -> 16544 | J84: =I84/D84 -> 0.8206756288 | K84: =SUMIF($A$3:$A$80,"Metropolitana",K$3:K$80) -> 16346 | L84: =K84/D84 -> 0.810853713 | M84: =SUMIF($A$3:$A$80,"Metropolitana",M$3:M$80) -> 16520 | N84: =M84/D84 -> 0.8194850935 | O84: =SUMIF($A$3:$A$80,"Metropolitana",O$3:O$80) -> 17718 | P84: =O84/D84 -> 0.8789126445 | Q84: =SUMIF($A$3:$A$80,"Metropolitana",Q$3:Q$80) -> 16991 | R84: =Q84/D84 -> 0.8428493477 | S84: =SUMIF($A$3:$A$80,"Metropolitana",S$3:S$80) -> 13330 | T84: =S84/D84 -> 0.6612431172 | U84: =SUMIF($A$3:$A$80,"Metropolitana",U$3:U$80) -> 17621 | V84: =U84/D84 -> 0.8741008979 | W84: =SUMIF($A$3:$A$80,"Metropolitana",W$3:W$80) -> 18711 | X84: =W84/D84 -> 0.9281710402 | Y84: =SUMIF($A$3:$A$80,"Metropolitana",Y$3:Y$80) -> 16062 | Z84: =Y84/D84 -> 0.7967657126 | AB84: =SUMIF($A$3:$A$80,"Metropolitana",AB$3:AB$80) -> 597 | AC84: 0.02961456421 | AE84: =cálculos2!O84 -> 1 | AF84: 0.1 | AG84: =cálculos2!P84 -> 0 | AH84: 0
B85: Total Sul | C85: =SUMIF($A$3:$A$80,"sul",C$3:C$80) -> 8123 | D85: =SUMIF($A$3:$A$80,"sul",D$3:D$80) -> 5560 | E85: =SUMIF($A$3:$A$80,"Sul",E$3:E$80) -> 5279 | F85: =E85/D85 -> 0.9494604317 | G85: =SUMIF($A$3:$A$80,"Sul",G$3:G$80) -> 5409 | H85: =G85/D85 -> 0.9728417266 | I85: =SUMIF($A$3:$A$80,"Sul",I$3:I$80) -> 4894 | J85: =I85/D85 -> 0.8802158273 | K85: =SUMIF($A$3:$A$80,"Sul",K$3:K$80) -> 4742 | L85: =K85/D85 -> 0.8528776978 | M85: =SUMIF($A$3:$A$80,"Sul",M$3:M$80) -> 4880 | N85: =M85/D85 -> 0.8776978417 | O85: =SUMIF($A$3:$A$80,"Sul",O$3:O$80) -> 5169 | P85: =O85/D85 -> 0.929676259 | Q85: =SUMIF($A$3:$A$80,"Sul",Q$3:Q$80) -> 5001 | R85: =Q85/D85 -> 0.8994604317 | S85: =SUMIF($A$3:$A$80,"Sul",S$3:S$80) -> 4124 | T85: =S85/D85 -> 0.7417266187 | U85: =SUMIF($A$3:$A$80,"Sul",U$3:U$80) -> 5144 | V85: =U85/D85 -> 0.9251798561 | W85: =SUMIF($A$3:$A$80,"Sul",W$3:W$80) -> 5456 | X85: =W85/D85 -> 0.981294964 | Y85: =SUMIF($A$3:$A$80,"Sul",Y$3:Y$80) -> 5043 | Z85: =Y85/D85 -> 0.9070143885 | AB85: =SUMIF($A$3:$A$80,"Sul",AB$3:AB$80) -> 148 | AC85: 0.02661870504 | AE85: =cálculos2!O85 -> 3 | AF85: 0.3 | AG85: =cálculos2!P85 -> 1 | AH85: 0.25
B86: Total Espírito Santo | C86: =SUM(C3:C80) -> 50000 | D86: =SUM(D3:D80) -> 34563 | E86: =SUM(E82:E85) -> 32251 | F86: =E86/D86 -> 0.9331076585 | G86: =SUM(G82:G85) -> 32835 | H86: =G86/D86 -> 0.9500043399 | I86: =SUM(I82:I85) -> 28751 | J86: =I86/D86 -> 0.8318433006 | K86: =SUM(K82:K85) -> 28316 | L86: =K86/D86 -> 0.8192575876 | M86: =SUM(M82:M85) -> 28584 | N86: =M86/D86 -> 0.8270115441 | O86: =SUM(O82:O85) -> 30515 | P86: =O86/D86 -> 0.882880537 | Q86: =SUM(Q82:Q85) -> 29409 | R86: =Q86/D86 -> 0.8508809999 | S86: =SUM(S82:S85) -> 23942 | T86: =S86/D86 -> 0.692706073 | U86: =SUM(U82:U85) -> 30403 | V86: =U86/D86 -> 0.8796400775 | W86: =SUM(W82:W85) -> 32503 | X86: =W86/D86 -> 0.9403986922 | Y86: =SUM(Y82:Y85) -> 28375 | Z86: =Y86/D86 -> 0.8209646153 | AB86: =SUM(AB82:AB85) -> 886 | AC86: 0.02563434887 | AE86: =cálculos2!O86 -> 1 | AF86: 0.1 | AG86: =cálculos2!P86 -> 0 | AH86: 0
E87: =COUNTIF(F3:F80,">=0,95") -> 32 | G87: =COUNTIF(H3:H80,">=0,9") -> 54 | I87: =COUNTIF(J3:J80,">=0,95") -> 18 | K87: =COUNTIF(L3:L80,">=0,95") -> 16 | M87: =COUNTIF(N3:N80,">=0,95") -> 17 | O87: =COUNTIF(P3:P80,">=0,9") -> 36 | Q87: =COUNTIF(R3:R80,">=0,95") -> 19 | S87: =COUNTIF(T3:T80,">=0,95") -> 7 | U87: =COUNTIF(V3:V80,">=0,95") -> 31 | W87: =COUNTIF(X3:X80,">=0,95") -> 47 | Y87: =COUNTIF(Z3:Z80,">=0,95") -> 30 | AB87: =COUNTIF(AC3:AC80,">=0,9") -> 0
B88: HOMOGENEIDADE ENTRE MUNICÍPIOS | E88: =E87/78 -> 0.4102564103 | G88: =G87/78 -> 0.6923076923 | I88: =I87/78 -> 0.2307692308 | K88: =K87/78 -> 0.2051282051 | M88: =M87/78 -> 0.2179487179 | O88: =O87/78 -> 0.4615384615 | Q88: =Q87/78 -> 0.2435897436 | S88: =S87/78 -> 0.08974358974 | U88: =U87/78 -> 0.3974358974 | W88: =W87/78 -> 0.6025641026 | Y88: =Y87/78 -> 0.3846153846 | AB88: =AB87/78 -> 0
A90: Fonte: Vacina e Confia, em 09 e 15 de Setembro de 2025.**<https://vacinaeconfia.saude.es.gov.br/>
A91: **Dados referente às doses aplicadas no período de Janeiro a Junho 2025
A92: Cobertura Calculada por município de residência da vacinação
A93: 1 População anual extraída do MS/SVS/DASIS - SINASC/DASIS/SVS/MS 2024 (hoje preliminares) referente ao período de Julho a Dezembro de 2024 e SINASC/DASIS/SVS/MS referente ao período de Janeiro e Junho de 2025.
A94: ² População proporcional extraída do MS/SVS/DASIS - SINASC/DASIS/SVS/MS 2024 (hoje preliminares) referente ao período de Julho e Agosto 2024 e Janeiro a Junho/ 2025.
A95: Sinasc, atualizado em 09/09/25.
A96: Método de Cálculo Simples
A97: Homogeineidade: O cálculo da Homogeineidade entre vacinas é feito de acordo com a pactuação estabelecida no Plano Plurianual (PPA) vigente no período 2024-2027.
A99: Observações:
A100: 1. Imunobiológicos que foram recebidos parcialmente pelo estado no mês de Agosto/2025, sendo distribuídos em quantidades reduzidas às regionais e municípios:
A101: SORO ANTIRRÁBICO HUMANO, IMUNOGLOBULINA ANTIRRÁBICA HUMANA, VACINA PNEUMO 13,VACINA PNEUMO 23.
A102: 2. Imunobiológicos indisponíveis no mês de Julho/2025, não sendo possível a distribuição às regionais e municípios:
A103: VACINA TRÍPLICE ACELULAR (DTPa) - CRIE e IMUNOGLOBULINA HUMANA ANTI-HEPATITE B - 100 UI

Sheet CV REF 1A e 4A - procedência
G1: D2 | K1: REFORÇOS 1 ANO | S1: REFORÇOS 4 ANOS
A2: Regional | B2: Município | C2: ¹População 1 ano anual | D2: ²População 1 ano proporcional | E2: ³População 4 anos anual | F2: ³População 4 anos proporcional | G2: DOSES APLICADAS D2 TRÍPLICE VIRAL | H2: COBERTURA D2 TRÍPLICE VIRAL | I2: DOSES APLICADAS D2 VARICELA | J2: COBERTURA D2 VARICELA | K2: DOSES APLICADAS REF PNEUMO | L2: COBERTURA REF PNEUMO | M2: DOSES APLICADAS REF MENINGO | N2: COBERTURA REF MENINGO | O2: DOSES APLICADAS REF POLIO | P2: COBERTURA REF POLIO | Q2: DOSES APLICADAS R1 TRÍPLICE BACTERIANA | R2: COBERTURA R1 TRÍPLICE BACTERIANA | S2: DOSES APLICADAS REF FEBRE AMARELA | T2: COBERTURA REF FEBRE AMARELA | U2: DOSES APLICADAS R2 TRÍPLICE BACTERIANA | V2: COBERTURA R2 TRÍPLICE BACTERIANA
A3: Metropolitana | B3: Afonso Cláudio | C3: 369 | D3: 253 | E3: 416 | F3: =(E3/12)*8 -> 277.3333333 | G3: 221 | H3: =G3/D3 -> 0.8735177866 | I3: 169 | J3: =I3/F3 -> 0.609375 | K3: 219 | L3: =K3/D3 -> 0.8656126482 | M3: 222 | N3: =M3/D3 -> 0.8774703557 | O3: 247 | P3: =O3/D3 -> 0.976284585 | Q3: 215 | R3: =Q3/D3 -> 0.8498023715 | S3: 212 | T3: =S3/F3 -> 0.7644230769 | U3: 205 | V3: =U3/F3 -> 0.7391826923
A4: Norte | B4: Água Doce do Norte | C4: 144 | D4: 103 | E4: 151 | F4: =(E4/12)*8 -> 100.6666667 | G4: 69 | H4: 0.6699029126 | I4: 35 | J4: 0.3476821192 | K4: 106 | L4: 1.029126214 | M4: 95 | N4: 0.9223300971 | O4: 77 | P4: 0.7475728155 | Q4: 78 | R4: 0.7572815534 | S4: 39 | T4: 0.3874172185 | U4: 52 | V4: 0.5165562914
A5: Central | B5: Águia Branca | C5: 155 | D5: 119 | E5: 129 | F5: 86 | G5: 108 | H5: 0.9075630252 | I5: 64 | J5: 0.7441860465 | K5: 99 | L5: 0.8319327731 | M5: 102 | N5: 0.8571428571 | O5: 105 | P5: 0.8823529412 | Q5: 100 | R5: 0.8403361345 | S5: 65 | T5: 0.7558139535 | U5: 63 | V5: 0.7325581395
A6: Sul | B6: Alegre | C6: 316 | D6: 218 | E6: 372 | F6: 248 | G6: 224 | H6: 1.027522936 | I6: 200 | J6: 0.8064516129 | K6: 206 | L6: 0.9449541284 | M6: 201 | N6: 0.9220183486 | O6: 239 | P6: 1.096330275 | Q6: 223 | R6: 1.02293578 | S6: 184 | T6: 0.7419354839 | U6: 193 | V6: 0.7782258065
A7: Sul | B7: Alfredo Chaves | C7: 123 | D7: 87 | E7: 138 | F7: 92 | G7: 86 | H7: 0.9885057471 | I7: 57 | J7: 0.6195652174 | K7: 77 | L7: 0.8850574713 | M7: 79 | N7: 0.908045977 | O7: 96 | P7: 1.103448276 | Q7: 89 | R7: 1.022988506 | S7: 74 | T7: 0.8043478261 | U7: 75 | V7: 0.8152173913
A8: Central | B8: Alto Rio Novo | C8: 104 | D8: 73 | E8: 102 | F8: 68 | G8: 69 | H8: 0.9452054795 | I8: 71 | J8: 1.044117647 | K8: 59 | L8: 0.8082191781 | M8: 61 | N8: 0.8356164384 | O8: 60 | P8: 0.8219178082 | Q8: 59 | R8: 0.8082191781 | S8: 58 | T8: 0.8529411765 | U8: 57 | V8: 0.8382352941
A9: Sul | B9: Anchieta | C9: 349 | D9: 234 | E9: 390 | F9: 260 | G9: 241 | H9: 1.02991453 | I9: 220 | J9: 0.8461538462 | K9: 220 | L9: 0.9401709402 | M9: 228 | N9: 0.9743589744 | O9: 259 | P9: 1.106837607 | Q9: 232 | R9: 0.9914529915 | S9: 265 | T9: 1.019230769 | U9: 261 | V9: 1.003846154
A10: Sul | B10: Apiacá | C10: 65 | D10: 38 | E10: 90 | F10: 60 | G10: 47 | H10: 1.236842105 | I10: 39 | J10: 0.65 | K10: 52 | L10: 1.368421053 | M10: 51 | N10: 1.342105263 | O10: 45 | P10: 1.184210526 | Q10: 47 | R10: 1.236842105 | S10: 12 | T10: 0.2 | U10: 47 | V10: 0.7833333333
A11: Metropolitana | B11: Aracruz | C11: 1395 | D11: 985 | E11: 1420 | F11: 946.6666667 | G11: 930 | H11: 0.9441624365 | I11: 976 | J11: 1.030985915 | K11: 887 | L11: 0.9005076142 | M11: 915 | N11: 0.9289340102 | O11: 980 | P11: 0.9949238579 | Q11: 868 | R11: 0.8812182741 | S11: 729 | T11: 0.7700704225 | U11: 869 | V11: 0.9179577465
A12: Sul | B12: Atilio Vivacqua | C12: 160 | D12: 103 | E12: 138 | F12: 92 | G12: 96 | H12: 0.932038835 | I12: 87 | J12: 0.9456521739 | K12: 93 | L12: 0.9029126214 | M12: 91 | N12: 0.8834951456 | O12: 92 | P12: 0.8932038835 | Q12: 84 | R12: 0.8155339806 | S12: 92 | T12: 1 | U12: 93 | V12: 1.010869565
A13: Central | B13: Baixo Guandu | C13: 370 | D13: 280 | E13: 427 | F13: 284.6666667 | G13: 242 | H13: 0.8642857143 | I13: 219 | J13: 0.7693208431 | K13: 259 | L13: 0.925 | M13: 245 | N13: 0.875 | O13: 255 | P13: 0.9107142857 | Q13: 244 | R13: 0.8714285714 | S13: 205 | T13: 0.7201405152 | U13: 216 | V13: 0.7587822014
A14: Norte | B14: Barra de São Francisco | C14: 641 | D14: 450 | E14: 589 | F14: 392.6666667 | G14: 345 | H14: 0.7666666667 | I14: 311 | J14: 0.7920203735 | K14: 362 | L14: 0.8044444444 | M14: 374 | N14: 0.8311111111 | O14: 339 | P14: 0.7533333333 | Q14: 318 | R14: 0.7066666667 | S14: 267 | T14: 0.6799660441 | U14: 288 | V14: 0.7334465195
A15: Norte | B15: Boa Esperança | C15: 211 | D15: 145 | E15: 200 | F15: 133.3333333 | G15: 119 | H15: 0.8206896552 | I15: 94 | J15: 0.705 | K15: 123 | L15: 0.8482758621 | M15: 123 | N15: 0.8482758621 | O15: 122 | P15: 0.8413793103 | Q15: 105 | R15: 0.724137931 | S15: 66 | T15: 0.495 | U15: 98 | V15: 0.735
A16: Sul | B16: Bom Jesus do Norte | C16: 75 | D16: 56 | E16: 146 | F16: 97.33333333 | G16: 64 | H16: 1.142857143 | I16: 80 | J16: 0.8219178082 | K16: 69 | L16: 1.232142857 | M16: 70 | N16: 1.25 | O16: 69 | P16: 1.232142857 | Q16: 62 | R16: 1.107142857 | S16: 54 | T16: 0.5547945205 | U16: 80 | V16: 0.8219178082
A17: Metropolitana | B17: Brejetuba | C17: 220 | D17: 146 | E17: 169 | F17: 112.6666667 | G17: 185 | H17: 1.267123288 | I17: 145 | J17: 1.286982249 | K17: 128 | L17: 0.8767123288 | M17: 131 | N17: 0.897260274 | O17: 131 | P17: 0.897260274 | Q17: 129 | R17: 0.8835616438 | S17: 133 | T17: 1.180473373 | U17: 130 | V17: 1.153846154
A18: Sul | B18: Cachoeiro de Itapemirim | C18: 2343 | D18: 1624 | E18: 2417 | F18: 1611.333333 | G18: 1406 | H18: 0.8657635468 | I18: 1103 | J18: 0.6845262722 | K18: 1432 | L18: 0.881773399 | M18: 1510 | N18: 0.9298029557 | O18: 1550 | P18: 0.9544334975 | Q18: 1403 | R18: 0.8639162562 | S18: 1188 | T18: 0.7372776169 | U18: 1368 | V18: 0.8489863467
A19: Metropolitana | B19: Cariacica | C19: 4772 | D19: 3335 | E19: 5005 | F19: 3336.666667 | G19: 2530 | H19: 0.7586206897 | I19: 2252 | J19: 0.6749250749 | K19: 2889 | L19: 0.8662668666 | M19: 2988 | N19: 0.895952024 | O19: 3016 | P19: 0.9043478261 | Q19: 2732 | R19: 0.8191904048 | S19: 2267 | T19: 0.6794205794 | U19: 2820 | V19: 0.8451548452
A20: Sul | B20: Castelo | C20: 417 | D20: 291 | E20: 399 | F20: 266 | G20: 286 | H20: 0.9828178694 | I20: 238 | J20: 0.8947368421 | K20: 267 | L20: 0.9175257732 | M20: 286 | N20: 0.9828178694 | O20: 297 | P20: 1.020618557 | Q20: 299 | R20: 1.027491409 | S20: 198 | T20: 0.7443609023 | U20: 233 | V20: 0.8759398496
A21: Central | B21: Colatina | C21: 1490 | D21: 1029 | E21: 1561 | F21: 1040.666667 | G21: 837 | H21: 0.8134110787 | I21: 688 | J21: 0.6611146701 | K21: 907 | L21: 0.8814382896 | M21: 930 | N21: 0.9037900875 | O21: 891 | P21: 0.8658892128 | Q21: 801 | R21: 0.778425656 | S21: 602 | T21: 0.5784753363 | U21: 689 | V21: 0.6620755926
A22: Norte | B22: Conceição da Barra | C22: 380 | D22: 282 | E22: 391 | F22: 260.6666667 | G22: 275 | H22: 0.975177305 | I22: 200 | J22: 0.7672634271 | K22: 272 | L22: 0.9645390071 | M22: 280 | N22: 0.9929078014 | O22: 284 | P22: 1.007092199 | Q22: 256 | R22: 0.9078014184 | S22: 270 | T22: 1.035805627 | U22: 264 | V22: 1.012787724
A23: Metropolitana | B23: Conceição do Castelo | C23: 179 | D23: 118 | E23: 144 | F23: 96 | G23: 116 | H23: 0.9830508475 | I23: 112 | J23: 1.166666667 | K23: 82 | L23: 0.6949152542 | M23: 88 | N23: 0.7457627119 | O23: 67 | P23: 0.5677966102 | Q23: 74 | R23: 0.6271186441 | S23: 92 | T23: 0.9583333333 | U23: 84 | V23: 0.875
A24: Sul | B24: Divino de São Lourenço | C24: 52 | D24: 36 | E24: 68 | F24: 45.33333333 | G24: 55 | H24: 1.527777778 | I24: 60 | J24: 1.323529412 | K24: 54 | L24: 1.5 | M24: 54 | N24: 1.5 | O24: 52 | P24: 1.444444444 | Q24: 51 | R24: 1.416666667 | S24: 30 | T24: 0.6617647059 | U24: 32 | V24: 0.7058823529
A25: Metropolitana | B25: Domingos Martins | C25: 424 | D25: 282 | E25: 411 | F25: 274 | G25: 280 | H25: 0.9929078014 | I25: 310 | J25: 1.131386861 | K25: 257 | L25: 0.9113475177 | M25: 264 | N25: 0.9361702128 | O25: 295 | P25: 1.046099291 | Q25: 272 | R25: 0.9645390071 | S25: 221 | T25: 0.8065693431 | U25: 256 | V25: 0.9343065693
A26: Sul | B26: Dores do Rio Preto | C26: 102 | D26: 71 | E26: 92 | F26: 61.33333333 | G26: 56 | H26: 0.7887323944 | I26: 60 | J26: 0.9782608696 | K26: 75 | L26: 1.056338028 | M26: 79 | N26: 1.112676056 | O26: 73 | P26: 1.028169014 | Q26: 68 | R26: 0.9577464789 | S26: 55 | T26: 0.8967391304 | U26: 53 | V26: 0.8641304348
A27: Norte | B27: Ecoporanga | C27: 246 | D27: 161 | E27: 283 | F27: 188.6666667 | G27: 143 | H27: 0.8881987578 | I27: 152 | J27: 0.8056537102 | K27: 168 | L27: 1.043478261 | M27: 168 | N27: 1.043478261 | O27: 160 | P27: 0.9937888199 | Q27: 139 | R27: 0.8633540373 | S27: 130 | T27: 0.6890459364 | U27: 146 | V27: 0.7738515901
A28: Metropolitana | B28: Fundão | C28: 222 | D28: 149 | E28: 218 | F28: 145.3333333 | G28: 134 | H28: 0.8993288591 | I28: 137 | J28: 0.9426605505 | K28: 141 | L28: 0.9463087248 | M28: 152 | N28: 1.020134228 | O28: 142 | P28: 0.9530201342 | Q28: 133 | R28: 0.8926174497 | S28: 116 | T28: 0.7981651376 | U28: 141 | V28: 0.9701834862
A29: Central | B29: Governador Lindenberg | C29: 131 | D29: 92 | E29: 142 | F29: 94.66666667 | G29: 89 | H29: 0.9673913043 | I29: 85 | J29: 0.8978873239 | K29: 78 | L29: 0.847826087 | M29: 84 | N29: 0.9130434783 | O29: 89 | P29: 0.9673913043 | Q29: 84 | R29: 0.9130434783 | S29: 102 | T29: 1.077464789 | U29: 94 | V29: 0.9929577465
A30: Sul | B30: Guaçuí | C30: 382 | D30: 243 | E30: 407 | F30: 271.3333333 | G30: 222 | H30: 0.9135802469 | I30: 211 | J30: 0.7776412776 | K30: 193 | L30: 0.7942386831 | M30: 227 | N30: 0.9341563786 | O30: 224 | P30: 0.9218106996 | Q30: 211 | R30: 0.8683127572 | S30: 241 | T30: 0.8882063882 | U30: 224 | V30: 0.8255528256
A31: Metropolitana | B31: Guarapari | C31: 1689 | D31: 1155 | E31: 1557 | F31: 1038 | G31: 806 | H31: 0.6978354978 | I31: 896 | J31: 0.8631984586 | K31: 1012 | L31: 0.8761904762 | M31: 1004 | N31: 0.8692640693 | O31: 1017 | P31: 0.8805194805 | Q31: 895 | R31: 0.7748917749 | S31: 671 | T31: 0.6464354528 | U31: 861 | V31: 0.8294797688
A32: Metropolitana | B32: Ibatiba | C32: 403 | D32: 277 | E32: 354 | F32: 236 | G32: 308 | H32: 1.111913357 | I32: 144 | J32: 0.6101694915 | K32: 247 | L32: 0.8916967509 | M32: 256 | N32: 0.9241877256 | O32: 282 | P32: 1.018050542 | Q32: 243 | R32: 0.8772563177 | S32: 178 | T32: 0.7542372881 | U32: 206 | V32: 0.8728813559
A33: Metropolitana | B33: Ibiraçu | C33: 132 | D33: 86 | E33: 160 | F33: 106.6666667 | G33: 97 | H33: 1.127906977 | I33: 105 | J33: 0.984375 | K33: 100 | L33: 1.162790698 | M33: 101 | N33: 1.174418605 | O33: 89 | P33: 1.034883721 | Q33: 89 | R33: 1.034883721 | S33: 75 | T33: 0.703125 | U33: 87 | V33: 0.815625
A34: Sul | B34: Ibitirama | C34: 148 | D34: 102 | E34: 148 | F34: 98.66666667 | G34: 94 | H34: 0.9215686275 | I34: 75 | J34: 0.7601351351 | K34: 96 | L34: 0.9411764706 | M34: 96 | N34: 0.9411764706 | O34: 101 | P34: 0.9901960784 | Q34: 81 | R34: 0.7941176471 | S34: 87 | T34: 0.8817567568 | U34: 79 | V34: 0.8006756757
A35: Sul | B35: Iconha | C35: 127 | D35: 81 | E35: 156 | F35: 104 | G35: 102 | H35: =G35/D35 -> 1.259259259 | I35: 125 | J35: =I35/F35 -> 1.201923077 | K35: 64 | L35: =K35/D35 -> 0.7901234568 | M35: 62 | N35: =M35/D35 -> 0.7654320988 | O35: 76 | P35: =O35/D35 -> 0.9382716049 | Q35: 71 | R35: =Q35/D35 -> 0.8765432099 | S35: 80 | T35: =S35/F35 -> 0.7692307692 | U35: 84 | V35: =U35/F35 -> 0.8076923077
A36: Sul | B36: Irupi | C36: 174 | D36: 127 | E36: 200 | F36: 133.3333333 | G36: 123 | H36: 0.968503937 | I36: 90 | J36: 0.675 | K36: 132 | L36: 1.039370079 | M36: 138 | N36: 1.086614173 | O36: 140 | P36: 1.102362205 | Q36: 143 | R36: 1.125984252 | S36: 94 | T36: 0.705 | U36: 94 | V36: 0.705
A37: Metropolitana | B37: Itaguaçu | C37: 129 | D37: 96 | E37: 154 | F37: 102.6666667 | G37: 93 | H37: 0.96875 | I37: 93 | J37: 0.9058441558 | K37: 96 | L37: 1 | M37: 104 | N37: 1.083333333 | O37: 103 | P37: 1.072916667 | Q37: 88 | R37: 0.9166666667 | S37: 73 | T37: 0.711038961 | U37: 78 | V37: 0.7597402597
A38: Sul | B38: Itapemirim | C38: 537 | D38: 356 | E38: 556 | F38: 370.6666667 | G38: 246 | H38: 0.691011236 | I38: 262 | J38: 0.7068345324 | K38: 286 | L38: 0.8033707865 | M38: 284 | N38: 0.797752809 | O38: 277 | P38: 0.7780898876 | Q38: 263 | R38: 0.7387640449 | S38: 203 | T38: 0.5476618705 | U38: 288 | V38: 0.7769784173
A39: Metropolitana | B39: Itarana | C39: 128 | D39: 95 | E39: 128 | F39: 85.33333333 | G39: 93 | H39: 0.9789473684 | I39: 65 | J39: 0.76171875 | K39: 89 | L39: 0.9368421053 | M39: 89 | N39: 0.9368421053 | O39: 97 | P39: 1.021052632 | Q39: 90 | R39: 0.9473684211 | S39: 58 | T39: 0.6796875 | U39: 57 | V39: 0.66796875
A40: Sul | B40: Iúna | C40: 391 | D40: 271 | E40: 410 | F40: 273.3333333 | G40: 295 | H40: 1.088560886 | I40: 198 | J40: 0.7243902439 | K40: 265 | L40: 0.9778597786 | M40: 280 | N40: 1.033210332 | O40: 322 | P40: 1.188191882 | Q40: 288 | R40: 1.062730627 | S40: 216 | T40: 0.7902439024 | U40: 260 | V40: 0.9512195122
A41: Norte | B41: Jaguaré | C41: 451 | D41: 329 | E41: 445 | F41: 296.6666667 | G41: 258 | H41: 0.7841945289 | I41: 244 | J41: 0.8224719101 | K41: 293 | L41: 0.8905775076 | M41: 306 | N41: 0.9300911854 | O41: 283 | P41: 0.8601823708 | Q41: 270 | R41: 0.820668693 | S41: 201 | T41: 0.6775280899 | U41: 247 | V41: 0.8325842697
A42: Sul | B42: Jerônimo Monteiro | C42: 116 | D42: 75 | E42: 157 | F42: 104.6666667 | G42: 99 | H42: 1.32 | I42: 79 | J42: 0.7547770701 | K42: 90 | L42: 1.2 | M42: 86 | N42: 1.146666667 | O42: 107 | P42: 1.426666667 | Q42: 93 | R42: 1.24 | S42: 59 | T42: 0.5636942675 | U42: 91 | V42: 0.8694267516
A43: Metropolitana | B43: João Neiva | C43: 153 | D43: 103 | E43: 142 | F43: 94.66666667 | G43: 90 | H43: 0.8737864078 | I43: 108 | J43: 1.14084507 | K43: 96 | L43: 0.932038835 | M43: 91 | N43: 0.8834951456 | O43: 92 | P43: 0.8932038835 | Q43: 92 | R43: 0.8932038835 | S43: 73 | T43: 0.7711267606 | U43: 101 | V43: 1.066901408
A44: Metropolitana | B44: Laranja da Terra | C44: 128 | D44: 96 | E44: 133 | F44: 88.66666667 | G44: 83 | H44: 0.8645833333 | I44: 93 | J44: 1.04887218 | K44: 71 | L44: 0.7395833333 | M44: 74 | N44: 0.7708333333 | O44: 71 | P44: 0.7395833333 | Q44: 64 | R44: 0.6666666667 | S44: 63 | T44: 0.7105263158 | U44: 72 | V44: 0.8120300752
A45: Central | B45: Linhares | C45: 2601 | D45: 1762 | E45: 2452 | F45: 1634.666667 | G45: 1317 | H45: 0.747446084 | I45: 1093 | J45: 0.6686378467 | K45: 1417 | L45: 0.804199773 | M45: 1533 | N45: 0.8700340522 | O45: 1433 | P45: 0.8132803632 | Q45: 1395 | R45: 0.7917139614 | S45: 971 | T45: 0.594004894 | U45: 1181 | V45: 0.7224714519
A46: Central | B46: Mantenópolis | C46: 128 | D46: 99 | E46: 166 | F46: 110.6666667 | G46: 101 | H46: 1.02020202 | I46: 69 | J46: 0.6234939759 | K46: 99 | L46: 1 | M46: 108 | N46: 1.090909091 | O46: 95 | P46: 0.9595959596 | Q46: 86 | R46: 0.8686868687 | S46: 111 | T46: 1.003012048 | U46: 113 | V46: 1.021084337
A47: Sul | B47: Marataízes | C47: 550 | D47: 366 | E47: 579 | F47: 386 | G47: 297 | H47: 0.8114754098 | I47: 351 | J47: 0.9093264249 | K47: 373 | L47: 1.019125683 | M47: 401 | N47: 1.095628415 | O47: 318 | P47: 0.868852459 | Q47: 341 | R47: 0.9316939891 | S47: 227 | T47: 0.5880829016 | U47: 348 | V47: 0.9015544041
A48: Metropolitana | B48: Marechal Floriano | C48: 201 | D48: 144 | E48: 236 | F48: 157.3333333 | G48: 150 | H48: 1.041666667 | I48: 149 | J48: 0.9470338983 | K48: 135 | L48: 0.9375 | M48: 133 | N48: 0.9236111111 | O48: 152 | P48: 1.055555556 | Q48: 143 | R48: 0.9930555556 | S48: 105 | T48: 0.6673728814 | U48: 144 | V48: 0.9152542373
A49: Central | B49: Marilândia | C49: 164 | D49: 115 | E49: 164 | F49: 109.3333333 | G49: 101 | H49: 0.8782608696 | I49: 123 | J49: 1.125 | K49: 84 | L49: 0.7304347826 | M49: 82 | N49: 0.7130434783 | O49: 94 | P49: 0.8173913043 | Q49: 88 | R49: 0.7652173913 | S49: 95 | T49: 0.868902439 | U49: 88 | V49: 0.8048780488
A50: Sul | B50: Mimoso do Sul | C50: 296 | D50: 210 | E50: 276 | F50: 184 | G50: 147 | H50: 0.7 | I50: 98 | J50: 0.5326086957 | K50: 142 | L50: 0.6761904762 | M50: 133 | N50: 0.6333333333 | O50: 150 | P50: 0.7142857143 | Q50: 143 | R50: 0.680952381 | S50: 119 | T50: 0.6467391304 | U50: 132 | V50: 0.7173913043
A51: Norte | B51: Montanha | C51: 237 | D51: 169 | E51: 278 | F51: 185.3333333 | G51: 180 | H51: 1.065088757 | I51: 180 | J51: 0.9712230216 | K51: 185 | L51: 1.094674556 | M51: 189 | N51: 1.118343195 | O51: 168 | P51: 0.9940828402 | Q51: 165 | R51: 0.9763313609 | S51: 118 | T51: 0.6366906475 | U51: 123 | V51: 0.6636690647
A52: Norte | B52: Mucurici | C52: 62 | D52: 41 | E52: 97 | F52: 64.66666667 | G52: 48 | H52: 1.170731707 | I52: 34 | J52: 0.5257731959 | K52: 42 | L52: 1.024390244 | M52: 33 | N52: 0.8048780488 | O52: 52 | P52: 1.268292683 | Q52: 47 | R52: 1.146341463 | S52: 38 | T52: 0.587628866 | U52: 36 | V52: 0.5567010309
A53: Sul | B53: Muniz Freire | C53: 230 | D53: 160 | E53: 275 | F53: 183.3333333 | G53: 272 | H53: 1.7 | I53: 8 | J53: 0.04363636364 | K53: 155 | L53: 0.96875 | M53: 150 | N53: 0.9375 | O53: 160 | P53: 1 | Q53: 158 | R53: 0.9875 | S53: 120 | T53: 0.6545454545 | U53: 138 | V53: 0.7527272727
A54: Sul | B54: Muqui | C54: 158 | D54: 106 | E54: 152 | F54: 101.3333333 | G54: 104 | H54: 0.9811320755 | I54: 125 | J54: 1.233552632 | K54: 101 | L54: 0.9528301887 | M54: 103 | N54: 0.9716981132 | O54: 110 | P54: 1.037735849 | Q54: 103 | R54: 0.9716981132 | S54: 110 | T54: 1.085526316 | U54: 116 | V54: 1.144736842
A55: Norte | B55: Nova Venécia | C55: 669 | D55: 453 | E55: 656 | F55: 437.3333333 | G55: 401 | H55: 0.885209713 | I55: 368 | J55: 0.8414634146 | K55: 431 | L55: 0.9514348786 | M55: 444 | N55: 0.9801324503 | O55: 444 | P55: 0.9801324503 | Q55: 401 | R55: 0.885209713 | S55: 261 | T55: 0.5967987805 | U55: 343 | V55: 0.7842987805
A56: Central | B56: Pancas | C56: 217 | D56: 147 | E56: 244 | F56: 162.6666667 | G56: 151 | H56: 1.027210884 | I56: 174 | J56: 1.069672131 | K56: 122 | L56: 0.8299319728 | M56: 130 | N56: 0.8843537415 | O56: 157 | P56: 1.068027211 | Q56: 148 | R56: 1.006802721 | S56: 102 | T56: 0.6270491803 | U56: 124 | V56: 0.762295082
A57: Norte | B57: Pedro Canário | C57: 343 | D57: 235 | E57: 338 | F57: 225.3333333 | G57: 224 | H57: 0.9531914894 | I57: 228 | J57: 1.01183432 | K57: 241 | L57: 1.025531915 | M57: 233 | N57: 0.9914893617 | O57: 233 | P57: 0.9914893617 | Q57: 218 | R57: 0.9276595745 | S57: 178 | T57: 0.7899408284 | U57: 219 | V57: 0.9718934911
A58: Norte | B58: Pinheiros | C58: 334 | D58: 247 | E58: 383 | F58: 255.3333333 | G58: 188 | H58: 0.7611336032 | I58: 159 | J58: 0.6227154047 | K58: 177 | L58: 0.7165991903 | M58: 181 | N58: 0.7327935223 | O58: 182 | P58: 0.7368421053 | Q58: 174 | R58: 0.7044534413 | S58: 140 | T58: 0.5483028721 | U58: 171 | V58: 0.6697127937
A59: Sul | B59: Piúma | C59: 315 | D59: 210 | E59: 311 | F59: 207.3333333 | G59: 177 | H59: 0.8428571429 | I59: 168 | J59: 0.8102893891 | K59: 196 | L59: 0.9333333333 | M59: 198 | N59: 0.9428571429 | O59: 177 | P59: 0.8428571429 | Q59: 163 | R59: 0.7761904762 | S59: 174 | T59: 0.8392282958 | U59: 210 | V59: 1.012861736
A60: Norte | B60: Ponto Belo | C60: 74 | D60: 49 | E60: 85 | F60: 56.66666667 | G60: 54 | H60: 1.102040816 | I60: 65 | J60: 1.147058824 | K60: 56 | L60: 1.142857143 | M60: 55 | N60: 1.12244898 | O60: 49 | P60: 1 | Q60: 51 | R60: 1.040816327 | S60: 58 | T60: 1.023529412 | U60: 60 | V60: 1.058823529
A61: Sul | B61: Presidente Kennedy | C61: 213 | D61: 152 | E61: 239 | F61: 159.3333333 | G61: 127 | H61: 0.8355263158 | I61: 106 | J61: 0.6652719665 | K61: 139 | L61: 0.9144736842 | M61: 138 | N61: 0.9078947368 | O61: 140 | P61: 0.9210526316 | Q61: 128 | R61: 0.8421052632 | S61: 118 | T61: 0.7405857741 | U61: 118 | V61: 0.7405857741
A62: Central | B62: Rio Bananal | C62: 298 | D62: 198 | E62: 229 | F62: 152.6666667 | G62: 262 | H62: 1.323232323 | I62: 110 | J62: 0.7205240175 | K62: 176 | L62: 0.8888888889 | M62: 177 | N62: 0.8939393939 | O62: 203 | P62: 1.025252525 | Q62: 197 | R62: 0.9949494949 | S62: 173 | T62: 1.133187773 | U62: 176 | V62: 1.152838428
A63: Sul | B63: Rio Novo do Sul | C63: 112 | D63: 84 | E63: 144 | F63: 96 | G63: 65 | H63: 0.7738095238 | I63: 87 | J63: 0.90625 | K63: 70 | L63: 0.8333333333 | M63: 71 | N63: 0.8452380952 | O63: 70 | P63: 0.8333333333 | Q63: 61 | R63: 0.7261904762 | S63: 47 | T63: 0.4895833333 | U63: 59 | V63: 0.6145833333
A64: Metropolitana | B64: Santa Leopoldina | C64: 88 | D64: 66 | E64: 155 | F64: 103.3333333 | G64: 65 | H64: 0.9848484848 | I64: 68 | J64: 0.6580645161 | K64: 58 | L64: 0.8787878788 | M64: 59 | N64: 0.8939393939 | O64: 62 | P64: 0.9393939394 | Q64: 60 | R64: 0.9090909091 | S64: 64 | T64: 0.6193548387 | U64: 73 | V64: 0.7064516129
A65: Metropolitana | B65: Santa Maria de Jetibá | C65: 710 | D65: 467 | E65: 685 | F65: 456.6666667 | G65: 435 | H65: 0.9314775161 | I65: 314 | J65: 0.6875912409 | K65: 403 | L65: 0.8629550321 | M65: 404 | N65: 0.8650963597 | O65: 402 | P65: 0.8608137045 | Q65: 384 | R65: 0.8222698073 | S65: 299 | T65: 0.6547445255 | U65: 395 | V65: 0.8649635036
A66: Metropolitana | B66: Santa Teresa | C66: 286 | D66: 197 | E66: 260 | F66: 173.3333333 | G66: 170 | H66: 0.8629441624 | I66: 199 | J66: 1.148076923 | K66: 185 | L66: 0.9390862944 | M66: 190 | N66: 0.9644670051 | O66: 183 | P66: 0.9289340102 | Q66: 165 | R66: 0.8375634518 | S66: 123 | T66: 0.7096153846 | U66: 138 | V66: 0.7961538462
A67: Central | B67: São Domingos do Norte | C67: 105 | D67: 68 | E67: 117 | F67: 78 | G67: 70 | H67: =G67/D67 -> 1.029411765 | I67: 48 | J67: =I67/F67 -> 0.6153846154 | K67: 76 | L67: =K67/D67 -> 1.117647059 | M67: 77 | N67: =M67/D67 -> 1.132352941 | O67: 82 | P67: =O67/D67 -> 1.205882353 | Q67: 70 | R67: =Q67/D67 -> 1.029411765 | S67: 47 | T67: =S67/F67 -> 0.6025641026 | U67: 50 | V67: =U67/F67 -> 0.641025641
A68: Central | B68: São Gabriel da Palha | C68: 400 | D68: 287 | E68: 426 | F68: =(E68/12)*8 -> 284 | G68: 273 | H68: 0.9512195122 | I68: 227 | J68: 0.7992957746 | K68: 275 | L68: 0.9581881533 | M68: 282 | N68: 0.9825783972 | O68: 240 | P68: 0.8362369338 | Q68: 249 | R68: 0.8675958188 | S68: 195 | T68: 0.6866197183 | U68: 190 | V68: 0.6690140845
A69: Sul | B69: São José do Calçado | C69: 95 | D69: 63 | E69: 150 | F69: 100 | G69: 63 | H69: 1 | I69: 69 | J69: 0.69 | K69: 63 | L69: 1 | M69: 65 | N69: 1.031746032 | O69: 67 | P69: 1.063492063 | Q69: 62 | R69: 0.9841269841 | S69: 60 | T69: 0.6 | U69: 81 | V69: 0.81
A70: Norte | B70: São Mateus | C70: 1798 | D70: 1272 | E70: 1766 | F70: 1177.333333 | G70: 916 | H70: 0.7201257862 | I70: 722 | J70: 0.6132502831 | K70: 1145 | L70: 0.9001572327 | M70: 1119 | N70: 0.8797169811 | O70: 1095 | P70: 0.8608490566 | Q70: 1001 | R70: 0.7869496855 | S70: 692 | T70: 0.5877689694 | U70: 834 | V70: 0.708380521
A71: Central | B71: São Roque do Canaã | C71: 130 | D71: 95 | E71: 100 | F71: 66.66666667 | G71: 80 | H71: 0.8421052632 | I71: 77 | J71: 1.155 | K71: 71 | L71: 0.7473684211 | M71: 76 | N71: 0.8 | O71: 69 | P71: 0.7263157895 | Q71: 68 | R71: 0.7157894737 | S71: 55 | T71: 0.825 | U71: 62 | V71: 0.93
A72: Metropolitana | B72: Serra | C72: 7354 | D72: 5063 | E72: 7550 | F72: 5033.333333 | G72: 3627 | H72: 0.7163736915 | I72: 3392 | J72: 0.6739072848 | K72: 4375 | L72: 0.8641121865 | M72: 4397 | N72: 0.8684574363 | O72: 4134 | P72: 0.8165119494 | Q72: 3833 | R72: 0.757061031 | S72: 3476 | T72: 0.6905960265 | U72: 4043 | V72: 0.8032450331
A73: Central | B73: Sooretama | C73: 429 | D73: 287 | E73: 415 | F73: 276.6666667 | G73: 255 | H73: 0.8885017422 | I73: 193 | J73: 0.6975903614 | K73: 273 | L73: 0.9512195122 | M73: 277 | N73: 0.9651567944 | O73: 293 | P73: 1.020905923 | Q73: 252 | R73: 0.8780487805 | S73: 183 | T73: 0.6614457831 | U73: 223 | V73: 0.8060240964
A74: Sul | B74: Vargem Alta | C74: 277 | D74: 196 | E74: 278 | F74: 185.3333333 | G74: 164 | H74: 0.8367346939 | I74: 122 | J74: 0.6582733813 | K74: 165 | L74: 0.8418367347 | M74: 161 | N74: 0.8214285714 | O74: 172 | P74: 0.8775510204 | Q74: 158 | R74: 0.806122449 | S74: 103 | T74: 0.5557553957 | U74: 142 | V74: 0.7661870504
A75: Metropolitana | B75: Venda Nova do Imigrante | C75: 335 | D75: 216 | E75: 328 | F75: 218.6666667 | G75: 264 | H75: 1.222222222 | I75: 100 | J75: 0.4573170732 | K75: 239 | L75: 1.106481481 | M75: 199 | N75: 0.9212962963 | O75: 248 | P75: 1.148148148 | Q75: 234 | R75: 1.083333333 | S75: 170 | T75: 0.7774390244 | U75: 186 | V75: 0.8506097561
A76: Metropolitana | B76: Viana | C76: 886 | D76: 595 | E76: 1064 | F76: 709.3333333 | G76: 476 | H76: 0.8 | I76: 464 | J76: 0.6541353383 | K76: 635 | L76: 1.067226891 | M76: 635 | N76: 1.067226891 | O76: 542 | P76: 0.9109243697 | Q76: 546 | R76: 0.9176470588 | S76: 432 | T76: 0.6090225564 | U76: 646 | V76: 0.9107142857
A77: Norte | B77: Vila Pavão | C77: 110 | D77: 83 | E77: 127 | F77: 84.66666667 | G77: 70 | H77: 0.843373494 | I77: 49 | J77: 0.5787401575 | K77: 74 | L77: 0.8915662651 | M77: 78 | N77: 0.9397590361 | O77: 75 | P77: 0.9036144578 | Q77: 69 | R77: 0.8313253012 | S77: 47 | T77: 0.5551181102 | U77: 58 | V77: 0.6850393701
A78: Central | B78: Vila Valério | C78: 242 | D78: 174 | E78: 169 | F78: 112.6666667 | G78: 184 | H78: 1.057471264 | I78: 142 | J78: 1.26035503 | K78: 146 | L78: 0.8390804598 | M78: 150 | N78: 0.8620689655 | O78: 161 | P78: 0.9252873563 | Q78: 159 | R78: 0.9137931034 | S78: 103 | T78: 0.9142011834 | U78: 122 | V78: 1.082840237
A79: Metropolitana | B79: Vila Velha | C79: 5488 | D79: 3818 | E79: 5675 | F79: 3783.333333 | G79: 2681 | H79: 0.7022001048 | I79: 2939 | J79: 0.7768281938 | K79: 3060 | L79: 0.8014667365 | M79: 2935 | N79: 0.7687270822 | O79: 3042 | P79: 0.7967522263 | Q79: 2777 | R79: 0.7273441592 | S79: 2269 | T79: 0.5997356828 | U79: 2650 | V79: 0.7004405286
A80: Metropolitana | B80: Vitória | C80: 3522 | D80: 2417 | E80: 3833 | F80: 2555.333333 | G80: 2357 | H80: 0.9751758378 | I80: 1869 | J80: 0.7314114271 | K80: 2499 | L80: 1.033926355 | M80: 2092 | N80: 0.8655357882 | O80: 2622 | P80: 1.084815887 | Q80: 2386 | R80: 0.9871741829 | S80: 1397 | T80: 0.546699713 | U80: 2074 | V80: 0.8116357944
B82: Total Norte | C82: =SUMIF($A$3:$A$80,"Norte",C$3:C$80) -> 5700 | D82: =SUMIF($A$3:$A$80,"Norte",D$3:D$80) -> 4019 | E82: =SUMIF($A$3:$A$80,"Norte",E$3:E$80) -> 5789 | F82: =SUMIF($A$3:$A$80,"Norte",F$3:F$80) -> 3859.333333 | G82: =SUMIF($A$3:$A$80,"Norte",G$3:G$80) -> 3290 | H82: =G82/D82 -> 0.8186115949 | I82: =SUMIF($A$3:$A$80,"Norte",I$3:I$80) -> 2841 | J82: =I82/F82 -> 0.7361375022 | K82: =SUMIF($A$3:$A$80,"Norte",K$3:K$80) -> 3675 | L82: =K82/D82 -> 0.9144065688 | M82: =SUMIF($A$3:$A$80,"Norte",M$3:M$80) -> 3678 | N82: =M82/D82 -> 0.9151530231 | O82: =SUMIF($A$3:$A$80,"Norte",O$3:O$80) -> 3563 | P82: =O82/D82 -> 0.88653894 | Q82: =SUMIF($A$3:$A$80,"Norte",Q$3:Q$80) -> 3292 | R82: =Q82/D82 -> 0.8191092312 | S82: =SUMIF($A$3:$A$80,"Norte",S$3:S$80) -> 2505 | T82: =S82/F82 -> 0.6490758335 | U82: =SUMIF($A$3:$A$80,"Norte",U$3:U$80) -> 2939 | V82: =U82/F82 -> 0.7615304889
B83: Total Central | C83: =SUMIF($A$3:$A$80,"Central",C$3:C$80) -> 6964 | D83: =SUMIF($A$3:$A$80,"Central",D$3:D$80) -> 4825 | E83: =SUMIF($A$3:$A$80,"Central",E$3:E$80) -> 6843 | F83: =SUMIF($A$3:$A$80,"Central",F$3:F$80) -> 4562 | G83: =SUMIF($A$3:$A$80,"Central",G$3:G$80) -> 4139 | H83: =G83/D83 -> 0.8578238342 | I83: =SUMIF($A$3:$A$80,"Central",I$3:I$80) -> 3383 | J83: =I83/F83 -> 0.741560719 | K83: =SUMIF($A$3:$A$80,"Central",K$3:K$80) -> 4141 | L83: =K83/D83 -> 0.858238342 | M83: =SUMIF($A$3:$A$80,"Central",M$3:M$80) -> 4314 | N83: =M83/D83 -> 0.8940932642 | O83: =SUMIF($A$3:$A$80,"Central",O$3:O$80) -> 4227 | P83: =O83/D83 -> 0.8760621762 | Q83: =SUMIF($A$3:$A$80,"Central",Q$3:Q$80) -> 4000 | R83: =Q83/D83 -> 0.829015544 | S83: =SUMIF($A$3:$A$80,"Central",S$3:S$80) -> 3067 | T83: =S83/F83 -> 0.672292854 | U83: =SUMIF($A$3:$A$80,"Central",U$3:U$80) -> 3448 | V83: =U83/F83 -> 0.7558088558
B84: Total Metropolitana | C84: =SUMIF($A$3:$A$80,"Metropolitana",C$3:C$80) -> 29213 | D84: =SUMIF($A$3:$A$80,"Metropolitana",D$3:D$80) -> 20159 | E84: =SUMIF($A$3:$A$80,"Metropolitana",E$3:E$80) -> 30197 | F84: =SUMIF($A$3:$A$80,"Metropolitana",F$3:F$80) -> 20131.33333 | G84: =SUMIF($A$3:$A$80,"Metropolitana",G$3:G$80) -> 16191 | H84: =G84/D84 -> 0.8031648395 | I84: =SUMIF($A$3:$A$80,"Metropolitana",I$3:I$80) -> 15099 | J84: =I84/F84 -> 0.7500248369 | K84: =SUMIF($A$3:$A$80,"Metropolitana",K$3:K$80) -> 17903 | L84: =K84/D84 -> 0.888089687 | M84: =SUMIF($A$3:$A$80,"Metropolitana",M$3:M$80) -> 17523 | N84: =M84/D84 -> 0.8692395456 | O84: =SUMIF($A$3:$A$80,"Metropolitana",O$3:O$80) -> 18016 | P84: =O84/D84 -> 0.8936951238 | Q84: =SUMIF($A$3:$A$80,"Metropolitana",Q$3:Q$80) -> 16512 | R84: =Q84/D84 -> 0.8190882484 | S84: =SUMIF($A$3:$A$80,"Metropolitana",S$3:S$80) -> 13296 | T84: =S84/F84 -> 0.6604629599 | U84: =SUMIF($A$3:$A$80,"Metropolitana",U$3:U$80) -> 16316 | V84: =U84/F84 -> 0.810477862
B85: Total Sul | C85: =SUMIF($A$3:$A$80,"sul",C$3:C$80) -> 8123 | D85: =SUMIF($A$3:$A$80,"sul",D$3:D$80) -> 5560 | E85: =SUMIF($A$3:$A$80,"sul",E$3:E$80) -> 8688 | F85: =SUMIF($A$3:$A$80,"sul",F$3:F$80) -> 5792 | G85: =SUMIF($A$3:$A$80,"sul",G$3:G$80) -> 5158 | H85: =G85/D85 -> 0.9276978417 | I85: =SUMIF($A$3:$A$80,"sul",I$3:I$80) -> 4318 | J85: =I85/F85 -> 0.7455110497 | K85: =SUMIF($A$3:$A$80,"Sul",K$3:K$80) -> 5075 | L85: =K85/D85 -> 0.9127697842 | M85: =SUMIF($A$3:$A$80,"Sul",M$3:M$80) -> 5242 | N85: =M85/D85 -> 0.9428057554 | O85: =SUMIF($A$3:$A$80,"Sul",O$3:O$80) -> 5383 | P85: =O85/D85 -> 0.9681654676 | Q85: =SUMIF($A$3:$A$80,"Sul",Q$3:Q$80) -> 5025 | R85: =Q85/D85 -> 0.9037769784 | S85: =SUMIF($A$3:$A$80,"Sul",S$3:S$80) -> 4210 | T85: =S85/F85 -> 0.7268646409 | U85: =SUMIF($A$3:$A$80,"Sul",U$3:U$80) -> 4899 | V85: =U85/F85 -> 0.8458218232
B86: Total Espírito Santo | C86: =SUM(C3:C80) -> 50000 | D86: =SUM(D3:D80) -> 34563 | E86: =SUM(E3:E80) -> 51517 | F86: =SUM(F3:F80) -> 34344.66667 | G86: =SUM(G3:G80) -> 28778 | H86: =G86/D86 -> 0.8326244828 | I86: =SUM(I3:I80) -> 25641 | J86: =I86/F86 -> 0.7465787992 | K86: =SUM(K3:K80) -> 30794 | L86: =K86/D86 -> 0.8909527529 | M86: =SUM(M3:M80) -> 30757 | N86: =M86/D86 -> 0.889882244 | O86: =SUM(O3:O80) -> 31189 | P86: =O86/D86 -> 0.902381159 | Q86: =SUM(Q3:Q80) -> 28829 | R86: =Q86/D86 -> 0.8341000492 | S86: =SUM(S3:S80) -> 23078 | T86: =S86/F86 -> 0.6719529476 | U86: =SUM(U3:U80) -> 27602 | V86: =U86/F86 -> 0.8036764563
A90: Fonte: Vacina e Confia, em 9 e 12 de Setembro de 2025.**<https://vacinaeconfia.saude.es.gov.br/>
A91: **Dados referente às doses aplicadas no período de Janeiro a Junho 2025
A92: Cobertura Calculada por município de procedência/ocorrência da vacinação
A93: 1 População anual extraída do MS/SVS/DASIS - SINASC/DASIS/SVS/MS 2024 (hoje preliminares) referente ao período de Julho a Dezembro de 2024 e SINASC/DASIS/SVS/MS referente ao período de Janeiro e Junho de 2025.
A94: ² População proporcional extraída do MS/SVS/DASIS - SINASC/DASIS/SVS/MS 2024 (hoje preliminares) referente ao período de Julho e Agosto de 2024 e Janeiro a Junho de 2025.
A95: Sinasc, atualizado em 09/09/25.
A96: Método de Cálculo Simples
A97: Homogeineidade: O cálculo da Homogeineidade entre vacinas é feito de acordo com a pactuação estabelecida no Plano Plurianual (PPA) vigente no período 2024-2027.
A99: Observações:
A100: 1. Imunobiológicos que foram recebidos parcialmente pelo estado no mês de Agosto/2025, sendo distribuídos em quantidades reduzidas às regionais e municípios:
A101: SORO ANTIRRÁBICO HUMANO, IMUNOGLOBULINA ANTIRRÁBICA HUMANA, VACINA PNEUMO 13,VACINA PNEUMO 23.
A102: 2. Imunobiológicos indisponíveis no mês de Julho/2025, não sendo possível a distribuição às regionais e municípios:
A103: VACINA TRÍPLICE ACELULAR (DTPa) - CRIE e IMUNOGLOBULINA HUMANA ANTI-HEPATITE B - 100 UI

Sheet CV REF 1A e 4A - residência
G1: D2 | K1: REFORÇOS 1 ANO | S1: REFORÇOS 4 ANOS
A2: Regional | B2: Município | C2: ¹População 1 ano anual | D2: ²População 1 ano proporcional | E2: ³População 4 anos anual | F2: ³População 4 anos proporcional | G2: DOSES APLICADAS D2 TRÍPLICE VIRAL | H2: COBERTURA D2 TRÍPLICE VIRAL | I2: DOSES APLICADAS D2 VARICELA | J2: COBERTURA D2 VARICELA | K2: DOSES APLICADAS REF PNEUMO | L2: COBERTURA REF PNEUMO | M2: DOSES APLICADAS REF MENINGO | N2: COBERTURA REF MENINGO | O2: DOSES APLICADAS REF POLIO | P2: COBERTURA REF POLIO | Q2: DOSES APLICADAS R1 TRÍPLICE BACTERIANA | R2: COBERTURA R1 TRÍPLICE BACTERIANA | S2: DOSES APLICADAS REF FEBRE AMARELA | T2: COBERTURA REF FEBRE AMARELA | U2: DOSES APLICADAS R2 TRÍPLICE BACTERIANA | V2: COBERTURA R2 TRÍPLICE BACTERIANA
A3: Metropolitana | B3: Afonso Cláudio | C3: 369 | D3: 253 | E3: 416 | F3: =(E3/12)*8 -> 277.3333333 | G3: 255 | H3: =G3/D3 -> 1.007905138 | I3: 177 | J3: =I3/F3 -> 0.6382211538 | K3: 234 | L3: =K3/D3 -> 0.9249011858 | M3: 235 | N3: =M3/D3 -> 0.9288537549 | O3: 268 | P3: =O3/D3 -> 1.059288538 | Q3: 241 | R3: =Q3/D3 -> 0.95256917 | S3: 217 | T3: =S3/F3 -> 0.7824519231 | U3: 225 | V3: =U3/F3 -> 0.8112980769
A4: Norte | B4: Água Doce do Norte | C4: 144 | D4: 103 | E4: 151 | F4: =(E4/12)*8 -> 100.6666667 | G4: 82 | H4: 0.7961165049 | I4: 47 | J4: 0.4668874172 | K4: 109 | L4: 1.058252427 | M4: 100 | N4: 0.9708737864 | O4: 88 | P4: 0.854368932 | Q4: 88 | R4: 0.854368932 | S4: 47 | T4: 0.4668874172 | U4: 58 | V4: 0.5761589404
A5: Central | B5: Águia Branca | C5: 155 | D5: 119 | E5: 129 | F5: 86 | G5: 104 | H5: 0.8739495798 | I5: 62 | J5: 0.7209302326 | K5: 101 | L5: 0.8487394958 | M5: 104 | N5: 0.8739495798 | O5: 106 | P5: 0.8907563025 | Q5: 103 | R5: 0.8655462185 | S5: 61 | T5: 0.7093023256 | U5: 65 | V5: 0.7558139535
A6: Sul | B6: Alegre | C6: 316 | D6: 218 | E6: 372 | F6: 248 | G6: 223 | H6: 1.02293578 | I6: 190 | J6: 0.7661290323 | K6: 202 | L6: 0.9266055046 | M6: 194 | N6: 0.8899082569 | O6: 229 | P6: 1.050458716 | Q6: 216 | R6: 0.9908256881 | S6: 180 | T6: 0.7258064516 | U6: 195 | V6: 0.7862903226
A7: Sul | B7: Alfredo Chaves | C7: 123 | D7: 87 | E7: 138 | F7: 92 | G7: 80 | H7: 0.9195402299 | I7: 52 | J7: 0.5652173913 | K7: 80 | L7: 0.9195402299 | M7: 75 | N7: 0.8620689655 | O7: 92 | P7: 1.057471264 | Q7: 83 | R7: 0.9540229885 | S7: 65 | T7: 0.7065217391 | U7: 67 | V7: 0.7282608696
A8: Central | B8: Alto Rio Novo | C8: 104 | D8: 73 | E8: 102 | F8: 68 | G8: 67 | H8: 0.9178082192 | I8: 57 | J8: 0.8382352941 | K8: 57 | L8: 0.7808219178 | M8: 60 | N8: 0.8219178082 | O8: 61 | P8: 0.8356164384 | Q8: 60 | R8: 0.8219178082 | S8: 51 | T8: 0.75 | U8: 49 | V8: 0.7205882353
A9: Sul | B9: Anchieta | C9: 349 | D9: 234 | E9: 390 | F9: 260 | G9: 260 | H9: 1.111111111 | I9: 235 | J9: 0.9038461538 | K9: 241 | L9: 1.02991453 | M9: 247 | N9: 1.055555556 | O9: 276 | P9: 1.179487179 | Q9: 247 | R9: 1.055555556 | S9: 271 | T9: 1.042307692 | U9: 283 | V9: 1.088461538
A10: Sul | B10: Apiacá | C10: 65 | D10: 38 | E10: 90 | F10: 60 | G10: 40 | H10: 1.052631579 | I10: 39 | J10: 0.65 | K10: 45 | L10: 1.184210526 | M10: 46 | N10: 1.210526316 | O10: 40 | P10: 1.052631579 | Q10: 39 | R10: 1.026315789 | S10: 16 | T10: 0.2666666667 | U10: 41 | V10: 0.6833333333
A11: Metropolitana | B11: Aracruz | C11: 1395 | D11: 985 | E11: 1420 | F11: 946.6666667 | G11: 921 | H11: 0.9350253807 | I11: 942 | J11: 0.9950704225 | K11: 884 | L11: 0.8974619289 | M11: 920 | N11: 0.9340101523 | O11: 965 | P11: 0.9796954315 | Q11: 860 | R11: 0.8730964467 | S11: 709 | T11: 0.748943662 | U11: 846 | V11: 0.8936619718
A12: Sul | B12: Atilio Vivacqua | C12: 160 | D12: 103 | E12: 138 | F12: 92 | G12: 105 | H12: 1.019417476 | I12: 98 | J12: 1.065217391 | K12: 104 | L12: 1.009708738 | M12: 106 | N12: 1.029126214 | O12: 100 | P12: 0.9708737864 | Q12: 92 | R12: 0.8932038835 | S12: 100 | T12: 1.086956522 | U12: 107 | V12: 1.163043478
A13: Central | B13: Baixo Guandu | C13: 370 | D13: 280 | E13: 427 | F13: 284.6666667 | G13: 231 | H13: 0.825 | I13: 204 | J13: 0.7166276347 | K13: 236 | L13: 0.8428571429 | M13: 234 | N13: 0.8357142857 | O13: 240 | P13: 0.8571428571 | Q13: 230 | R13: 0.8214285714 | S13: 183 | T13: 0.6428571429 | U13: 198 | V13: 0.6955503513
A14: Norte | B14: Barra de São Francisco | C14: 641 | D14: 450 | E14: 589 | F14: 392.6666667 | G14: 337 | H14: 0.7488888889 | I14: 306 | J14: 0.779286927 | K14: 352 | L14: 0.7822222222 | M14: 364 | N14: 0.8088888889 | O14: 333 | P14: 0.74 | Q14: 309 | R14: 0.6866666667 | S14: 258 | T14: 0.6570458404 | U14: 285 | V14: 0.7258064516
A15: Norte | B15: Boa Esperança | C15: 211 | D15: 145 | E15: 200 | F15: 133.3333333 | G15: 116 | H15: 0.8 | I15: 91 | J15: 0.6825 | K15: 126 | L15: 0.8689655172 | M15: 126 | N15: 0.8689655172 | O15: 125 | P15: 0.8620689655 | Q15: 109 | R15: 0.7517241379 | S15: 69 | T15: 0.5175 | U15: 93 | V15: 0.6975
A16: Sul | B16: Bom Jesus do Norte | C16: 75 | D16: 56 | E16: 146 | F16: 97.33333333 | G16: 62 | H16: 1.107142857 | I16: 74 | J16: 0.7602739726 | K16: 67 | L16: 1.196428571 | M16: 66 | N16: 1.178571429 | O16: 68 | P16: 1.214285714 | Q16: 63 | R16: 1.125 | S16: 47 | T16: 0.4828767123 | U16: 71 | V16: 0.7294520548
A17: Metropolitana | B17: Brejetuba | C17: 220 | D17: 146 | E17: 169 | F17: 112.6666667 | G17: 176 | H17: 1.205479452 | I17: 131 | J17: 1.162721893 | K17: 130 | L17: 0.8904109589 | M17: 130 | N17: 0.8904109589 | O17: 128 | P17: 0.8767123288 | Q17: 124 | R17: 0.8493150685 | S17: 120 | T17: 1.065088757 | U17: 125 | V17: 1.109467456
A18: Sul | B18: Cachoeiro de Itapemirim | C18: 2343 | D18: 1624 | E18: 2417 | F18: 1611.333333 | G18: 1402 | H18: 0.8633004926 | I18: 1107 | J18: 0.6870086885 | K18: 1427 | L18: 0.8786945813 | M18: 1484 | N18: 0.9137931034 | O18: 1532 | P18: 0.9433497537 | Q18: 1402 | R18: 0.8633004926 | S18: 1194 | T18: 0.7410012412 | U18: 1380 | V18: 0.8564335954
A19: Metropolitana | B19: Cariacica | C19: 4772 | D19: 3335 | E19: 5005 | F19: 3336.666667 | G19: 2492 | H19: 0.7472263868 | I19: 2306 | J19: 0.6911088911 | K19: 2899 | L19: 0.8692653673 | M19: 2920 | N19: 0.8755622189 | O19: 2983 | P19: 0.8944527736 | Q19: 2701 | R19: 0.8098950525 | S19: 2223 | T19: 0.6662337662 | U19: 2801 | V19: 0.8394605395
A20: Sul | B20: Castelo | C20: 417 | D20: 291 | E20: 399 | F20: 266 | G20: 286 | H20: 0.9828178694 | I20: 235 | J20: 0.8834586466 | K20: 260 | L20: 0.8934707904 | M20: 283 | N20: 0.9725085911 | O20: 294 | P20: 1.010309278 | Q20: 294 | R20: 1.010309278 | S20: 185 | T20: 0.6954887218 | U20: 216 | V20: 0.8120300752
A21: Central | B21: Colatina | C21: 1490 | D21: 1029 | E21: 1561 | F21: 1040.666667 | G21: 830 | H21: 0.8066083576 | I21: 700 | J21: 0.6726457399 | K21: 877 | L21: 0.8522837707 | M21: 895 | N21: 0.869776482 | O21: 877 | P21: 0.8522837707 | Q21: 785 | R21: 0.7628765792 | S21: 614 | T21: 0.5900064061 | U21: 692 | V21: 0.66495836
A22: Norte | B22: Conceição da Barra | C22: 380 | D22: 282 | E22: 391 | F22: 260.6666667 | G22: 273 | H22: 0.9680851064 | I22: 218 | J22: 0.8363171355 | K22: 285 | L22: 1.010638298 | M22: 289 | N22: 1.024822695 | O22: 289 | P22: 1.024822695 | Q22: 258 | R22: 0.914893617 | S22: 284 | T22: 1.089514066 | U22: 280 | V22: 1.074168798
A23: Metropolitana | B23: Conceição do Castelo | C23: 179 | D23: 118 | E23: 144 | F23: 96 | G23: 93 | H23: 0.7881355932 | I23: 110 | J23: 1.145833333 | K23: 74 | L23: 0.6271186441 | M23: 80 | N23: 0.6779661017 | O23: 60 | P23: 0.5084745763 | Q23: 62 | R23: 0.5254237288 | S23: 92 | T23: 0.9583333333 | U23: 85 | V23: 0.8854166667
A24: Sul | B24: Divino de São Lourenço | C24: 52 | D24: 36 | E24: 68 | F24: 45.33333333 | G24: 54 | H24: 1.5 | I24: 52 | J24: 1.147058824 | K24: 52 | L24: 1.444444444 | M24: 52 | N24: 1.444444444 | O24: 51 | P24: 1.416666667 | Q24: 50 | R24: 1.388888889 | S24: 25 | T24: 0.5514705882 | U24: 31 | V24: 0.6838235294
A25: Metropolitana | B25: Domingos Martins | C25: 424 | D25: 282 | E25: 411 | F25: 274 | G25: 276 | H25: 0.9787234043 | I25: 306 | J25: 1.116788321 | K25: 268 | L25: 0.9503546099 | M25: 266 | N25: 0.9432624113 | O25: 295 | P25: 1.046099291 | Q25: 273 | R25: 0.9680851064 | S25: 228 | T25: 0.8321167883 | U25: 253 | V25: 0.9233576642
A26: Sul | B26: Dores do Rio Preto | C26: 102 | D26: 71 | E26: 92 | F26: 61.33333333 | G26: 48 | H26: 0.676056338 | I26: 42 | J26: 0.6847826087 | K26: 68 | L26: 0.9577464789 | M26: 72 | N26: 1.014084507 | O26: 58 | P26: 0.8169014085 | Q26: 58 | R26: 0.8169014085 | S26: 43 | T26: 0.7010869565 | U26: 41 | V26: 0.6684782609
A27: Norte | B27: Ecoporanga | C27: 246 | D27: 161 | E27: 283 | F27: 188.6666667 | G27: 146 | H27: 0.9068322981 | I27: 153 | J27: 0.8109540636 | K27: 181 | L27: 1.124223602 | M27: 183 | N27: 1.136645963 | O27: 163 | P27: 1.01242236 | Q27: 144 | R27: 0.8944099379 | S27: 131 | T27: 0.6943462898 | U27: 147 | V27: 0.7791519435
A28: Metropolitana | B28: Fundão | C28: 222 | D28: 149 | E28: 218 | F28: 145.3333333 | G28: 117 | H28: 0.7852348993 | I28: 122 | J28: 0.8394495413 | K28: 137 | L28: 0.9194630872 | M28: 144 | N28: 0.966442953 | O28: 132 | P28: 0.8859060403 | Q28: 119 | R28: 0.7986577181 | S28: 105 | T28: 0.7224770642 | U28: 128 | V28: 0.880733945
A29: Central | B29: Governador Lindenberg | C29: 131 | D29: 92 | E29: 142 | F29: 94.66666667 | G29: 84 | H29: 0.9130434783 | I29: 82 | J29: 0.8661971831 | K29: 74 | L29: 0.8043478261 | M29: 75 | N29: 0.8152173913 | O29: 80 | P29: 0.8695652174 | Q29: 77 | R29: 0.8369565217 | S29: 93 | T29: 0.9823943662 | U29: 91 | V29: 0.9612676056
A30: Sul | B30: Guaçuí | C30: 382 | D30: 243 | E30: 407 | F30: 271.3333333 | G30: 226 | H30: 0.9300411523 | I30: 220 | J30: 0.8108108108 | K30: 203 | L30: 0.8353909465 | M30: 239 | N30: 0.9835390947 | O30: 235 | P30: 0.9670781893 | Q30: 222 | R30: 0.9135802469 | S30: 238 | T30: 0.8771498771 | U30: 224 | V30: 0.8255528256
A31: Metropolitana | B31: Guarapari | C31: 1689 | D31: 1155 | E31: 1557 | F31: 1038 | G31: 842 | H31: 0.729004329 | I31: 863 | J31: 0.8314065511 | K31: 1031 | L31: 0.8926406926 | M31: 1019 | N31: 0.8822510823 | O31: 1043 | P31: 0.903030303 | Q31: 928 | R31: 0.8034632035 | S31: 662 | T31: 0.6377649326 | U31: 848 | V31: 0.816955684
A32: Metropolitana | B32: Ibatiba | C32: 403 | D32: 277 | E32: 354 | F32: 236 | G32: 292 | H32: 1.054151625 | I32: 135 | J32: 0.5720338983 | K32: 237 | L32: 0.8555956679 | M32: 245 | N32: 0.8844765343 | O32: 268 | P32: 0.9675090253 | Q32: 234 | R32: 0.844765343 | S32: 178 | T32: 0.7542372881 | U32: 198 | V32: 0.8389830508
A33: Metropolitana | B33: Ibiraçu | C33: 132 | D33: 86 | E33: 160 | F33: 106.6666667 | G33: 98 | H33: 1.139534884 | I33: 97 | J33: 0.909375 | K33: 96 | L33: 1.11627907 | M33: 92 | N33: 1.069767442 | O33: 92 | P33: 1.069767442 | Q33: 93 | R33: 1.081395349 | S33: 66 | T33: 0.61875 | U33: 82 | V33: 0.76875
A34: Sul | B34: Ibitirama | C34: 148 | D34: 102 | E34: 148 | F34: 98.66666667 | G34: 107 | H34: 1.049019608 | I34: 85 | J34: 0.8614864865 | K34: 104 | L34: 1.019607843 | M34: 104 | N34: 1.019607843 | O34: 113 | P34: 1.107843137 | Q34: 93 | R34: 0.9117647059 | S34: 103 | T34: 1.043918919 | U34: 96 | V34: 0.972972973
A35: Sul | B35: Iconha | C35: 127 | D35: 81 | E35: 156 | F35: 104 | G35: 101 | H35: =G35/D35 -> 1.24691358 | I35: 128 | J35: =I35/F35 -> 1.230769231 | K35: 65 | L35: =K35/D35 -> 0.8024691358 | M35: 67 | N35: =M35/D35 -> 0.8271604938 | O35: 78 | P35: =O35/D35 -> 0.962962963 | Q35: 73 | R35: =Q35/D35 -> 0.9012345679 | S35: 79 | T35: =S35/F35 -> 0.7596153846 | U35: 86 | V35: =U35/F35 -> 0.8269230769
A36: Sul | B36: Irupi | C36: 174 | D36: 127 | E36: 200 | F36: 133.3333333 | G36: 120 | H36: 0.9448818898 | I36: 94 | J36: 0.705 | K36: 131 | L36: 1.031496063 | M36: 136 | N36: 1.070866142 | O36: 128 | P36: 1.007874016 | Q36: 133 | R36: 1.047244094 | S36: 94 | T36: 0.705 | U36: 95 | V36: 0.7125
A37: Metropolitana | B37: Itaguaçu | C37: 129 | D37: 96 | E37: 154 | F37: 102.6666667 | G37: 92 | H37: 0.9583333333 | I37: 91 | J37: 0.8863636364 | K37: 98 | L37: 1.020833333 | M37: 105 | N37: 1.09375 | O37: 100 | P37: 1.041666667 | Q37: 85 | R37: 0.8854166667 | S37: 69 | T37: 0.6720779221 | U37: 70 | V37: 0.6818181818
A38: Sul | B38: Itapemirim | C38: 537 | D38: 356 | E38: 556 | F38: 370.6666667 | G38: 249 | H38: 0.6994382022 | I38: 264 | J38: 0.7122302158 | K38: 295 | L38: 0.8286516854 | M38: 305 | N38: 0.856741573 | O38: 288 | P38: 0.808988764 | Q38: 266 | R38: 0.7471910112 | S38: 218 | T38: 0.5881294964 | U38: 284 | V38: 0.7661870504
A39: Metropolitana | B39: Itarana | C39: 128 | D39: 95 | E39: 128 | F39: 85.33333333 | G39: 96 | H39: 1.010526316 | I39: 71 | J39: 0.83203125 | K39: 112 | L39: 1.178947368 | M39: 105 | N39: 1.105263158 | O39: 102 | P39: 1.073684211 | Q39: 97 | R39: 1.021052632 | S39: 61 | T39: 0.71484375 | U39: 67 | V39: 0.78515625
A40: Sul | B40: Iúna | C40: 391 | D40: 271 | E40: 410 | F40: 273.3333333 | G40: 291 | H40: 1.073800738 | I40: 176 | J40: 0.643902439 | K40: 262 | L40: 0.9667896679 | M40: 277 | N40: 1.022140221 | O40: 320 | P40: 1.180811808 | Q40: 281 | R40: 1.036900369 | S40: 191 | T40: 0.6987804878 | U40: 231 | V40: 0.8451219512
A41: Norte | B41: Jaguaré | C41: 451 | D41: 329 | E41: 445 | F41: 296.6666667 | G41: 269 | H41: 0.8176291793 | I41: 230 | J41: 0.7752808989 | K41: 294 | L41: 0.8936170213 | M41: 304 | N41: 0.9240121581 | O41: 288 | P41: 0.8753799392 | Q41: 279 | R41: 0.8480243161 | S41: 194 | T41: 0.6539325843 | U41: 234 | V41: 0.7887640449
A42: Sul | B42: Jerônimo Monteiro | C42: 116 | D42: 75 | E42: 157 | F42: 104.6666667 | G42: 101 | H42: 1.346666667 | I42: 69 | J42: 0.6592356688 | K42: 91 | L42: 1.213333333 | M42: 90 | N42: 1.2 | O42: 112 | P42: 1.493333333 | Q42: 100 | R42: 1.333333333 | S42: 60 | T42: 0.5732484076 | U42: 88 | V42: 0.8407643312
A43: Metropolitana | B43: João Neiva | C43: 153 | D43: 103 | E43: 142 | F43: 94.66666667 | G43: 91 | H43: 0.8834951456 | I43: 107 | J43: 1.13028169 | K43: 92 | L43: 0.8932038835 | M43: 89 | N43: 0.8640776699 | O43: 89 | P43: 0.8640776699 | Q43: 90 | R43: 0.8737864078 | S43: 75 | T43: 0.7922535211 | U43: 97 | V43: 1.024647887
A44: Metropolitana | B44: Laranja da Terra | C44: 128 | D44: 96 | E44: 133 | F44: 88.66666667 | G44: 71 | H44: 0.7395833333 | I44: 86 | J44: 0.969924812 | K44: 64 | L44: 0.6666666667 | M44: 66 | N44: 0.6875 | O44: 64 | P44: 0.6666666667 | Q44: 59 | R44: 0.6145833333 | S44: 57 | T44: 0.6428571429 | U44: 67 | V44: 0.7556390977
A45: Central | B45: Linhares | C45: 2601 | D45: 1762 | E45: 2452 | F45: 1634.666667 | G45: 1338 | H45: 0.7593643587 | I45: 1113 | J45: 0.6808727569 | K45: 1421 | L45: 0.8064699205 | M45: 1495 | N45: 0.8484676504 | O45: 1438 | P45: 0.8161180477 | Q45: 1401 | R45: 0.7951191827 | S45: 1022 | T45: 0.6252039152 | U45: 1224 | V45: 0.748776509
A46: Central | B46: Mantenópolis | C46: 128 | D46: 99 | E46: 166 | F46: 110.6666667 | G46: 97 | H46: 0.9797979798 | I46: 64 | J46: 0.578313253 | K46: 97 | L46: 0.9797979798 | M46: 104 | N46: 1.050505051 | O46: 91 | P46: 0.9191919192 | Q46: 83 | R46: 0.8383838384 | S46: 104 | T46: 0.9397590361 | U46: 107 | V46: 0.9668674699
A47: Sul | B47: Marataízes | C47: 550 | D47: 366 | E47: 579 | F47: 386 | G47: 296 | H47: 0.8087431694 | I47: 339 | J47: 0.878238342 | K47: 362 | L47: 0.9890710383 | M47: 390 | N47: 1.06557377 | O47: 316 | P47: 0.8633879781 | Q47: 332 | R47: 0.9071038251 | S47: 219 | T47: 0.567357513 | U47: 335 | V47: 0.8678756477
A48: Metropolitana | B48: Marechal Floriano | C48: 201 | D48: 144 | E48: 236 | F48: 157.3333333 | G48: 151 | H48: 1.048611111 | I48: 136 | J48: 0.8644067797 | K48: 128 | L48: 0.8888888889 | M48: 123 | N48: 0.8541666667 | O48: 153 | P48: 1.0625 | Q48: 147 | R48: 1.020833333 | S48: 102 | T48: 0.6483050847 | U48: 133 | V48: 0.8453389831
A49: Central | B49: Marilândia | C49: 164 | D49: 115 | E49: 164 | F49: 109.3333333 | G49: 92 | H49: 0.8 | I49: 119 | J49: 1.088414634 | K49: 93 | L49: 0.8086956522 | M49: 101 | N49: 0.8782608696 | O49: 89 | P49: 0.7739130435 | Q49: 84 | R49: 0.7304347826 | S49: 92 | T49: 0.8414634146 | U49: 83 | V49: 0.7591463415
A50: Sul | B50: Mimoso do Sul | C50: 296 | D50: 210 | E50: 276 | F50: 184 | G50: 158 | H50: 0.7523809524 | I50: 108 | J50: 0.5869565217 | K50: 145 | L50: 0.6904761905 | M50: 137 | N50: 0.6523809524 | O50: 161 | P50: 0.7666666667 | Q50: 156 | R50: 0.7428571429 | S50: 124 | T50: 0.6739130435 | U50: 140 | V50: 0.7608695652
A51: Norte | B51: Montanha | C51: 237 | D51: 169 | E51: 278 | F51: 185.3333333 | G51: 180 | H51: 1.065088757 | I51: 186 | J51: 1.003597122 | K51: 176 | L51: 1.041420118 | M51: 184 | N51: 1.088757396 | O51: 164 | P51: 0.9704142012 | Q51: 158 | R51: 0.9349112426 | S51: 121 | T51: 0.6528776978 | U51: 130 | V51: 0.7014388489
A52: Norte | B52: Mucurici | C52: 62 | D52: 41 | E52: 97 | F52: 64.66666667 | G52: 54 | H52: 1.317073171 | I52: 35 | J52: 0.5412371134 | K52: 44 | L52: 1.073170732 | M52: 35 | N52: 0.8536585366 | O52: 59 | P52: 1.43902439 | Q52: 54 | R52: 1.317073171 | S52: 38 | T52: 0.587628866 | U52: 37 | V52: 0.5721649485
A53: Sul | B53: Muniz Freire | C53: 230 | D53: 160 | E53: 275 | F53: 183.3333333 | G53: 251 | H53: 1.56875 | I53: 19 | J53: 0.1036363636 | K53: 146 | L53: 0.9125 | M53: 145 | N53: 0.90625 | O53: 152 | P53: 0.95 | Q53: 152 | R53: 0.95 | S53: 105 | T53: 0.5727272727 | U53: 128 | V53: 0.6981818182
A54: Sul | B54: Muqui | C54: 158 | D54: 106 | E54: 152 | F54: 101.3333333 | G54: 92 | H54: 0.8679245283 | I54: 117 | J54: 1.154605263 | K54: 96 | L54: 0.9056603774 | M54: 98 | N54: 0.9245283019 | O54: 100 | P54: 0.9433962264 | Q54: 92 | R54: 0.8679245283 | S54: 98 | T54: 0.9671052632 | U54: 106 | V54: 1.046052632
A55: Norte | B55: Nova Venécia | C55: 669 | D55: 453 | E55: 656 | F55: 437.3333333 | G55: 406 | H55: 0.8962472406 | I55: 362 | J55: 0.8277439024 | K55: 443 | L55: 0.9779249448 | M55: 445 | N55: 0.9823399558 | O55: 447 | P55: 0.9867549669 | Q55: 411 | R55: 0.9072847682 | S55: 257 | T55: 0.587652439 | U55: 336 | V55: 0.7682926829
A56: Central | B56: Pancas | C56: 217 | D56: 147 | E56: 244 | F56: 162.6666667 | G56: 151 | H56: 1.027210884 | I56: 161 | J56: 0.9897540984 | K56: 121 | L56: 0.8231292517 | M56: 128 | N56: 0.8707482993 | O56: 156 | P56: 1.06122449 | Q56: 147 | R56: 1 | S56: 107 | T56: 0.6577868852 | U56: 125 | V56: 0.768442623
A57: Norte | B57: Pedro Canário | C57: 343 | D57: 235 | E57: 338 | F57: 225.3333333 | G57: 212 | H57: 0.9021276596 | I57: 217 | J57: 0.9630177515 | K57: 226 | L57: 0.9617021277 | M57: 213 | N57: 0.9063829787 | O57: 221 | P57: 0.9404255319 | Q57: 207 | R57: 0.8808510638 | S57: 171 | T57: 0.7588757396 | U57: 206 | V57: 0.9142011834
A58: Norte | B58: Pinheiros | C58: 334 | D58: 247 | E58: 383 | F58: 255.3333333 | G58: 222 | H58: 0.8987854251 | I58: 181 | J58: 0.7088772846 | K58: 224 | L58: 0.9068825911 | M58: 226 | N58: 0.9149797571 | O58: 225 | P58: 0.9109311741 | Q58: 210 | R58: 0.8502024291 | S58: 161 | T58: 0.6305483029 | U58: 195 | V58: 0.7637075718
A59: Sul | B59: Piúma | C59: 315 | D59: 210 | E59: 311 | F59: 207.3333333 | G59: 172 | H59: 0.819047619 | I59: 149 | J59: 0.7186495177 | K59: 184 | L59: 0.8761904762 | M59: 182 | N59: 0.8666666667 | O59: 174 | P59: 0.8285714286 | Q59: 164 | R59: 0.780952381 | S59: 152 | T59: 0.7331189711 | U59: 188 | V59: 0.9067524116
A60: Norte | B60: Ponto Belo | C60: 74 | D60: 49 | E60: 85 | F60: 56.66666667 | G60: 50 | H60: 1.020408163 | I60: 64 | J60: 1.129411765 | K60: 53 | L60: 1.081632653 | M60: 53 | N60: 1.081632653 | O60: 48 | P60: 0.9795918367 | Q60: 49 | R60: 1 | S60: 55 | T60: 0.9705882353 | U60: 54 | V60: 0.9529411765
A61: Sul | B61: Presidente Kennedy | C61: 213 | D61: 152 | E61: 239 | F61: 159.3333333 | G61: 124 | H61: 0.8157894737 | I61: 106 | J61: 0.6652719665 | K61: 136 | L61: 0.8947368421 | M61: 138 | N61: 0.9078947368 | O61: 138 | P61: 0.9078947368 | Q61: 126 | R61: 0.8289473684 | S61: 118 | T61: 0.7405857741 | U61: 120 | V61: 0.7531380753
A62: Central | B62: Rio Bananal | C62: 298 | D62: 198 | E62: 229 | F62: 152.6666667 | G62: 254 | H62: 1.282828283 | I62: 129 | J62: 0.8449781659 | K62: 181 | L62: 0.9141414141 | M62: 184 | N62: 0.9292929293 | O62: 190 | P62: 0.9595959596 | Q62: 186 | R62: 0.9393939394 | S62: 172 | T62: 1.126637555 | U62: 177 | V62: 1.159388646
A63: Sul | B63: Rio Novo do Sul | C63: 112 | D63: 84 | E63: 144 | F63: 96 | G63: 59 | H63: 0.7023809524 | I63: 74 | J63: 0.7708333333 | K63: 66 | L63: 0.7857142857 | M63: 68 | N63: 0.8095238095 | O63: 62 | P63: 0.7380952381 | Q63: 55 | R63: 0.6547619048 | S63: 45 | T63: 0.46875 | U63: 58 | V63: 0.6041666667
A64: Metropolitana | B64: Santa Leopoldina | C64: 88 | D64: 66 | E64: 155 | F64: 103.3333333 | G64: 80 | H64: 1.212121212 | I64: 87 | J64: 0.8419354839 | K64: 70 | L64: 1.060606061 | M64: 70 | N64: 1.060606061 | O64: 74 | P64: 1.121212121 | Q64: 72 | R64: 1.090909091 | S64: 81 | T64: 0.7838709677 | U64: 99 | V64: 0.9580645161
A65: Metropolitana | B65: Santa Maria de Jetibá | C65: 710 | D65: 467 | E65: 685 | F65: 456.6666667 | G65: 406 | H65: 0.869379015 | I65: 313 | J65: 0.6854014599 | K65: 385 | L65: 0.8244111349 | M65: 383 | N65: 0.8201284797 | O65: 384 | P65: 0.8222698073 | Q65: 362 | R65: 0.7751605996 | S65: 278 | T65: 0.6087591241 | U65: 370 | V65: 0.8102189781
A66: Metropolitana | B66: Santa Teresa | C66: 286 | D66: 197 | E66: 260 | F66: 173.3333333 | G66: 190 | H66: 0.9644670051 | I66: 199 | J66: 1.148076923 | K66: 199 | L66: 1.010152284 | M66: 200 | N66: 1.015228426 | O66: 203 | P66: 1.030456853 | Q66: 180 | R66: 0.9137055838 | S66: 135 | T66: 0.7788461538 | U66: 146 | V66: 0.8423076923
A67: Central | B67: São Domingos do Norte | C67: 105 | D67: 68 | E67: 117 | F67: 78 | G67: 81 | H67: =G67/D67 -> 1.191176471 | I67: 55 | J67: =I67/F67 -> 0.7051282051 | K67: 86 | L67: =K67/D67 -> 1.264705882 | M67: 87 | N67: =M67/D67 -> 1.279411765 | O67: 91 | P67: =O67/D67 -> 1.338235294 | Q67: 79 | R67: =Q67/D67 -> 1.161764706 | S67: 48 | T67: =S67/F67 -> 0.6153846154 | U67: 53 | V67: =U67/F67 -> 0.6794871795
A68: Central | B68: São Gabriel da Palha | C68: 400 | D68: 287 | E68: 426 | F68: =(E68/12)*8 -> 284 | G68: 267 | H68: 0.9303135889 | I68: 207 | J68: 0.7288732394 | K68: 268 | L68: 0.9337979094 | M68: 274 | N68: 0.9547038328 | O68: 239 | P68: 0.8327526132 | Q68: 241 | R68: 0.8397212544 | S68: 175 | T68: 0.6161971831 | U68: 174 | V68: 0.6126760563
A69: Sul | B69: São José do Calçado | C69: 95 | D69: 63 | E69: 150 | F69: 100 | G69: 62 | H69: 0.9841269841 | I69: 61 | J69: 0.61 | K69: 62 | L69: 0.9841269841 | M69: 63 | N69: 1 | O69: 64 | P69: 1.015873016 | Q69: 58 | R69: 0.9206349206 | S69: 49 | T69: 0.49 | U69: 72 | V69: 0.72
A70: Norte | B70: São Mateus | C70: 1798 | D70: 1272 | E70: 1766 | F70: 1177.333333 | G70: 931 | H70: 0.731918239 | I70: 700 | J70: 0.5945639864 | K70: 1109 | L70: 0.8718553459 | M70: 1128 | N70: 0.8867924528 | O70: 1094 | P70: 0.8600628931 | Q70: 1000 | R70: 0.786163522 | S70: 669 | T70: 0.5682332956 | U70: 809 | V70: 0.6871460929
A71: Central | B71: São Roque do Canaã | C71: 130 | D71: 95 | E71: 100 | F71: 66.66666667 | G71: 85 | H71: 0.8947368421 | I71: 79 | J71: 1.185 | K71: 83 | L71: 0.8736842105 | M71: 89 | N71: 0.9368421053 | O71: 76 | P71: 0.8 | Q71: 74 | R71: 0.7789473684 | S71: 58 | T71: 0.87 | U71: 64 | V71: 0.96
A72: Metropolitana | B72: Serra | C72: 7354 | D72: 5063 | E72: 7550 | F72: 5033.333333 | G72: 3668 | H72: 0.7244716571 | I72: 3461 | J72: 0.687615894 | K72: 4446 | L72: 0.8781354928 | M72: 4434 | N72: 0.8757653565 | O72: 4228 | P72: 0.835078017 | Q72: 3919 | R72: 0.7740470077 | S72: 3433 | T72: 0.6820529801 | U72: 4053 | V72: 0.8052317881
A73: Central | B73: Sooretama | C73: 429 | D73: 287 | E73: 415 | F73: 276.6666667 | G73: 240 | H73: 0.8362369338 | I73: 189 | J73: 0.6831325301 | K73: 260 | L73: 0.9059233449 | M73: 260 | N73: 0.9059233449 | O73: 280 | P73: 0.9756097561 | Q73: 243 | R73: 0.8466898955 | S73: 167 | T73: 0.6036144578 | U73: 203 | V73: 0.7337349398
A74: Sul | B74: Vargem Alta | C74: 277 | D74: 196 | E74: 278 | F74: 185.3333333 | G74: 176 | H74: 0.8979591837 | I74: 124 | J74: 0.6690647482 | K74: 171 | L74: 0.8724489796 | M74: 173 | N74: 0.8826530612 | O74: 189 | P74: 0.9642857143 | Q74: 172 | R74: 0.8775510204 | S74: 104 | T74: 0.5611510791 | U74: 139 | V74: 0.75
A75: Metropolitana | B75: Venda Nova do Imigrante | C75: 335 | D75: 216 | E75: 328 | F75: 218.6666667 | G75: 266 | H75: 1.231481481 | I75: 120 | J75: 0.5487804878 | K75: 231 | L75: 1.069444444 | M75: 211 | N75: 0.9768518519 | O75: 243 | P75: 1.125 | Q75: 229 | R75: 1.060185185 | S75: 179 | T75: 0.818597561 | U75: 193 | V75: 0.8826219512
A76: Metropolitana | B76: Viana | C76: 886 | D76: 595 | E76: 1064 | F76: 709.3333333 | G76: 488 | H76: 0.8201680672 | I76: 461 | J76: 0.649906015 | K76: 628 | L76: 1.055462185 | M76: 616 | N76: 1.035294118 | O76: 550 | P76: 0.9243697479 | Q76: 546 | R76: 0.9176470588 | S76: 441 | T76: 0.6217105263 | U76: 632 | V76: 0.8909774436
A77: Norte | B77: Vila Pavão | C77: 110 | D77: 83 | E77: 127 | F77: 84.66666667 | G77: 69 | H77: 0.8313253012 | I77: 55 | J77: 0.6496062992 | K77: 76 | L77: 0.9156626506 | M77: 77 | N77: 0.9277108434 | O77: 71 | P77: 0.8554216867 | Q77: 65 | R77: 0.7831325301 | S77: 55 | T77: 0.6496062992 | U77: 61 | V77: 0.7204724409
A78: Central | B78: Vila Valério | C78: 242 | D78: 174 | E78: 169 | F78: 112.6666667 | G78: 185 | H78: 1.063218391 | I78: 142 | J78: 1.26035503 | K78: 156 | L78: 0.8965517241 | M78: 158 | N78: 0.908045977 | O78: 165 | P78: 0.9482758621 | Q78: 163 | R78: 0.9367816092 | S78: 105 | T78: 0.9319526627 | U78: 119 | V78: 1.056213018
A79: Metropolitana | B79: Vila Velha | C79: 5488 | D79: 3818 | E79: 5675 | F79: 3783.333333 | G79: 2659 | H79: 0.6964379256 | I79: 2878 | J79: 0.7607048458 | K79: 3032 | L79: 0.794133054 | M79: 2901 | N79: 0.7598218963 | O79: 3088 | P79: 0.8088004191 | Q79: 2818 | R79: 0.7380827658 | S79: 2238 | T79: 0.5915418502 | U79: 2693 | V79: 0.7118061674
A80: Metropolitana | B80: Vitória | C80: 3522 | D80: 2417 | E80: 3833 | F80: 2555.333333 | G80: 2236 | H80: 0.9251137774 | I80: 1636 | J80: 0.6402295852 | K80: 2298 | L80: 0.9507654117 | M80: 2124 | N80: 0.8787753413 | O80: 2387 | P80: 0.9875879189 | Q80: 2156 | R80: 0.8920148945 | S80: 1328 | T80: 0.519697365 | U80: 1828 | V80: 0.7153665536
B82: Total Norte | C82: =SUMIF($A$3:$A$80,"Norte",C$3:C$80) -> 5700 | D82: =SUMIF($A$3:$A$80,"Norte",D$3:D$80) -> 4019 | E82: =SUMIF($A$3:$A$80,"Norte",E$3:E$80) -> 5789 | F82: =SUMIF($A$3:$A$80,"Norte",F$3:F$80) -> 3859.333333 | G82: =SUMIF($A$3:$A$80,"Norte",G$3:G$80) -> 3347 | H82: =G82/D82 -> 0.8327942274 | I82: =SUMIF($A$3:$A$80,"Norte",I$3:I$80) -> 2845 | J82: =I82/F82 -> 0.7371739506 | K82: =SUMIF($A$3:$A$80,"Norte",K$3:K$80) -> 3698 | L82: =K82/D82 -> 0.9201293854 | M82: =SUMIF($A$3:$A$80,"Norte",M$3:M$80) -> 3727 | N82: =M82/D82 -> 0.9273451107 | O82: =SUMIF($A$3:$A$80,"Norte",O$3:O$80) -> 3615 | P82: =O82/D82 -> 0.899477482 | Q82: =SUMIF($A$3:$A$80,"Norte",Q$3:Q$80) -> 3341 | R82: =Q82/D82 -> 0.8313013187 | S82: =SUMIF($A$3:$A$80,"Norte",S$3:S$80) -> 2510 | T82: =S82/F82 -> 0.650371394 | U82: =SUMIF($A$3:$A$80,"Norte",U$3:U$80) -> 2925 | V82: =U82/F82 -> 0.7579029193
B83: Total Central | C83: =SUMIF($A$3:$A$80,"Central",C$3:C$80) -> 6964 | D83: =SUMIF($A$3:$A$80,"Central",D$3:D$80) -> 4825 | E83: =SUMIF($A$3:$A$80,"Central",E$3:E$80) -> 6843 | F83: =SUMIF($A$3:$A$80,"Central",F$3:F$80) -> 4562 | G83: =SUMIF($A$3:$A$80,"Central",G$3:G$80) -> 4106 | H83: =G83/D83 -> 0.850984456 | I83: =SUMIF($A$3:$A$80,"Central",I$3:I$80) -> 3363 | J83: =I83/F83 -> 0.7371766769 | K83: =SUMIF($A$3:$A$80,"Central",K$3:K$80) -> 4111 | L83: =K83/D83 -> 0.8520207254 | M83: =SUMIF($A$3:$A$80,"Central",M$3:M$80) -> 4248 | N83: =M83/D83 -> 0.8804145078 | O83: =SUMIF($A$3:$A$80,"Central",O$3:O$80) -> 4179 | P83: =O83/D83 -> 0.8661139896 | Q83: =SUMIF($A$3:$A$80,"Central",Q$3:Q$80) -> 3956 | R83: =Q83/D83 -> 0.8198963731 | S83: =SUMIF($A$3:$A$80,"Central",S$3:S$80) -> 3052 | T83: =S83/F83 -> 0.6690048224 | U83: =SUMIF($A$3:$A$80,"Central",U$3:U$80) -> 3424 | V83: =U83/F83 -> 0.7505480053
B84: Total Metropolitana | C84: =SUMIF($A$3:$A$80,"Metropolitana",C$3:C$80) -> 29213 | D84: =SUMIF($A$3:$A$80,"Metropolitana",D$3:D$80) -> 20159 | E84: =SUMIF($A$3:$A$80,"Metropolitana",E$3:E$80) -> 30197 | F84: =SUMIF($A$3:$A$80,"Metropolitana",F$3:F$80) -> 20131.33333 | G84: =SUMIF($A$3:$A$80,"Metropolitana",G$3:G$80) -> 16056 | H84: =G84/D84 -> 0.7964680788 | I84: =SUMIF($A$3:$A$80,"Metropolitana",I$3:I$80) -> 14835 | J84: =I84/F84 -> 0.7369109514 | K84: =SUMIF($A$3:$A$80,"Metropolitana",K$3:K$80) -> 17773 | L84: =K84/D84 -> 0.8816409544 | M84: =SUMIF($A$3:$A$80,"Metropolitana",M$3:M$80) -> 17478 | N84: =M84/D84 -> 0.867007292 | O84: =SUMIF($A$3:$A$80,"Metropolitana",O$3:O$80) -> 17899 | P84: =O84/D84 -> 0.8878912644 | Q84: =SUMIF($A$3:$A$80,"Metropolitana",Q$3:Q$80) -> 16395 | R84: =Q84/D84 -> 0.8132843891 | S84: =SUMIF($A$3:$A$80,"Metropolitana",S$3:S$80) -> 13077 | T84: =S84/F84 -> 0.6495843958 | U84: =SUMIF($A$3:$A$80,"Metropolitana",U$3:U$80) -> 16039 | V84: =U84/F84 -> 0.796718217
B85: Total Sul | C85: =SUMIF($A$3:$A$80,"sul",C$3:C$80) -> 8123 | D85: =SUMIF($A$3:$A$80,"sul",D$3:D$80) -> 5560 | E85: =SUMIF($A$3:$A$80,"sul",E$3:E$80) -> 8688 | F85: =SUMIF($A$3:$A$80,"sul",F$3:F$80) -> 5792 | G85: =SUMIF($A$3:$A$80,"sul",G$3:G$80) -> 5145 | H85: =G85/D85 -> 0.9253597122 | I85: =SUMIF($A$3:$A$80,"sul",I$3:I$80) -> 4257 | J85: =I85/F85 -> 0.7349792818 | K85: =SUMIF($A$3:$A$80,"sul",K$3:K$80) -> 5065 | L85: =K85/D85 -> 0.910971223 | M85: =SUMIF($A$3:$A$80,"sul",M$3:M$80) -> 5237 | N85: =M85/D85 -> 0.9419064748 | O85: =SUMIF($A$3:$A$80,"sul",O$3:O$80) -> 5370 | P85: =O85/D85 -> 0.9658273381 | Q85: =SUMIF($A$3:$A$80,"sul",Q$3:Q$80) -> 5019 | R85: =Q85/D85 -> 0.9026978417 | S85: =SUMIF($A$3:$A$80,"sul",S$3:S$80) -> 4123 | T85: =S85/F85 -> 0.7118439227 | U85: =SUMIF($A$3:$A$80,"sul",U$3:U$80) -> 4822 | V85: =U85/F85 -> 0.8325276243
B86: Total Espírito Santo | C86: =SUM(C3:C80) -> 50000 | D86: =SUM(D3:D80) -> 34563 | E86: =SUM(E3:E80) -> 51517 | F86: =SUM(F3:F80) -> 34344.66667 | G86: =SUM(G3:G80) -> 28654 | H86: =G86/D86 -> 0.8290368313 | I86: =SUM(I3:I80) -> 25300 | J86: =I86/F86 -> 0.7366500379 | K86: =SUM(K3:K80) -> 30647 | L86: =K86/D86 -> 0.8866996499 | M86: =SUM(M3:M80) -> 30690 | N86: =M86/D86 -> 0.8879437549 | O86: =SUM(O3:O80) -> 31063 | P86: =O86/D86 -> 0.8987356422 | Q86: =SUM(Q3:Q80) -> 28711 | R86: =Q86/D86 -> 0.8306859937 | S86: =SUM(S3:S80) -> 22762 | T86: =S86/F86 -> 0.6627521012 | U86: =SUM(U3:U80) -> 27210 | V86: =U86/F86 -> 0.7922627482
A90: Fonte: Vacina e Confia, em 9 e 12 de Setembro de 2025.**<https://vacinaeconfia.saude.es.gov.br/>
A91: **Dados referente às doses aplicadas no período de Janeiro a Junho 2025
A92: Cobertura Calculada por município de residência
A93: 1 População anual extraída do MS/SVS/DASIS - SINASC/DASIS/SVS/MS 2024 (hoje preliminares) referente ao período de Julho a Dezembro de 2024 e SINASC/DASIS/SVS/MS referente ao período de Janeiro e Junho de 2025.
A94: ² População proporcional extraída do MS/SVS/DASIS - SINASC/DASIS/SVS/MS 2024 (hoje preliminares) referente ao período de Julho e Agosto de 2024 e Janeiro a Junho de 2025.
A95: Sinasc, atualizado em 09/09/25.
A96: Método de Cálculo Simples
A97: Homogeineidade: O cálculo da Homogeineidade entre vacinas é feito de acordo com a pactuação estabelecida no Plano Plurianual (PPA) vigente no período 2024-2027.
A99: Observações:
A100: 1. Imunobiológicos que foram recebidos parcialmente pelo estado no mês de Agosto/2025, sendo distribuídos em quantidades reduzidas às regionais e municípios:
A101: SORO ANTIRRÁBICO HUMANO, IMUNOGLOBULINA ANTIRRÁBICA HUMANA, VACINA PNEUMO 13,VACINA PNEUMO 23.
A102: 2. Imunobiológicos indisponíveis no mês de Julho/2025, não sendo possível a distribuição às regionais e municípios:
A103: VACINA TRÍPLICE ACELULAR (DTPa) - CRIE e IMUNOGLOBULINA HUMANA ANTI-HEPATITE B - 100 UI

Sheet Cobert. COVID-19 Menores 4 anos (hidden)
A1: Regional | B1: Município | C1: Série Histórica
A2: Região Metropolitana | B2: Afonso Cláudio
A3: Região Norte | B3: Água Doce do Norte
A4: Região Central | B4: Águia Branca
A5: Região Sul | B5: Alegre
A6: Região Sul | B6: Alfredo Chaves
A7: Região Central | B7: Alto Rio Novo
A8: Região Sul | B8: Anchieta
A9: Região Sul | B9: Apiacá
A10: Região Metropolitana | B10: Aracruz
A11: Região Sul | B11: Atilio Vivacqua
A12: Região Central | B12: Baixo Guandu
A13: Região Norte | B13: Barra de São Francisco
A14: Região Norte | B14: Boa Esperança
A15: Região Sul | B15: Bom Jesus do Norte
A16: Região Metropolitana | B16: Brejetuba
A17: Região Sul | B17: Cachoeiro de Itapemirim
A18: Região Metropolitana | B18: Cariacica
A19: Região Sul | B19: Castelo
A20: Região Central | B20: Colatina
A21: Região Norte | B21: Conceição da Barra
A22: Região Metropolitana | B22: Conceição do Castelo
A23: Região Sul | B23: Divino de São Lourenço
A24: Região Metropolitana | B24: Domingos Martins
A25: Região Sul | B25: Dores do Rio Preto
A26: Região Norte | B26: Ecoporanga
A27: Região Metropolitana | B27: Fundão
A28: Região Central | B28: Governador Lindenberg
A29: Região Sul | B29: Guaçuí
A30: Região Metropolitana | B30: Guarapari
A31: Região Metropolitana | B31: Ibatiba
A32: Região Metropolitana | B32: Ibiraçu
A33: Região Sul | B33: Ibitirama
A34: Região Sul | B34: Iconha
A35: Região Sul | B35: Irupi
A36: Região Metropolitana | B36: Itaguaçu
A37: Região Sul | B37: Itapemirim
A38: Região Metropolitana | B38: Itarana
A39: Região Sul | B39: Iúna
A40: Região Norte | B40: Jaguaré
A41: Região Sul | B41: Jerônimo Monteiro
A42: Região Metropolitana | B42: João Neiva
A43: Região Metropolitana | B43: Laranja da Terra
A44: Região Central | B44: Linhares
A45: Região Central | B45: Mantenópolis
A46: Região Sul | B46: Marataízes
A47: Região Metropolitana | B47: Marechal Floriano
A48: Região Central | B48: Marilândia
A49: Região Sul | B49: Mimoso do Sul
A50: Região Norte | B50: Montanha
A51: Região Norte | B51: Mucurici
A52: Região Sul | B52: Muniz Freire
A53: Região Sul | B53: Muqui
A54: Região Norte | B54: Nova Venécia
A55: Região Central | B55: Pancas
A56: Região Norte | B56: Pedro Canário
A57: Região Norte | B57: Pinheiros
A58: Região Sul | B58: Piúma
A59: Região Norte | B59: Ponto Belo
A60: Região Sul | B60: Presidente Kennedy
A61: Região Central | B61: Rio Bananal
A62: Região Sul | B62: Rio Novo do Sul
A63: Região Metropolitana | B63: Santa Leopoldina
A64: Região Metropolitana | B64: Santa Maria de Jetibá
A65: Região Metropolitana | B65: Santa Teresa
A66: Região Central | B66: São Domingos do Norte
A67: Região Central | B67: São Gabriel da Palha
A68: Região Sul | B68: São José do Calçado
A69: Região Norte | B69: São Mateus
A70: Região Central | B70: São Roque do Canaã
A71: Região Metropolitana | B71: Serra
A72: Região Central | B72: Sooretama
A73: Região Sul | B73: Vargem Alta
A74: Região Metropolitana | B74: Venda Nova do Imigrante
A75: Região Metropolitana | B75: Viana
A76: Região Norte | B76: Vila Pavão
A77: Região Central | B77: Vila Valério
A78: Região Metropolitana | B78: Vila Velha
A79: Região Metropolitana | B79: Vitória
B81: Espírito Santo
B82: Região Norte
B83: Região Central
B84: Região Metropolitana
B85: Região Sul
A87: Pfizer Pediátrica Menor de 5 anos e Coronavac
A88: Período avaliado: 2021-2024
A89: Fonte: https://www.vacinaeconfia.es.gov.br
A90: *Dados de janeiro/2024 extraídos do Vacina e Confia em 04/01/2024
A91: População proporcional extraída do SINASC 2022 (menores de 1 ano) e Censo IBGE 2022 (demais idades)
A92: Cobertura Calculada por município de procedência da vacinação

Sheet dTpa gestantes - procedência
A1: REGIONAL | B1: MUNICÍPIO | C1: ¹POPULAÇÃO GESTANTE ANUAL | D1: ²POPULAÇÃO PROPORCIONAL | E1: DOSES APLICADAS dTpa GESTANTES | F1: COBERTURA VACINAL dTpa GESTANTES
A2: Metropolitana | B2: Afonso Cláudio | C2: 369 | D2: 253 | E2: 225 | F2: =E2/D2 -> 0.8893280632
A3: Norte | B3: Água Doce do Norte | C3: 144 | D3: 103 | E3: 71 | F3: =E3/D3 -> 0.6893203883
A4: Central | B4: Águia Branca | C4: 155 | D4: 119 | E4: 86 | F4: 0.7226890756
A5: Sul | B5: Alegre | C5: 316 | D5: 218 | E5: 201 | F5: 0.9220183486
A6: Sul | B6: Alfredo Chaves | C6: 123 | D6: 87 | E6: 75 | F6: 0.8620689655
A7: Central | B7: Alto Rio Novo | C7: 104 | D7: 73 | E7: 69 | F7: 0.9452054795
A8: Sul | B8: Anchieta | C8: 349 | D8: 234 | E8: 224 | F8: 0.9572649573
A9: Sul | B9: Apiacá | C9: 65 | D9: 38 | E9: 39 | F9: 1.026315789
A10: Metropolitana | B10: Aracruz | C10: 1395 | D10: 985 | E10: 898 | F10: 0.9116751269
A11: Sul | B11: Atilio Vivacqua | C11: 160 | D11: 103 | E11: 76 | F11: 0.7378640777
A12: Central | B12: Baixo Guandu | C12: 370 | D12: 280 | E12: 199 | F12: 0.7107142857
A13: Norte | B13: Barra de São Francisco | C13: 641 | D13: 450 | E13: 346 | F13: 0.7688888889
A14: Norte | B14: Boa Esperança | C14: 211 | D14: 145 | E14: 145 | F14: 1
A15: Sul | B15: Bom Jesus do Norte | C15: 75 | D15: 56 | E15: 67 | F15: 1.196428571
A16: Metropolitana | B16: Brejetuba | C16: 220 | D16: 146 | E16: 153 | F16: 1.047945205
A17: Sul | B17: Cachoeiro de Itapemirim | C17: 2343 | D17: 1624 | E17: 1335 | F17: 0.822044335
A18: Metropolitana | B18: Cariacica | C18: 4772 | D18: 3335 | E18: 2567 | F18: 0.7697151424
A19: Sul | B19: Castelo | C19: 417 | D19: 291 | E19: 280 | F19: 0.9621993127
A20: Central | B20: Colatina | C20: 1490 | D20: 1029 | E20: 904 | F20: 0.8785228377
A21: Norte | B21: Conceição da Barra | C21: 380 | D21: 282 | E21: 272 | F21: 0.9645390071
A22: Metropolitana | B22: Conceição do Castelo | C22: 179 | D22: 118 | E22: 98 | F22: 0.8305084746
A23: Sul | B23: Divino de São Lourenço | C23: 52 | D23: 36 | E23: 42 | F23: 1.166666667
A24: Metropolitana | B24: Domingos Martins | C24: 424 | D24: 282 | E24: 258 | F24: 0.914893617
A25: Sul | B25: Dores do Rio Preto | C25: 102 | D25: 71 | E25: 56 | F25: 0.7887323944
A26: Norte | B26: Ecoporanga | C26: 246 | D26: 161 | E26: 126 | F26: 0.7826086957
A27: Metropolitana | B27: Fundão | C27: 222 | D27: 149 | E27: 147 | F27: 0.9865771812
A28: Central | B28: Governador Lindenberg | C28: 131 | D28: 92 | E28: 114 | F28: 1.239130435
A29: Sul | B29: Guaçuí | C29: 382 | D29: 243 | E29: 196 | F29: 0.8065843621
A30: Metropolitana | B30: Guarapari | C30: 1689 | D30: 1155 | E30: 910 | F30: 0.7878787879
A31: Metropolitana | B31: Ibatiba | C31: 403 | D31: 277 | E31: 260 | F31: 0.9386281588
A32: Metropolitana | B32: Ibiraçu | C32: 132 | D32: 86 | E32: 83 | F32: 0.9651162791
A33: Sul | B33: Ibitirama | C33: 148 | D33: 102 | E33: 83 | F33: 0.8137254902
A34: Sul | B34: Iconha | C34: 127 | D34: 81 | E34: 95 | F34: 1.172839506
A35: Sul | B35: Irupi | C35: 174 | D35: 127 | E35: 140 | F35: 1.102362205
A36: Metropolitana | B36: Itaguaçu | C36: 129 | D36: 96 | E36: 85 | F36: 0.8854166667
A37: Sul | B37: Itapemirim | C37: 537 | D37: 356 | E37: 306 | F37: 0.8595505618
A38: Metropolitana | B38: Itarana | C38: 128 | D38: 95 | E38: 88 | F38: 0.9263157895
A39: Sul | B39: Iúna | C39: 391 | D39: 271 | E39: 228 | F39: 0.8413284133
A40: Norte | B40: Jaguaré | C40: 451 | D40: 329 | E40: 283 | F40: 0.8601823708
A41: Sul | B41: Jerônimo Monteiro | C41: 116 | D41: 75 | E41: 73 | F41: 0.9733333333
A42: Metropolitana | B42: João Neiva | C42: 153 | D42: 103 | E42: 82 | F42: 0.7961165049
A43: Metropolitana | B43: Laranja da Terra | C43: 128 | D43: 96 | E43: 75 | F43: 0.78125
A44: Central | B44: Linhares | C44: 2601 | D44: 1762 | E44: 1486 | F44: 0.8433598184
A45: Central | B45: Mantenópolis | C45: 128 | D45: 99 | E45: 86 | F45: 0.8686868687
A46: Sul | B46: Marataízes | C46: 550 | D46: 366 | E46: 364 | F46: 0.9945355191
A47: Metropolitana | B47: Marechal Floriano | C47: 201 | D47: 144 | E47: 124 | F47: 0.8611111111
A48: Central | B48: Marilândia | C48: 164 | D48: 115 | E48: 105 | F48: 0.9130434783
A49: Sul | B49: Mimoso do Sul | C49: 296 | D49: 210 | E49: 111 | F49: 0.5285714286
A50: Norte | B50: Montanha | C50: 237 | D50: 169 | E50: 160 | F50: 0.9467455621
A51: Norte | B51: Mucurici | C51: 62 | D51: 41 | E51: 40 | F51: 0.9756097561
A52: Sul | B52: Muniz Freire | C52: 230 | D52: 160 | E52: 172 | F52: 1.075
A53: Sul | B53: Muqui | C53: 158 | D53: 106 | E53: 99 | F53: 0.9339622642
A54: Norte | B54: Nova Venécia | C54: 669 | D54: 453 | E54: 444 | F54: 0.9801324503
A55: Central | B55: Pancas | C55: 217 | D55: 147 | E55: 130 | F55: 0.8843537415
A56: Norte | B56: Pedro Canário | C56: 343 | D56: 235 | E56: 213 | F56: 0.9063829787
A57: Norte | B57: Pinheiros | C57: 334 | D57: 247 | E57: 189 | F57: 0.7651821862
A58: Sul | B58: Piúma | C58: 315 | D58: 210 | E58: 154 | F58: 0.7333333333
A59: Norte | B59: Ponto Belo | C59: 74 | D59: 49 | E59: 63 | F59: 1.285714286
A60: Sul | B60: Presidente Kennedy | C60: 213 | D60: 152 | E60: 120 | F60: 0.7894736842
A61: Central | B61: Rio Bananal | C61: 298 | D61: 198 | E61: 202 | F61: 1.02020202
A62: Sul | B62: Rio Novo do Sul | C62: 112 | D62: 84 | E62: 73 | F62: 0.869047619
A63: Metropolitana | B63: Santa Leopoldina | C63: 88 | D63: 66 | E63: 56 | F63: 0.8484848485
A64: Metropolitana | B64: Santa Maria de Jetibá | C64: 710 | D64: 467 | E64: 428 | F64: 0.9164882227
A65: Metropolitana | B65: Santa Teresa | C65: 286 | D65: 197 | E65: 154 | F65: 0.7817258883
A66: Central | B66: São Domingos do Norte | C66: 105 | D66: 68 | E66: 74 | F66: 1.088235294
A67: Central | B67: São Gabriel da Palha | C67: 400 | D67: 287 | E67: 284 | F67: =E67/D67 -> 0.9895470383
A68: Sul | B68: São José do Calçado | C68: 95 | D68: 63 | E68: 55 | F68: 0.873015873
A69: Norte | B69: São Mateus | C69: 1798 | D69: 1272 | E69: 1004 | F69: 0.7893081761
A70: Central | B70: São Roque do Canaã | C70: 130 | D70: 95 | E70: 101 | F70: 1.063157895
A71: Metropolitana | B71: Serra | C71: 7354 | D71: 5063 | E71: 4141 | F71: 0.8178945289
A72: Central | B72: Sooretama | C72: 429 | D72: 287 | E72: 293 | F72: 1.020905923
A73: Sul | B73: Vargem Alta | C73: 277 | D73: 196 | E73: 156 | F73: 0.7959183673
A74: Metropolitana | B74: Venda Nova do Imigrante | C74: 335 | D74: 216 | E74: 206 | F74: 0.9537037037
A75: Metropolitana | B75: Viana | C75: 886 | D75: 595 | E75: 562 | F75: 0.9445378151
A76: Norte | B76: Vila Pavão | C76: 110 | D76: 83 | E76: 77 | F76: 0.9277108434
A77: Central | B77: Vila Valério | C77: 242 | D77: 174 | E77: 163 | F77: 0.9367816092
A78: Metropolitana | B78: Vila Velha | C78: 5488 | D78: 3818 | E78: 2882 | F78: 0.7548454688
A79: Metropolitana | B79: Vitória | C79: 3522 | D79: 2417 | E79: 2380 | F79: 0.9846917667
B81: Total Norte | C81: =SUMIF($A$2:$A$79,"Norte",C$2:C$79) -> 5700 | D81: =SUMIF($A$2:$A$79,"Norte",D$2:D$79) -> 4019 | E81: =SUMIF($A$2:$A$79,"Norte",E$2:E$79) -> 3433 | F81: 0.8541925852
B82: Total Central | C82: =SUMIF($A$2:$A$79,"CENTRAL",C$2:C$79) -> 6964 | D82: =SUMIF($A$2:$A$79,"CENTRAL",D$2:D$79) -> 4825 | E82: =SUMIF($A$2:$A$79,"CENTRAL",E$2:E$79) -> 4296 | F82: 0.8903626943
B83: Total Metropolitana | C83: =SUMIF($A$2:$A$79,"METROPOLITANA",C$2:C$79) -> 29213 | D83: =SUMIF($A$2:$A$79,"METROPOLITANA",D$2:D$79) -> 20159 | E83: =SUMIF($A$2:$A$79,"METROPOLITANA",E$2:E$79) -> 16862 | F83: 0.8364502207
B84: Total Sul | C84: =SUMIF($A$2:$A$79,"SUL",C$2:C$79) -> 8123 | D84: =SUMIF($A$2:$A$79,"SUL",D$2:D$79) -> 5560 | E84: =SUMIF($A$2:$A$79,"SUL",E$2:E$79) -> 4820 | F84: 0.8669064748
B85: TOTAL ES | C85: =SUM(C2:C79) -> 50000 | D85: =SUM(D2:D79) -> 34563 | E85: =SUM(E2:E79) -> 29411 | F85: =E85/D85 -> 0.8509388653
B86: HOMOGENEIDADE ENTRE MUNICÍPIOS | F86: =COUNTIF(F2:F79,">=0,95")/78 -> 0.3333333333
A89: Cobertura Vacinal dTpa das Gestantes de Janeiro a Agosto de 2025
A90: Fonte: Vacina e Confia, em 09 de Setembro de 2025.**<https://vacinaeconfia.saude.es.gov.br/>
A91: **Dados referente às doses aplicadas no período de Janeiro a Agosto de 2025
A92: Cobertura Calculada por município de procedência/ocorrência da vacinação
A93: 1 População anual extraída do MS/SVS/DASIS - SINASC/DASIS/SVS/MS 2024 (hoje preliminares) referente ao período de Julho a Dezembro de 2024 e SINASC/DASIS/SVS/MS referente ao período de Janeiro e Junho de 2025.
A94: ² População proporcional extraída do MS/SVS/DASIS - SINASC/DASIS/SVS/MS 2024 (hoje preliminares) referente ao período de Julho e Agosto de 2024 e Janeiro a Junho/ 2025.
A95: Sinasc, atualizado em 09/09/25.
A96: Método de Cálculo Simples
A97: Homogeineidade: O cálculo da Homogeineidade entre vacinas é feito de acordo com a pactuação estabelecida no Plano Plurianual (PPA) vigente no período 2024-2027.
A99: Observações:
A100: 1. Imunobiológicos que foram recebidos parcialmente pelo estado no mês de Agosto/2025, sendo distribuídos em quantidades reduzidas às regionais e municípios:
A101: SORO ANTIRRÁBICO HUMANO, IMUNOGLOBULINA ANTIRRÁBICA HUMANA, VACINA PNEUMO 13,VACINA PNEUMO 23.
A102: 2. Imunobiológicos indisponíveis no mês de Julho/2025, não sendo possível a distribuição às regionais e municípios:
A103: VACINA TRÍPLICE ACELULAR (DTPa) - CRIE e IMUNOGLOBULINA HUMANA ANTI-HEPATITE B - 100 UI

Sheet dTpa gestantes - residência
A1: REGIONAL | B1: MUNICÍPIO | C1: ¹POPULAÇÃO GESTANTE ANUAL | D1: ¹POPULAÇÃO PROPORCIONAL | E1: DOSES APLICADAS dTpa GESTANTES | F1: COBERTURA VACINAL dTpa GESTANTES
A2: Metropolitana | B2: Afonso Cláudio | C2: 369 | D2: 253 | E2: 218 | F2: =E2/D2 -> 0.8616600791
A3: Norte | B3: Água Doce do Norte | C3: 144 | D3: 103 | E3: 72 | F3: =E3/D3 -> 0.6990291262
A4: Central | B4: Águia Branca | C4: 155 | D4: 119 | E4: 65 | F4: 0.5462184874
A5: Sul | B5: Alegre | C5: 316 | D5: 218 | E5: 208 | F5: 0.9541284404
A6: Sul | B6: Alfredo Chaves | C6: 123 | D6: 87 | E6: 76 | F6: 0.8735632184
A7: Central | B7: Alto Rio Novo | C7: 104 | D7: 73 | E7: 73 | F7: 1
A8: Sul | B8: Anchieta | C8: 349 | D8: 234 | E8: 230 | F8: 0.9829059829
A9: Sul | B9: Apiacá | C9: 65 | D9: 38 | E9: 40 | F9: 1.052631579
A10: Metropolitana | B10: Aracruz | C10: 1395 | D10: 985 | E10: 805 | F10: 0.8172588832
A11: Sul | B11: Atilio Vivacqua | C11: 160 | D11: 103 | E11: 87 | F11: 0.8446601942
A12: Central | B12: Baixo Guandu | C12: 370 | D12: 280 | E12: 184 | F12: 0.6571428571
A13: Norte | B13: Barra de São Francisco | C13: 641 | D13: 450 | E13: 305 | F13: 0.6777777778
A14: Norte | B14: Boa Esperança | C14: 211 | D14: 145 | E14: 135 | F14: 0.9310344828
A15: Sul | B15: Bom Jesus do Norte | C15: 75 | D15: 56 | E15: 64 | F15: 1.142857143
A16: Metropolitana | B16: Brejetuba | C16: 220 | D16: 146 | E16: 143 | F16: 0.9794520548
A17: Sul | B17: Cachoeiro de Itapemirim | C17: 2343 | D17: 1624 | E17: 1282 | F17: 0.789408867
A18: Metropolitana | B18: Cariacica | C18: 4772 | D18: 3335 | E18: 2797 | F18: 0.8386806597
A19: Sul | B19: Castelo | C19: 417 | D19: 291 | E19: 299 | F19: 1.027491409
A20: Central | B20: Colatina | C20: 1490 | D20: 1029 | E20: 880 | F20: 0.8551992225
A21: Norte | B21: Conceição da Barra | C21: 380 | D21: 282 | E21: 299 | F21: 1.060283688
A22: Metropolitana | B22: Conceição do Castelo | C22: 179 | D22: 118 | E22: 96 | F22: 0.813559322
A23: Sul | B23: Divino de São Lourenço | C23: 52 | D23: 36 | E23: 40 | F23: 1.111111111
A24: Metropolitana | B24: Domingos Martins | C24: 424 | D24: 282 | E24: 254 | F24: 0.9007092199
A25: Sul | B25: Dores do Rio Preto | C25: 102 | D25: 71 | E25: 41 | F25: 0.5774647887
A26: Norte | B26: Ecoporanga | C26: 246 | D26: 161 | E26: 132 | F26: 0.8198757764
A27: Metropolitana | B27: Fundão | C27: 222 | D27: 149 | E27: 135 | F27: 0.9060402685
A28: Central | B28: Governador Lindenberg | C28: 131 | D28: 92 | E28: 109 | F28: 1.184782609
A29: Sul | B29: Guaçuí | C29: 382 | D29: 243 | E29: 209 | F29: 0.8600823045
A30: Metropolitana | B30: Guarapari | C30: 1689 | D30: 1155 | E30: 857 | F30: 0.741991342
A31: Metropolitana | B31: Ibatiba | C31: 403 | D31: 277 | E31: 241 | F31: 0.8700361011
A32: Metropolitana | B32: Ibiraçu | C32: 132 | D32: 86 | E32: 97 | F32: 1.127906977
A33: Sul | B33: Ibitirama | C33: 148 | D33: 102 | E33: 114 | F33: 1.117647059
A34: Sul | B34: Iconha | C34: 127 | D34: 81 | E34: 94 | F34: 1.160493827
A35: Sul | B35: Irupi | C35: 174 | D35: 127 | E35: 117 | F35: 0.9212598425
A36: Metropolitana | B36: Itaguaçu | C36: 129 | D36: 96 | E36: 79 | F36: 0.8229166667
A37: Sul | B37: Itapemirim | C37: 537 | D37: 356 | E37: 324 | F37: 0.9101123596
A38: Metropolitana | B38: Itarana | C38: 128 | D38: 95 | E38: 93 | F38: 0.9789473684
A39: Sul | B39: Iúna | C39: 391 | D39: 271 | E39: 211 | F39: 0.778597786
A40: Norte | B40: Jaguaré | C40: 451 | D40: 329 | E40: 270 | F40: 0.820668693
A41: Sul | B41: Jerônimo Monteiro | C41: 116 | D41: 75 | E41: 70 | F41: 0.9333333333
A42: Metropolitana | B42: João Neiva | C42: 153 | D42: 103 | E42: 76 | F42: 0.7378640777
A43: Metropolitana | B43: Laranja da Terra | C43: 128 | D43: 96 | E43: 74 | F43: 0.7708333333
A44: Central | B44: Linhares | C44: 2601 | D44: 1762 | E44: 1411 | F44: 0.8007945516
A45: Central | B45: Mantenópolis | C45: 128 | D45: 99 | E45: 83 | F45: 0.8383838384
A46: Sul | B46: Marataízes | C46: 550 | D46: 366 | E46: 333 | F46: 0.9098360656
A47: Metropolitana | B47: Marechal Floriano | C47: 201 | D47: 144 | E47: 121 | F47: 0.8402777778
A48: Central | B48: Marilândia | C48: 164 | D48: 115 | E48: 93 | F48: 0.8086956522
A49: Sul | B49: Mimoso do Sul | C49: 296 | D49: 210 | E49: 123 | F49: 0.5857142857
A50: Norte | B50: Montanha | C50: 237 | D50: 169 | E50: 187 | F50: 1.106508876
A51: Norte | B51: Mucurici | C51: 62 | D51: 41 | E51: 44 | F51: 1.073170732
A52: Sul | B52: Muniz Freire | C52: 230 | D52: 160 | E52: 152 | F52: 0.95
A53: Sul | B53: Muqui | C53: 158 | D53: 106 | E53: 93 | F53: 0.8773584906
A54: Norte | B54: Nova Venécia | C54: 669 | D54: 453 | E54: 467 | F54: 1.030905077
A55: Central | B55: Pancas | C55: 217 | D55: 147 | E55: 151 | F55: 1.027210884
A56: Norte | B56: Pedro Canário | C56: 343 | D56: 235 | E56: 240 | F56: 1.021276596
A57: Norte | B57: Pinheiros | C57: 334 | D57: 247 | E57: 220 | F57: 0.8906882591
A58: Sul | B58: Piúma | C58: 315 | D58: 210 | E58: 150 | F58: 0.7142857143
A59: Norte | B59: Ponto Belo | C59: 74 | D59: 49 | E59: 57 | F59: 1.163265306
A60: Sul | B60: Presidente Kennedy | C60: 213 | D60: 152 | E60: 128 | F60: 0.8421052632
A61: Central | B61: Rio Bananal | C61: 298 | D61: 198 | E61: 226 | F61: 1.141414141
A62: Sul | B62: Rio Novo do Sul | C62: 112 | D62: 84 | E62: 74 | F62: 0.880952381
A63: Metropolitana | B63: Santa Leopoldina | C63: 88 | D63: 66 | E63: 88 | F63: 1.333333333
A64: Metropolitana | B64: Santa Maria de Jetibá | C64: 710 | D64: 467 | E64: 349 | F64: 0.7473233405
A65: Metropolitana | B65: Santa Teresa | C65: 286 | D65: 197 | E65: 163 | F65: 0.8274111675
A66: Central | B66: São Domingos do Norte | C66: 105 | D66: 68 | E66: 83 | F66: 1.220588235
A67: Central | B67: São Gabriel da Palha | C67: 400 | D67: 287 | E67: 270 | F67: =E67/D67 -> 0.9407665505
A68: Sul | B68: São José do Calçado | C68: 95 | D68: 63 | E68: 53 | F68: 0.8412698413
A69: Norte | B69: São Mateus | C69: 1798 | D69: 1272 | E69: 859 | F69: 0.6753144654
A70: Central | B70: São Roque do Canaã | C70: 130 | D70: 95 | E70: 119 | F70: 1.252631579
A71: Metropolitana | B71: Serra | C71: 7354 | D71: 5063 | E71: 4013 | F71: 0.7926130753
A72: Central | B72: Sooretama | C72: 429 | D72: 287 | E72: 303 | F72: 1.055749129
A73: Sul | B73: Vargem Alta | C73: 277 | D73: 196 | E73: 163 | F73: 0.8316326531
A74: Metropolitana | B74: Venda Nova do Imigrante | C74: 335 | D74: 216 | E74: 233 | F74: 1.078703704
A75: Metropolitana | B75: Viana | C75: 886 | D75: 595 | E75: 563 | F75: 0.9462184874
A76: Norte | B76: Vila Pavão | C76: 110 | D76: 83 | E76: 71 | F76: 0.8554216867
A77: Central | B77: Vila Valério | C77: 242 | D77: 174 | E77: 153 | F77: 0.8793103448
A78: Metropolitana | B78: Vila Velha | C78: 5488 | D78: 3818 | E78: 2601 | F78: 0.681246726
A79: Metropolitana | B79: Vitória | C79: 3522 | D79: 2417 | E79: 2127 | F79: 0.8800165494
B81: Total Norte | C81: =SUMIF($A$2:$A$79,"Norte",C$2:C$79) -> 5700 | D81: =SUMIF($A$2:$A$79,"Norte",D$2:D$79) -> 4019 | E81: =SUMIF($A$2:$A$79,"Norte",E$2:E$79) -> 3358 | F81: 0.8355312267
B82: Total Central | C82: =SUMIF($A$2:$A$79,"CENTRAL",C$2:C$79) -> 6964 | D82: =SUMIF($A$2:$A$79,"CENTRAL",D$2:D$79) -> 4825 | E82: =SUMIF($A$2:$A$79,"CENTRAL",E$2:E$79) -> 4203 | F82: 0.8710880829
B83: Total Metropolitana | C83: =SUMIF($A$2:$A$79,"METROPOLITANA",C$2:C$79) -> 29213 | D83: =SUMIF($A$2:$A$79,"METROPOLITANA",D$2:D$79) -> 20159 | E83: =SUMIF($A$2:$A$79,"METROPOLITANA",E$2:E$79) -> 16223 | F83: 0.8047522199
B84: Total Sul | C84: =SUMIF($A$2:$A$79,"SUL",C$2:C$79) -> 8123 | D84: =SUMIF($A$2:$A$79,"SUL",D$2:D$79) -> 5560 | E84: =SUMIF($A$2:$A$79,"SUL",E$2:E$79) -> 4775 | F84: 0.8588129496
B85: TOTAL ES | C85: =SUM(C2:C79) -> 50000 | D85: =SUM(D2:D79) -> 34563 | E85: =SUM(E2:E79) -> 28559 | F85: =E85/D85 -> 0.8262882273
B86: HOMOGENEIDADE ENTRE MUNICÍPIOS | E86: =COUNTIF(F2:F79,">=0,95") -> 27 | F86: =COUNTIF(F2:F79,">=0,95")/78 -> 0.3461538462
A89: Cobertura Vacinal dTpa das Gestantes de Janeiro a Agosto de 2025
A90: Fonte: Vacina e Confia, em 09 de Setembro de 2025.**<https://vacinaeconfia.saude.es.gov.br/>
A91: **Dados referente às doses aplicadas no período de Janeiro a Agosto de 2025
A92: Cobertura Calculada por município de residência do cidadão (no Vacina e Confia, a origem da informação é o endereço que consta no cadastro do cidadão preenchido manualmente por meio do autocadastro ou pelo cadastro realizado por um profissional de saúde no momento do atendimento).
A93: 1 População anual extraída do MS/SVS/DASIS - SINASC/DASIS/SVS/MS 2024 (hoje preliminares) referente ao período de Julho a Dezembro de 2024 e SINASC/DASIS/SVS/MS referente ao período de Janeiro e Junho de 2025.
A94: ² População proporcional extraída do MS/SVS/DASIS - SINASC/DASIS/SVS/MS 2024 (hoje preliminares) referente ao período de Julho e Agosto de 2024 e Janeiro a Junho/ 2025.
A95: Sinasc, atualizado em 09/09/25.
A96: Método de Cálculo Simples
A97: Homogeineidade: O cálculo da Homogeineidade entre vacinas é feito de acordo com a pactuação estabelecida no Plano Plurianual (PPA) vigente no período 2024-2027.
A99: Observações:
A100: 1. Imunobiológicos que foram recebidos parcialmente pelo estado no mês de Agosto/2025, sendo distribuídos em quantidades reduzidas às regionais e municípios:
A101: SORO ANTIRRÁBICO HUMANO, IMUNOGLOBULINA ANTIRRÁBICA HUMANA, VACINA PNEUMO 13,VACINA PNEUMO 23.
A102: 2. Imunobiológicos indisponíveis no mês de Julho/2025, não sendo possível a distribuição às regionais e municípios:
A103: VACINA TRÍPLICE ACELULAR (DTPa) - CRIE e IMUNOGLOBULINA HUMANA ANTI-HEPATITE B - 100 UI

Sheet COVID-19 gestantes -Procedência
A1: REGIONAL | B1: MUNICÍPIO | C1: ¹POPULAÇÃO GESTANTE ANUAL | D1: ²POPULAÇÃO PROPORCIONAL | E1: DOSES APLICADAS COVID 19 GESTANTES | F1: COBERTURA VACINAL COVID GESTANTES
A2: Metropolitana | B2: Afonso Cláudio | C2: 369 | D2: 253 | E2: 1 | F2: =E2/D2 -> 0.00395256917
A3: Norte | B3: Água Doce do Norte | C3: 144 | D3: 103 | E3: 1 | F3: =E3/D3 -> 0.009708737864
A4: Central | B4: Águia Branca | C4: 155 | D4: 119 | E4: 1 | F4: 0.008403361345
A5: Sul | B5: Alegre | C5: 316 | D5: 218 | E5: 20 | F5: 0.09174311927
A6: Sul | B6: Alfredo Chaves | C6: 123 | D6: 87 | E6: 2 | F6: 0.02298850575
A7: Central | B7: Alto Rio Novo | C7: 104 | D7: 73 | E7: 0 | F7: 0
A8: Sul | B8: Anchieta | C8: 349 | D8: 234 | E8: 39 | F8: 0.1666666667
A9: Sul | B9: Apiacá | C9: 65 | D9: 38 | E9: 0 | F9: 0
A10: Metropolitana | B10: Aracruz | C10: 1395 | D10: 985 | E10: 137 | F10: 0.1390862944
A11: Sul | B11: Atilio Vivacqua | C11: 160 | D11: 103 | E11: 0 | F11: 0
A12: Central | B12: Baixo Guandu | C12: 370 | D12: 280 | E12: 0 | F12: 0
A13: Norte | B13: Barra de São Francisco | C13: 641 | D13: 450 | E13: 0 | F13: 0
A14: Norte | B14: Boa Esperança | C14: 211 | D14: 145 | E14: 4 | F14: 0.0275862069
A15: Sul | B15: Bom Jesus do Norte | C15: 75 | D15: 56 | E15: 3 | F15: 0.05357142857
A16: Metropolitana | B16: Brejetuba | C16: 220 | D16: 146 | E16: 0 | F16: 0
A17: Sul | B17: Cachoeiro de Itapemirim | C17: 2343 | D17: 1624 | E17: 90 | F17: 0.05541871921
A18: Metropolitana | B18: Cariacica | C18: 4772 | D18: 3335 | E18: 690 | F18: 0.2068965517
A19: Sul | B19: Castelo | C19: 417 | D19: 291 | E19: 0 | F19: 0
A20: Central | B20: Colatina | C20: 1490 | D20: 1029 | E20: 124 | F20: 0.120505345
A21: Norte | B21: Conceição da Barra | C21: 380 | D21: 282 | E21: 55 | F21: 0.195035461
A22: Metropolitana | B22: Conceição do Castelo | C22: 179 | D22: 118 | E22: 22 | F22: 0.186440678
A23: Sul | B23: Divino de São Lourenço | C23: 52 | D23: 36 | E23: 5 | F23: 0.1388888889
A24: Metropolitana | B24: Domingos Martins | C24: 424 | D24: 282 | E24: 37 | F24: 0.1312056738
A25: Sul | B25: Dores do Rio Preto | C25: 102 | D25: 71 | E25: 9 | F25: 0.1267605634
A26: Norte | B26: Ecoporanga | C26: 246 | D26: 161 | E26: 27 | F26: 0.1677018634
A27: Metropolitana | B27: Fundão | C27: 222 | D27: 149 | E27: 8 | F27: 0.05369127517
A28: Central | B28: Governador Lindenberg | C28: 131 | D28: 92 | E28: 8 | F28: 0.08695652174
A29: Sul | B29: Guaçuí | C29: 382 | D29: 243 | E29: 1 | F29: 0.004115226337
A30: Metropolitana | B30: Guarapari | C30: 1689 | D30: 1155 | E30: 72 | F30: 0.06233766234
A31: Metropolitana | B31: Ibatiba | C31: 403 | D31: 277 | E31: 18 | F31: 0.06498194946
A32: Metropolitana | B32: Ibiraçu | C32: 132 | D32: 86 | E32: 1 | F32: 0.01162790698
A33: Sul | B33: Ibitirama | C33: 148 | D33: 102 | E33: 20 | F33: 0.1960784314
A34: Sul | B34: Iconha | C34: 127 | D34: 81 | E34: 7 | F34: 0.08641975309
A35: Sul | B35: Irupi | C35: 174 | D35: 127 | E35: 6 | F35: 0.04724409449
A36: Metropolitana | B36: Itaguaçu | C36: 129 | D36: 96 | E36: 2 | F36: 0.02083333333
A37: Sul | B37: Itapemirim | C37: 537 | D37: 356 | E37: 26 | F37: 0.07303370787
A38: Metropolitana | B38: Itarana | C38: 128 | D38: 95 | E38: 0 | F38: 0
A39: Sul | B39: Iúna | C39: 391 | D39: 271 | E39: 2 | F39: 0.007380073801
A40: Norte | B40: Jaguaré | C40: 451 | D40: 329 | E40: 20 | F40: 0.06079027356
A41: Sul | B41: Jerônimo Monteiro | C41: 116 | D41: 75 | E41: 12 | F41: 0.16
A42: Metropolitana | B42: João Neiva | C42: 153 | D42: 103 | E42: 0 | F42: 0
A43: Metropolitana | B43: Laranja da Terra | C43: 128 | D43: 96 | E43: 0 | F43: 0
A44: Central | B44: Linhares | C44: 2601 | D44: 1762 | E44: 25 | F44: 0.01418842225
A45: Central | B45: Mantenópolis | C45: 128 | D45: 99 | E45: 1 | F45: 0.0101010101
A46: Sul | B46: Marataízes | C46: 550 | D46: 366 | E46: 9 | F46: 0.02459016393
A47: Metropolitana | B47: Marechal Floriano | C47: 201 | D47: 144 | E47: 19 | F47: 0.1319444444
A48: Central | B48: Marilândia | C48: 164 | D48: 115 | E48: 2 | F48: 0.01739130435
A49: Sul | B49: Mimoso do Sul | C49: 296 | D49: 210 | E49: 19 | F49: 0.09047619048
A50: Norte | B50: Montanha | C50: 237 | D50: 169 | E50: 22 | F50: 0.1301775148
A51: Norte | B51: Mucurici | C51: 62 | D51: 41 | E51: 9 | F51: 0.2195121951
A52: Sul | B52: Muniz Freire | C52: 230 | D52: 160 | E52: 2 | F52: 0.0125
A53: Sul | B53: Muqui | C53: 158 | D53: 106 | E53: 3 | F53: 0.02830188679
A54: Norte | B54: Nova Venécia | C54: 669 | D54: 453 | E54: 19 | F54: 0.04194260486
A55: Central | B55: Pancas | C55: 217 | D55: 147 | E55: 9 | F55: 0.0612244898
A56: Norte | B56: Pedro Canário | C56: 343 | D56: 235 | E56: 26 | F56: 0.1106382979
A57: Norte | B57: Pinheiros | C57: 334 | D57: 247 | E57: 13 | F57: 0.05263157895
A58: Sul | B58: Piúma | C58: 315 | D58: 210 | E58: 18 | F58: 0.08571428571
A59: Norte | B59: Ponto Belo | C59: 74 | D59: 49 | E59: 0 | F59: 0
A60: Sul | B60: Presidente Kennedy | C60: 213 | D60: 152 | E60: 0 | F60: 0
A61: Central | B61: Rio Bananal | C61: 298 | D61: 198 | E61: 11 | F61: 0.05555555556
A62: Sul | B62: Rio Novo do Sul | C62: 112 | D62: 84 | E62: 3 | F62: 0.03571428571
A63: Metropolitana | B63: Santa Leopoldina | C63: 88 | D63: 66 | E63: 2 | F63: 0.0303030303
A64: Metropolitana | B64: Santa Maria de Jetibá | C64: 710 | D64: 467 | E64: 6 | F64: 0.01284796574
A65: Metropolitana | B65: Santa Teresa | C65: 286 | D65: 197 | E65: 12 | F65: 0.06091370558
A66: Central | B66: São Domingos do Norte | C66: 105 | D66: 68 | E66: 4 | F66: 0.05882352941
A67: Central | B67: São Gabriel da Palha | C67: 400 | D67: 287 | E67: 1 | F67: =E67/D67 -> 0.003484320557
A68: Sul | B68: São José do Calçado | C68: 95 | D68: 63 | E68: 1 | F68: 0.01587301587
A69: Norte | B69: São Mateus | C69: 1798 | D69: 1272 | E69: 153 | F69: 0.1202830189
A70: Central | B70: São Roque do Canaã | C70: 130 | D70: 95 | E70: 13 | F70: 0.1368421053
A71: Metropolitana | B71: Serra | C71: 7354 | D71: 5063 | E71: 873 | F71: 0.1724274146
A72: Central | B72: Sooretama | C72: 429 | D72: 287 | E72: 37 | F72: 0.1289198606
A73: Sul | B73: Vargem Alta | C73: 277 | D73: 196 | E73: 9 | F73: 0.04591836735
A74: Metropolitana | B74: Venda Nova do Imigrante | C74: 335 | D74: 216 | E74: 21 | F74: 0.09722222222
A75: Metropolitana | B75: Viana | C75: 886 | D75: 595 | E75: 120 | F75: 0.2016806723
A76: Norte | B76: Vila Pavão | C76: 110 | D76: 83 | E76: 1 | F76: 0.01204819277
A77: Central | B77: Vila Valério | C77: 242 | D77: 174 | E77: 0 | F77: 0
A78: Metropolitana | B78: Vila Velha | C78: 5488 | D78: 3818 | E78: 584 | F78: 0.1529596647
A79: Metropolitana | B79: Vitória | C79: 3522 | D79: 2417 | E79: 463 | F79: 0.1915597849
B81: Total Norte | C81: =SUMIF($A$2:$A$79,"Norte",C$2:C$79) -> 5700 | D81: =SUMIF($A$2:$A$79,"Norte",D$2:D$79) -> 4019 | E81: =SUMIF($A$2:$A$79,"Norte",E$2:E$79) -> 350 | F81: =E81/D81 -> 0.08708633989
B82: Total Central | C82: =SUMIF($A$2:$A$79,"CENTRAL",C$2:C$79) -> 6964 | D82: =SUMIF($A$2:$A$79,"CENTRAL",D$2:D$79) -> 4825 | E82: =SUMIF($A$2:$A$79,"cENTRAL",E$2:E$79) -> 236 | F82: 0.0489119171
B83: Total Metropolitana | C83: =SUMIF($A$2:$A$79,"METROPOLITANA",C$2:C$79) -> 29213 | D83: =SUMIF($A$2:$A$79,"METROPOLITANA",D$2:D$79) -> 20159 | E83: =SUMIF($A$2:$A$79,"Metropolitana",E$2:E$79) -> 3088 | F83: 0.1531822015
B84: Total Sul | C84: =SUMIF($A$2:$A$79,"SUL",C$2:C$79) -> 8123 | D84: =SUMIF($A$2:$A$79,"SUL",D$2:D$79) -> 5560 | E84: =SUMIF($A$2:$A$79,"sul",E$2:E$79) -> 306 | F84: 0.05503597122
B85: TOTAL ES | C85: =SUM(C2:C79) -> 50000 | D85: =SUM(D2:D79) -> 34563 | E85: =SUM(E2:E79) -> 3980 | F85: =E85/D85 -> 0.1151520412
B86: HOMOGENEIDADE ENTRE MUNICÍPIOS | F86: =COUNTIF(F2:F79,">=0,90")/78 -> 0
A89: Cobertura Vacinal Covid-19 das Gestantes de Janeiro a Agosto de 2025
A90: Fonte: Vacina e Confia, em 22 de Setembro de 2025.**<https://vacinaeconfia.saude.es.gov.br/>
A91: **Dados referente às doses aplicadas no período de Janeiro a Agosto de 2025
A92: Cobertura Calculada por município de procedência/ocorrência da vacinação
A93: 1 População anual extraída do MS/SVS/DASIS - SINASC/DASIS/SVS/MS 2024 (hoje preliminares) referente ao período de Julho a Dezembro/ 2024 e SINASC/DASIS/SVS/MS 2025 referente ao período de Janeiro a Junho/2025.
A94: ² População proporcional extraída do MS/SVS/DASIS - SINASC/DASIS/SVS/MS 2024 (hoje preliminares) referente ao período de Julho e Agosto/2024 e Janeiro a Junho/2025.
A95: Sinasc, atualizado em 09/09/25.
A96: Método de Cálculo Simples
A97: Homogeineidade: O cálculo da Homogeineidade entre vacinas é feito de acordo com a pactuação estabelecida no Plano Plurianual (PPA) vigente no período 2024-2027.
A99: Observações:
A100: 1. Imunobiológicos que foram recebidos parcialmente pelo estado no mês de Agosto/2025, sendo distribuídos em quantidades reduzidas às regionais e municípios:
A101: SORO ANTIRRÁBICO HUMANO, IMUNOGLOBULINA ANTIRRÁBICA HUMANA, VACINA PNEUMO 13,VACINA PNEUMO 23.
A102: 2. Imunobiológicos indisponíveis no mês de Julho/2025, não sendo possível a distribuição às regionais e municípios:
A103: VACINA TRÍPLICE ACELULAR (DTPa) - CRIE e IMUNOGLOBULINA HUMANA ANTI-HEPATITE B - 100 UI

Sheet COVID-19 gestantes -Residência
A1: REGIONAL | B1: MUNICÍPIO | C1: ¹POPULAÇÃO GESTANTE ANUAL | D1: ²POPULAÇÃO PROPORCIONAL | E1: DOSES APLICADAS COVID GESTANTES | F1: COBERTURA VACINAL COVID GESTANTES
A2: Metropolitana | B2: Afonso Cláudio | C2: 369 | D2: 253 | E2: 7 | F2: =E2/D2 -> 0.02766798419
A3: Norte | B3: Água Doce do Norte | C3: 144 | D3: 103 | E3: 0 | F3: =E3/D3 -> 0
A4: Central | B4: Águia Branca | C4: 155 | D4: 119 | E4: 2 | F4: 0.01680672269
A5: Sul | B5: Alegre | C5: 316 | D5: 218 | E5: 20 | F5: 0.09174311927
A6: Sul | B6: Alfredo Chaves | C6: 123 | D6: 87 | E6: 3 | F6: 0.03448275862
A7: Central | B7: Alto Rio Novo | C7: 104 | D7: 73 | E7: 2 | F7: 0.02739726027
A8: Sul | B8: Anchieta | C8: 349 | D8: 234 | E8: 42 | F8: 0.1794871795
A9: Sul | B9: Apiacá | C9: 65 | D9: 38 | E9: 1 | F9: 0.02631578947
A10: Metropolitana | B10: Aracruz | C10: 1395 | D10: 985 | E10: 123 | F10: 0.1248730964
A11: Sul | B11: Atilio Vivacqua | C11: 160 | D11: 103 | E11: 0 | F11: 0
A12: Central | B12: Baixo Guandu | C12: 370 | D12: 280 | E12: 6 | F12: 0.02142857143
A13: Norte | B13: Barra de São Francisco | C13: 641 | D13: 450 | E13: 7 | F13: 0.01555555556
A14: Norte | B14: Boa Esperança | C14: 211 | D14: 145 | E14: 8 | F14: 0.05517241379
A15: Sul | B15: Bom Jesus do Norte | C15: 75 | D15: 56 | E15: 3 | F15: 0.05357142857
A16: Metropolitana | B16: Brejetuba | C16: 220 | D16: 146 | E16: 2 | F16: 0.01369863014
A17: Sul | B17: Cachoeiro de Itapemirim | C17: 2343 | D17: 1624 | E17: 89 | F17: 0.05480295567
A18: Metropolitana | B18: Cariacica | C18: 4772 | D18: 3335 | E18: 718 | F18: 0.2152923538
A19: Sul | B19: Castelo | C19: 417 | D19: 291 | E19: 3 | F19: 0.01030927835
A20: Central | B20: Colatina | C20: 1490 | D20: 1029 | E20: 121 | F20: 0.1175898931
A21: Norte | B21: Conceição da Barra | C21: 380 | D21: 282 | E21: 56 | F21: 0.1985815603
A22: Metropolitana | B22: Conceição do Castelo | C22: 179 | D22: 118 | E22: 20 | F22: 0.1694915254
A23: Sul | B23: Divino de São Lourenço | C23: 52 | D23: 36 | E23: 5 | F23: 0.1388888889
A24: Metropolitana | B24: Domingos Martins | C24: 424 | D24: 282 | E24: 30 | F24: 0.1063829787
A25: Sul | B25: Dores do Rio Preto | C25: 102 | D25: 71 | E25: 8 | F25: 0.1126760563
A26: Norte | B26: Ecoporanga | C26: 246 | D26: 161 | E26: 25 | F26: 0.1552795031
A27: Metropolitana | B27: Fundão | C27: 222 | D27: 149 | E27: 10 | F27: 0.06711409396
A28: Central | B28: Governador Lindenberg | C28: 131 | D28: 92 | E28: 6 | F28: 0.0652173913
A29: Sul | B29: Guaçuí | C29: 382 | D29: 243 | E29: 3 | F29: 0.01234567901
A30: Metropolitana | B30: Guarapari | C30: 1689 | D30: 1155 | E30: 77 | F30: 0.06666666667
A31: Metropolitana | B31: Ibatiba | C31: 403 | D31: 277 | E31: 13 | F31: 0.04693140794
A32: Metropolitana | B32: Ibiraçu | C32: 132 | D32: 86 | E32: 5 | F32: 0.05813953488
A33: Sul | B33: Ibitirama | C33: 148 | D33: 102 | E33: 19 | F33: 0.1862745098
A34: Sul | B34: Iconha | C34: 127 | D34: 81 | E34: 5 | F34: 0.06172839506
A35: Sul | B35: Irupi | C35: 174 | D35: 127 | E35: 7 | F35: 0.05511811024
A36: Metropolitana | B36: Itaguaçu | C36: 129 | D36: 96 | E36: 5 | F36: 0.05208333333
A37: Sul | B37: Itapemirim | C37: 537 | D37: 356 | E37: 27 | F37: 0.07584269663
A38: Metropolitana | B38: Itarana | C38: 128 | D38: 95 | E38: 2 | F38: 0.02105263158
A39: Sul | B39: Iúna | C39: 391 | D39: 271 | E39: 5 | F39: 0.0184501845
A40: Norte | B40: Jaguaré | C40: 451 | D40: 329 | E40: 19 | F40: 0.05775075988
A41: Sul | B41: Jerônimo Monteiro | C41: 116 | D41: 75 | E41: 7 | F41: 0.09333333333
A42: Metropolitana | B42: João Neiva | C42: 153 | D42: 103 | E42: 0 | F42: 0
A43: Metropolitana | B43: Laranja da Terra | C43: 128 | D43: 96 | E43: 0 | F43: 0
A44: Central | B44: Linhares | C44: 2601 | D44: 1762 | E44: 55 | F44: 0.03121452894
A45: Central | B45: Mantenópolis | C45: 128 | D45: 99 | E45: 3 | F45: 0.0303030303
A46: Sul | B46: Marataízes | C46: 550 | D46: 366 | E46: 10 | F46: 0.02732240437
A47: Metropolitana | B47: Marechal Floriano | C47: 201 | D47: 144 | E47: 24 | F47: 0.1666666667
A48: Central | B48: Marilândia | C48: 164 | D48: 115 | E48: 2 | F48: 0.01739130435
A49: Sul | B49: Mimoso do Sul | C49: 296 | D49: 210 | E49: 19 | F49: 0.09047619048
A50: Norte | B50: Montanha | C50: 237 | D50: 169 | E50: 25 | F50: 0.1479289941
A51: Norte | B51: Mucurici | C51: 62 | D51: 41 | E51: 6 | F51: 0.1463414634
A52: Sul | B52: Muniz Freire | C52: 230 | D52: 160 | E52: 3 | F52: 0.01875
A53: Sul | B53: Muqui | C53: 158 | D53: 106 | E53: 2 | F53: 0.01886792453
A54: Norte | B54: Nova Venécia | C54: 669 | D54: 453 | E54: 29 | F54: 0.06401766004
A55: Central | B55: Pancas | C55: 217 | D55: 147 | E55: 6 | F55: 0.04081632653
A56: Norte | B56: Pedro Canário | C56: 343 | D56: 235 | E56: 31 | F56: 0.1319148936
A57: Norte | B57: Pinheiros | C57: 334 | D57: 247 | E57: 16 | F57: 0.06477732794
A58: Sul | B58: Piúma | C58: 315 | D58: 210 | E58: 19 | F58: 0.09047619048
A59: Norte | B59: Ponto Belo | C59: 74 | D59: 49 | E59: 3 | F59: 0.0612244898
A60: Sul | B60: Presidente Kennedy | C60: 213 | D60: 152 | E60: 1 | F60: 0.006578947368
A61: Central | B61: Rio Bananal | C61: 298 | D61: 198 | E61: 14 | F61: 0.07070707071
A62: Sul | B62: Rio Novo do Sul | C62: 112 | D62: 84 | E62: 2 | F62: 0.02380952381
A63: Metropolitana | B63: Santa Leopoldina | C63: 88 | D63: 66 | E63: 4 | F63: 0.06060606061
A64: Metropolitana | B64: Santa Maria de Jetibá | C64: 710 | D64: 467 | E64: 10 | F64: 0.02141327623
A65: Metropolitana | B65: Santa Teresa | C65: 286 | D65: 197 | E65: 14 | F65: 0.07106598985
A66: Central | B66: São Domingos do Norte | C66: 105 | D66: 68 | E66: 6 | F66: 0.08823529412
A67: Central | B67: São Gabriel da Palha | C67: 400 | D67: 287 | E67: 2 | F67: =E67/D67 -> 0.006968641115
A68: Sul | B68: São José do Calçado | C68: 95 | D68: 63 | E68: 1 | F68: 0.01587301587
A69: Norte | B69: São Mateus | C69: 1798 | D69: 1272 | E69: 127 | F69: 0.0998427673
A70: Central | B70: São Roque do Canaã | C70: 130 | D70: 95 | E70: 15 | F70: 0.1578947368
A71: Metropolitana | B71: Serra | C71: 7354 | D71: 5063 | E71: 825 | F71: 0.1629468694
A72: Central | B72: Sooretama | C72: 429 | D72: 287 | E72: 33 | F72: 0.1149825784
A73: Sul | B73: Vargem Alta | C73: 277 | D73: 196 | E73: 9 | F73: 0.04591836735
A74: Metropolitana | B74: Venda Nova do Imigrante | C74: 335 | D74: 216 | E74: 23 | F74: 0.1064814815
A75: Metropolitana | B75: Viana | C75: 886 | D75: 595 | E75: 116 | F75: 0.1949579832
A76: Norte | B76: Vila Pavão | C76: 110 | D76: 83 | E76: 2 | F76: 0.02409638554
A77: Central | B77: Vila Valério | C77: 242 | D77: 174 | E77: 7 | F77: 0.04022988506
A78: Metropolitana | B78: Vila Velha | C78: 5488 | D78: 3818 | E78: 513 | F78: 0.1343635411
A79: Metropolitana | B79: Vitória | C79: 3522 | D79: 2417 | E79: 401 | F79: 0.1659081506
B81: Total Norte | C81: =SUMIF($A$2:$A$79,"Norte",C$2:C$79) -> 5700 | D81: =SUMIF($A$2:$A$79,"Norte",D$2:D$79) -> 4019 | E81: =SUMIF($A$2:$A$79,"Norte",E$2:E$79) -> 354 | F81: =E81/D81 -> 0.08808161234
B82: Total Central | C82: =SUMIF($A$2:$A$79,"CENTRAL",C$2:C$79) -> 6964 | D82: =SUMIF($A$2:$A$79,"CENTRAL",D$2:D$79) -> 4825 | E82: =SUMIF($A$2:$A$79,"CENTRAL",E$2:E$79) -> 280 | F82: 0.05803108808
B83: Total Metropolitana | C83: =SUMIF($A$2:$A$79,"METROPOLITANA",C$2:C$79) -> 29213 | D83: =SUMIF($A$2:$A$79,"METROPOLITANA",D$2:D$79) -> 20159 | E83: =SUMIF($A$2:$A$79,"METROPOLITANA",E$2:E$79) -> 2942 | F83: 0.1459397788
B84: Total Sul | C84: =SUMIF($A$2:$A$79,"SUL",C$2:C$79) -> 8123 | D84: =SUMIF($A$2:$A$79,"SUL",D$2:D$79) -> 5560 | E84: =SUMIF($A$2:$A$79,"SUL",E$2:E$79) -> 313 | F84: 0.05629496403
B85: TOTAL ES | C85: =SUM(C2:C79) -> 50000 | D85: =SUM(D2:D79) -> 34563 | E85: =SUM(E2:E79) -> 3889 | F85: =E85/D85 -> 0.1125191679
B86: HOMOGENEIDADE ENTRE MUNICÍPIOS | E86: =COUNTIF(F2:F79,">=0,95") -> 0 | F86: =COUNTIF(F2:F79,">=0,90")/78 -> 0
A89: Cobertura Vacinal Covid-19 das Gestantes de Janeiro a Agosto de 2025
A90: Fonte: Vacina e Confia, em 23 de Setembro de 2025.**<https://vacinaeconfia.saude.es.gov.br/>
A91: **Dados referente às doses aplicadas no período de Janeiro a Agosto de 2025
A92: Cobertura Calculada por município de residência do cidadão (no Vacina e Confia, a origem da informação é o endereço que consta no cadastro do cidadão preenchido manualmente por meio do autocadastro ou pelo cadastro realizado por um profissional de saúde no momento do atendimento).
A93: 1 População anual extraída do MS/SVS/DASIS - SINASC/DASIS/SVS/MS 2024 (hoje preliminares) referente ao período de Julho a Dezembro/ 2024 e SINASC/DASIS/SVS/MS 2025 referente ao período de Janeiro a Junho/2025.
A94: ² População proporcional extraída do MS/SVS/DASIS - SINASC/DASIS/SVS/MS 2024 (hoje preliminares) referente ao período de Julho e Agosto/2024 e Janeiro a Junho/2025.
A95: Sinasc, atualizado em 09/09/25.
A96: Método de Cálculo Simples
A97: Homogeineidade: O cálculo da Homogeineidade entre vacinas é feito de acordo com a pactuação estabelecida no Plano Plurianual (PPA) vigente no período 2024-2027.
A99: Observações:
A100: 1. Imunobiológicos que foram recebidos parcialmente pelo estado no mês de Agosto/2025, sendo distribuídos em quantidades reduzidas às regionais e municípios:
A101: SORO ANTIRRÁBICO HUMANO, IMUNOGLOBULINA ANTIRRÁBICA HUMANA, VACINA PNEUMO 13,VACINA PNEUMO 23.
A102: 2. Imunobiológicos indisponíveis no mês de Julho/2025, não sendo possível a distribuição às regionais e municípios:
A103: VACINA TRÍPLICE ACELULAR (DTPa) - CRIE e IMUNOGLOBULINA HUMANA ANTI-HEPATITE B - 100 UI

Sheet COVID-19 idoso -Procêdencia
A1: Regional | B1: Município | C1: População 60 anos + | D1: TOTAL DE DOSES APLICADAS COVID-19 | E1: COBERTURA COVID-19
A2: Metropolitana | B2: Afonso Cláudio | C2: 5905 | D2: 26 | E2: =(D2/C2) -> 0.004403048264
A3: Norte | B3: Água Doce do Norte | C3: 2357 | D3: 29 | E3: =(D3/C3) -> 0.01230377599
A4: Central | B4: Águia Branca | C4: 1775 | D4: 36 | E4: 0.02028169014
A5: Sul | B5: Alegre | C5: 5949 | D5: 345 | E5: 0.05799293999
A6: Sul | B6: Alfredo Chaves | C6: 3040 | D6: 162 | E6: 0.05328947368
A7: Central | B7: Alto Rio Novo | C7: 1417 | D7: 3 | E7: 0.002117148906
A8: Sul | B8: Anchieta | C8: 5080 | D8: 614 | E8: 0.1208661417
A9: Sul | B9: Apiacá | C9: 1536 | D9: 42 | E9: 0.02734375
A10: Metropolitana | B10: Aracruz | C10: 13047 | D10: 1453 | E10: 0.1113665977
A11: Sul | B11: Atilio Vivacqua | C11: 1843 | D11: 145 | E11: 0.07867607162
A12: Central | B12: Baixo Guandu | C12: 5706 | D12: 192 | E12: 0.03364879075
A13: Norte | B13: Barra de São Francisco | C13: 7226 | D13: 357 | E13: 0.04940492665
A14: Norte | B14: Boa Esperança | C14: 2317 | D14: 26 | E14: 0.01122140699
A15: Sul | B15: Bom Jesus do Norte | C15: 1991 | D15: 352 | E15: 0.1767955801
A16: Metropolitana | B16: Brejetuba | C16: 1637 | D16: 8 | E16: 0.004886988393
A17: Sul | B17: Cachoeiro de Itapemirim | C17: 32906 | D17: 3412 | E17: 0.1036892968
A18: Metropolitana | B18: Cariacica | C18: 54005 | D18: 7748 | E18: 0.1434681974
A19: Sul | B19: Castelo | C19: 7171 | D19: 397 | E19: 0.05536187422
A20: Central | B20: Colatina | C20: 21491 | D20: 2473 | E20: 0.1150714252
A21: Norte | B21: Conceição da Barra | C21: 4468 | D21: 298 | E21: 0.0666965085
A22: Metropolitana | B22: Conceição do Castelo | C22: 2176 | D22: 109 | E22: 0.05009191176
A23: Sul | B23: Divino de São Lourenço | C23: 847 | D23: 67 | E23: 0.07910271547
A24: Metropolitana | B24: Domingos Martins | C24: 6358 | D24: 838 | E24: 0.1318024536
A25: Sul | B25: Dores do Rio Preto | C25: 1145 | D25: 230 | E25: 0.2008733624
A26: Norte | B26: Ecoporanga | C26: 4274 | D26: 353 | E26: 0.08259241928
A27: Metropolitana | B27: Fundão | C27: 3432 | D27: 334 | E27: 0.09731934732
A28: Central | B28: Governador Lindenberg | C28: 1987 | D28: 75 | E28: 0.03774534474
A29: Sul | B29: Guaçuí | C29: 5504 | D29: 203 | E29: 0.03688226744
A30: Metropolitana | B30: Guarapari | C30: 21755 | D30: 1796 | E30: 0.08255573431
A31: Metropolitana | B31: Ibatiba | C31: 3852 | D31: 129 | E31: 0.03348909657
A32: Metropolitana | B32: Ibiraçu | C32: 2121 | D32: 101 | E32: 0.04761904762
A33: Sul | B33: Ibitirama | C33: 1400 | D33: 83 | E33: 0.05928571429
A34: Sul | B34: Iconha | C34: 2560 | D34: 209 | E34: 0.081640625
A35: Sul | B35: Irupi | C35: 2006 | D35: 209 | E35: 0.1041874377
A36: Metropolitana | B36: Itaguaçu | C36: 3214 | D36: 180 | E36: 0.05600497822
A37: Sul | B37: Itapemirim | C37: 6549 | D37: 290 | E37: 0.04428156971
A38: Metropolitana | B38: Itarana | C38: 2389 | D38: 45 | E38: 0.01883633319
A39: Sul | B39: Iúna | C39: 4417 | D39: 92 | E39: 0.02082861671
A40: Norte | B40: Jaguaré | C40: 3734 | D40: 514 | E40: 0.1376539904
A41: Sul | B41: Jerônimo Monteiro | C41: 2356 | D41: 331 | E41: 0.1404923599
A42: Metropolitana | B42: João Neiva | C42: 3012 | D42: 74 | E42: 0.02456839309
A43: Metropolitana | B43: Laranja da Terra | C43: 2471 | D43: 33 | E43: 0.01335491704
A44: Central | B44: Linhares | C44: 21740 | D44: 899 | E44: 0.04135234591
A45: Central | B45: Mantenópolis | C45: 2524 | D45: 5 | E45: 0.001980982567
A46: Sul | B46: Marataízes | C46: 7611 | D46: 378 | E46: 0.04966495861
A47: Metropolitana | B47: Marechal Floriano | C47: 2879 | D47: 366 | E47: 0.1271274748
A48: Central | B48: Marilândia | C48: 2476 | D48: 32 | E48: 0.01292407108
A49: Sul | B49: Mimoso do Sul | C49: 5077 | D49: 143 | E49: 0.02816623991
A50: Norte | B50: Montanha | C50: 3304 | D50: 474 | E50: 0.1434624697
A51: Norte | B51: Mucurici | C51: 1090 | D51: 43 | E51: 0.03944954128
A52: Sul | B52: Muniz Freire | C52: 3309 | D52: 172 | E52: 0.05197944998
A53: Sul | B53: Muqui | C53: 2780 | D53: 93 | E53: 0.03345323741
A54: Norte | B54: Nova Venécia | C54: 8352 | D54: 545 | E54: 0.06525383142
A55: Central | B55: Pancas | C55: 3687 | D55: 152 | E55: 0.04122592894
A56: Norte | B56: Pedro Canário | C56: 3253 | D56: 149 | E56: 0.04580387335
A57: Norte | B57: Pinheiros | C57: 3762 | D57: 199 | E57: 0.052897395
A58: Sul | B58: Piúma | C58: 3886 | D58: 265 | E58: 0.06819351518
A59: Norte | B59: Ponto Belo | C59: 1330 | D59: 44 | E59: 0.03308270677
A60: Sul | B60: Presidente Kennedy | C60: 2214 | D60: 23 | E60: 0.01038843722
A61: Central | B61: Rio Bananal | C61: 3071 | D61: 248 | E61: 0.08075545425
A62: Sul | B62: Rio Novo do Sul | C62: 2232 | D62: 40 | E62: 0.01792114695
A63: Metropolitana | B63: Santa Leopoldina | C63: 2634 | D63: 59 | E63: 0.02239939256
A64: Metropolitana | B64: Santa Maria de Jetibá | C64: 5552 | D64: 219 | E64: 0.03944524496
A65: Metropolitana | B65: Santa Teresa | C65: 4767 | D65: 271 | E65: 0.05684917139
A66: Central | B66: São Domingos do Norte | C66: 1520 | D66: 113 | E66: 0.07434210526
A67: Central | B67: São Gabriel da Palha | C67: 5456 | D67: 54 | E67: =(D67/C67) -> 0.009897360704
A68: Sul | B68: São José do Calçado | C68: 2456 | D68: 85 | E68: 0.03460912052
A69: Norte | B69: São Mateus | C69: 17649 | D69: 2371 | E69: 0.1343418891
A70: Central | B70: São Roque do Canaã | C70: 2370 | D70: 132 | E70: 0.05569620253
A71: Metropolitana | B71: Serra | C71: 66481 | D71: 10795 | E71: 0.1623772206
A72: Central | B72: Sooretama | C72: 3097 | D72: 85 | E72: 0.0274459154
A73: Sul | B73: Vargem Alta | C73: 3365 | D73: 151 | E73: 0.04487369985
A74: Metropolitana | B74: Venda Nova do Imigrante | C74: 3766 | D74: 462 | E74: 0.1226765799
A75: Metropolitana | B75: Viana | C75: 9758 | D75: 1348 | E75: 0.1381430621
A76: Norte | B76: Vila Pavão | C76: 1510 | D76: 204 | E76: 0.1350993377
A77: Central | B77: Vila Valério | C77: 2160 | D77: 103 | E77: 0.04768518519
A78: Metropolitana | B78: Vila Velha | C78: 81049 | D78: 9836 | E78: 0.1213586843
A79: Metropolitana | B79: Vitória | C79: 64805 | D79: 9354 | E79: 0.1443407145
B81: Total Norte | C81: =SUMIF($A$2:$A$79,"Norte",C$2:C$79) -> 64626 | D81: =SUMIF($A$2:$A$79,"Norte",D$2:D$79) -> 5606 | E81: =D81/C81 -> 0.0867452728
B82: Total Central | C82: =SUMIF($A$2:$A$79,"Central",C$2:C$79) -> 80477 | D82: =SUMIF($A$2:$A$79,"Central",D$2:D$79) -> 4602 | E82: =D82/C82 -> 0.05718404016
B83: Total Metropolitana | C83: =SUMIF($A$2:$A$79,"Metropolitana",C$2:C$79) -> 367065 | D83: =SUMIF($A$2:$A$79,"Metropolitana",D$2:D$79) -> 45584 | E83: 0.1241850898
B84: Total Sul | C84: =SUMIF($A$2:$A$79,"sul",C$2:C$79) -> 119230 | D84: =SUMIF($A$2:$A$79,"sul",D$2:D$79) -> 8533 | E84: 0.0715675585
B85: Total Espírito Santo | C85: =SUM(C2:C79) -> 631398 | D85: =SUM(D2:D79) -> 64325 | E85: 0.1018771045
B86: HOMOGENEIDADE ENTRE MUNICÍPIOS | E86: =COUNTIF(E2:E79,">=0,90")/78 -> 0
A88: Cobertura Vacinal Covid19 dos Idosos de Agosto de 2025
A89: Vacina COVID-19 RECOMBINANTE SERUM/ZALIKA , COVID-19 Pfizer e COVID-19 Moderna (Spikevax)
A90: Fonte: Vacina e Confia, em 23 de Setembro de 2025.**<https://vacinaeconfia.saude.es.gov.br/>
A91: Faixa Etária: 60+
A92: Cobertura Calculada por município de procedência da vacinação
A93: Método de Cálculo Simples
A94: Homogeineidade: O cálculo da Homogeineidade entre vacinas é feito de acordo com a pactuação estabelecida no Plano Plurianual (PPA) vigente no período 2024-2027.
A96: Observações:
A97: 1. Imunobiológicos que foram recebidos parcialmente pelo estado no mês de Agosto/2025, sendo distribuídos em quantidades reduzidas às regionais e municípios:
A98: SORO ANTIRRÁBICO HUMANO, IMUNOGLOBULINA ANTIRRÁBICA HUMANA, VACINA PNEUMO 13,VACINA PNEUMO 23.
A99: 2. Imunobiológicos indisponíveis no mês de Julho/2025, não sendo possível a distribuição às regionais e municípios:
A100: VACINA TRÍPLICE ACELULAR (DTPa) - CRIE e IMUNOGLOBULINA HUMANA ANTI-HEPATITE B - 100 UI

Sheet COVID-19 idoso -Residência
A1: Regional | B1: Município | C1: População 60 anos + | D1: TOTAL DE DOSES APLICADAS COVID-19 | E1: COBERTURA COVID-19
A2: Metropolitana | B2: Afonso Cláudio | C2: 5905 | D2: 26 | E2: =(D2/C2) -> 0.004403048264
A3: Norte | B3: Água Doce do Norte | C3: 2357 | D3: 29 | E3: =(D3/C3) -> 0.01230377599
A4: Central | B4: Águia Branca | C4: 1775 | D4: 36 | E4: 0.02028169014
A5: Sul | B5: Alegre | C5: 5949 | D5: 345 | E5: 0.05799293999
A6: Sul | B6: Alfredo Chaves | C6: 3040 | D6: 162 | E6: 0.05328947368
A7: Central | B7: Alto Rio Novo | C7: 1417 | D7: 3 | E7: 0.002117148906
A8: Sul | B8: Anchieta | C8: 5080 | D8: 614 | E8: 0.1208661417
A9: Sul | B9: Apiacá | C9: 1536 | D9: 42 | E9: 0.02734375
A10: Metropolitana | B10: Aracruz | C10: 13047 | D10: 1453 | E10: 0.1113665977
A11: Sul | B11: Atilio Vivacqua | C11: 1843 | D11: 145 | E11: 0.07867607162
A12: Central | B12: Baixo Guandu | C12: 5706 | D12: 192 | E12: 0.03364879075
A13: Norte | B13: Barra de São Francisco | C13: 7226 | D13: 357 | E13: 0.04940492665
A14: Norte | B14: Boa Esperança | C14: 2317 | D14: 26 | E14: 0.01122140699
A15: Sul | B15: Bom Jesus do Norte | C15: 1991 | D15: 352 | E15: 0.1767955801
A16: Metropolitana | B16: Brejetuba | C16: 1637 | D16: 8 | E16: 0.004886988393
A17: Sul | B17: Cachoeiro de Itapemirim | C17: 32906 | D17: 3412 | E17: 0.1036892968
A18: Metropolitana | B18: Cariacica | C18: 54005 | D18: 7748 | E18: 0.1434681974
A19: Sul | B19: Castelo | C19: 7171 | D19: 397 | E19: 0.05536187422
A20: Central | B20: Colatina | C20: 21491 | D20: 2473 | E20: 0.1150714252
A21: Norte | B21: Conceição da Barra | C21: 4468 | D21: 298 | E21: 0.0666965085
A22: Metropolitana | B22: Conceição do Castelo | C22: 2176 | D22: 109 | E22: 0.05009191176
A23: Sul | B23: Divino de São Lourenço | C23: 847 | D23: 67 | E23: 0.07910271547
A24: Metropolitana | B24: Domingos Martins | C24: 6358 | D24: 838 | E24: 0.1318024536
A25: Sul | B25: Dores do Rio Preto | C25: 1145 | D25: 230 | E25: 0.2008733624
A26: Norte | B26: Ecoporanga | C26: 4274 | D26: 353 | E26: 0.08259241928
A27: Metropolitana | B27: Fundão | C27: 3432 | D27: 334 | E27: 0.09731934732
A28: Central | B28: Governador Lindenberg | C28: 1987 | D28: 75 | E28: 0.03774534474
A29: Sul | B29: Guaçuí | C29: 5504 | D29: 203 | E29: 0.03688226744
A30: Metropolitana | B30: Guarapari | C30: 21755 | D30: 1796 | E30: 0.08255573431
A31: Metropolitana | B31: Ibatiba | C31: 3852 | D31: 129 | E31: 0.03348909657
A32: Metropolitana | B32: Ibiraçu | C32: 2121 | D32: 101 | E32: 0.04761904762
A33: Sul | B33: Ibitirama | C33: 1400 | D33: 83 | E33: 0.05928571429
A34: Sul | B34: Iconha | C34: 2560 | D34: 209 | E34: 0.081640625
A35: Sul | B35: Irupi | C35: 2006 | D35: 209 | E35: 0.1041874377
A36: Metropolitana | B36: Itaguaçu | C36: 3214 | D36: 180 | E36: 0.05600497822
A37: Sul | B37: Itapemirim | C37: 6549 | D37: 290 | E37: 0.04428156971
A38: Metropolitana | B38: Itarana | C38: 2389 | D38: 45 | E38: 0.01883633319
A39: Sul | B39: Iúna | C39: 4417 | D39: 92 | E39: 0.02082861671
A40: Norte | B40: Jaguaré | C40: 3734 | D40: 514 | E40: 0.1376539904
A41: Sul | B41: Jerônimo Monteiro | C41: 2356 | D41: 331 | E41: 0.1404923599
A42: Metropolitana | B42: João Neiva | C42: 3012 | D42: 74 | E42: 0.02456839309
A43: Metropolitana | B43: Laranja da Terra | C43: 2471 | D43: 33 | E43: 0.01335491704
A44: Central | B44: Linhares | C44: 21740 | D44: 899 | E44: 0.04135234591
A45: Central | B45: Mantenópolis | C45: 2524 | D45: 5 | E45: 0.001980982567
A46: Sul | B46: Marataízes | C46: 7611 | D46: 378 | E46: 0.04966495861
A47: Metropolitana | B47: Marechal Floriano | C47: 2879 | D47: 366 | E47: 0.1271274748
A48: Central | B48: Marilândia | C48: 2476 | D48: 32 | E48: 0.01292407108
A49: Sul | B49: Mimoso do Sul | C49: 5077 | D49: 143 | E49: 0.02816623991
A50: Norte | B50: Montanha | C50: 3304 | D50: 474 | E50: 0.1434624697
A51: Norte | B51: Mucurici | C51: 1090 | D51: 43 | E51: 0.03944954128
A52: Sul | B52: Muniz Freire | C52: 3309 | D52: 172 | E52: 0.05197944998
A53: Sul | B53: Muqui | C53: 2780 | D53: 93 | E53: 0.03345323741
A54: Norte | B54: Nova Venécia | C54: 8352 | D54: 545 | E54: 0.06525383142
A55: Central | B55: Pancas | C55: 3687 | D55: 152 | E55: 0.04122592894
A56: Norte | B56: Pedro Canário | C56: 3253 | D56: 149 | E56: 0.04580387335
A57: Norte | B57: Pinheiros | C57: 3762 | D57: 199 | E57: 0.052897395
A58: Sul | B58: Piúma | C58: 3886 | D58: 265 | E58: 0.06819351518
A59: Norte | B59: Ponto Belo | C59: 1330 | D59: 44 | E59: 0.03308270677
A60: Sul | B60: Presidente Kennedy | C60: 2214 | D60: 23 | E60: 0.01038843722
A61: Central | B61: Rio Bananal | C61: 3071 | D61: 248 | E61: 0.08075545425
A62: Sul | B62: Rio Novo do Sul | C62: 2232 | D62: 40 | E62: 0.01792114695
A63: Metropolitana | B63: Santa Leopoldina | C63: 2634 | D63: 59 | E63: 0.02239939256
A64: Metropolitana | B64: Santa Maria de Jetibá | C64: 5552 | D64: 219 | E64: 0.03944524496
A65: Metropolitana | B65: Santa Teresa | C65: 4767 | D65: 271 | E65: 0.05684917139
A66: Central | B66: São Domingos do Norte | C66: 1520 | D66: 113 | E66: 0.07434210526
A67: Central | B67: São Gabriel da Palha | C67: 5456 | D67: 54 | E67: =(D67/C67) -> 0.009897360704
A68: Sul | B68: São José do Calçado | C68: 2456 | D68: 85 | E68: 0.03460912052
A69: Norte | B69: São Mateus | C69: 17649 | D69: 2371 | E69: 0.1343418891
A70: Central | B70: São Roque do Canaã | C70: 2370 | D70: 132 | E70: 0.05569620253
A71: Metropolitana | B71: Serra | C71: 66481 | D71: 10795 | E71: 0.1623772206
A72: Central | B72: Sooretama | C72: 3097 | D72: 85 | E72: 0.0274459154
A73: Sul | B73: Vargem Alta | C73: 3365 | D73: 151 | E73: 0.04487369985
A74: Metropolitana | B74: Venda Nova do Imigrante | C74: 3766 | D74: 462 | E74: 0.1226765799
A75: Metropolitana | B75: Viana | C75: 9758 | D75: 1348 | E75: 0.1381430621
A76: Norte | B76: Vila Pavão | C76: 1510 | D76: 204 | E76: 0.1350993377
A77: Central | B77: Vila Valério | C77: 2160 | D77: 103 | E77: 0.04768518519
A78: Metropolitana | B78: Vila Velha | C78: 81049 | D78: 9836 | E78: 0.1213586843
A79: Metropolitana | B79: Vitória | C79: 64805 | D79: 9354 | E79: 0.1443407145
B81: Total Norte | C81: =SUMIF($A$2:$A$79,"Norte",C$2:C$79) -> 64626 | D81: =SUMIF($A$2:$A$79,"Norte",D$2:D$79) -> 5606 | E81: =D81/C81 -> 0.0867452728
B82: Total Central | C82: =SUMIF($A$2:$A$79,"Central",C$2:C$79) -> 80477 | D82: =SUMIF($A$2:$A$79,"Central",D$2:D$79) -> 4602 | E82: =D82/C82 -> 0.05718404016
B83: Total Metropolitana | C83: =SUMIF($A$2:$A$79,"Metropolitana",C$2:C$79) -> 367065 | D83: =SUMIF($A$2:$A$79,"Metropolitana",D$2:D$79) -> 45584 | E83: 0.1241850898
B84: Total Sul | C84: =SUMIF($A$2:$A$79,"sul",C$2:C$79) -> 119230 | D84: =SUMIF($A$2:$A$79,"Sul",D$2:D$79) -> 8533 | E84: 0.0715675585
B85: Total Espírito Santo | C85: =SUM(C2:C79) -> 631398 | D85: =SUM(D81:D84) -> 64325 | E85: 0.1018771045
B86: HOMOGENEIDADE ENTRE MUNICÍPIOS | E86: =COUNTIF(E2:E79,">=0,90")/78 -> 0
A88: Cobertura Vacinal Covid19 dos Idosos de Agosto de 2025
A89: Vacina COVID-19 RECOMBINANTE SERUM/ZALIKA , COVID-19 Pfizer e COVID-19 Moderna (Spikevax)
A90: Fonte: Vacina e Confia, em 23 de Setembro de 2025.**<https://vacinaeconfia.saude.es.gov.br/>
A91: Faixa Etária: 60+
A92: Cobertura Calculada por município de residência do cidadão (no Vacina e Confia, a origem da informação é o endereço que consta no cadastro do cidadão preenchido manualmente por meio do autocadastro ou pelo cadastro realizado por um profissional de saúde no momento do atendimento).
A93: Método de Cálculo Simples
A94: Homogeineidade: O cálculo da Homogeineidade entre vacinas é feito de acordo com a pactuação estabelecida no Plano Plurianual (PPA) vigente no período 2024-2027.
A96: Observações:
A97: 1. Imunobiológicos que foram recebidos parcialmente pelo estado no mês de Agosto/2025, sendo distribuídos em quantidades reduzidas às regionais e municípios:
A98: SORO ANTIRRÁBICO HUMANO, IMUNOGLOBULINA ANTIRRÁBICA HUMANA, VACINA PNEUMO 13,VACINA PNEUMO 23.
A99: 2. Imunobiológicos indisponíveis no mês de Julho/2025, não sendo possível a distribuição às regionais e municípios:
A100: VACINA TRÍPLICE ACELULAR (DTPa) - CRIE e IMUNOGLOBULINA HUMANA ANTI-HEPATITE B - 100 UI

Sheet PROTEÇÃO

Sheet cálculos1 (hidden)
C1: 0.9 | E1: 0.95
A2: Regional | B2: Município | C2: Cobertura Vacinal BCG | D2: Cobertura Vacinal Rotavírus | E2: Cobertura Vacinal Pentavalente | F2: Cobertura Vacinal Poliomielite | G2: Cobertura Vacinal Pneumo 10 | H2: Cobertura Vacinal Tríplice Viral | I2: Cobertura Vacinal Meningo C | J2: Cobertura Vacinal Febre Amarela | K2: Cobertura Vacinal Hepatite A | L2: Cobertura Varicela | M2: META 90% | N2: META 95% | O2: ATINGIRAM META | P2: PQA-VS
A3: Metropolitana | B3: Afonso Cláudio | C3: ='CV Rotina <2A - procedência'!H3 -> 0.8577075099 | D3: ='CV Rotina <2A - procedência'!P3 -> 0.8853754941 | E3: ='CV Rotina <2A - procedência'!J3 -> 0.837944664 | F3: ='CV Rotina <2A - procedência'!L3 -> 0.8260869565 | G3: ='CV Rotina <2A - procedência'!N3 -> 0.8577075099 | H3: ='CV Rotina <2A - procedência'!X3 -> 0.8972332016 | I3: ='CV Rotina <2A - procedência'!R3 -> 0.8300395257 | J3: ='CV Rotina <2A - procedência'!T3 -> 0.7786561265 | K3: ='CV Rotina <2A - procedência'!V3 -> 0.8972332016 | L3: ='CV Rotina <2A - procedência'!Z3 -> 1.035573123 | M3: =COUNTIF(C3:D3,">=0,9") -> 0 | N3: =COUNTIFS(E3:L3,">=0,95") -> 1 | O3: =SUM(M3:N3) -> 1 | P3: =COUNTIF(E3:H3,">=0,95") -> 0
A4: Norte | B4: Água Doce do Norte | C4: ='CV Rotina <2A - procedência'!H4 -> 0.2233009709 | D4: ='CV Rotina <2A - procedência'!P4 -> 0.6504854369 | E4: ='CV Rotina <2A - procedência'!J4 -> 0.8155339806 | F4: ='CV Rotina <2A - procedência'!L4 -> 0.7766990291 | G4: ='CV Rotina <2A - procedência'!N4 -> 0.6601941748 | H4: ='CV Rotina <2A - procedência'!X4 -> 0.9611650485 | I4: ='CV Rotina <2A - procedência'!R4 -> 0.8446601942 | J4: ='CV Rotina <2A - procedência'!T4 -> 0.854368932 | K4: ='CV Rotina <2A - procedência'!V4 -> 0.786407767 | L4: ='CV Rotina <2A - procedência'!Z4 -> 0.4174757282 | M4: 0 | N4: 1 | O4: =SUM(M4:N4) -> 1 | P4: =COUNTIF(E4:H4,">=0,95") -> 1
A5: Central | B5: Águia Branca | C5: ='CV Rotina <2A - procedência'!H5 -> 0.4453781513 | D5: ='CV Rotina <2A - procedência'!P5 -> 0.7394957983 | E5: ='CV Rotina <2A - procedência'!J5 -> 0.6890756303 | F5: ='CV Rotina <2A - procedência'!L5 -> 0.6974789916 | G5: ='CV Rotina <2A - procedência'!N5 -> 0.7142857143 | H5: ='CV Rotina <2A - procedência'!X5 -> 0.9075630252 | I5: ='CV Rotina <2A - procedência'!R5 -> 0.7058823529 | J5: ='CV Rotina <2A - procedência'!T5 -> 0.6974789916 | K5: ='CV Rotina <2A - procedência'!V5 -> 0.8319327731 | L5: ='CV Rotina <2A - procedência'!Z5 -> 0.9411764706 | M5: 0 | N5: 0 | O5: 0 | P5: 0
A6: Sul | B6: Alegre | C6: ='CV Rotina <2A - procedência'!H6 -> 0.4403669725 | D6: ='CV Rotina <2A - procedência'!P6 -> 0.8669724771 | E6: ='CV Rotina <2A - procedência'!J6 -> 0.8990825688 | F6: ='CV Rotina <2A - procedência'!L6 -> 0.8577981651 | G6: ='CV Rotina <2A - procedência'!N6 -> 0.8211009174 | H6: ='CV Rotina <2A - procedência'!X6 -> 1.027522936 | I6: ='CV Rotina <2A - procedência'!R6 -> 0.9266055046 | J6: ='CV Rotina <2A - procedência'!T6 -> 0.8119266055 | K6: ='CV Rotina <2A - procedência'!V6 -> 1.027522936 | L6: ='CV Rotina <2A - procedência'!Z6 -> 1.068807339 | M6: 0 | N6: 3 | O6: 3 | P6: 1
A7: Sul | B7: Alfredo Chaves | C7: ='CV Rotina <2A - procedência'!H7 -> 0.367816092 | D7: ='CV Rotina <2A - procedência'!P7 -> 0.7586206897 | E7: ='CV Rotina <2A - procedência'!J7 -> 0.7816091954 | F7: ='CV Rotina <2A - procedência'!L7 -> 0.7471264368 | G7: ='CV Rotina <2A - procedência'!N7 -> 0.5517241379 | H7: ='CV Rotina <2A - procedência'!X7 -> 0.9310344828 | I7: ='CV Rotina <2A - procedência'!R7 -> 0.7356321839 | J7: ='CV Rotina <2A - procedência'!T7 -> 0.7356321839 | K7: ='CV Rotina <2A - procedência'!V7 -> 0.9885057471 | L7: ='CV Rotina <2A - procedência'!Z7 -> 1.022988506 | M7: 0 | N7: 2 | O7: 2 | P7: 0
A8: Central | B8: Alto Rio Novo | C8: ='CV Rotina <2A - procedência'!H8 -> 0.3424657534 | D8: ='CV Rotina <2A - procedência'!P8 -> 0.8767123288 | E8: ='CV Rotina <2A - procedência'!J8 -> 0.8219178082 | F8: ='CV Rotina <2A - procedência'!L8 -> 0.8219178082 | G8: ='CV Rotina <2A - procedência'!N8 -> 0.8219178082 | H8: ='CV Rotina <2A - procedência'!X8 -> 0.8630136986 | I8: ='CV Rotina <2A - procedência'!R8 -> 0.7945205479 | J8: ='CV Rotina <2A - procedência'!T8 -> 0.8082191781 | K8: ='CV Rotina <2A - procedência'!V8 -> 0.8767123288 | L8: ='CV Rotina <2A - procedência'!Z8 -> 0.9589041096 | M8: 0 | N8: 1 | O8: 1 | P8: 0
A9: Sul | B9: Anchieta | C9: ='CV Rotina <2A - procedência'!H9 -> 0.4017094017 | D9: ='CV Rotina <2A - procedência'!P9 -> 1.034188034 | E9: ='CV Rotina <2A - procedência'!J9 -> 1 | F9: ='CV Rotina <2A - procedência'!L9 -> 1 | G9: ='CV Rotina <2A - procedência'!N9 -> 0.9487179487 | H9: ='CV Rotina <2A - procedência'!X9 -> 1.064102564 | I9: ='CV Rotina <2A - procedência'!R9 -> 0.9487179487 | J9: ='CV Rotina <2A - procedência'!T9 -> 0.8376068376 | K9: ='CV Rotina <2A - procedência'!V9 -> 1.021367521 | L9: ='CV Rotina <2A - procedência'!Z9 -> 1.068376068 | M9: 1 | N9: 5 | O9: 6 | P9: 3
A10: Sul | B10: Apiacá | C10: ='CV Rotina <2A - procedência'!H10 -> 1.052631579 | D10: ='CV Rotina <2A - procedência'!P10 -> 1.342105263 | E10: ='CV Rotina <2A - procedência'!J10 -> 1.236842105 | F10: ='CV Rotina <2A - procedência'!L10 -> 1.157894737 | G10: ='CV Rotina <2A - procedência'!N10 -> 1.394736842 | H10: ='CV Rotina <2A - procedência'!X10 -> 1.131578947 | I10: ='CV Rotina <2A - procedência'!R10 -> 1.342105263 | J10: ='CV Rotina <2A - procedência'!T10 -> 0.8947368421 | K10: ='CV Rotina <2A - procedência'!V10 -> 1.184210526 | L10: ='CV Rotina <2A - procedência'!Z10 -> 1.289473684 | M10: 2 | N10: 7 | O10: 9 | P10: 4
A11: Metropolitana | B11: Aracruz | C11: ='CV Rotina <2A - procedência'!H11 -> 0.869035533 | D11: ='CV Rotina <2A - procedência'!P11 -> 0.8730964467 | E11: ='CV Rotina <2A - procedência'!J11 -> 0.807106599 | F11: ='CV Rotina <2A - procedência'!L11 -> 0.7979695431 | G11: ='CV Rotina <2A - procedência'!N11 -> 0.7837563452 | H11: ='CV Rotina <2A - procedência'!X11 -> 0.9908629442 | I11: ='CV Rotina <2A - procedência'!R11 -> 0.807106599 | J11: ='CV Rotina <2A - procedência'!T11 -> 0.7147208122 | K11: ='CV Rotina <2A - procedência'!V11 -> 0.9482233503 | L11: ='CV Rotina <2A - procedência'!Z11 -> 0.9644670051 | M11: 0 | N11: 2 | O11: 2 | P11: 1
A12: Sul | B12: Atilio Vivacqua | C12: ='CV Rotina <2A - procedência'!H12 -> 0.1067961165 | D12: ='CV Rotina <2A - procedência'!P12 -> 1.009708738 | E12: ='CV Rotina <2A - procedência'!J12 -> 1.009708738 | F12: ='CV Rotina <2A - procedência'!L12 -> 0.9708737864 | G12: ='CV Rotina <2A - procedência'!N12 -> 0.9805825243 | H12: ='CV Rotina <2A - procedência'!X12 -> 0.9417475728 | I12: ='CV Rotina <2A - procedência'!R12 -> 1.048543689 | J12: ='CV Rotina <2A - procedência'!T12 -> 0.9126213592 | K12: ='CV Rotina <2A - procedência'!V12 -> 0.8640776699 | L12: ='CV Rotina <2A - procedência'!Z12 -> 0.7961165049 | M12: 1 | N12: 4 | O12: 5 | P12: 3
A13: Central | B13: Baixo Guandu | C13: ='CV Rotina <2A - procedência'!H13 -> 0.4392857143 | D13: ='CV Rotina <2A - procedência'!P13 -> 0.7535714286 | E13: ='CV Rotina <2A - procedência'!J13 -> 0.6892857143 | F13: ='CV Rotina <2A - procedência'!L13 -> 0.6821428571 | G13: ='CV Rotina <2A - procedência'!N13 -> 0.75 | H13: ='CV Rotina <2A - procedência'!X13 -> 0.8892857143 | I13: ='CV Rotina <2A - procedência'!R13 -> 0.6892857143 | J13: ='CV Rotina <2A - procedência'!T13 -> 0.6714285714 | K13: ='CV Rotina <2A - procedência'!V13 -> 0.8928571429 | L13: ='CV Rotina <2A - procedência'!Z13 -> 0.8571428571 | M13: 0 | N13: 0 | O13: 0 | P13: 0
A14: Norte | B14: Barra de São Francisco | C14: ='CV Rotina <2A - procedência'!H14 -> 0.6822222222 | D14: ='CV Rotina <2A - procedência'!P14 -> 0.8066666667 | E14: ='CV Rotina <2A - procedência'!J14 -> 0.7733333333 | F14: ='CV Rotina <2A - procedência'!L14 -> 0.7688888889 | G14: ='CV Rotina <2A - procedência'!N14 -> 0.7822222222 | H14: ='CV Rotina <2A - procedência'!X14 -> 0.8355555556 | I14: ='CV Rotina <2A - procedência'!R14 -> 0.7066666667 | J14: ='CV Rotina <2A - procedência'!T14 -> 0.6777777778 | K14: ='CV Rotina <2A - procedência'!V14 -> 0.7044444444 | L14: ='CV Rotina <2A - procedência'!Z14 -> 0.7955555556 | M14: 0 | N14: 0 | O14: 0 | P14: 0
A15: Norte | B15: Boa Esperança | C15: ='CV Rotina <2A - procedência'!H15 -> 0.4275862069 | D15: ='CV Rotina <2A - procedência'!P15 -> 0.9655172414 | E15: ='CV Rotina <2A - procedência'!J15 -> 0.9034482759 | F15: ='CV Rotina <2A - procedência'!L15 -> 0.8965517241 | G15: ='CV Rotina <2A - procedência'!N15 -> 0.9724137931 | H15: ='CV Rotina <2A - procedência'!X15 -> 0.9517241379 | I15: ='CV Rotina <2A - procedência'!R15 -> 0.9103448276 | J15: ='CV Rotina <2A - procedência'!T15 -> 0.7931034483 | K15: ='CV Rotina <2A - procedência'!V15 -> 0.924137931 | L15: ='CV Rotina <2A - procedência'!Z15 -> 0.8689655172 | M15: 1 | N15: 2 | O15: 3 | P15: 2
A16: Sul | B16: Bom Jesus do Norte | C16: ='CV Rotina <2A - procedência'!H16 -> 1.196428571 | D16: ='CV Rotina <2A - procedência'!P16 -> 1.196428571 | E16: ='CV Rotina <2A - procedência'!J16 -> 1.285714286 | F16: ='CV Rotina <2A - procedência'!L16 -> 1.267857143 | G16: ='CV Rotina <2A - procedência'!N16 -> 1.160714286 | H16: ='CV Rotina <2A - procedência'!X16 -> 1.339285714 | I16: ='CV Rotina <2A - procedência'!R16 -> 1.017857143 | J16: ='CV Rotina <2A - procedência'!T16 -> 1.107142857 | K16: ='CV Rotina <2A - procedência'!V16 -> 1.196428571 | L16: ='CV Rotina <2A - procedência'!Z16 -> 1.089285714 | M16: 2 | N16: 8 | O16: 10 | P16: 4
A17: Metropolitana | B17: Brejetuba | C17: ='CV Rotina <2A - procedência'!H17 -> 0.6232876712 | D17: ='CV Rotina <2A - procedência'!P17 -> 1 | E17: ='CV Rotina <2A - procedência'!J17 -> 0.8287671233 | F17: ='CV Rotina <2A - procedência'!L17 -> 0.8904109589 | G17: ='CV Rotina <2A - procedência'!N17 -> 0.904109589 | H17: ='CV Rotina <2A - procedência'!X17 -> 0.9315068493 | I17: ='CV Rotina <2A - procedência'!R17 -> 0.9589041096 | J17: ='CV Rotina <2A - procedência'!T17 -> 0.8082191781 | K17: ='CV Rotina <2A - procedência'!V17 -> 0.9520547945 | L17: ='CV Rotina <2A - procedência'!Z17 -> 1.136986301 | M17: 1 | N17: 3 | O17: 4 | P17: 0
A18: Sul | B18: Cachoeiro de Itapemirim | C18: ='CV Rotina <2A - procedência'!H18 -> 2.205049261 | D18: ='CV Rotina <2A - procedência'!P18 -> 0.9310344828 | E18: ='CV Rotina <2A - procedência'!J18 -> 0.8731527094 | F18: ='CV Rotina <2A - procedência'!L18 -> 0.8694581281 | G18: ='CV Rotina <2A - procedência'!N18 -> 0.8879310345 | H18: ='CV Rotina <2A - procedência'!X18 -> 1 | I18: ='CV Rotina <2A - procedência'!R18 -> 0.9082512315 | J18: ='CV Rotina <2A - procedência'!T18 -> 0.6754926108 | K18: ='CV Rotina <2A - procedência'!V18 -> 0.8854679803 | L18: ='CV Rotina <2A - procedência'!Z18 -> 0.8854679803 | M18: 2 | N18: 1 | O18: 3 | P18: 1
A19: Metropolitana | B19: Cariacica | C19: ='CV Rotina <2A - procedência'!H19 -> 0.5184407796 | D19: ='CV Rotina <2A - procedência'!P19 -> 0.8368815592 | E19: ='CV Rotina <2A - procedência'!J19 -> 0.7871064468 | F19: ='CV Rotina <2A - procedência'!L19 -> 0.7796101949 | G19: ='CV Rotina <2A - procedência'!N19 -> 0.7127436282 | H19: ='CV Rotina <2A - procedência'!X19 -> 0.9394302849 | I19: ='CV Rotina <2A - procedência'!R19 -> 0.8011994003 | J19: ='CV Rotina <2A - procedência'!T19 -> 0.6395802099 | K19: ='CV Rotina <2A - procedência'!V19 -> 0.8722638681 | L19: ='CV Rotina <2A - procedência'!Z19 -> 0.7562218891 | M19: 0 | N19: 0 | O19: 0 | P19: 0
A20: Sul | B20: Castelo | C20: ='CV Rotina <2A - procedência'!H20 -> 0.5910652921 | D20: ='CV Rotina <2A - procedência'!P20 -> 0.9518900344 | E20: ='CV Rotina <2A - procedência'!J20 -> 0.9243986254 | F20: ='CV Rotina <2A - procedência'!L20 -> 0.8865979381 | G20: ='CV Rotina <2A - procedência'!N20 -> 0.852233677 | H20: ='CV Rotina <2A - procedência'!X20 -> 1.041237113 | I20: ='CV Rotina <2A - procedência'!R20 -> 0.941580756 | J20: ='CV Rotina <2A - procedência'!T20 -> 0.7869415808 | K20: ='CV Rotina <2A - procedência'!V20 -> 1.058419244 | L20: ='CV Rotina <2A - procedência'!Z20 -> 0.8934707904 | M20: 1 | N20: 2 | O20: 3 | P20: 1
A21: Central | B21: Colatina | C21: ='CV Rotina <2A - procedência'!H21 -> 2.246841594 | D21: ='CV Rotina <2A - procedência'!P21 -> 0.8882410107 | E21: ='CV Rotina <2A - procedência'!J21 -> 0.8756073858 | F21: ='CV Rotina <2A - procedência'!L21 -> 0.8765792031 | G21: ='CV Rotina <2A - procedência'!N21 -> 0.8309037901 | H21: ='CV Rotina <2A - procedência'!X21 -> 0.9407191448 | I21: ='CV Rotina <2A - procedência'!R21 -> 0.9037900875 | J21: ='CV Rotina <2A - procedência'!T21 -> 0.6967930029 | K21: ='CV Rotina <2A - procedência'!V21 -> 0.8571428571 | L21: ='CV Rotina <2A - procedência'!Z21 -> 0.7939747328 | M21: 1 | N21: 0 | O21: 1 | P21: 0
A22: Norte | B22: Conceição da Barra | C22: ='CV Rotina <2A - procedência'!H22 -> 0.06737588652 | D22: ='CV Rotina <2A - procedência'!P22 -> 0.7978723404 | E22: ='CV Rotina <2A - procedência'!J22 -> 0.780141844 | F22: ='CV Rotina <2A - procedência'!L22 -> 0.7836879433 | G22: ='CV Rotina <2A - procedência'!N22 -> 0.7517730496 | H22: ='CV Rotina <2A - procedência'!X22 -> 1.024822695 | I22: ='CV Rotina <2A - procedência'!R22 -> 0.7553191489 | J22: ='CV Rotina <2A - procedência'!T22 -> 0.7978723404 | K22: ='CV Rotina <2A - procedência'!V22 -> 0.9858156028 | L22: ='CV Rotina <2A - procedência'!Z22 -> 0.9574468085 | M22: 0 | N22: 3 | O22: 3 | P22: 1
A23: Metropolitana | B23: Conceição do Castelo | C23: ='CV Rotina <2A - procedência'!H23 -> 0.03389830508 | D23: ='CV Rotina <2A - procedência'!P23 -> 0.9406779661 | E23: ='CV Rotina <2A - procedência'!J23 -> 0.8728813559 | F23: ='CV Rotina <2A - procedência'!L23 -> 0.813559322 | G23: ='CV Rotina <2A - procedência'!N23 -> 0.5593220339 | H23: ='CV Rotina <2A - procedência'!X23 -> 0.8050847458 | I23: ='CV Rotina <2A - procedência'!R23 -> 0.8220338983 | J23: ='CV Rotina <2A - procedência'!T23 -> 0.7457627119 | K23: ='CV Rotina <2A - procedência'!V23 -> 0.6525423729 | L23: ='CV Rotina <2A - procedência'!Z23 -> 0.7881355932 | M23: 1 | N23: 0 | O23: 1 | P23: 0
A24: Sul | B24: Divino de São Lourenço | C24: ='CV Rotina <2A - procedência'!H24 -> 0.8611111111 | D24: ='CV Rotina <2A - procedência'!P24 -> 0.8611111111 | E24: ='CV Rotina <2A - procedência'!J24 -> 0.7222222222 | F24: ='CV Rotina <2A - procedência'!L24 -> 0.7222222222 | G24: ='CV Rotina <2A - procedência'!N24 -> 0.8333333333 | H24: ='CV Rotina <2A - procedência'!X24 -> 1.555555556 | I24: ='CV Rotina <2A - procedência'!R24 -> 0.8055555556 | J24: ='CV Rotina <2A - procedência'!T24 -> 1.083333333 | K24: ='CV Rotina <2A - procedência'!V24 -> 1.305555556 | L24: ='CV Rotina <2A - procedência'!Z24 -> 1.527777778 | M24: 0 | N24: 4 | O24: 4 | P24: 1
A25: Metropolitana | B25: Domingos Martins | C25: ='CV Rotina <2A - procedência'!H25 -> 0.1453900709 | D25: ='CV Rotina <2A - procedência'!P25 -> 1.024822695 | E25: ='CV Rotina <2A - procedência'!J25 -> 0.9645390071 | F25: ='CV Rotina <2A - procedência'!L25 -> 0.9503546099 | G25: ='CV Rotina <2A - procedência'!N25 -> 0.9042553191 | H25: ='CV Rotina <2A - procedência'!X25 -> 1.003546099 | I25: ='CV Rotina <2A - procedência'!R25 -> 0.9574468085 | J25: ='CV Rotina <2A - procedência'!T25 -> 0.8617021277 | K25: ='CV Rotina <2A - procedência'!V25 -> 1.014184397 | L25: ='CV Rotina <2A - procedência'!Z25 -> 1.063829787 | M25: 1 | N25: 6 | O25: 7 | P25: 3
A26: Sul | B26: Dores do Rio Preto | C26: ='CV Rotina <2A - procedência'!H26 -> 0.6478873239 | D26: ='CV Rotina <2A - procedência'!P26 -> 1.14084507 | E26: ='CV Rotina <2A - procedência'!J26 -> 1.070422535 | F26: ='CV Rotina <2A - procedência'!L26 -> 1.056338028 | G26: ='CV Rotina <2A - procedência'!N26 -> 0.5915492958 | H26: ='CV Rotina <2A - procedência'!X26 -> 1.098591549 | I26: ='CV Rotina <2A - procedência'!R26 -> 0.9436619718 | J26: ='CV Rotina <2A - procedência'!T26 -> 0.9436619718 | K26: ='CV Rotina <2A - procedência'!V26 -> 0.9295774648 | L26: ='CV Rotina <2A - procedência'!Z26 -> 0.8028169014 | M26: 1 | N26: 3 | O26: 4 | P26: 3
A27: Norte | B27: Ecoporanga | C27: ='CV Rotina <2A - procedência'!H27 -> 0.3602484472 | D27: ='CV Rotina <2A - procedência'!P27 -> 1.055900621 | E27: ='CV Rotina <2A - procedência'!J27 -> 0.9440993789 | F27: ='CV Rotina <2A - procedência'!L27 -> 0.9378881988 | G27: ='CV Rotina <2A - procedência'!N27 -> 0.9937888199 | H27: ='CV Rotina <2A - procedência'!X27 -> 1.068322981 | I27: ='CV Rotina <2A - procedência'!R27 -> 0.9751552795 | J27: ='CV Rotina <2A - procedência'!T27 -> 0.8385093168 | K27: ='CV Rotina <2A - procedência'!V27 -> 0.9875776398 | L27: ='CV Rotina <2A - procedência'!Z27 -> 0.900621118 | M27: 1 | N27: 4 | O27: 5 | P27: 2
A28: Metropolitana | B28: Fundão | C28: ='CV Rotina <2A - procedência'!H28 -> 0.1610738255 | D28: ='CV Rotina <2A - procedência'!P28 -> 1.093959732 | E28: ='CV Rotina <2A - procedência'!J28 -> 1.080536913 | F28: ='CV Rotina <2A - procedência'!L28 -> 1.073825503 | G28: ='CV Rotina <2A - procedência'!N28 -> 0.9261744966 | H28: ='CV Rotina <2A - procedência'!X28 -> 1.046979866 | I28: ='CV Rotina <2A - procedência'!R28 -> 1.040268456 | J28: ='CV Rotina <2A - procedência'!T28 -> 0.6375838926 | K28: ='CV Rotina <2A - procedência'!V28 -> 0.9731543624 | L28: ='CV Rotina <2A - procedência'!Z28 -> 0.9597315436 | M28: 1 | N28: 6 | O28: 7 | P28: 3
A29: Central | B29: Governador Lindenberg | C29: ='CV Rotina <2A - procedência'!H29 -> 0.3152173913 | D29: ='CV Rotina <2A - procedência'!P29 -> 0.6739130435 | E29: ='CV Rotina <2A - procedência'!J29 -> 0.6739130435 | F29: ='CV Rotina <2A - procedência'!L29 -> 0.6739130435 | G29: ='CV Rotina <2A - procedência'!N29 -> 0.5869565217 | H29: ='CV Rotina <2A - procedência'!X29 -> 0.9782608696 | I29: ='CV Rotina <2A - procedência'!R29 -> 0.6956521739 | J29: ='CV Rotina <2A - procedência'!T29 -> 0.6086956522 | K29: ='CV Rotina <2A - procedência'!V29 -> 0.9456521739 | L29: ='CV Rotina <2A - procedência'!Z29 -> 0.7826086957 | M29: 0 | N29: 1 | O29: 1 | P29: 1
A30: Sul | B30: Guaçuí | C30: ='CV Rotina <2A - procedência'!H30 -> 0.7983539095 | D30: ='CV Rotina <2A - procedência'!P30 -> 0.8724279835 | E30: ='CV Rotina <2A - procedência'!J30 -> 0.8312757202 | F30: ='CV Rotina <2A - procedência'!L30 -> 0.8189300412 | G30: ='CV Rotina <2A - procedência'!N30 -> 0.8436213992 | H30: ='CV Rotina <2A - procedência'!X30 -> 0.9382716049 | I30: ='CV Rotina <2A - procedência'!R30 -> 0.8518518519 | J30: ='CV Rotina <2A - procedência'!T30 -> 0.7242798354 | K30: ='CV Rotina <2A - procedência'!V30 -> 0.8641975309 | L30: ='CV Rotina <2A - procedência'!Z30 -> 0.9053497942 | M30: 0 | N30: 0 | O30: 0 | P30: 0
A31: Metropolitana | B31: Guarapari | C31: ='CV Rotina <2A - procedência'!H31 -> 0.8606060606 | D31: ='CV Rotina <2A - procedência'!P31 -> 0.845021645 | E31: ='CV Rotina <2A - procedência'!J31 -> 0.7627705628 | F31: ='CV Rotina <2A - procedência'!L31 -> 0.7532467532 | G31: ='CV Rotina <2A - procedência'!N31 -> 0.8086580087 | H31: ='CV Rotina <2A - procedência'!X31 -> 0.8666666667 | I31: ='CV Rotina <2A - procedência'!R31 -> 0.7922077922 | J31: ='CV Rotina <2A - procedência'!T31 -> 0.5783549784 | K31: ='CV Rotina <2A - procedência'!V31 -> 0.7974025974 | L31: ='CV Rotina <2A - procedência'!Z31 -> 0.7064935065 | M31: 0 | N31: 0 | O31: 0 | P31: 0
A32: Metropolitana | B32: Ibatiba | C32: ='CV Rotina <2A - procedência'!H32 -> 0.8122743682 | D32: ='CV Rotina <2A - procedência'!P32 -> 0.9386281588 | E32: ='CV Rotina <2A - procedência'!J32 -> 0.8989169675 | F32: ='CV Rotina <2A - procedência'!L32 -> 0.8844765343 | G32: ='CV Rotina <2A - procedência'!N32 -> 0.8375451264 | H32: ='CV Rotina <2A - procedência'!X32 -> 0.9530685921 | I32: ='CV Rotina <2A - procedência'!R32 -> 0.916967509 | J32: ='CV Rotina <2A - procedência'!T32 -> 0.8014440433 | K32: ='CV Rotina <2A - procedência'!V32 -> 0.9458483755 | L32: ='CV Rotina <2A - procedência'!Z32 -> 1.018050542 | M32: 1 | N32: 2 | O32: 3 | P32: 1
A33: Metropolitana | B33: Ibiraçu | C33: ='CV Rotina <2A - procedência'!H33 -> 0.2093023256 | D33: ='CV Rotina <2A - procedência'!P33 -> 0.8604651163 | E33: ='CV Rotina <2A - procedência'!J33 -> 0.9186046512 | F33: ='CV Rotina <2A - procedência'!L33 -> 0.8953488372 | G33: ='CV Rotina <2A - procedência'!N33 -> 0.9186046512 | H33: ='CV Rotina <2A - procedência'!X33 -> 1.197674419 | I33: ='CV Rotina <2A - procedência'!R33 -> 0.988372093 | J33: ='CV Rotina <2A - procedência'!T33 -> 0.9418604651 | K33: ='CV Rotina <2A - procedência'!V33 -> 1.023255814 | L33: ='CV Rotina <2A - procedência'!Z33 -> 1.081395349 | M33: 0 | N33: 4 | O33: 4 | P33: 1
A34: Sul | B34: Ibitirama | C34: ='CV Rotina <2A - procedência'!H34 -> 0.6764705882 | D34: ='CV Rotina <2A - procedência'!P34 -> 1.058823529 | E34: ='CV Rotina <2A - procedência'!J34 -> 0.9215686275 | F34: ='CV Rotina <2A - procedência'!L34 -> 0.8921568627 | G34: ='CV Rotina <2A - procedência'!N34 -> 1.009803922 | H34: ='CV Rotina <2A - procedência'!X34 -> 0.8921568627 | I34: ='CV Rotina <2A - procedência'!R34 -> 0.9901960784 | J34: ='CV Rotina <2A - procedência'!T34 -> 0.8235294118 | K34: ='CV Rotina <2A - procedência'!V34 -> 0.8431372549 | L34: ='CV Rotina <2A - procedência'!Z34 -> 0.8823529412 | M34: 1 | N34: 2 | O34: 3 | P34: 1
A35: Sul | B35: Iconha | C35: ='CV Rotina <2A - procedência'!H35 -> 0.4691358025 | D35: ='CV Rotina <2A - procedência'!P35 -> 0.9259259259 | E35: ='CV Rotina <2A - procedência'!J35 -> 0.8641975309 | F35: ='CV Rotina <2A - procedência'!L35 -> 0.8641975309 | G35: ='CV Rotina <2A - procedência'!N35 -> 0.7901234568 | H35: ='CV Rotina <2A - procedência'!X35 -> 0.8395061728 | I35: ='CV Rotina <2A - procedência'!R35 -> 0.8888888889 | J35: ='CV Rotina <2A - procedência'!T35 -> 0.8271604938 | K35: ='CV Rotina <2A - procedência'!V35 -> 0.9382716049 | L35: ='CV Rotina <2A - procedência'!Z35 -> 1.061728395 | M35: =COUNTIF(C35:D35,">=0,9") -> 1 | N35: =COUNTIFS(E35:L35,">=0,95") -> 1 | O35: 2 | P35: 0
A36: Sul | B36: Irupi | C36: ='CV Rotina <2A - procedência'!H36 -> 0.7086614173 | D36: ='CV Rotina <2A - procedência'!P36 -> 0.8661417323 | E36: ='CV Rotina <2A - procedência'!J36 -> 0.8582677165 | F36: ='CV Rotina <2A - procedência'!L36 -> 0.842519685 | G36: ='CV Rotina <2A - procedência'!N36 -> 0.8031496063 | H36: ='CV Rotina <2A - procedência'!X36 -> 1.05511811 | I36: ='CV Rotina <2A - procedência'!R36 -> 0.8503937008 | J36: ='CV Rotina <2A - procedência'!T36 -> 0.968503937 | K36: ='CV Rotina <2A - procedência'!V36 -> 1.133858268 | L36: ='CV Rotina <2A - procedência'!Z36 -> 0.968503937 | M36: 0 | N36: 4 | O36: 4 | P36: 1
A37: Metropolitana | B37: Itaguaçu | C37: ='CV Rotina <2A - procedência'!H37 -> 0.1770833333 | D37: ='CV Rotina <2A - procedência'!P37 -> 0.875 | E37: ='CV Rotina <2A - procedência'!J37 -> 0.8125 | F37: ='CV Rotina <2A - procedência'!L37 -> 0.8125 | G37: ='CV Rotina <2A - procedência'!N37 -> 0.75 | H37: ='CV Rotina <2A - procedência'!X37 -> 1.125 | I37: ='CV Rotina <2A - procedência'!R37 -> 0.71875 | J37: ='CV Rotina <2A - procedência'!T37 -> 1.041666667 | K37: ='CV Rotina <2A - procedência'!V37 -> 0.9791666667 | L37: ='CV Rotina <2A - procedência'!Z37 -> 1.020833333 | M37: 0 | N37: 4 | O37: 4 | P37: 1
A38: Sul | B38: Itapemirim | C38: ='CV Rotina <2A - procedência'!H38 -> 0.4438202247 | D38: ='CV Rotina <2A - procedência'!P38 -> 0.808988764 | E38: ='CV Rotina <2A - procedência'!J38 -> 0.7471910112 | F38: ='CV Rotina <2A - procedência'!L38 -> 0.7050561798 | G38: ='CV Rotina <2A - procedência'!N38 -> 0.8370786517 | H38: ='CV Rotina <2A - procedência'!X38 -> 0.8005617978 | I38: ='CV Rotina <2A - procedência'!R38 -> 0.8230337079 | J38: ='CV Rotina <2A - procedência'!T38 -> 0.5421348315 | K38: ='CV Rotina <2A - procedência'!V38 -> 0.7584269663 | L38: ='CV Rotina <2A - procedência'!Z38 -> 0.6797752809 | M38: 0 | N38: 0 | O38: 0 | P38: 0
A39: Metropolitana | B39: Itarana | C39: ='CV Rotina <2A - procedência'!H39 -> 0.1789473684 | D39: ='CV Rotina <2A - procedência'!P39 -> 0.7263157895 | E39: ='CV Rotina <2A - procedência'!J39 -> 0.6421052632 | F39: ='CV Rotina <2A - procedência'!L39 -> 0.6421052632 | G39: ='CV Rotina <2A - procedência'!N39 -> 0.6631578947 | H39: ='CV Rotina <2A - procedência'!X39 -> 1.042105263 | I39: ='CV Rotina <2A - procedência'!R39 -> 0.6736842105 | J39: ='CV Rotina <2A - procedência'!T39 -> 0.7894736842 | K39: ='CV Rotina <2A - procedência'!V39 -> 0.9789473684 | L39: ='CV Rotina <2A - procedência'!Z39 -> 0.9684210526 | M39: 0 | N39: 3 | O39: 3 | P39: 1
A40: Sul | B40: Iúna | C40: ='CV Rotina <2A - procedência'!H40 -> 0.7306273063 | D40: ='CV Rotina <2A - procedência'!P40 -> 0.8745387454 | E40: ='CV Rotina <2A - procedência'!J40 -> 0.8745387454 | F40: ='CV Rotina <2A - procedência'!L40 -> 0.8487084871 | G40: ='CV Rotina <2A - procedência'!N40 -> 0.8007380074 | H40: ='CV Rotina <2A - procedência'!X40 -> 1.025830258 | I40: ='CV Rotina <2A - procedência'!R40 -> 0.8782287823 | J40: ='CV Rotina <2A - procedência'!T40 -> 0.8671586716 | K40: ='CV Rotina <2A - procedência'!V40 -> 1.110701107 | L40: ='CV Rotina <2A - procedência'!Z40 -> 1.077490775 | M40: 0 | N40: 3 | O40: 3 | P40: 1
A41: Norte | B41: Jaguaré | C41: ='CV Rotina <2A - procedência'!H41 -> 0.6595744681 | D41: ='CV Rotina <2A - procedência'!P41 -> 0.8328267477 | E41: ='CV Rotina <2A - procedência'!J41 -> 0.8085106383 | F41: ='CV Rotina <2A - procedência'!L41 -> 0.7963525836 | G41: ='CV Rotina <2A - procedência'!N41 -> 0.7750759878 | H41: ='CV Rotina <2A - procedência'!X41 -> 0.9756838906 | I41: ='CV Rotina <2A - procedência'!R41 -> 0.8480243161 | J41: ='CV Rotina <2A - procedência'!T41 -> 0.7203647416 | K41: ='CV Rotina <2A - procedência'!V41 -> 0.9179331307 | L41: ='CV Rotina <2A - procedência'!Z41 -> 0.7446808511 | M41: 0 | N41: 1 | O41: 1 | P41: 1
A42: Sul | B42: Jerônimo Monteiro | C42: ='CV Rotina <2A - procedência'!H42 -> 0.06666666667 | D42: ='CV Rotina <2A - procedência'!P42 -> 1.026666667 | E42: ='CV Rotina <2A - procedência'!J42 -> 1.053333333 | F42: ='CV Rotina <2A - procedência'!L42 -> 1.066666667 | G42: ='CV Rotina <2A - procedência'!N42 -> 0.9333333333 | H42: ='CV Rotina <2A - procedência'!X42 -> 1.293333333 | I42: ='CV Rotina <2A - procedência'!R42 -> 0.9733333333 | J42: ='CV Rotina <2A - procedência'!T42 -> 0.8666666667 | K42: ='CV Rotina <2A - procedência'!V42 -> 1.293333333 | L42: ='CV Rotina <2A - procedência'!Z42 -> 1.173333333 | M42: 1 | N42: 6 | O42: 7 | P42: 3
A43: Metropolitana | B43: João Neiva | C43: ='CV Rotina <2A - procedência'!H43 -> 0.1941747573 | D43: ='CV Rotina <2A - procedência'!P43 -> 0.854368932 | E43: ='CV Rotina <2A - procedência'!J43 -> 0.9223300971 | F43: ='CV Rotina <2A - procedência'!L43 -> 0.8737864078 | G43: ='CV Rotina <2A - procedência'!N43 -> 0.8252427184 | H43: ='CV Rotina <2A - procedência'!X43 -> 0.9611650485 | I43: ='CV Rotina <2A - procedência'!R43 -> 0.8932038835 | J43: ='CV Rotina <2A - procedência'!T43 -> 0.9029126214 | K43: ='CV Rotina <2A - procedência'!V43 -> 0.8737864078 | L43: ='CV Rotina <2A - procedência'!Z43 -> 0.9029126214 | M43: 0 | N43: 1 | O43: 1 | P43: 1
A44: Metropolitana | B44: Laranja da Terra | C44: ='CV Rotina <2A - procedência'!H44 -> 0.125 | D44: ='CV Rotina <2A - procedência'!P44 -> 0.9479166667 | E44: ='CV Rotina <2A - procedência'!J44 -> 0.8020833333 | F44: ='CV Rotina <2A - procedência'!L44 -> 0.8125 | G44: ='CV Rotina <2A - procedência'!N44 -> 0.90625 | H44: ='CV Rotina <2A - procedência'!X44 -> 0.7708333333 | I44: ='CV Rotina <2A - procedência'!R44 -> 0.8125 | J44: ='CV Rotina <2A - procedência'!T44 -> 0.7291666667 | K44: ='CV Rotina <2A - procedência'!V44 -> 0.7395833333 | L44: ='CV Rotina <2A - procedência'!Z44 -> 0.84375 | M44: 1 | N44: 0 | O44: 1 | P44: 0
A45: Central | B45: Linhares | C45: ='CV Rotina <2A - procedência'!H45 -> 1.305902384 | D45: ='CV Rotina <2A - procedência'!P45 -> 0.8933030647 | E45: ='CV Rotina <2A - procedência'!J45 -> 0.8444948922 | F45: ='CV Rotina <2A - procedência'!L45 -> 0.8234960272 | G45: ='CV Rotina <2A - procedência'!N45 -> 0.8405221339 | H45: ='CV Rotina <2A - procedência'!X45 -> 0.8933030647 | I45: ='CV Rotina <2A - procedência'!R45 -> 0.8791146425 | J45: ='CV Rotina <2A - procedência'!T45 -> 0.6844494892 | K45: ='CV Rotina <2A - procedência'!V45 -> 0.8002270148 | L45: ='CV Rotina <2A - procedência'!Z45 -> 0.7451759364 | M45: 1 | N45: 0 | O45: 1 | P45: 0
A46: Central | B46: Mantenópolis | C46: ='CV Rotina <2A - procedência'!H46 -> 0.202020202 | D46: ='CV Rotina <2A - procedência'!P46 -> 0.797979798 | E46: ='CV Rotina <2A - procedência'!J46 -> 0.8383838384 | F46: ='CV Rotina <2A - procedência'!L46 -> 0.797979798 | G46: ='CV Rotina <2A - procedência'!N46 -> 0.7777777778 | H46: ='CV Rotina <2A - procedência'!X46 -> 1.111111111 | I46: ='CV Rotina <2A - procedência'!R46 -> 0.8787878788 | J46: ='CV Rotina <2A - procedência'!T46 -> 0.9595959596 | K46: ='CV Rotina <2A - procedência'!V46 -> 0.8484848485 | L46: ='CV Rotina <2A - procedência'!Z46 -> 1.050505051 | M46: 0 | N46: 3 | O46: 3 | P46: 1
A47: Sul | B47: Marataízes | C47: ='CV Rotina <2A - procedência'!H47 -> 0.4398907104 | D47: ='CV Rotina <2A - procedência'!P47 -> 1.035519126 | E47: ='CV Rotina <2A - procedência'!J47 -> 0.9754098361 | F47: ='CV Rotina <2A - procedência'!L47 -> 0.8278688525 | G47: ='CV Rotina <2A - procedência'!N47 -> 1 | H47: ='CV Rotina <2A - procedência'!X47 -> 1.035519126 | I47: ='CV Rotina <2A - procedência'!R47 -> 0.9781420765 | J47: ='CV Rotina <2A - procedência'!T47 -> 0.6584699454 | K47: ='CV Rotina <2A - procedência'!V47 -> 0.9972677596 | L47: ='CV Rotina <2A - procedência'!Z47 -> 0.8169398907 | M47: 1 | N47: 5 | O47: 6 | P47: 3
A48: Metropolitana | B48: Marechal Floriano | C48: ='CV Rotina <2A - procedência'!H48 -> 0.1527777778 | D48: ='CV Rotina <2A - procedência'!P48 -> 0.8958333333 | E48: ='CV Rotina <2A - procedência'!J48 -> 0.8611111111 | F48: ='CV Rotina <2A - procedência'!L48 -> 0.8611111111 | G48: ='CV Rotina <2A - procedência'!N48 -> 0.7986111111 | H48: ='CV Rotina <2A - procedência'!X48 -> 0.9513888889 | I48: ='CV Rotina <2A - procedência'!R48 -> 0.8472222222 | J48: ='CV Rotina <2A - procedência'!T48 -> 0.7708333333 | K48: ='CV Rotina <2A - procedência'!V48 -> 1.034722222 | L48: ='CV Rotina <2A - procedência'!Z48 -> 1.048611111 | M48: 0 | N48: 3 | O48: 3 | P48: 1
A49: Central | B49: Marilândia | C49: ='CV Rotina <2A - procedência'!H49 -> 0.3217391304 | D49: ='CV Rotina <2A - procedência'!P49 -> 0.852173913 | E49: ='CV Rotina <2A - procedência'!J49 -> 0.6956521739 | F49: ='CV Rotina <2A - procedência'!L49 -> 0.6956521739 | G49: ='CV Rotina <2A - procedência'!N49 -> 0.7391304348 | H49: ='CV Rotina <2A - procedência'!X49 -> 0.9130434783 | I49: ='CV Rotina <2A - procedência'!R49 -> 0.6695652174 | J49: ='CV Rotina <2A - procedência'!T49 -> 0.8434782609 | K49: ='CV Rotina <2A - procedência'!V49 -> 0.8434782609 | L49: ='CV Rotina <2A - procedência'!Z49 -> 0.8782608696 | M49: 0 | N49: 0 | O49: 0 | P49: 0
A50: Sul | B50: Mimoso do Sul | C50: ='CV Rotina <2A - procedência'!H50 -> 0.1333333333 | D50: ='CV Rotina <2A - procedência'!P50 -> 0.8285714286 | E50: ='CV Rotina <2A - procedência'!J50 -> 0.7142857143 | F50: ='CV Rotina <2A - procedência'!L50 -> 0.6619047619 | G50: ='CV Rotina <2A - procedência'!N50 -> 0.7619047619 | H50: ='CV Rotina <2A - procedência'!X50 -> 0.6476190476 | I50: ='CV Rotina <2A - procedência'!R50 -> 0.6857142857 | J50: ='CV Rotina <2A - procedência'!T50 -> 0.6619047619 | K50: ='CV Rotina <2A - procedência'!V50 -> 0.5857142857 | L50: ='CV Rotina <2A - procedência'!Z50 -> 0.6571428571 | M50: 0 | N50: 0 | O50: 0 | P50: 0
A51: Norte | B51: Montanha | C51: ='CV Rotina <2A - procedência'!H51 -> 0.3727810651 | D51: ='CV Rotina <2A - procedência'!P51 -> 0.9940828402 | E51: ='CV Rotina <2A - procedência'!J51 -> 0.9053254438 | F51: ='CV Rotina <2A - procedência'!L51 -> 0.9171597633 | G51: ='CV Rotina <2A - procedência'!N51 -> 1.00591716 | H51: ='CV Rotina <2A - procedência'!X51 -> 1.029585799 | I51: ='CV Rotina <2A - procedência'!R51 -> 0.8875739645 | J51: ='CV Rotina <2A - procedência'!T51 -> 0.8520710059 | K51: ='CV Rotina <2A - procedência'!V51 -> 0.9408284024 | L51: ='CV Rotina <2A - procedência'!Z51 -> 1.029585799 | M51: 1 | N51: 3 | O51: 4 | P51: 2
A52: Norte | B52: Mucurici | C52: ='CV Rotina <2A - procedência'!H52 -> 0.1219512195 | D52: ='CV Rotina <2A - procedência'!P52 -> 1.048780488 | E52: ='CV Rotina <2A - procedência'!J52 -> 1.024390244 | F52: ='CV Rotina <2A - procedência'!L52 -> 1.048780488 | G52: ='CV Rotina <2A - procedência'!N52 -> 1.073170732 | H52: ='CV Rotina <2A - procedência'!X52 -> 1.048780488 | I52: ='CV Rotina <2A - procedência'!R52 -> 0.8780487805 | J52: ='CV Rotina <2A - procedência'!T52 -> 1.073170732 | K52: ='CV Rotina <2A - procedência'!V52 -> 1.195121951 | L52: ='CV Rotina <2A - procedência'!Z52 -> 1.170731707 | M52: 1 | N52: 7 | O52: 8 | P52: 4
A53: Sul | B53: Muniz Freire | C53: ='CV Rotina <2A - procedência'!H53 -> 0.61875 | D53: ='CV Rotina <2A - procedência'!P53 -> 0.975 | E53: ='CV Rotina <2A - procedência'!J53 -> 0.875 | F53: ='CV Rotina <2A - procedência'!L53 -> 0.88125 | G53: ='CV Rotina <2A - procedência'!N53 -> 0.94375 | H53: ='CV Rotina <2A - procedência'!X53 -> 1.0125 | I53: ='CV Rotina <2A - procedência'!R53 -> 0.88125 | J53: ='CV Rotina <2A - procedência'!T53 -> 0.95 | K53: ='CV Rotina <2A - procedência'!V53 -> 1.0375 | L53: ='CV Rotina <2A - procedência'!Z53 -> 1.2125 | M53: 1 | N53: 4 | O53: 5 | P53: 1
A54: Sul | B54: Muqui | C54: ='CV Rotina <2A - procedência'!H54 -> 0.1320754717 | D54: ='CV Rotina <2A - procedência'!P54 -> 0.9339622642 | E54: ='CV Rotina <2A - procedência'!J54 -> 0.8679245283 | F54: ='CV Rotina <2A - procedência'!L54 -> 0.8679245283 | G54: ='CV Rotina <2A - procedência'!N54 -> 0.8679245283 | H54: ='CV Rotina <2A - procedência'!X54 -> 0.9905660377 | I54: ='CV Rotina <2A - procedência'!R54 -> 0.7924528302 | J54: ='CV Rotina <2A - procedência'!T54 -> 0.9716981132 | K54: ='CV Rotina <2A - procedência'!V54 -> 0.9716981132 | L54: ='CV Rotina <2A - procedência'!Z54 -> 1.047169811 | M54: 1 | N54: 4 | O54: 5 | P54: 1
A55: Norte | B55: Nova Venécia | C55: ='CV Rotina <2A - procedência'!H55 -> 0.6821192053 | D55: ='CV Rotina <2A - procedência'!P55 -> 0.93598234 | E55: ='CV Rotina <2A - procedência'!J55 -> 0.8984547461 | F55: ='CV Rotina <2A - procedência'!L55 -> 0.885209713 | G55: ='CV Rotina <2A - procedência'!N55 -> 0.7086092715 | H55: ='CV Rotina <2A - procedência'!X55 -> 1.026490066 | I55: ='CV Rotina <2A - procedência'!R55 -> 0.8741721854 | J55: ='CV Rotina <2A - procedência'!T55 -> 0.7924944812 | K55: ='CV Rotina <2A - procedência'!V55 -> 0.9072847682 | L55: ='CV Rotina <2A - procedência'!Z55 -> 0.8962472406 | M55: 1 | N55: 1 | O55: 2 | P55: 1
A56: Central | B56: Pancas | C56: ='CV Rotina <2A - procedência'!H56 -> 0.5034013605 | D56: ='CV Rotina <2A - procedência'!P56 -> 0.9591836735 | E56: ='CV Rotina <2A - procedência'!J56 -> 0.9319727891 | F56: ='CV Rotina <2A - procedência'!L56 -> 0.9455782313 | G56: ='CV Rotina <2A - procedência'!N56 -> 0.9387755102 | H56: ='CV Rotina <2A - procedência'!X56 -> 0.9659863946 | I56: ='CV Rotina <2A - procedência'!R56 -> 0.9931972789 | J56: ='CV Rotina <2A - procedência'!T56 -> 0.8299319728 | K56: ='CV Rotina <2A - procedência'!V56 -> 0.9931972789 | L56: ='CV Rotina <2A - procedência'!Z56 -> 1.074829932 | M56: 1 | N56: 4 | O56: 5 | P56: 1
A57: Norte | B57: Pedro Canário | C57: ='CV Rotina <2A - procedência'!H57 -> 0.1106382979 | D57: ='CV Rotina <2A - procedência'!P57 -> 0.8468085106 | E57: ='CV Rotina <2A - procedência'!J57 -> 0.8595744681 | F57: ='CV Rotina <2A - procedência'!L57 -> 0.8 | G57: ='CV Rotina <2A - procedência'!N57 -> 0.7914893617 | H57: ='CV Rotina <2A - procedência'!X57 -> 1.110638298 | I57: ='CV Rotina <2A - procedência'!R57 -> 0.8425531915 | J57: ='CV Rotina <2A - procedência'!T57 -> 0.6553191489 | K57: ='CV Rotina <2A - procedência'!V57 -> 1.029787234 | L57: ='CV Rotina <2A - procedência'!Z57 -> 0.9234042553 | M57: 0 | N57: 2 | O57: 2 | P57: 1
A58: Norte | B58: Pinheiros | C58: ='CV Rotina <2A - procedência'!H58 -> 0.04453441296 | D58: ='CV Rotina <2A - procedência'!P58 -> 0.7449392713 | E58: ='CV Rotina <2A - procedência'!J58 -> 0.6882591093 | F58: ='CV Rotina <2A - procedência'!L58 -> 0.6801619433 | G58: ='CV Rotina <2A - procedência'!N58 -> 0.6720647773 | H58: ='CV Rotina <2A - procedência'!X58 -> 0.7530364372 | I58: ='CV Rotina <2A - procedência'!R58 -> 0.6801619433 | J58: ='CV Rotina <2A - procedência'!T58 -> 0.7085020243 | K58: ='CV Rotina <2A - procedência'!V58 -> 0.6963562753 | L58: ='CV Rotina <2A - procedência'!Z58 -> 0.7165991903 | M58: 0 | N58: 0 | O58: 0 | P58: 0
A59: Sul | B59: Piúma | C59: ='CV Rotina <2A - procedência'!H59 -> 0.3666666667 | D59: ='CV Rotina <2A - procedência'!P59 -> 0.9619047619 | E59: ='CV Rotina <2A - procedência'!J59 -> 0.8857142857 | F59: ='CV Rotina <2A - procedência'!L59 -> 0.8285714286 | G59: ='CV Rotina <2A - procedência'!N59 -> 0.8952380952 | H59: ='CV Rotina <2A - procedência'!X59 -> 1.004761905 | I59: ='CV Rotina <2A - procedência'!R59 -> 0.919047619 | J59: ='CV Rotina <2A - procedência'!T59 -> 0.6714285714 | K59: ='CV Rotina <2A - procedência'!V59 -> 0.919047619 | L59: ='CV Rotina <2A - procedência'!Z59 -> 0.7952380952 | M59: 1 | N59: 1 | O59: 2 | P59: 1
A60: Norte | B60: Ponto Belo | C60: ='CV Rotina <2A - procedência'!H60 -> 0.1836734694 | D60: ='CV Rotina <2A - procedência'!P60 -> 1.102040816 | E60: ='CV Rotina <2A - procedência'!J60 -> 1.12244898 | F60: ='CV Rotina <2A - procedência'!L60 -> 1.12244898 | G60: ='CV Rotina <2A - procedência'!N60 -> 1.06122449 | H60: ='CV Rotina <2A - procedência'!X60 -> 1.12244898 | I60: ='CV Rotina <2A - procedência'!R60 -> 1.12244898 | J60: ='CV Rotina <2A - procedência'!T60 -> 1.346938776 | K60: ='CV Rotina <2A - procedência'!V60 -> 1.163265306 | L60: ='CV Rotina <2A - procedência'!Z60 -> 1.081632653 | M60: 1 | N60: 8 | O60: 9 | P60: 4
A61: Sul | B61: Presidente Kennedy | C61: ='CV Rotina <2A - procedência'!H61 -> 0.09210526316 | D61: ='CV Rotina <2A - procedência'!P61 -> 0.8486842105 | E61: ='CV Rotina <2A - procedência'!J61 -> 0.8486842105 | F61: ='CV Rotina <2A - procedência'!L61 -> 0.8355263158 | G61: ='CV Rotina <2A - procedência'!N61 -> 0.8157894737 | H61: ='CV Rotina <2A - procedência'!X61 -> 1.013157895 | I61: ='CV Rotina <2A - procedência'!R61 -> 0.8618421053 | J61: ='CV Rotina <2A - procedência'!T61 -> 0.8486842105 | K61: ='CV Rotina <2A - procedência'!V61 -> 0.8486842105 | L61: ='CV Rotina <2A - procedência'!Z61 -> 0.8157894737 | M61: 0 | N61: 1 | O61: 1 | P61: 1
A62: Central | B62: Rio Bananal | C62: ='CV Rotina <2A - procedência'!H62 -> 0.1565656566 | D62: ='CV Rotina <2A - procedência'!P62 -> 0.904040404 | E62: ='CV Rotina <2A - procedência'!J62 -> 0.8686868687 | F62: ='CV Rotina <2A - procedência'!L62 -> 0.8585858586 | G62: ='CV Rotina <2A - procedência'!N62 -> 0.8434343434 | H62: ='CV Rotina <2A - procedência'!X62 -> 1.025252525 | I62: ='CV Rotina <2A - procedência'!R62 -> 0.8838383838 | J62: ='CV Rotina <2A - procedência'!T62 -> 0.8838383838 | K62: ='CV Rotina <2A - procedência'!V62 -> 1.01010101 | L62: ='CV Rotina <2A - procedência'!Z62 -> 0.8686868687 | M62: 1 | N62: 2 | O62: 3 | P62: 1
A63: Sul | B63: Rio Novo do Sul | C63: ='CV Rotina <2A - procedência'!H63 -> 0.2380952381 | D63: ='CV Rotina <2A - procedência'!P63 -> 0.869047619 | E63: ='CV Rotina <2A - procedência'!J63 -> 0.8571428571 | F63: ='CV Rotina <2A - procedência'!L63 -> 0.869047619 | G63: ='CV Rotina <2A - procedência'!N63 -> 0.8333333333 | H63: ='CV Rotina <2A - procedência'!X63 -> 0.8333333333 | I63: ='CV Rotina <2A - procedência'!R63 -> 0.8571428571 | J63: ='CV Rotina <2A - procedência'!T63 -> 0.6904761905 | K63: ='CV Rotina <2A - procedência'!V63 -> 0.7142857143 | L63: ='CV Rotina <2A - procedência'!Z63 -> 0.7738095238 | M63: 0 | N63: 0 | O63: 0 | P63: 0
A64: Metropolitana | B64: Santa Leopoldina | C64: ='CV Rotina <2A - procedência'!H64 -> 0.1818181818 | D64: ='CV Rotina <2A - procedência'!P64 -> 0.803030303 | E64: ='CV Rotina <2A - procedência'!J64 -> 0.696969697 | F64: ='CV Rotina <2A - procedência'!L64 -> 0.6818181818 | G64: ='CV Rotina <2A - procedência'!N64 -> 0.7575757576 | H64: ='CV Rotina <2A - procedência'!X64 -> 0.803030303 | I64: ='CV Rotina <2A - procedência'!R64 -> 0.803030303 | J64: ='CV Rotina <2A - procedência'!T64 -> 0.7121212121 | K64: ='CV Rotina <2A - procedência'!V64 -> 0.9242424242 | L64: ='CV Rotina <2A - procedência'!Z64 -> 0.8787878788 | M64: 0 | N64: 0 | O64: 0 | P64: 0
A65: Metropolitana | B65: Santa Maria de Jetibá | C65: ='CV Rotina <2A - procedência'!H65 -> 0.6788008565 | D65: ='CV Rotina <2A - procedência'!P65 -> 0.9293361884 | E65: ='CV Rotina <2A - procedência'!J65 -> 0.8479657388 | F65: ='CV Rotina <2A - procedência'!L65 -> 0.8565310493 | G65: ='CV Rotina <2A - procedência'!N65 -> 0.8886509636 | H65: ='CV Rotina <2A - procedência'!X65 -> 0.8950749465 | I65: ='CV Rotina <2A - procedência'!R65 -> 0.9229122056 | J65: ='CV Rotina <2A - procedência'!T65 -> 0.7087794433 | K65: ='CV Rotina <2A - procedência'!V65 -> 0.8372591006 | L65: ='CV Rotina <2A - procedência'!Z65 -> 0.8201284797 | M65: 1 | N65: 0 | O65: 1 | P65: 0
A66: Metropolitana | B66: Santa Teresa | C66: ='CV Rotina <2A - procedência'!H66 -> 2.624365482 | D66: ='CV Rotina <2A - procedência'!P66 -> 0.8324873096 | E66: ='CV Rotina <2A - procedência'!J66 -> 0.8223350254 | F66: ='CV Rotina <2A - procedência'!L66 -> 0.8274111675 | G66: ='CV Rotina <2A - procedência'!N66 -> 0.8375634518 | H66: ='CV Rotina <2A - procedência'!X66 -> 0.8934010152 | I66: ='CV Rotina <2A - procedência'!R66 -> 0.8730964467 | J66: ='CV Rotina <2A - procedência'!T66 -> 0.7360406091 | K66: ='CV Rotina <2A - procedência'!V66 -> 0.8426395939 | L66: ='CV Rotina <2A - procedência'!Z66 -> 0.8984771574 | M66: 1 | N66: 0 | O66: 1 | P66: 0
A67: Central | B67: São Domingos do Norte | C67: ='CV Rotina <2A - procedência'!H67 -> 0.5294117647 | D67: ='CV Rotina <2A - procedência'!P67 -> 0.8970588235 | E67: ='CV Rotina <2A - procedência'!J67 -> 0.7941176471 | F67: ='CV Rotina <2A - procedência'!L67 -> 0.8088235294 | G67: ='CV Rotina <2A - procedência'!N67 -> 0.8235294118 | H67: ='CV Rotina <2A - procedência'!X67 -> 1.132352941 | I67: ='CV Rotina <2A - procedência'!R67 -> 0.8382352941 | J67: ='CV Rotina <2A - procedência'!T67 -> 0.8529411765 | K67: ='CV Rotina <2A - procedência'!V67 -> 1.191176471 | L67: ='CV Rotina <2A - procedência'!Z67 -> 1.117647059 | M67: =COUNTIF(C67:D67,">=0,9") -> 0 | N67: =COUNTIFS(E67:L67,">=0,95") -> 3 | O67: 3 | P67: 1
A68: Central | B68: São Gabriel da Palha | C68: ='CV Rotina <2A - procedência'!H68 -> 0.4181184669 | D68: ='CV Rotina <2A - procedência'!P68 -> 0.8885017422 | E68: ='CV Rotina <2A - procedência'!J68 -> 0.8780487805 | F68: ='CV Rotina <2A - procedência'!L68 -> 0.8780487805 | G68: ='CV Rotina <2A - procedência'!N68 -> 0.8536585366 | H68: ='CV Rotina <2A - procedência'!X68 -> 0.9965156794 | I68: ='CV Rotina <2A - procedência'!R68 -> 0.881533101 | J68: ='CV Rotina <2A - procedência'!T68 -> 0.8641114983 | K68: ='CV Rotina <2A - procedência'!V68 -> 0.8641114983 | L68: ='CV Rotina <2A - procedência'!Z68 -> 0.8536585366 | M68: 0 | N68: 1 | O68: =SUM(M68:N68) -> 1 | P68: =COUNTIF(E68:H68,">=0,95") -> 1
A69: Sul | B69: São José do Calçado | C69: ='CV Rotina <2A - procedência'!H69 -> 0.9047619048 | D69: ='CV Rotina <2A - procedência'!P69 -> 1 | E69: ='CV Rotina <2A - procedência'!J69 -> 1 | F69: ='CV Rotina <2A - procedência'!L69 -> 1 | G69: ='CV Rotina <2A - procedência'!N69 -> 0.9841269841 | H69: ='CV Rotina <2A - procedência'!X69 -> 1.031746032 | I69: ='CV Rotina <2A - procedência'!R69 -> 1.015873016 | J69: ='CV Rotina <2A - procedência'!T69 -> 0.6507936508 | K69: ='CV Rotina <2A - procedência'!V69 -> 1.047619048 | L69: ='CV Rotina <2A - procedência'!Z69 -> 1.047619048 | M69: 2 | N69: 7 | O69: 9 | P69: 4
A70: Norte | B70: São Mateus | C70: ='CV Rotina <2A - procedência'!H70 -> 1.450471698 | D70: ='CV Rotina <2A - procedência'!P70 -> 0.8616352201 | E70: ='CV Rotina <2A - procedência'!J70 -> 0.786163522 | F70: ='CV Rotina <2A - procedência'!L70 -> 0.7735849057 | G70: ='CV Rotina <2A - procedência'!N70 -> 0.8616352201 | H70: ='CV Rotina <2A - procedência'!X70 -> 0.8993710692 | I70: ='CV Rotina <2A - procedência'!R70 -> 0.8231132075 | J70: ='CV Rotina <2A - procedência'!T70 -> 0.641509434 | K70: ='CV Rotina <2A - procedência'!V70 -> 0.8160377358 | L70: ='CV Rotina <2A - procedência'!Z70 -> 0.7248427673 | M70: 1 | N70: 0 | O70: 1 | P70: 0
A71: Central | B71: São Roque do Canaã | C71: ='CV Rotina <2A - procedência'!H71 -> 0.3894736842 | D71: ='CV Rotina <2A - procedência'!P71 -> 0.8736842105 | E71: ='CV Rotina <2A - procedência'!J71 -> 0.7473684211 | F71: ='CV Rotina <2A - procedência'!L71 -> 0.7157894737 | G71: ='CV Rotina <2A - procedência'!N71 -> 0.7473684211 | H71: ='CV Rotina <2A - procedência'!X71 -> 0.9157894737 | I71: ='CV Rotina <2A - procedência'!R71 -> 0.6947368421 | J71: ='CV Rotina <2A - procedência'!T71 -> 0.7578947368 | K71: ='CV Rotina <2A - procedência'!V71 -> 0.8105263158 | L71: ='CV Rotina <2A - procedência'!Z71 -> 0.8631578947 | M71: 0 | N71: 0 | O71: 0 | P71: 0
A72: Metropolitana | B72: Serra | C72: ='CV Rotina <2A - procedência'!H72 -> 1.143985779 | D72: ='CV Rotina <2A - procedência'!P72 -> 0.8425834485 | E72: ='CV Rotina <2A - procedência'!J72 -> 0.7744420304 | F72: ='CV Rotina <2A - procedência'!L72 -> 0.7560734742 | G72: ='CV Rotina <2A - procedência'!N72 -> 0.7864902232 | H72: ='CV Rotina <2A - procedência'!X72 -> 0.8846533676 | I72: ='CV Rotina <2A - procedência'!R72 -> 0.7862927118 | J72: ='CV Rotina <2A - procedência'!T72 -> 0.6387517282 | K72: ='CV Rotina <2A - procedência'!V72 -> 0.8449535848 | L72: ='CV Rotina <2A - procedência'!Z72 -> 0.7059055896 | M72: 1 | N72: 0 | O72: 1 | P72: 0
A73: Central | B73: Sooretama | C73: ='CV Rotina <2A - procedência'!H73 -> 0.09756097561 | D73: ='CV Rotina <2A - procedência'!P73 -> 0.8850174216 | E73: ='CV Rotina <2A - procedência'!J73 -> 0.8466898955 | F73: ='CV Rotina <2A - procedência'!L73 -> 0.8292682927 | G73: ='CV Rotina <2A - procedência'!N73 -> 0.7630662021 | H73: ='CV Rotina <2A - procedência'!X73 -> 1.013937282 | I73: ='CV Rotina <2A - procedência'!R73 -> 0.8885017422 | J73: ='CV Rotina <2A - procedência'!T73 -> 0.7839721254 | K73: ='CV Rotina <2A - procedência'!V73 -> 0.9268292683 | L73: ='CV Rotina <2A - procedência'!Z73 -> 0.8675958188 | M73: 0 | N73: 1 | O73: 1 | P73: 1
A74: Sul | B74: Vargem Alta | C74: ='CV Rotina <2A - procedência'!H74 -> 0.1275510204 | D74: ='CV Rotina <2A - procedência'!P74 -> 0.9183673469 | E74: ='CV Rotina <2A - procedência'!J74 -> 0.7806122449 | F74: ='CV Rotina <2A - procedência'!L74 -> 0.7551020408 | G74: ='CV Rotina <2A - procedência'!N74 -> 0.8928571429 | H74: ='CV Rotina <2A - procedência'!X74 -> 0.862244898 | I74: ='CV Rotina <2A - procedência'!R74 -> 0.8214285714 | J74: ='CV Rotina <2A - procedência'!T74 -> 0.7091836735 | K74: ='CV Rotina <2A - procedência'!V74 -> 0.8316326531 | L74: ='CV Rotina <2A - procedência'!Z74 -> 0.9030612245 | M74: 1 | N74: 0 | O74: 1 | P74: 0
A75: Metropolitana | B75: Venda Nova do Imigrante | C75: ='CV Rotina <2A - procedência'!H75 -> 1.402777778 | D75: ='CV Rotina <2A - procedência'!P75 -> 1.101851852 | E75: ='CV Rotina <2A - procedência'!J75 -> 1.083333333 | F75: ='CV Rotina <2A - procedência'!L75 -> 1.078703704 | G75: ='CV Rotina <2A - procedência'!N75 -> 1.060185185 | H75: ='CV Rotina <2A - procedência'!X75 -> 1.125 | I75: ='CV Rotina <2A - procedência'!R75 -> 1.064814815 | J75: ='CV Rotina <2A - procedência'!T75 -> 1 | K75: ='CV Rotina <2A - procedência'!V75 -> 1.148148148 | L75: ='CV Rotina <2A - procedência'!Z75 -> 1.189814815 | M75: 2 | N75: 8 | O75: 10 | P75: 4
A76: Metropolitana | B76: Viana | C76: ='CV Rotina <2A - procedência'!H76 -> 0.1983193277 | D76: ='CV Rotina <2A - procedência'!P76 -> 0.9983193277 | E76: ='CV Rotina <2A - procedência'!J76 -> 0.9411764706 | F76: ='CV Rotina <2A - procedência'!L76 -> 0.868907563 | G76: ='CV Rotina <2A - procedência'!N76 -> 0.9428571429 | H76: ='CV Rotina <2A - procedência'!X76 -> 1.149579832 | I76: ='CV Rotina <2A - procedência'!R76 -> 0.9512605042 | J76: ='CV Rotina <2A - procedência'!T76 -> 0.6621848739 | K76: ='CV Rotina <2A - procedência'!V76 -> 0.9546218487 | L76: ='CV Rotina <2A - procedência'!Z76 -> 0.7596638655 | M76: 1 | N76: 3 | O76: 4 | P76: 1
A77: Norte | B77: Vila Pavão | C77: ='CV Rotina <2A - procedência'!H77 -> 0.421686747 | D77: ='CV Rotina <2A - procedência'!P77 -> 0.9156626506 | E77: ='CV Rotina <2A - procedência'!J77 -> 1.012048193 | F77: ='CV Rotina <2A - procedência'!L77 -> 1.012048193 | G77: ='CV Rotina <2A - procedência'!N77 -> 0.9277108434 | H77: ='CV Rotina <2A - procedência'!X77 -> 0.9879518072 | I77: ='CV Rotina <2A - procedência'!R77 -> 1.012048193 | J77: ='CV Rotina <2A - procedência'!T77 -> 1 | K77: ='CV Rotina <2A - procedência'!V77 -> 0.8192771084 | L77: ='CV Rotina <2A - procedência'!Z77 -> 0.7831325301 | M77: 1 | N77: 5 | O77: 6 | P77: 3
A78: Central | B78: Vila Valério | C78: ='CV Rotina <2A - procedência'!H78 -> 0.2183908046 | D78: ='CV Rotina <2A - procedência'!P78 -> 0.6896551724 | E78: ='CV Rotina <2A - procedência'!J78 -> 0.724137931 | F78: ='CV Rotina <2A - procedência'!L78 -> 0.7471264368 | G78: ='CV Rotina <2A - procedência'!N78 -> 0.6781609195 | H78: ='CV Rotina <2A - procedência'!X78 -> 0.9885057471 | I78: ='CV Rotina <2A - procedência'!R78 -> 0.7298850575 | J78: ='CV Rotina <2A - procedência'!T78 -> 0.816091954 | K78: ='CV Rotina <2A - procedência'!V78 -> 1.005747126 | L78: ='CV Rotina <2A - procedência'!Z78 -> 0.9942528736 | M78: 0 | N78: 3 | O78: 3 | P78: 1
A79: Metropolitana | B79: Vila Velha | C79: ='CV Rotina <2A - procedência'!H79 -> 0.7401781037 | D79: ='CV Rotina <2A - procedência'!P79 -> 0.7959664746 | E79: ='CV Rotina <2A - procedência'!J79 -> 0.7260345731 | F79: ='CV Rotina <2A - procedência'!L79 -> 0.7268203248 | G79: ='CV Rotina <2A - procedência'!N79 -> 0.7475117863 | H79: ='CV Rotina <2A - procedência'!X79 -> 0.8077527501 | I79: ='CV Rotina <2A - procedência'!R79 -> 0.7619172342 | J79: ='CV Rotina <2A - procedência'!T79 -> 0.5720272394 | K79: ='CV Rotina <2A - procedência'!V79 -> 0.7904662127 | L79: ='CV Rotina <2A - procedência'!Z79 -> 0.7218438973 | M79: 0 | N79: 0 | O79: 0 | P79: 0
A80: Metropolitana | B80: Vitória | C80: ='CV Rotina <2A - procedência'!H80 -> 2.122879603 | D80: ='CV Rotina <2A - procedência'!P80 -> 1.103434009 | E80: ='CV Rotina <2A - procedência'!J80 -> 1.09598676 | F80: ='CV Rotina <2A - procedência'!L80 -> 1.092676872 | G80: ='CV Rotina <2A - procedência'!N80 -> 1.138187836 | H80: ='CV Rotina <2A - procedência'!X80 -> 1.170045511 | I80: ='CV Rotina <2A - procedência'!R80 -> 1.139015308 | J80: ='CV Rotina <2A - procedência'!T80 -> 0.6797683078 | K80: ='CV Rotina <2A - procedência'!V80 -> 1.04178734 | L80: ='CV Rotina <2A - procedência'!Z80 -> 1.003309888 | M80: 2 | N80: 7 | O80: 9 | P80: 4
B82: Total Norte | C82: ='CV Rotina <2A - procedência'!H82 -> 0.7437173426 | D82: ='CV Rotina <2A - procedência'!P82 -> 0.8666334909 | E82: ='CV Rotina <2A - procedência'!J82 -> 0.8245832297 | F82: ='CV Rotina <2A - procedência'!L82 -> 0.8131375964 | G82: ='CV Rotina <2A - procedência'!N82 -> 0.8210997761 | H82: ='CV Rotina <2A - procedência'!X82 -> 0.9467529236 | I82: ='CV Rotina <2A - procedência'!R82 -> 0.8260761383 | J82: ='CV Rotina <2A - procedência'!T82 -> 0.7330181637 | K82: ='CV Rotina <2A - procedência'!V82 -> 0.8626524011 | L82: ='CV Rotina <2A - procedência'!Z82 -> 0.8084100523 | M82: =COUNTIF(C82:D82,">=0,9") -> 0 | N82: =COUNTIFS(E82:L82,">=0,95") -> 0 | O82: =SUM(M82:N82) -> 0 | P82: =COUNTIF(E82:H82,">=0,95") -> 0
B83: Total Central | C83: ='CV Rotina <2A - procedência'!H83 -> 1.090984456 | D83: ='CV Rotina <2A - procedência'!P83 -> 0.8669430052 | E83: ='CV Rotina <2A - procedência'!J83 -> 0.8298445596 | F83: ='CV Rotina <2A - procedência'!L83 -> 0.8207253886 | G83: ='CV Rotina <2A - procedência'!N83 -> 0.812642487 | H83: ='CV Rotina <2A - procedência'!X83 -> 0.9378238342 | I83: ='CV Rotina <2A - procedência'!R83 -> 0.8540932642 | J83: ='CV Rotina <2A - procedência'!T83 -> 0.7343005181 | K83: ='CV Rotina <2A - procedência'!V83 -> 0.8634196891 | L83: ='CV Rotina <2A - procedência'!Z83 -> 0.8256994819 | M83: =COUNTIF(C83:D83,">=0,9") -> 1 | N83: =COUNTIFS(E83:L83,">=0,95") -> 0 | O83: =SUM(M83:N83) -> 1 | P83: =COUNTIF(E83:H83,">=0,95") -> 0
B84: Total Metropolitana | C84: ='CV Rotina <2A - procedência'!H84 -> 0.9575375763 | D84: ='CV Rotina <2A - procedência'!P84 -> 0.8834763629 | E84: ='CV Rotina <2A - procedência'!J84 -> 0.8270747557 | F84: ='CV Rotina <2A - procedência'!L84 -> 0.8172032343 | G84: ='CV Rotina <2A - procedência'!N84 -> 0.824991319 | H84: ='CV Rotina <2A - procedência'!X84 -> 0.9353638573 | I84: ='CV Rotina <2A - procedência'!R84 -> 0.8489012352 | J84: ='CV Rotina <2A - procedência'!T84 -> 0.6543975396 | K84: ='CV Rotina <2A - procedência'!V84 -> 0.879656729 | L84: ='CV Rotina <2A - procedência'!Z84 -> 0.8048018255 | M84: =COUNTIF(C84:D84,">=0,9") -> 1 | N84: =COUNTIFS(E84:L84,">=0,95") -> 0 | O84: =SUM(M84:N84) -> 1 | P84: =COUNTIF(E84:H84,">=0,95") -> 0
B85: Total Sul | C85: ='CV Rotina <2A - procedência'!H85 -> 0.9742805755 | D85: ='CV Rotina <2A - procedência'!P85 -> 0.9320143885 | E85: ='CV Rotina <2A - procedência'!J85 -> 0.8829136691 | F85: ='CV Rotina <2A - procedência'!L85 -> 0.8561151079 | G85: ='CV Rotina <2A - procedência'!N85 -> 0.8771582734 | H85: ='CV Rotina <2A - procedência'!X85 -> 0.9823741007 | I85: ='CV Rotina <2A - procedência'!R85 -> 0.8973021583 | J85: ='CV Rotina <2A - procedência'!T85 -> 0.7455035971 | K85: ='CV Rotina <2A - procedência'!V85 -> 0.9282374101 | L85: ='CV Rotina <2A - procedência'!Z85 -> 0.909352518 | M85: =COUNTIF(C85:D85,">=0,9") -> 2 | N85: =COUNTIFS(E85:L85,">=0,95") -> 1 | O85: =SUM(M85:N85) -> 3 | P85: =COUNTIF(E85:H85,">=0,95") -> 1
B86: Total Espírito Santo | C86: ='CV Rotina <2A - procedência'!H86 -> 0.9539970489 | D86: ='CV Rotina <2A - procedência'!P86 -> 0.8870179093 | E86: ='CV Rotina <2A - procedência'!J86 -> 0.836154269 | F86: ='CV Rotina <2A - procedência'!L86 -> 0.8234817579 | G86: ='CV Rotina <2A - procedência'!N86 -> 0.8312067818 | H86: ='CV Rotina <2A - procedência'!X86 -> 0.9445939299 | I86: ='CV Rotina <2A - procedência'!R86 -> 0.8547579782 | J86: ='CV Rotina <2A - procedência'!T86 -> 0.6893498828 | K86: ='CV Rotina <2A - procedência'!V86 -> 0.8832277291 | L86: ='CV Rotina <2A - procedência'!Z86 -> 0.8249573243 | M86: =COUNTIF(C86:D86,">=0,9") -> 1 | N86: =COUNTIFS(E86:L86,">=0,95") -> 0 | O86: =SUM(M86:N86) -> 1 | P86: =COUNTIF(E86:H86,">=0,95") -> 0
A89: Fonte: SIPNI/DATASUS, em 09 de junho de 2023.*
A90: Vacina e Confia, em 12 de junho de 2023.**
A91: *Dados referentes às doses aplicadas pelas clínicas particulares de janeiro a maio de 2023
A92: **Dados referente às doses aplicadas no período de janeiro a maio de 2023
A93: Cobertura Calculada por município de vacinação
A94: 1 População proporcional extraída do MS/SVS/DASIS - Sistema de Informações sobre Nascidos Vivos - SINASC
A95: 2000 a 2021 – Estimativas preliminares elaboradas pelo Ministério da Saúde/SVS/DASNT/CGIAE
A96: Nota: Dados preliminares 2021

Sheet cálculos2 (hidden)
C1: 0.9 | E1: 0.95
A2: Regional | B2: Município | C2: Cobertura Vacinal BCG | D2: Cobertura Vacinal Rotavírus | E2: Cobertura Vacinal Pentavalente | F2: Cobertura Vacinal Poliomielite | G2: Cobertura Vacinal Pneumo 10 | H2: Cobertura Vacinal Tríplice Viral | I2: Cobertura Vacinal Meningo C | J2: Cobertura Vacinal Febre Amarela | K2: Cobertura Vacinal Hepatite A | L2: Cobertura Varicela | M2: META 90% | N2: META 95% | O2: ATINGIRAM META | P2: PQA-VS
A3: Metropolitana | B3: Afonso Cláudio | C3: ='CV Rotina <2A - residência'!H3 -> 0.9367588933 | D3: ='CV Rotina <2A - residência'!P3 -> 0.9130434783 | E3: ='CV Rotina <2A - residência'!J3 -> 0.8458498024 | F3: ='CV Rotina <2A - residência'!L3 -> 0.8339920949 | G3: ='CV Rotina <2A - residência'!N3 -> 0.8735177866 | H3: ='CV Rotina <2A - residência'!X3 -> 0.9604743083 | I3: ='CV Rotina <2A - residência'!R3 -> 0.8537549407 | J3: ='CV Rotina <2A - residência'!T3 -> 0.8181818182 | K3: ='CV Rotina <2A - residência'!V3 -> 0.9960474308 | L3: ='CV Rotina <2A - residência'!Z3 -> 1.118577075 | M3: =COUNTIF(C3:D3,">=0,9") -> 2 | N3: =COUNTIFS(E3:L3,">=0,95") -> 3 | O3: =SUM(M3:N3) -> 5 | P3: =COUNTIF(E3:H3,">=0,95") -> 1
A4: Norte | B4: Água Doce do Norte | C4: ='CV Rotina <2A - residência'!H4 -> 0.7766990291 | D4: ='CV Rotina <2A - residência'!P4 -> 0.6990291262 | E4: ='CV Rotina <2A - residência'!J4 -> 0.854368932 | F4: ='CV Rotina <2A - residência'!L4 -> 0.8349514563 | G4: ='CV Rotina <2A - residência'!N4 -> 0.6990291262 | H4: ='CV Rotina <2A - residência'!X4 -> 1.038834951 | I4: ='CV Rotina <2A - residência'!R4 -> 0.854368932 | J4: ='CV Rotina <2A - residência'!T4 -> 0.9126213592 | K4: ='CV Rotina <2A - residência'!V4 -> 0.8737864078 | L4: ='CV Rotina <2A - residência'!Z4 -> 0.5533980583 | M4: 0 | N4: 1 | O4: =SUM(M4:N4) -> 1 | P4: =COUNTIF(E4:H4,">=0,95") -> 1
A5: Central | B5: Águia Branca | C5: ='CV Rotina <2A - residência'!H5 -> 1.016806723 | D5: ='CV Rotina <2A - residência'!P5 -> 0.781512605 | E5: ='CV Rotina <2A - residência'!J5 -> 0.731092437 | F5: ='CV Rotina <2A - residência'!L5 -> 0.7394957983 | G5: ='CV Rotina <2A - residência'!N5 -> 0.7731092437 | H5: ='CV Rotina <2A - residência'!X5 -> 0.8991596639 | I5: ='CV Rotina <2A - residência'!R5 -> 0.731092437 | J5: ='CV Rotina <2A - residência'!T5 -> 0.7058823529 | K5: ='CV Rotina <2A - residência'!V5 -> 0.8235294118 | L5: ='CV Rotina <2A - residência'!Z5 -> 0.8991596639 | M5: 1 | N5: 0 | O5: 1 | P5: 0
A6: Sul | B6: Alegre | C6: ='CV Rotina <2A - residência'!H6 -> 0.8944954128 | D6: ='CV Rotina <2A - residência'!P6 -> 0.8073394495 | E6: ='CV Rotina <2A - residência'!J6 -> 0.8577981651 | F6: ='CV Rotina <2A - residência'!L6 -> 0.8165137615 | G6: ='CV Rotina <2A - residência'!N6 -> 0.7339449541 | H6: ='CV Rotina <2A - residência'!X6 -> 1.032110092 | I6: ='CV Rotina <2A - residência'!R6 -> 0.8486238532 | J6: ='CV Rotina <2A - residência'!T6 -> 0.7889908257 | K6: ='CV Rotina <2A - residência'!V6 -> 1.004587156 | L6: ='CV Rotina <2A - residência'!Z6 -> 1.059633028 | M6: 0 | N6: 3 | O6: 3 | P6: 1
A7: Sul | B7: Alfredo Chaves | C7: ='CV Rotina <2A - residência'!H7 -> 0.8735632184 | D7: ='CV Rotina <2A - residência'!P7 -> 0.7816091954 | E7: ='CV Rotina <2A - residência'!J7 -> 0.8275862069 | F7: ='CV Rotina <2A - residência'!L7 -> 0.816091954 | G7: ='CV Rotina <2A - residência'!N7 -> 0.6551724138 | H7: ='CV Rotina <2A - residência'!X7 -> 0.908045977 | I7: ='CV Rotina <2A - residência'!R7 -> 0.8505747126 | J7: ='CV Rotina <2A - residência'!T7 -> 0.6781609195 | K7: ='CV Rotina <2A - residência'!V7 -> 0.8850574713 | L7: ='CV Rotina <2A - residência'!Z7 -> 0.9770114943 | M7: 0 | N7: 1 | O7: 1 | P7: 0
A8: Central | B8: Alto Rio Novo | C8: ='CV Rotina <2A - residência'!H8 -> 1 | D8: ='CV Rotina <2A - residência'!P8 -> 0.8493150685 | E8: ='CV Rotina <2A - residência'!J8 -> 0.8082191781 | F8: ='CV Rotina <2A - residência'!L8 -> 0.8082191781 | G8: ='CV Rotina <2A - residência'!N8 -> 0.8356164384 | H8: ='CV Rotina <2A - residência'!X8 -> 0.8493150685 | I8: ='CV Rotina <2A - residência'!R8 -> 0.7945205479 | J8: ='CV Rotina <2A - residência'!T8 -> 0.8082191781 | K8: ='CV Rotina <2A - residência'!V8 -> 0.8767123288 | L8: ='CV Rotina <2A - residência'!Z8 -> 0.9315068493 | M8: 1 | N8: 0 | O8: 1 | P8: 0
A9: Sul | B9: Anchieta | C9: ='CV Rotina <2A - residência'!H9 -> 1.012820513 | D9: ='CV Rotina <2A - residência'!P9 -> 1.11965812 | E9: ='CV Rotina <2A - residência'!J9 -> 1.085470085 | F9: ='CV Rotina <2A - residência'!L9 -> 1.076923077 | G9: ='CV Rotina <2A - residência'!N9 -> 1.094017094 | H9: ='CV Rotina <2A - residência'!X9 -> 1.175213675 | I9: ='CV Rotina <2A - residência'!R9 -> 1.072649573 | J9: ='CV Rotina <2A - residência'!T9 -> 0.8846153846 | K9: ='CV Rotina <2A - residência'!V9 -> 1.102564103 | L9: ='CV Rotina <2A - residência'!Z9 -> 1.162393162 | M9: 2 | N9: 7 | O9: 9 | P9: 4
A10: Sul | B10: Apiacá | C10: ='CV Rotina <2A - residência'!H10 -> 1.157894737 | D10: ='CV Rotina <2A - residência'!P10 -> 1.157894737 | E10: ='CV Rotina <2A - residência'!J10 -> 1.184210526 | F10: ='CV Rotina <2A - residência'!L10 -> 1.105263158 | G10: ='CV Rotina <2A - residência'!N10 -> 1.184210526 | H10: ='CV Rotina <2A - residência'!X10 -> 1.078947368 | I10: ='CV Rotina <2A - residência'!R10 -> 1.157894737 | J10: ='CV Rotina <2A - residência'!T10 -> 0.8947368421 | K10: ='CV Rotina <2A - residência'!V10 -> 0.9473684211 | L10: ='CV Rotina <2A - residência'!Z10 -> 1.105263158 | M10: 2 | N10: 6 | O10: 8 | P10: 4
A11: Metropolitana | B11: Aracruz | C11: ='CV Rotina <2A - residência'!H11 -> 0.9898477157 | D11: ='CV Rotina <2A - residência'!P11 -> 0.8852791878 | E11: ='CV Rotina <2A - residência'!J11 -> 0.8020304569 | F11: ='CV Rotina <2A - residência'!L11 -> 0.7969543147 | G11: ='CV Rotina <2A - residência'!N11 -> 0.7959390863 | H11: ='CV Rotina <2A - residência'!X11 -> 0.9918781726 | I11: ='CV Rotina <2A - residência'!R11 -> 0.821319797 | J11: ='CV Rotina <2A - residência'!T11 -> 0.716751269 | K11: ='CV Rotina <2A - residência'!V11 -> 0.9329949239 | L11: ='CV Rotina <2A - residência'!Z11 -> 0.9492385787 | M11: 1 | N11: 1 | O11: 2 | P11: 1
A12: Sul | B12: Atilio Vivacqua | C12: ='CV Rotina <2A - residência'!H12 -> 1 | D12: ='CV Rotina <2A - residência'!P12 -> 1.184466019 | E12: ='CV Rotina <2A - residência'!J12 -> 1.184466019 | F12: ='CV Rotina <2A - residência'!L12 -> 1.145631068 | G12: ='CV Rotina <2A - residência'!N12 -> 1.145631068 | H12: ='CV Rotina <2A - residência'!X12 -> 1.058252427 | I12: ='CV Rotina <2A - residência'!R12 -> 1.165048544 | J12: ='CV Rotina <2A - residência'!T12 -> 1.048543689 | K12: ='CV Rotina <2A - residência'!V12 -> 0.9417475728 | L12: ='CV Rotina <2A - residência'!Z12 -> 0.9126213592 | M12: 2 | N12: 6 | O12: 8 | P12: 4
A13: Central | B13: Baixo Guandu | C13: ='CV Rotina <2A - residência'!H13 -> 0.9178571429 | D13: ='CV Rotina <2A - residência'!P13 -> 0.7178571429 | E13: ='CV Rotina <2A - residência'!J13 -> 0.6678571429 | F13: ='CV Rotina <2A - residência'!L13 -> 0.6607142857 | G13: ='CV Rotina <2A - residência'!N13 -> 0.6785714286 | H13: ='CV Rotina <2A - residência'!X13 -> 0.8571428571 | I13: ='CV Rotina <2A - residência'!R13 -> 0.6571428571 | J13: ='CV Rotina <2A - residência'!T13 -> 0.6535714286 | K13: ='CV Rotina <2A - residência'!V13 -> 0.8571428571 | L13: ='CV Rotina <2A - residência'!Z13 -> 0.8071428571 | M13: 1 | N13: 0 | O13: 1 | P13: 0
A14: Norte | B14: Barra de São Francisco | C14: ='CV Rotina <2A - residência'!H14 -> 0.8088888889 | D14: ='CV Rotina <2A - residência'!P14 -> 0.7733333333 | E14: ='CV Rotina <2A - residência'!J14 -> 0.7577777778 | F14: ='CV Rotina <2A - residência'!L14 -> 0.7511111111 | G14: ='CV Rotina <2A - residência'!N14 -> 0.7533333333 | H14: ='CV Rotina <2A - residência'!X14 -> 0.8133333333 | I14: ='CV Rotina <2A - residência'!R14 -> 0.6888888889 | J14: ='CV Rotina <2A - residência'!T14 -> 0.66 | K14: ='CV Rotina <2A - residência'!V14 -> 0.6955555556 | L14: ='CV Rotina <2A - residência'!Z14 -> 0.7711111111 | M14: 0 | N14: 0 | O14: 0 | P14: 0
A15: Norte | B15: Boa Esperança | C15: ='CV Rotina <2A - residência'!H15 -> 0.924137931 | D15: ='CV Rotina <2A - residência'!P15 -> 0.8896551724 | E15: ='CV Rotina <2A - residência'!J15 -> 0.8482758621 | F15: ='CV Rotina <2A - residência'!L15 -> 0.8620689655 | G15: ='CV Rotina <2A - residência'!N15 -> 0.8827586207 | H15: ='CV Rotina <2A - residência'!X15 -> 0.924137931 | I15: ='CV Rotina <2A - residência'!R15 -> 0.875862069 | J15: ='CV Rotina <2A - residência'!T15 -> 0.7517241379 | K15: ='CV Rotina <2A - residência'!V15 -> 0.8827586207 | L15: ='CV Rotina <2A - residência'!Z15 -> 0.8275862069 | M15: 1 | N15: 0 | O15: 1 | P15: 0
A16: Sul | B16: Bom Jesus do Norte | C16: ='CV Rotina <2A - residência'!H16 -> 1.232142857 | D16: ='CV Rotina <2A - residência'!P16 -> 1.214285714 | E16: ='CV Rotina <2A - residência'!J16 -> 1.178571429 | F16: ='CV Rotina <2A - residência'!L16 -> 1.178571429 | G16: ='CV Rotina <2A - residência'!N16 -> 1.196428571 | H16: ='CV Rotina <2A - residência'!X16 -> 1.25 | I16: ='CV Rotina <2A - residência'!R16 -> 1.035714286 | J16: ='CV Rotina <2A - residência'!T16 -> 0.9285714286 | K16: ='CV Rotina <2A - residência'!V16 -> 1.214285714 | L16: ='CV Rotina <2A - residência'!Z16 -> 1.089285714 | M16: 2 | N16: 7 | O16: 9 | P16: 4
A17: Metropolitana | B17: Brejetuba | C17: ='CV Rotina <2A - residência'!H17 -> 0.8219178082 | D17: ='CV Rotina <2A - residência'!P17 -> 1.02739726 | E17: ='CV Rotina <2A - residência'!J17 -> 0.8630136986 | F17: ='CV Rotina <2A - residência'!L17 -> 0.9109589041 | G17: ='CV Rotina <2A - residência'!N17 -> 0.9315068493 | H17: ='CV Rotina <2A - residência'!X17 -> 0.9383561644 | I17: ='CV Rotina <2A - residência'!R17 -> 0.9726027397 | J17: ='CV Rotina <2A - residência'!T17 -> 0.7876712329 | K17: ='CV Rotina <2A - residência'!V17 -> 0.9246575342 | L17: ='CV Rotina <2A - residência'!Z17 -> 1.089041096 | M17: 1 | N17: 2 | O17: 3 | P17: 0
A18: Sul | B18: Cachoeiro de Itapemirim | C18: ='CV Rotina <2A - residência'!H18 -> 1.013546798 | D18: ='CV Rotina <2A - residência'!P18 -> 0.89408867 | E18: ='CV Rotina <2A - residência'!J18 -> 0.8245073892 | F18: ='CV Rotina <2A - residência'!L18 -> 0.8177339901 | G18: ='CV Rotina <2A - residência'!N18 -> 0.8300492611 | H18: ='CV Rotina <2A - residência'!X18 -> 0.9944581281 | I18: ='CV Rotina <2A - residência'!R18 -> 0.8534482759 | J18: ='CV Rotina <2A - residência'!T18 -> 0.6693349754 | K18: ='CV Rotina <2A - residência'!V18 -> 0.881773399 | L18: ='CV Rotina <2A - residência'!Z18 -> 0.8706896552 | M18: 1 | N18: 1 | O18: 2 | P18: 1
A19: Metropolitana | B19: Cariacica | C19: ='CV Rotina <2A - residência'!H19 -> 0.9244377811 | D19: ='CV Rotina <2A - residência'!P19 -> 0.8230884558 | E19: ='CV Rotina <2A - residência'!J19 -> 0.7781109445 | F19: ='CV Rotina <2A - residência'!L19 -> 0.7703148426 | G19: ='CV Rotina <2A - residência'!N19 -> 0.7244377811 | H19: ='CV Rotina <2A - residência'!X19 -> 0.9202398801 | I19: ='CV Rotina <2A - residência'!R19 -> 0.8002998501 | J19: ='CV Rotina <2A - residência'!T19 -> 0.6188905547 | K19: ='CV Rotina <2A - residência'!V19 -> 0.8566716642 | L19: ='CV Rotina <2A - residência'!Z19 -> 0.7445277361 | M19: 1 | N19: 0 | O19: 1 | P19: 0
A20: Sul | B20: Castelo | C20: ='CV Rotina <2A - residência'!H20 -> 0.9965635739 | D20: ='CV Rotina <2A - residência'!P20 -> 0.9278350515 | E20: ='CV Rotina <2A - residência'!J20 -> 0.8865979381 | F20: ='CV Rotina <2A - residência'!L20 -> 0.8487972509 | G20: ='CV Rotina <2A - residência'!N20 -> 0.8281786942 | H20: ='CV Rotina <2A - residência'!X20 -> 1.030927835 | I20: ='CV Rotina <2A - residência'!R20 -> 0.9072164948 | J20: ='CV Rotina <2A - residência'!T20 -> 0.7869415808 | K20: ='CV Rotina <2A - residência'!V20 -> 1.04467354 | L20: ='CV Rotina <2A - residência'!Z20 -> 0.8934707904 | M20: 2 | N20: 2 | O20: 4 | P20: 1
A21: Central | B21: Colatina | C21: ='CV Rotina <2A - residência'!H21 -> 0.9659863946 | D21: ='CV Rotina <2A - residência'!P21 -> 0.8367346939 | E21: ='CV Rotina <2A - residência'!J21 -> 0.8153547133 | F21: ='CV Rotina <2A - residência'!L21 -> 0.8153547133 | G21: ='CV Rotina <2A - residência'!N21 -> 0.7444120505 | H21: ='CV Rotina <2A - residência'!X21 -> 0.9271137026 | I21: ='CV Rotina <2A - residência'!R21 -> 0.8318756074 | J21: ='CV Rotina <2A - residência'!T21 -> 0.6958211856 | K21: ='CV Rotina <2A - residência'!V21 -> 0.8377065112 | L21: ='CV Rotina <2A - residência'!Z21 -> 0.7842565598 | M21: 1 | N21: 0 | O21: 1 | P21: 0
A22: Norte | B22: Conceição da Barra | C22: ='CV Rotina <2A - residência'!H22 -> 0.7836879433 | D22: ='CV Rotina <2A - residência'!P22 -> 0.8510638298 | E22: ='CV Rotina <2A - residência'!J22 -> 0.8581560284 | F22: ='CV Rotina <2A - residência'!L22 -> 0.8581560284 | G22: ='CV Rotina <2A - residência'!N22 -> 0.8404255319 | H22: ='CV Rotina <2A - residência'!X22 -> 1.056737589 | I22: ='CV Rotina <2A - residência'!R22 -> 0.829787234 | J22: ='CV Rotina <2A - residência'!T22 -> 0.829787234 | K22: ='CV Rotina <2A - residência'!V22 -> 0.9787234043 | L22: ='CV Rotina <2A - residência'!Z22 -> 0.9432624113 | M22: 0 | N22: 2 | O22: 2 | P22: 1
A23: Metropolitana | B23: Conceição do Castelo | C23: ='CV Rotina <2A - residência'!H23 -> 0.9152542373 | D23: ='CV Rotina <2A - residência'!P23 -> 0.8813559322 | E23: ='CV Rotina <2A - residência'!J23 -> 0.8389830508 | F23: ='CV Rotina <2A - residência'!L23 -> 0.7881355932 | G23: ='CV Rotina <2A - residência'!N23 -> 0.5762711864 | H23: ='CV Rotina <2A - residência'!X23 -> 0.7203389831 | I23: ='CV Rotina <2A - residência'!R23 -> 0.8050847458 | J23: ='CV Rotina <2A - residência'!T23 -> 0.7118644068 | K23: ='CV Rotina <2A - residência'!V23 -> 0.5423728814 | L23: ='CV Rotina <2A - residência'!Z23 -> 0.6694915254 | M23: 1 | N23: 0 | O23: 1 | P23: 0
A24: Sul | B24: Divino de São Lourenço | C24: ='CV Rotina <2A - residência'!H24 -> 1.138888889 | D24: ='CV Rotina <2A - residência'!P24 -> 0.8611111111 | E24: ='CV Rotina <2A - residência'!J24 -> 0.7222222222 | F24: ='CV Rotina <2A - residência'!L24 -> 0.7222222222 | G24: ='CV Rotina <2A - residência'!N24 -> 0.8333333333 | H24: ='CV Rotina <2A - residência'!X24 -> 1.472222222 | I24: ='CV Rotina <2A - residência'!R24 -> 0.8055555556 | J24: ='CV Rotina <2A - residência'!T24 -> 1.055555556 | K24: ='CV Rotina <2A - residência'!V24 -> 1.305555556 | L24: ='CV Rotina <2A - residência'!Z24 -> 1.527777778 | M24: 1 | N24: 4 | O24: 5 | P24: 1
A25: Metropolitana | B25: Domingos Martins | C25: ='CV Rotina <2A - residência'!H25 -> 0.9503546099 | D25: ='CV Rotina <2A - residência'!P25 -> 1.007092199 | E25: ='CV Rotina <2A - residência'!J25 -> 0.9609929078 | F25: ='CV Rotina <2A - residência'!L25 -> 0.9468085106 | G25: ='CV Rotina <2A - residência'!N25 -> 0.9290780142 | H25: ='CV Rotina <2A - residência'!X25 -> 1.007092199 | I25: ='CV Rotina <2A - residência'!R25 -> 1.024822695 | J25: ='CV Rotina <2A - residência'!T25 -> 0.8439716312 | K25: ='CV Rotina <2A - residência'!V25 -> 1.010638298 | L25: ='CV Rotina <2A - residência'!Z25 -> 1.031914894 | M25: 2 | N25: 5 | O25: 7 | P25: 2
A26: Sul | B26: Dores do Rio Preto | C26: ='CV Rotina <2A - residência'!H26 -> 0.6478873239 | D26: ='CV Rotina <2A - residência'!P26 -> 1 | E26: ='CV Rotina <2A - residência'!J26 -> 0.9718309859 | F26: ='CV Rotina <2A - residência'!L26 -> 0.9436619718 | G26: ='CV Rotina <2A - residência'!N26 -> 0.5211267606 | H26: ='CV Rotina <2A - residência'!X26 -> 0.985915493 | I26: ='CV Rotina <2A - residência'!R26 -> 0.8450704225 | J26: ='CV Rotina <2A - residência'!T26 -> 0.9014084507 | K26: ='CV Rotina <2A - residência'!V26 -> 0.7887323944 | L26: ='CV Rotina <2A - residência'!Z26 -> 0.661971831 | M26: 1 | N26: 2 | O26: 3 | P26: 2
A27: Norte | B27: Ecoporanga | C27: ='CV Rotina <2A - residência'!H27 -> 1.080745342 | D27: ='CV Rotina <2A - residência'!P27 -> 1.099378882 | E27: ='CV Rotina <2A - residência'!J27 -> 0.9937888199 | F27: ='CV Rotina <2A - residência'!L27 -> 0.9813664596 | G27: ='CV Rotina <2A - residência'!N27 -> 1.031055901 | H27: ='CV Rotina <2A - residência'!X27 -> 1.149068323 | I27: ='CV Rotina <2A - residência'!R27 -> 1.031055901 | J27: ='CV Rotina <2A - residência'!T27 -> 0.850931677 | K27: ='CV Rotina <2A - residência'!V27 -> 1.01863354 | L27: ='CV Rotina <2A - residência'!Z27 -> 0.9254658385 | M27: 2 | N27: 6 | O27: 8 | P27: 4
A28: Metropolitana | B28: Fundão | C28: ='CV Rotina <2A - residência'!H28 -> 1.046979866 | D28: ='CV Rotina <2A - residência'!P28 -> 1.033557047 | E28: ='CV Rotina <2A - residência'!J28 -> 0.9798657718 | F28: ='CV Rotina <2A - residência'!L28 -> 0.9731543624 | G28: ='CV Rotina <2A - residência'!N28 -> 0.9060402685 | H28: ='CV Rotina <2A - residência'!X28 -> 1.033557047 | I28: ='CV Rotina <2A - residência'!R28 -> 0.9463087248 | J28: ='CV Rotina <2A - residência'!T28 -> 0.711409396 | K28: ='CV Rotina <2A - residência'!V28 -> 0.8590604027 | L28: ='CV Rotina <2A - residência'!Z28 -> 0.8590604027 | M28: 2 | N28: 3 | O28: 5 | P28: 3
A29: Central | B29: Governador Lindenberg | C29: ='CV Rotina <2A - residência'!H29 -> 1.02173913 | D29: ='CV Rotina <2A - residência'!P29 -> 0.75 | E29: ='CV Rotina <2A - residência'!J29 -> 0.7608695652 | F29: ='CV Rotina <2A - residência'!L29 -> 0.7608695652 | G29: ='CV Rotina <2A - residência'!N29 -> 0.7065217391 | H29: ='CV Rotina <2A - residência'!X29 -> 0.9239130435 | I29: ='CV Rotina <2A - residência'!R29 -> 0.75 | J29: ='CV Rotina <2A - residência'!T29 -> 0.6086956522 | K29: ='CV Rotina <2A - residência'!V29 -> 0.9347826087 | L29: ='CV Rotina <2A - residência'!Z29 -> 0.7826086957 | M29: 1 | N29: 0 | O29: 1 | P29: 0
A30: Sul | B30: Guaçuí | C30: ='CV Rotina <2A - residência'!H30 -> 0.962962963 | D30: ='CV Rotina <2A - residência'!P30 -> 0.8930041152 | E30: ='CV Rotina <2A - residência'!J30 -> 0.8888888889 | F30: ='CV Rotina <2A - residência'!L30 -> 0.8765432099 | G30: ='CV Rotina <2A - residência'!N30 -> 0.8765432099 | H30: ='CV Rotina <2A - residência'!X30 -> 0.9835390947 | I30: ='CV Rotina <2A - residência'!R30 -> 0.9094650206 | J30: ='CV Rotina <2A - residência'!T30 -> 0.7654320988 | K30: ='CV Rotina <2A - residência'!V30 -> 0.9135802469 | L30: ='CV Rotina <2A - residência'!Z30 -> 0.9341563786 | M30: 1 | N30: 1 | O30: 2 | P30: 1
A31: Metropolitana | B31: Guarapari | C31: ='CV Rotina <2A - residência'!H31 -> 0.9376623377 | D31: ='CV Rotina <2A - residência'!P31 -> 0.8476190476 | E31: ='CV Rotina <2A - residência'!J31 -> 0.7714285714 | F31: ='CV Rotina <2A - residência'!L31 -> 0.7645021645 | G31: ='CV Rotina <2A - residência'!N31 -> 0.8025974026 | H31: ='CV Rotina <2A - residência'!X31 -> 0.8987012987 | I31: ='CV Rotina <2A - residência'!R31 -> 0.8069264069 | J31: ='CV Rotina <2A - residência'!T31 -> 0.5922077922 | K31: ='CV Rotina <2A - residência'!V31 -> 0.832034632 | L31: ='CV Rotina <2A - residência'!Z31 -> 0.7402597403 | M31: 1 | N31: 0 | O31: 1 | P31: 0
A32: Metropolitana | B32: Ibatiba | C32: ='CV Rotina <2A - residência'!H32 -> 0.9566787004 | D32: ='CV Rotina <2A - residência'!P32 -> 0.8844765343 | E32: ='CV Rotina <2A - residência'!J32 -> 0.8411552347 | F32: ='CV Rotina <2A - residência'!L32 -> 0.8303249097 | G32: ='CV Rotina <2A - residência'!N32 -> 0.8086642599 | H32: ='CV Rotina <2A - residência'!X32 -> 0.916967509 | I32: ='CV Rotina <2A - residência'!R32 -> 0.8375451264 | J32: ='CV Rotina <2A - residência'!T32 -> 0.7436823105 | K32: ='CV Rotina <2A - residência'!V32 -> 0.8953068592 | L32: ='CV Rotina <2A - residência'!Z32 -> 0.9530685921 | M32: 1 | N32: 1 | O32: 2 | P32: 0
A33: Metropolitana | B33: Ibiraçu | C33: ='CV Rotina <2A - residência'!H33 -> 0.9186046512 | D33: ='CV Rotina <2A - residência'!P33 -> 0.9418604651 | E33: ='CV Rotina <2A - residência'!J33 -> 0.9418604651 | F33: ='CV Rotina <2A - residência'!L33 -> 0.9069767442 | G33: ='CV Rotina <2A - residência'!N33 -> 1.023255814 | H33: ='CV Rotina <2A - residência'!X33 -> 1.058139535 | I33: ='CV Rotina <2A - residência'!R33 -> 1 | J33: ='CV Rotina <2A - residência'!T33 -> 0.9534883721 | K33: ='CV Rotina <2A - residência'!V33 -> 1.046511628 | L33: ='CV Rotina <2A - residência'!Z33 -> 1.11627907 | M33: 2 | N33: 6 | O33: 8 | P33: 2
A34: Sul | B34: Ibitirama | C34: ='CV Rotina <2A - residência'!H34 -> 0.9803921569 | D34: ='CV Rotina <2A - residência'!P34 -> 1.176470588 | E34: ='CV Rotina <2A - residência'!J34 -> 1.039215686 | F34: ='CV Rotina <2A - residência'!L34 -> 1 | G34: ='CV Rotina <2A - residência'!N34 -> 1.117647059 | H34: ='CV Rotina <2A - residência'!X34 -> 0.9803921569 | I34: ='CV Rotina <2A - residência'!R34 -> 1.078431373 | J34: ='CV Rotina <2A - residência'!T34 -> 0.9019607843 | K34: ='CV Rotina <2A - residência'!V34 -> 0.9411764706 | L34: ='CV Rotina <2A - residência'!Z34 -> 0.9803921569 | M34: 2 | N34: 6 | O34: 8 | P34: 4
A35: Sul | B35: Iconha | C35: ='CV Rotina <2A - residência'!H35 -> 1.049382716 | D35: ='CV Rotina <2A - residência'!P35 -> 1.037037037 | E35: ='CV Rotina <2A - residência'!J35 -> 0.962962963 | F35: ='CV Rotina <2A - residência'!L35 -> 0.962962963 | G35: ='CV Rotina <2A - residência'!N35 -> 0.950617284 | H35: ='CV Rotina <2A - residência'!X35 -> 0.8641975309 | I35: ='CV Rotina <2A - residência'!R35 -> 1 | J35: ='CV Rotina <2A - residência'!T35 -> 0.8148148148 | K35: ='CV Rotina <2A - residência'!V35 -> 0.975308642 | L35: ='CV Rotina <2A - residência'!Z35 -> 1.049382716 | M35: =COUNTIF(C35:D35,">=0,9") -> 2 | N35: 6 | O35: =SUM(M35:N35) -> 8 | P35: 3
A36: Sul | B36: Irupi | C36: ='CV Rotina <2A - residência'!H36 -> 0.968503937 | D36: ='CV Rotina <2A - residência'!P36 -> 0.8031496063 | E36: ='CV Rotina <2A - residência'!J36 -> 0.7795275591 | F36: ='CV Rotina <2A - residência'!L36 -> 0.7637795276 | G36: ='CV Rotina <2A - residência'!N36 -> 0.7322834646 | H36: ='CV Rotina <2A - residência'!X36 -> 1.047244094 | I36: ='CV Rotina <2A - residência'!R36 -> 0.811023622 | J36: ='CV Rotina <2A - residência'!T36 -> 0.8818897638 | K36: ='CV Rotina <2A - residência'!V36 -> 1.078740157 | L36: ='CV Rotina <2A - residência'!Z36 -> 0.9291338583 | M36: 1 | N36: 2 | O36: 3 | P36: 1
A37: Metropolitana | B37: Itaguaçu | C37: ='CV Rotina <2A - residência'!H37 -> 0.8541666667 | D37: ='CV Rotina <2A - residência'!P37 -> 0.84375 | E37: ='CV Rotina <2A - residência'!J37 -> 0.8125 | F37: ='CV Rotina <2A - residência'!L37 -> 0.8125 | G37: ='CV Rotina <2A - residência'!N37 -> 0.84375 | H37: ='CV Rotina <2A - residência'!X37 -> 1.125 | I37: ='CV Rotina <2A - residência'!R37 -> 0.7708333333 | J37: ='CV Rotina <2A - residência'!T37 -> 0.9479166667 | K37: ='CV Rotina <2A - residência'!V37 -> 0.96875 | L37: ='CV Rotina <2A - residência'!Z37 -> 0.9583333333 | M37: 0 | N37: 3 | O37: 3 | P37: 1
A38: Sul | B38: Itapemirim | C38: ='CV Rotina <2A - residência'!H38 -> 0.8988764045 | D38: ='CV Rotina <2A - residência'!P38 -> 0.8792134831 | E38: ='CV Rotina <2A - residência'!J38 -> 0.8033707865 | F38: ='CV Rotina <2A - residência'!L38 -> 0.75 | G38: ='CV Rotina <2A - residência'!N38 -> 0.8820224719 | H38: ='CV Rotina <2A - residência'!X38 -> 0.8342696629 | I38: ='CV Rotina <2A - residência'!R38 -> 0.9129213483 | J38: ='CV Rotina <2A - residência'!T38 -> 0.5702247191 | K38: ='CV Rotina <2A - residência'!V38 -> 0.7837078652 | L38: ='CV Rotina <2A - residência'!Z38 -> 0.702247191 | M38: 0 | N38: 0 | O38: 0 | P38: 0
A39: Metropolitana | B39: Itarana | C39: ='CV Rotina <2A - residência'!H39 -> 1.021052632 | D39: ='CV Rotina <2A - residência'!P39 -> 0.8842105263 | E39: ='CV Rotina <2A - residência'!J39 -> 0.8526315789 | F39: ='CV Rotina <2A - residência'!L39 -> 0.8631578947 | G39: ='CV Rotina <2A - residência'!N39 -> 0.8736842105 | H39: ='CV Rotina <2A - residência'!X39 -> 1.168421053 | I39: ='CV Rotina <2A - residência'!R39 -> 0.8631578947 | J39: ='CV Rotina <2A - residência'!T39 -> 0.8947368421 | K39: ='CV Rotina <2A - residência'!V39 -> 1.010526316 | L39: ='CV Rotina <2A - residência'!Z39 -> 1.010526316 | M39: 1 | N39: 3 | O39: 4 | P39: 1
A40: Sul | B40: Iúna | C40: ='CV Rotina <2A - residência'!H40 -> 0.8376383764 | D40: ='CV Rotina <2A - residência'!P40 -> 0.8856088561 | E40: ='CV Rotina <2A - residência'!J40 -> 0.889298893 | F40: ='CV Rotina <2A - residência'!L40 -> 0.8597785978 | G40: ='CV Rotina <2A - residência'!N40 -> 0.8228782288 | H40: ='CV Rotina <2A - residência'!X40 -> 1.003690037 | I40: ='CV Rotina <2A - residência'!R40 -> 0.9040590406 | J40: ='CV Rotina <2A - residência'!T40 -> 0.8819188192 | K40: ='CV Rotina <2A - residência'!V40 -> 1.073800738 | L40: ='CV Rotina <2A - residência'!Z40 -> 1.05904059 | M40: 0 | N40: 3 | O40: 3 | P40: 1
A41: Norte | B41: Jaguaré | C41: ='CV Rotina <2A - residência'!H41 -> 0.9331306991 | D41: ='CV Rotina <2A - residência'!P41 -> 0.8449848024 | E41: ='CV Rotina <2A - residência'!J41 -> 0.8419452888 | F41: ='CV Rotina <2A - residência'!L41 -> 0.8267477204 | G41: ='CV Rotina <2A - residência'!N41 -> 0.8449848024 | H41: ='CV Rotina <2A - residência'!X41 -> 0.9635258359 | I41: ='CV Rotina <2A - residência'!R41 -> 0.9118541033 | J41: ='CV Rotina <2A - residência'!T41 -> 0.7051671733 | K41: ='CV Rotina <2A - residência'!V41 -> 0.914893617 | L41: ='CV Rotina <2A - residência'!Z41 -> 0.7689969605 | M41: 1 | N41: 1 | O41: 2 | P41: 1
